Workbook

Sheet Info_Entreprise
B1: Année | W1: Mois
B2: 2017 | W2: 09
C3: PAIE_16.12+ | G3: Evaluations Congés | K3: Informations Salariés | O3: Evaluations Gratification
C4: Etat Paiement Salaires | G4: Etat Paiement Congés | K4: Journaliers-Occasionels | O4: Etat Paiement Gratifications | S4: Etat Paiement Solde de Compte
S5: =Info_Salariés!E1 -> 2017-09-30
C6: Désignation de l'entreprise : | K6: A REVOIR
C8: Adresse Postale ou e-mail : | K8: eviboni@outlook.fr
C10: Telephone : | K10: (225)08 17 49 08
C12: N° Compte Contribuale : | K12: 1 | L12: 2 | M12: 3 | N12: 4 | O12: 5 | P12: 6 | Q12: 7 | R12: E
C14: N° CNPS Employeur: | K14: 123456
C16: Adresse géographie : | K16: ANANERAIS | P16: YOPOUGON
K17: Quartier | P17: Commune
N18: Paiement salaire le: | S18: 2017-07-02
C19: =+Info_Salariés!F1 -> EviBoni PAIE_16.12+
C20: Liste des Embauchés | G20: livre des Embauchés | K20: livres des Soldes Fin Contrat | O20: livres des Journaliers | S20: Liste des Journaliers
C21: Livre de Paie du personnel | G21: Assiettes Fiscales & sociales | K21: DGI & CNPS | O21: Ret. & Charges salariales | S21: Imputations comptable
G22: PAIMENTS ESPECES | K22: PAIEMENTS CHEQUES | O22: PAIEMENTS VIREMENTS

Sheet Info_Salariés
A1: =+Info_Entreprise!B2 -> 2017 | C1: =SUM(B3:B102) -> 7 | D1: =IF(OR(C1=0,C1=1),"Embauché","Embauchés") -> Embauchés | E1: =Base_Imposable_Sociale!J4 -> 2017-09-30 | F1: ="EviBoni "&Info_Entreprise!C3 -> EviBoni PAIE_16.12+ | R1: SALAIRE - TRANSPORT | U1: PRIMES DIVERS | Y1: HEURES SUPL | AC1: ABSENCES | AE1: EVALUATION DES CONGES | AL1: EVALUAT° GRATIF | AO1: RUPTURE CONTRAT | AQ1: MODE DE PAIEMENT SALAIRE
A2: ʘ | C2: H/Sem | D2: Nom & Prénoms | E2: SEXE | F2: CODE EMPLOI | G2: Date Embauche | H2: QUALIFICATION | I2: Local Expat | J2: MATRICULE | K2: ADRESSE POSTALE | L2: N° CNPS | M2: SITUAT° MATRIMONIAL | N2: ENFANTS | O2: TYPE CONTRAT | P2: emploi occupe | Q2: CATEGORIE EMPLOI | R2: SALAIRE DE BASE | S2: Sursalaire | T2: Prime de Transport | U2: Prime de Representation | V2: Prime d'Outillage | W2: Prime de Salissure | X2: Autre Prime | Y2: 15% | Z2: 50% | AA2: 75% | AB2: 100% | AC2: Heures | AD2: Jours | AE2: Date Retour Dernier Congé | AF2: Départ Théorique | AG2: Jours Ajoutés | AH2: Salaire Moyen Mensuel | AI2: DEPART EFFECTIF | AJ2: FIN EFFECTIVE | AK2: JOURS REST. ANNEE N-1 | AL2: DATE DEPART | AM2: DATE FIN | AN2: TAUX(%) | AO2: Date de Départ | AP2: MOTIF | AQ2: MODE | AR2: BANQUE | AS2: CODE BANQUE | AT2: CODE GUICHET | AU2: N° DE COMPTE | AV2: Clé RIB | AW2: Ancienneté
A3: ='1'!$A$1 -> 1 | B3: =IF(Info_Salariés!$E$1-G3>0,IF(AND(C3<>0,D3<>""),IF(YEAR(Info_Salariés!$E$1)<>YEAR(AO3),1,IF((MONTH(AO3)-MONTH(Info_Salariés!$E$1))<0,0,1)),""),"") -> 1 | C3: 40 | D3: EBENEZAH TOUSSAINT | E3: MASCULIN | F3: CM | G3: 2016-01-01 | H3: COMPTABLE | I3: L | J3: 001 | K3: 03 BP 817 ABIDJAN 03 | L3: 121360052662 | M3: CELIBATAIRE | N3: 0 | O3: CDI | P3: COMPTABLE | R3: 174281 | S3: 144569 | T3: 25000 | U3: 0 | V3: 0 | W3: 0 | X3: 0 | AE3: 2016-10-01 | AF3: 2017-09-15 | AG3: 0 | AH3: 318850 | AI3: 2017-09-15 | AP3: LICENCIEMENT | AQ3: ESPECE | AW3: =IF(G3<>0,ROUNDDOWN((Base_Imposable_Sociale!$J$4-G3)/366,0),0) -> 1
A4: ='2'!$A$1 -> 2 | B4: =IF(Info_Salariés!$E$1-G4>0,IF(AND(C4<>0,D4<>""),IF(YEAR(Info_Salariés!$E$1)<>YEAR(AO4),1,IF((MONTH(AO4)-MONTH(Info_Salariés!$E$1))<0,0,1)),""),"") -> 1 | C4: 40 | D4: BIAKPA Boni | E4: MASCULIN | F4: DR | G4: 2015-01-01 | I4: E | M4: MARIE | N4: 2 | O4: CDI | R4: 350000 | S4: 500000 | T4: 25000 | AL4: 2017-01-01 | AM4: 2017-06-09 | AN4: 75 | AQ4: VIREMENT BANCAIRE | AR4: BOA-CI | AS4: CI032 | AT4: 01024 | AU4: 009623970002 | AV4: 07 | AW4: =IF(G4<>0,ROUNDDOWN((Base_Imposable_Sociale!$J$4-G4)/366,0),0) -> 2
A5: ='3'!$A$1 -> 3 | B5: =IF(Info_Salariés!$E$1-G5>0,IF(AND(C5<>0,D5<>""),IF(YEAR(Info_Salariés!$E$1)<>YEAR(AO5),1,IF((MONTH(AO5)-MONTH(Info_Salariés!$E$1))<0,0,1)),""),"") -> 1 | C5: 40 | D5: BLEU Lisette | E5: FEMININ | F5: CM | G5: 2016-01-01 | I5: L | M5: MARIEE | N5: 2 | O5: CDI | R5: 250000 | S5: 100000 | T5: 25000 | AE5: 2016-01-01 | AF5: 2017-06-09 | AH5: 150000 | AL5: 2017-01-01 | AM5: 2017-06-09 | AN5: 75 | AQ5: VIREMENT BANCAIRE | AW5: =IF(G5<>0,ROUNDDOWN((Base_Imposable_Sociale!$J$4-G5)/366,0),0) -> 1
A6: ='4'!$A$1 -> 4 | B6: =IF(Info_Salariés!$E$1-G6>0,IF(AND(C6<>0,D6<>""),IF(YEAR(Info_Salariés!$E$1)<>YEAR(AO6),1,IF((MONTH(AO6)-MONTH(Info_Salariés!$E$1))<0,0,1)),""),"") -> 1 | C6: 40 | D6: BONI Boni Mathias | E6: MASCULIN | F6: CM | G6: 2015-01-01 | I6: L | M6: CELIBATAIRE | O6: CDI | R6: 250000 | S6: 100000 | T6: 25000 | AL6: 2017-01-01 | AM6: 2017-06-09 | AN6: 75 | AQ6: ESPECE | AW6: =IF(G6<>0,ROUNDDOWN((Base_Imposable_Sociale!$J$4-G6)/366,0),0) -> 2
A7: ='5'!$A$1 -> 5 | B7: =IF(Info_Salariés!$E$1-G7>0,IF(AND(C7<>0,D7<>""),IF(YEAR(Info_Salariés!$E$1)<>YEAR(AO7),1,IF((MONTH(AO7)-MONTH(Info_Salariés!$E$1))<0,0,1)),""),"") -> 1 | C7: 40 | D7: DELI Thelo Anne Marie | E7: FEMININ | F7: CM | G7: 2016-01-01 | I7: L | M7: CELIBATAIRE | O7: CDI | R7: 250000 | S7: 100000 | T7: 25000 | AL7: 2017-01-01 | AM7: 2017-06-09 | AN7: 75 | AQ7: VIREMENT BANCAIRE | AW7: =IF(G7<>0,ROUNDDOWN((Base_Imposable_Sociale!$J$4-G7)/366,0),0) -> 1
A8: ='6'!$A$1 -> 6 | B8: =IF(Info_Salariés!$E$1-G8>0,IF(AND(C8<>0,D8<>""),IF(YEAR(Info_Salariés!$E$1)<>YEAR(AO8),1,IF((MONTH(AO8)-MONTH(Info_Salariés!$E$1))<0,0,1)),""),"") -> 1 | C8: 40 | D8: KOUASSI Evi | E8: MASCULIN | F8: DR | G8: 2015-01-01 | I8: L | M8: MARIE | N8: 2 | O8: CDI | R8: 470000 | S8: 500000 | T8: 25000 | AL8: 2017-01-01 | AM8: 2017-06-09 | AN8: 75 | AQ8: ESPECE | AW8: =IF(G8<>0,ROUNDDOWN((Base_Imposable_Sociale!$J$4-G8)/366,0),0) -> 2
A9: ='7'!$A$1 -> 7 | B9: =IF(Info_Salariés!$E$1-G9>0,IF(AND(C9<>0,D9<>""),IF(YEAR(Info_Salariés!$E$1)<>YEAR(AO9),1,IF((MONTH(AO9)-MONTH(Info_Salariés!$E$1))<0,0,1)),""),"") -> 1 | C9: 40 | D9: OUATTARA Gemima | E9: FEMININ | F9: CM | G9: 2016-01-01 | I9: L | M9: MARIEE | N9: 2 | O9: CDI | R9: 150000 | S9: 100000 | T9: 25000 | AL9: 2017-01-01 | AM9: 2017-06-09 | AN9: 75 | AQ9: ESPECE | AW9: =IF(G9<>0,ROUNDDOWN((Base_Imposable_Sociale!$J$4-G9)/366,0),0) -> 1
A10: ='8'!$A$1 -> 8 | B10: =IF(Info_Salariés!$E$1-G10>0,IF(AND(C10<>0,D10<>""),IF(YEAR(Info_Salariés!$E$1)<>YEAR(AO10),1,IF((MONTH(AO10)-MONTH(Info_Salariés!$E$1))<0,0,1)),""),"") ->  | AW10: =IF(G10<>0,ROUNDDOWN((Base_Imposable_Sociale!$J$4-G10)/366,0),0) -> 0
A11: ='9'!$A$1 -> 9 | B11: =IF(Info_Salariés!$E$1-G11>0,IF(AND(C11<>0,D11<>""),IF(YEAR(Info_Salariés!$E$1)<>YEAR(AO11),1,IF((MONTH(AO11)-MONTH(Info_Salariés!$E$1))<0,0,1)),""),"") ->  | AW11: =IF(G11<>0,ROUNDDOWN((Base_Imposable_Sociale!$J$4-G11)/366,0),0) -> 0
A12: ='10'!$A$1 -> 10 | B12: =IF(Info_Salariés!$E$1-G12>0,IF(AND(C12<>0,D12<>""),IF(YEAR(Info_Salariés!$E$1)<>YEAR(AO12),1,IF((MONTH(AO12)-MONTH(Info_Salariés!$E$1))<0,0,1)),""),"") ->  | AW12: =IF(G12<>0,ROUNDDOWN((Base_Imposable_Sociale!$J$4-G12)/366,0),0) -> 0
A13: ='11'!$A$1 -> 11 | B13: =IF(Info_Salariés!$E$1-G13>0,IF(AND(C13<>0,D13<>""),IF(YEAR(Info_Salariés!$E$1)<>YEAR(AO13),1,IF((MONTH(AO13)-MONTH(Info_Salariés!$E$1))<0,0,1)),""),"") ->  | AW13: =IF(G13<>0,ROUNDDOWN((Base_Imposable_Sociale!$J$4-G13)/366,0),0) -> 0
A14: ='12'!$A$1 -> 12 | B14: =IF(Info_Salariés!$E$1-G14>0,IF(AND(C14<>0,D14<>""),IF(YEAR(Info_Salariés!$E$1)<>YEAR(AO14),1,IF((MONTH(AO14)-MONTH(Info_Salariés!$E$1))<0,0,1)),""),"") ->  | AW14: =IF(G14<>0,ROUNDDOWN((Base_Imposable_Sociale!$J$4-G14)/366,0),0) -> 0
A15: ='13'!$A$1 -> 13 | B15: =IF(Info_Salariés!$E$1-G15>0,IF(AND(C15<>0,D15<>""),IF(YEAR(Info_Salariés!$E$1)<>YEAR(AO15),1,IF((MONTH(AO15)-MONTH(Info_Salariés!$E$1))<0,0,1)),""),"") ->  | AW15: =IF(G15<>0,ROUNDDOWN((Base_Imposable_Sociale!$J$4-G15)/366,0),0) -> 0
A16: ='14'!$A$1 -> 14 | B16: =IF(Info_Salariés!$E$1-G16>0,IF(AND(C16<>0,D16<>""),IF(YEAR(Info_Salariés!$E$1)<>YEAR(AO16),1,IF((MONTH(AO16)-MONTH(Info_Salariés!$E$1))<0,0,1)),""),"") ->  | AW16: =IF(G16<>0,ROUNDDOWN((Base_Imposable_Sociale!$J$4-G16)/366,0),0) -> 0
A17: ='15'!$A$1 -> 15 | B17: =IF(Info_Salariés!$E$1-G17>0,IF(AND(C17<>0,D17<>""),IF(YEAR(Info_Salariés!$E$1)<>YEAR(AO17),1,IF((MONTH(AO17)-MONTH(Info_Salariés!$E$1))<0,0,1)),""),"") ->  | AW17: =IF(G17<>0,ROUNDDOWN((Base_Imposable_Sociale!$J$4-G17)/366,0),0) -> 0
A18: ='16'!$A$1 -> 16 | B18: =IF(Info_Salariés!$E$1-G18>0,IF(AND(C18<>0,D18<>""),IF(YEAR(Info_Salariés!$E$1)<>YEAR(AO18),1,IF((MONTH(AO18)-MONTH(Info_Salariés!$E$1))<0,0,1)),""),"") ->  | AW18: =IF(G18<>0,ROUNDDOWN((Base_Imposable_Sociale!$J$4-G18)/366,0),0) -> 0
A19: ='17'!$A$1 -> 17 | B19: =IF(Info_Salariés!$E$1-G19>0,IF(AND(C19<>0,D19<>""),IF(YEAR(Info_Salariés!$E$1)<>YEAR(AO19),1,IF((MONTH(AO19)-MONTH(Info_Salariés!$E$1))<0,0,1)),""),"") ->  | AW19: =IF(G19<>0,ROUNDDOWN((Base_Imposable_Sociale!$J$4-G19)/366,0),0) -> 0
A20: ='18'!$A$1 -> 18 | B20: =IF(Info_Salariés!$E$1-G20>0,IF(AND(C20<>0,D20<>""),IF(YEAR(Info_Salariés!$E$1)<>YEAR(AO20),1,IF((MONTH(AO20)-MONTH(Info_Salariés!$E$1))<0,0,1)),""),"") ->  | AW20: =IF(G20<>0,ROUNDDOWN((Base_Imposable_Sociale!$J$4-G20)/366,0),0) -> 0
A21: ='19'!$A$1 -> 19 | B21: =IF(Info_Salariés!$E$1-G21>0,IF(AND(C21<>0,D21<>""),IF(YEAR(Info_Salariés!$E$1)<>YEAR(AO21),1,IF((MONTH(AO21)-MONTH(Info_Salariés!$E$1))<0,0,1)),""),"") ->  | AW21: =IF(G21<>0,ROUNDDOWN((Base_Imposable_Sociale!$J$4-G21)/366,0),0) -> 0
A22: ='20'!$A$1 -> 20 | B22: =IF(Info_Salariés!$E$1-G22>0,IF(AND(C22<>0,D22<>""),IF(YEAR(Info_Salariés!$E$1)<>YEAR(AO22),1,IF((MONTH(AO22)-MONTH(Info_Salariés!$E$1))<0,0,1)),""),"") ->  | AW22: =IF(G22<>0,ROUNDDOWN((Base_Imposable_Sociale!$J$4-G22)/366,0),0) -> 0
A23: ='21'!$A$1 -> 21 | B23: =IF(Info_Salariés!$E$1-G23>0,IF(AND(C23<>0,D23<>""),IF(YEAR(Info_Salariés!$E$1)<>YEAR(AO23),1,IF((MONTH(AO23)-MONTH(Info_Salariés!$E$1))<0,0,1)),""),"") ->  | AW23: =IF(G23<>0,ROUNDDOWN((Base_Imposable_Sociale!$J$4-G23)/366,0),0) -> 0
A24: ='22'!$A$1 -> 22 | B24: =IF(Info_Salariés!$E$1-G24>0,IF(AND(C24<>0,D24<>""),IF(YEAR(Info_Salariés!$E$1)<>YEAR(AO24),1,IF((MONTH(AO24)-MONTH(Info_Salariés!$E$1))<0,0,1)),""),"") ->  | AW24: =IF(G24<>0,ROUNDDOWN((Base_Imposable_Sociale!$J$4-G24)/366,0),0) -> 0
A25: ='23'!$A$1 -> 23 | B25: =IF(Info_Salariés!$E$1-G25>0,IF(AND(C25<>0,D25<>""),IF(YEAR(Info_Salariés!$E$1)<>YEAR(AO25),1,IF((MONTH(AO25)-MONTH(Info_Salariés!$E$1))<0,0,1)),""),"") ->  | AW25: =IF(G25<>0,ROUNDDOWN((Base_Imposable_Sociale!$J$4-G25)/366,0),0) -> 0
A26: ='24'!$A$1 -> 24 | B26: =IF(Info_Salariés!$E$1-G26>0,IF(AND(C26<>0,D26<>""),IF(YEAR(Info_Salariés!$E$1)<>YEAR(AO26),1,IF((MONTH(AO26)-MONTH(Info_Salariés!$E$1))<0,0,1)),""),"") ->  | AW26: =IF(G26<>0,ROUNDDOWN((Base_Imposable_Sociale!$J$4-G26)/366,0),0) -> 0
A27: ='25'!$A$1 -> 25 | B27: =IF(Info_Salariés!$E$1-G27>0,IF(AND(C27<>0,D27<>""),IF(YEAR(Info_Salariés!$E$1)<>YEAR(AO27),1,IF((MONTH(AO27)-MONTH(Info_Salariés!$E$1))<0,0,1)),""),"") ->  | AW27: =IF(G27<>0,ROUNDDOWN((Base_Imposable_Sociale!$J$4-G27)/366,0),0) -> 0
A28: ='26'!$A$1 -> 26 | B28: =IF(Info_Salariés!$E$1-G28>0,IF(AND(C28<>0,D28<>""),IF(YEAR(Info_Salariés!$E$1)<>YEAR(AO28),1,IF((MONTH(AO28)-MONTH(Info_Salariés!$E$1))<0,0,1)),""),"") ->  | AW28: =IF(G28<>0,ROUNDDOWN((Base_Imposable_Sociale!$J$4-G28)/366,0),0) -> 0
A29: ='27'!$A$1 -> 27 | B29: =IF(Info_Salariés!$E$1-G29>0,IF(AND(C29<>0,D29<>""),IF(YEAR(Info_Salariés!$E$1)<>YEAR(AO29),1,IF((MONTH(AO29)-MONTH(Info_Salariés!$E$1))<0,0,1)),""),"") ->  | AW29: =IF(G29<>0,ROUNDDOWN((Base_Imposable_Sociale!$J$4-G29)/366,0),0) -> 0
A30: ='28'!$A$1 -> 28 | B30: =IF(Info_Salariés!$E$1-G30>0,IF(AND(C30<>0,D30<>""),IF(YEAR(Info_Salariés!$E$1)<>YEAR(AO30),1,IF((MONTH(AO30)-MONTH(Info_Salariés!$E$1))<0,0,1)),""),"") ->  | AW30: =IF(G30<>0,ROUNDDOWN((Base_Imposable_Sociale!$J$4-G30)/366,0),0) -> 0
A31: ='29'!$A$1 -> 29 | B31: =IF(Info_Salariés!$E$1-G31>0,IF(AND(C31<>0,D31<>""),IF(YEAR(Info_Salariés!$E$1)<>YEAR(AO31),1,IF((MONTH(AO31)-MONTH(Info_Salariés!$E$1))<0,0,1)),""),"") ->  | AW31: =IF(G31<>0,ROUNDDOWN((Base_Imposable_Sociale!$J$4-G31)/366,0),0) -> 0
A32: ='30'!$A$1 -> 30 | B32: =IF(Info_Salariés!$E$1-G32>0,IF(AND(C32<>0,D32<>""),IF(YEAR(Info_Salariés!$E$1)<>YEAR(AO32),1,IF((MONTH(AO32)-MONTH(Info_Salariés!$E$1))<0,0,1)),""),"") ->  | AW32: =IF(G32<>0,ROUNDDOWN((Base_Imposable_Sociale!$J$4-G32)/366,0),0) -> 0
A33: ='31'!$A$1 -> 31 | B33: =IF(Info_Salariés!$E$1-G33>0,IF(AND(C33<>0,D33<>""),IF(YEAR(Info_Salariés!$E$1)<>YEAR(AO33),1,IF((MONTH(AO33)-MONTH(Info_Salariés!$E$1))<0,0,1)),""),"") ->  | AW33: =IF(G33<>0,ROUNDDOWN((Base_Imposable_Sociale!$J$4-G33)/366,0),0) -> 0
A34: ='32'!$A$1 -> 32 | B34: =IF(Info_Salariés!$E$1-G34>0,IF(AND(C34<>0,D34<>""),IF(YEAR(Info_Salariés!$E$1)<>YEAR(AO34),1,IF((MONTH(AO34)-MONTH(Info_Salariés!$E$1))<0,0,1)),""),"") ->  | AW34: =IF(G34<>0,ROUNDDOWN((Base_Imposable_Sociale!$J$4-G34)/366,0),0) -> 0
A35: ='33'!$A$1 -> 33 | B35: =IF(Info_Salariés!$E$1-G35>0,IF(AND(C35<>0,D35<>""),IF(YEAR(Info_Salariés!$E$1)<>YEAR(AO35),1,IF((MONTH(AO35)-MONTH(Info_Salariés!$E$1))<0,0,1)),""),"") ->  | AW35: =IF(G35<>0,ROUNDDOWN((Base_Imposable_Sociale!$J$4-G35)/366,0),0) -> 0
A36: ='34'!$A$1 -> 34 | B36: =IF(Info_Salariés!$E$1-G36>0,IF(AND(C36<>0,D36<>""),IF(YEAR(Info_Salariés!$E$1)<>YEAR(AO36),1,IF((MONTH(AO36)-MONTH(Info_Salariés!$E$1))<0,0,1)),""),"") ->  | AW36: =IF(G36<>0,ROUNDDOWN((Base_Imposable_Sociale!$J$4-G36)/366,0),0) -> 0
A37: ='35'!$A$1 -> 35 | B37: =IF(Info_Salariés!$E$1-G37>0,IF(AND(C37<>0,D37<>""),IF(YEAR(Info_Salariés!$E$1)<>YEAR(AO37),1,IF((MONTH(AO37)-MONTH(Info_Salariés!$E$1))<0,0,1)),""),"") ->  | AW37: =IF(G37<>0,ROUNDDOWN((Base_Imposable_Sociale!$J$4-G37)/366,0),0) -> 0
A38: ='36'!$A$1 -> 36 | B38: =IF(Info_Salariés!$E$1-G38>0,IF(AND(C38<>0,D38<>""),IF(YEAR(Info_Salariés!$E$1)<>YEAR(AO38),1,IF((MONTH(AO38)-MONTH(Info_Salariés!$E$1))<0,0,1)),""),"") ->  | AW38: =IF(G38<>0,ROUNDDOWN((Base_Imposable_Sociale!$J$4-G38)/366,0),0) -> 0
A39: ='37'!$A$1 -> 37 | B39: =IF(Info_Salariés!$E$1-G39>0,IF(AND(C39<>0,D39<>""),IF(YEAR(Info_Salariés!$E$1)<>YEAR(AO39),1,IF((MONTH(AO39)-MONTH(Info_Salariés!$E$1))<0,0,1)),""),"") ->  | AW39: =IF(G39<>0,ROUNDDOWN((Base_Imposable_Sociale!$J$4-G39)/366,0),0) -> 0
A40: ='38'!$A$1 -> 38 | B40: =IF(Info_Salariés!$E$1-G40>0,IF(AND(C40<>0,D40<>""),IF(YEAR(Info_Salariés!$E$1)<>YEAR(AO40),1,IF((MONTH(AO40)-MONTH(Info_Salariés!$E$1))<0,0,1)),""),"") ->  | AW40: =IF(G40<>0,ROUNDDOWN((Base_Imposable_Sociale!$J$4-G40)/366,0),0) -> 0
A41: ='39'!$A$1 -> 39 | B41: =IF(Info_Salariés!$E$1-G41>0,IF(AND(C41<>0,D41<>""),IF(YEAR(Info_Salariés!$E$1)<>YEAR(AO41),1,IF((MONTH(AO41)-MONTH(Info_Salariés!$E$1))<0,0,1)),""),"") ->  | AW41: =IF(G41<>0,ROUNDDOWN((Base_Imposable_Sociale!$J$4-G41)/366,0),0) -> 0
A42: ='40'!$A$1 -> 40 | B42: =IF(Info_Salariés!$E$1-G42>0,IF(AND(C42<>0,D42<>""),IF(YEAR(Info_Salariés!$E$1)<>YEAR(AO42),1,IF((MONTH(AO42)-MONTH(Info_Salariés!$E$1))<0,0,1)),""),"") ->  | AW42: =IF(G42<>0,ROUNDDOWN((Base_Imposable_Sociale!$J$4-G42)/366,0),0) -> 0
A43: ='41'!$A$1 -> 41 | B43: =IF(Info_Salariés!$E$1-G43>0,IF(AND(C43<>0,D43<>""),IF(YEAR(Info_Salariés!$E$1)<>YEAR(AO43),1,IF((MONTH(AO43)-MONTH(Info_Salariés!$E$1))<0,0,1)),""),"") ->  | AW43: =IF(G43<>0,ROUNDDOWN((Base_Imposable_Sociale!$J$4-G43)/366,0),0) -> 0
A44: ='42'!$A$1 -> 42 | B44: =IF(Info_Salariés!$E$1-G44>0,IF(AND(C44<>0,D44<>""),IF(YEAR(Info_Salariés!$E$1)<>YEAR(AO44),1,IF((MONTH(AO44)-MONTH(Info_Salariés!$E$1))<0,0,1)),""),"") ->  | AW44: =IF(G44<>0,ROUNDDOWN((Base_Imposable_Sociale!$J$4-G44)/366,0),0) -> 0
A45: ='43'!$A$1 -> 43 | B45: =IF(Info_Salariés!$E$1-G45>0,IF(AND(C45<>0,D45<>""),IF(YEAR(Info_Salariés!$E$1)<>YEAR(AO45),1,IF((MONTH(AO45)-MONTH(Info_Salariés!$E$1))<0,0,1)),""),"") ->  | AW45: =IF(G45<>0,ROUNDDOWN((Base_Imposable_Sociale!$J$4-G45)/366,0),0) -> 0
A46: ='44'!$A$1 -> 44 | B46: =IF(Info_Salariés!$E$1-G46>0,IF(AND(C46<>0,D46<>""),IF(YEAR(Info_Salariés!$E$1)<>YEAR(AO46),1,IF((MONTH(AO46)-MONTH(Info_Salariés!$E$1))<0,0,1)),""),"") ->  | AW46: =IF(G46<>0,ROUNDDOWN((Base_Imposable_Sociale!$J$4-G46)/366,0),0) -> 0
A47: ='45'!$A$1 -> 45 | B47: =IF(Info_Salariés!$E$1-G47>0,IF(AND(C47<>0,D47<>""),IF(YEAR(Info_Salariés!$E$1)<>YEAR(AO47),1,IF((MONTH(AO47)-MONTH(Info_Salariés!$E$1))<0,0,1)),""),"") ->  | AW47: =IF(G47<>0,ROUNDDOWN((Base_Imposable_Sociale!$J$4-G47)/366,0),0) -> 0
A48: ='46'!$A$1 -> 46 | B48: =IF(Info_Salariés!$E$1-G48>0,IF(AND(C48<>0,D48<>""),IF(YEAR(Info_Salariés!$E$1)<>YEAR(AO48),1,IF((MONTH(AO48)-MONTH(Info_Salariés!$E$1))<0,0,1)),""),"") ->  | AW48: =IF(G48<>0,ROUNDDOWN((Base_Imposable_Sociale!$J$4-G48)/366,0),0) -> 0
A49: ='47'!$A$1 -> 47 | B49: =IF(Info_Salariés!$E$1-G49>0,IF(AND(C49<>0,D49<>""),IF(YEAR(Info_Salariés!$E$1)<>YEAR(AO49),1,IF((MONTH(AO49)-MONTH(Info_Salariés!$E$1))<0,0,1)),""),"") ->  | AW49: =IF(G49<>0,ROUNDDOWN((Base_Imposable_Sociale!$J$4-G49)/366,0),0) -> 0
A50: ='48'!$A$1 -> 48 | B50: =IF(Info_Salariés!$E$1-G50>0,IF(AND(C50<>0,D50<>""),IF(YEAR(Info_Salariés!$E$1)<>YEAR(AO50),1,IF((MONTH(AO50)-MONTH(Info_Salariés!$E$1))<0,0,1)),""),"") ->  | AW50: =IF(G50<>0,ROUNDDOWN((Base_Imposable_Sociale!$J$4-G50)/366,0),0) -> 0
A51: ='49'!$A$1 -> 49 | B51: =IF(Info_Salariés!$E$1-G51>0,IF(AND(C51<>0,D51<>""),IF(YEAR(Info_Salariés!$E$1)<>YEAR(AO51),1,IF((MONTH(AO51)-MONTH(Info_Salariés!$E$1))<0,0,1)),""),"") ->  | AW51: =IF(G51<>0,ROUNDDOWN((Base_Imposable_Sociale!$J$4-G51)/366,0),0) -> 0
A52: ='50'!$A$1 -> 50 | B52: =IF(Info_Salariés!$E$1-G52>0,IF(AND(C52<>0,D52<>""),IF(YEAR(Info_Salariés!$E$1)<>YEAR(AO52),1,IF((MONTH(AO52)-MONTH(Info_Salariés!$E$1))<0,0,1)),""),"") ->  | AW52: =IF(G52<>0,ROUNDDOWN((Base_Imposable_Sociale!$J$4-G52)/366,0),0) -> 0
A53: ='51'!$A$1 -> 51 | B53: =IF(Info_Salariés!$E$1-G53>0,IF(AND(C53<>0,D53<>""),IF(YEAR(Info_Salariés!$E$1)<>YEAR(AO53),1,IF((MONTH(AO53)-MONTH(Info_Salariés!$E$1))<0,0,1)),""),"") ->  | AW53: =IF(G53<>0,ROUNDDOWN((Base_Imposable_Sociale!$J$4-G53)/366,0),0) -> 0
A54: ='52'!$A$1 -> 52 | B54: =IF(Info_Salariés!$E$1-G54>0,IF(AND(C54<>0,D54<>""),IF(YEAR(Info_Salariés!$E$1)<>YEAR(AO54),1,IF((MONTH(AO54)-MONTH(Info_Salariés!$E$1))<0,0,1)),""),"") ->  | AW54: =IF(G54<>0,ROUNDDOWN((Base_Imposable_Sociale!$J$4-G54)/366,0),0) -> 0
A55: ='53'!$A$1 -> 53 | B55: =IF(Info_Salariés!$E$1-G55>0,IF(AND(C55<>0,D55<>""),IF(YEAR(Info_Salariés!$E$1)<>YEAR(AO55),1,IF((MONTH(AO55)-MONTH(Info_Salariés!$E$1))<0,0,1)),""),"") ->  | AW55: =IF(G55<>0,ROUNDDOWN((Base_Imposable_Sociale!$J$4-G55)/366,0),0) -> 0
A56: ='54'!$A$1 -> 54 | B56: =IF(Info_Salariés!$E$1-G56>0,IF(AND(C56<>0,D56<>""),IF(YEAR(Info_Salariés!$E$1)<>YEAR(AO56),1,IF((MONTH(AO56)-MONTH(Info_Salariés!$E$1))<0,0,1)),""),"") ->  | AW56: =IF(G56<>0,ROUNDDOWN((Base_Imposable_Sociale!$J$4-G56)/366,0),0) -> 0
A57: ='55'!$A$1 -> 55 | B57: =IF(Info_Salariés!$E$1-G57>0,IF(AND(C57<>0,D57<>""),IF(YEAR(Info_Salariés!$E$1)<>YEAR(AO57),1,IF((MONTH(AO57)-MONTH(Info_Salariés!$E$1))<0,0,1)),""),"") ->  | AW57: =IF(G57<>0,ROUNDDOWN((Base_Imposable_Sociale!$J$4-G57)/366,0),0) -> 0
A58: ='56'!$A$1 -> 56 | B58: =IF(Info_Salariés!$E$1-G58>0,IF(AND(C58<>0,D58<>""),IF(YEAR(Info_Salariés!$E$1)<>YEAR(AO58),1,IF((MONTH(AO58)-MONTH(Info_Salariés!$E$1))<0,0,1)),""),"") ->  | AW58: =IF(G58<>0,ROUNDDOWN((Base_Imposable_Sociale!$J$4-G58)/366,0),0) -> 0
A59: ='57'!$A$1 -> 57 | B59: =IF(Info_Salariés!$E$1-G59>0,IF(AND(C59<>0,D59<>""),IF(YEAR(Info_Salariés!$E$1)<>YEAR(AO59),1,IF((MONTH(AO59)-MONTH(Info_Salariés!$E$1))<0,0,1)),""),"") ->  | AW59: =IF(G59<>0,ROUNDDOWN((Base_Imposable_Sociale!$J$4-G59)/366,0),0) -> 0
A60: ='58'!$A$1 -> 58 | B60: =IF(Info_Salariés!$E$1-G60>0,IF(AND(C60<>0,D60<>""),IF(YEAR(Info_Salariés!$E$1)<>YEAR(AO60),1,IF((MONTH(AO60)-MONTH(Info_Salariés!$E$1))<0,0,1)),""),"") ->  | AW60: =IF(G60<>0,ROUNDDOWN((Base_Imposable_Sociale!$J$4-G60)/366,0),0) -> 0
A61: ='59'!$A$1 -> 59 | B61: =IF(Info_Salariés!$E$1-G61>0,IF(AND(C61<>0,D61<>""),IF(YEAR(Info_Salariés!$E$1)<>YEAR(AO61),1,IF((MONTH(AO61)-MONTH(Info_Salariés!$E$1))<0,0,1)),""),"") ->  | AW61: =IF(G61<>0,ROUNDDOWN((Base_Imposable_Sociale!$J$4-G61)/366,0),0) -> 0
A62: ='60'!$A$1 -> 60 | B62: =IF(Info_Salariés!$E$1-G62>0,IF(AND(C62<>0,D62<>""),IF(YEAR(Info_Salariés!$E$1)<>YEAR(AO62),1,IF((MONTH(AO62)-MONTH(Info_Salariés!$E$1))<0,0,1)),""),"") ->  | AW62: =IF(G62<>0,ROUNDDOWN((Base_Imposable_Sociale!$J$4-G62)/366,0),0) -> 0
A63: ='61'!$A$1 -> 61 | B63: =IF(Info_Salariés!$E$1-G63>0,IF(AND(C63<>0,D63<>""),IF(YEAR(Info_Salariés!$E$1)<>YEAR(AO63),1,IF((MONTH(AO63)-MONTH(Info_Salariés!$E$1))<0,0,1)),""),"") ->  | AW63: =IF(G63<>0,ROUNDDOWN((Base_Imposable_Sociale!$J$4-G63)/366,0),0) -> 0
A64: ='62'!$A$1 -> 62 | B64: =IF(Info_Salariés!$E$1-G64>0,IF(AND(C64<>0,D64<>""),IF(YEAR(Info_Salariés!$E$1)<>YEAR(AO64),1,IF((MONTH(AO64)-MONTH(Info_Salariés!$E$1))<0,0,1)),""),"") ->  | AW64: =IF(G64<>0,ROUNDDOWN((Base_Imposable_Sociale!$J$4-G64)/366,0),0) -> 0
A65: ='63'!$A$1 -> 63 | B65: =IF(Info_Salariés!$E$1-G65>0,IF(AND(C65<>0,D65<>""),IF(YEAR(Info_Salariés!$E$1)<>YEAR(AO65),1,IF((MONTH(AO65)-MONTH(Info_Salariés!$E$1))<0,0,1)),""),"") ->  | AW65: =IF(G65<>0,ROUNDDOWN((Base_Imposable_Sociale!$J$4-G65)/366,0),0) -> 0
A66: ='64'!$A$1 -> 64 | B66: =IF(Info_Salariés!$E$1-G66>0,IF(AND(C66<>0,D66<>""),IF(YEAR(Info_Salariés!$E$1)<>YEAR(AO66),1,IF((MONTH(AO66)-MONTH(Info_Salariés!$E$1))<0,0,1)),""),"") ->  | AW66: =IF(G66<>0,ROUNDDOWN((Base_Imposable_Sociale!$J$4-G66)/366,0),0) -> 0
A67: ='65'!$A$1 -> 65 | B67: =IF(Info_Salariés!$E$1-G67>0,IF(AND(C67<>0,D67<>""),IF(YEAR(Info_Salariés!$E$1)<>YEAR(AO67),1,IF((MONTH(AO67)-MONTH(Info_Salariés!$E$1))<0,0,1)),""),"") ->  | AW67: =IF(G67<>0,ROUNDDOWN((Base_Imposable_Sociale!$J$4-G67)/366,0),0) -> 0
A68: ='66'!$A$1 -> 66 | B68: =IF(Info_Salariés!$E$1-G68>0,IF(AND(C68<>0,D68<>""),IF(YEAR(Info_Salariés!$E$1)<>YEAR(AO68),1,IF((MONTH(AO68)-MONTH(Info_Salariés!$E$1))<0,0,1)),""),"") ->  | AW68: =IF(G68<>0,ROUNDDOWN((Base_Imposable_Sociale!$J$4-G68)/366,0),0) -> 0
A69: ='67'!$A$1 -> 67 | B69: =IF(Info_Salariés!$E$1-G69>0,IF(AND(C69<>0,D69<>""),IF(YEAR(Info_Salariés!$E$1)<>YEAR(AO69),1,IF((MONTH(AO69)-MONTH(Info_Salariés!$E$1))<0,0,1)),""),"") ->  | AW69: =IF(G69<>0,ROUNDDOWN((Base_Imposable_Sociale!$J$4-G69)/366,0),0) -> 0
A70: ='68'!$A$1 -> 68 | B70: =IF(Info_Salariés!$E$1-G70>0,IF(AND(C70<>0,D70<>""),IF(YEAR(Info_Salariés!$E$1)<>YEAR(AO70),1,IF((MONTH(AO70)-MONTH(Info_Salariés!$E$1))<0,0,1)),""),"") ->  | AW70: =IF(G70<>0,ROUNDDOWN((Base_Imposable_Sociale!$J$4-G70)/366,0),0) -> 0
A71: ='69'!$A$1 -> 69 | B71: =IF(Info_Salariés!$E$1-G71>0,IF(AND(C71<>0,D71<>""),IF(YEAR(Info_Salariés!$E$1)<>YEAR(AO71),1,IF((MONTH(AO71)-MONTH(Info_Salariés!$E$1))<0,0,1)),""),"") ->  | AW71: =IF(G71<>0,ROUNDDOWN((Base_Imposable_Sociale!$J$4-G71)/366,0),0) -> 0
A72: ='70'!$A$1 -> 70 | B72: =IF(Info_Salariés!$E$1-G72>0,IF(AND(C72<>0,D72<>""),IF(YEAR(Info_Salariés!$E$1)<>YEAR(AO72),1,IF((MONTH(AO72)-MONTH(Info_Salariés!$E$1))<0,0,1)),""),"") ->  | AW72: =IF(G72<>0,ROUNDDOWN((Base_Imposable_Sociale!$J$4-G72)/366,0),0) -> 0
A73: ='71'!$A$1 -> 71 | B73: =IF(Info_Salariés!$E$1-G73>0,IF(AND(C73<>0,D73<>""),IF(YEAR(Info_Salariés!$E$1)<>YEAR(AO73),1,IF((MONTH(AO73)-MONTH(Info_Salariés!$E$1))<0,0,1)),""),"") ->  | AW73: =IF(G73<>0,ROUNDDOWN((Base_Imposable_Sociale!$J$4-G73)/366,0),0) -> 0
A74: ='72'!$A$1 -> 72 | B74: =IF(Info_Salariés!$E$1-G74>0,IF(AND(C74<>0,D74<>""),IF(YEAR(Info_Salariés!$E$1)<>YEAR(AO74),1,IF((MONTH(AO74)-MONTH(Info_Salariés!$E$1))<0,0,1)),""),"") ->  | AW74: =IF(G74<>0,ROUNDDOWN((Base_Imposable_Sociale!$J$4-G74)/366,0),0) -> 0
A75: ='73'!$A$1 -> 73 | B75: =IF(Info_Salariés!$E$1-G75>0,IF(AND(C75<>0,D75<>""),IF(YEAR(Info_Salariés!$E$1)<>YEAR(AO75),1,IF((MONTH(AO75)-MONTH(Info_Salariés!$E$1))<0,0,1)),""),"") ->  | AW75: =IF(G75<>0,ROUNDDOWN((Base_Imposable_Sociale!$J$4-G75)/366,0),0) -> 0
A76: ='74'!$A$1 -> 74 | B76: =IF(Info_Salariés!$E$1-G76>0,IF(AND(C76<>0,D76<>""),IF(YEAR(Info_Salariés!$E$1)<>YEAR(AO76),1,IF((MONTH(AO76)-MONTH(Info_Salariés!$E$1))<0,0,1)),""),"") ->  | AW76: =IF(G76<>0,ROUNDDOWN((Base_Imposable_Sociale!$J$4-G76)/366,0),0) -> 0
A77: ='75'!$A$1 -> 75 | B77: =IF(Info_Salariés!$E$1-G77>0,IF(AND(C77<>0,D77<>""),IF(YEAR(Info_Salariés!$E$1)<>YEAR(AO77),1,IF((MONTH(AO77)-MONTH(Info_Salariés!$E$1))<0,0,1)),""),"") ->  | AW77: =IF(G77<>0,ROUNDDOWN((Base_Imposable_Sociale!$J$4-G77)/366,0),0) -> 0
A78: ='76'!$A$1 -> 76 | B78: =IF(Info_Salariés!$E$1-G78>0,IF(AND(C78<>0,D78<>""),IF(YEAR(Info_Salariés!$E$1)<>YEAR(AO78),1,IF((MONTH(AO78)-MONTH(Info_Salariés!$E$1))<0,0,1)),""),"") ->  | AW78: =IF(G78<>0,ROUNDDOWN((Base_Imposable_Sociale!$J$4-G78)/366,0),0) -> 0
A79: ='77'!$A$1 -> 77 | B79: =IF(Info_Salariés!$E$1-G79>0,IF(AND(C79<>0,D79<>""),IF(YEAR(Info_Salariés!$E$1)<>YEAR(AO79),1,IF((MONTH(AO79)-MONTH(Info_Salariés!$E$1))<0,0,1)),""),"") ->  | AW79: =IF(G79<>0,ROUNDDOWN((Base_Imposable_Sociale!$J$4-G79)/366,0),0) -> 0
A80: ='78'!$A$1 -> 78 | B80: =IF(Info_Salariés!$E$1-G80>0,IF(AND(C80<>0,D80<>""),IF(YEAR(Info_Salariés!$E$1)<>YEAR(AO80),1,IF((MONTH(AO80)-MONTH(Info_Salariés!$E$1))<0,0,1)),""),"") ->  | AW80: =IF(G80<>0,ROUNDDOWN((Base_Imposable_Sociale!$J$4-G80)/366,0),0) -> 0
A81: ='79'!$A$1 -> 79 | B81: =IF(Info_Salariés!$E$1-G81>0,IF(AND(C81<>0,D81<>""),IF(YEAR(Info_Salariés!$E$1)<>YEAR(AO81),1,IF((MONTH(AO81)-MONTH(Info_Salariés!$E$1))<0,0,1)),""),"") ->  | AW81: =IF(G81<>0,ROUNDDOWN((Base_Imposable_Sociale!$J$4-G81)/366,0),0) -> 0
A82: ='80'!$A$1 -> 80 | B82: =IF(Info_Salariés!$E$1-G82>0,IF(AND(C82<>0,D82<>""),IF(YEAR(Info_Salariés!$E$1)<>YEAR(AO82),1,IF((MONTH(AO82)-MONTH(Info_Salariés!$E$1))<0,0,1)),""),"") ->  | AW82: =IF(G82<>0,ROUNDDOWN((Base_Imposable_Sociale!$J$4-G82)/366,0),0) -> 0
A83: ='81'!$A$1 -> 81 | B83: =IF(Info_Salariés!$E$1-G83>0,IF(AND(C83<>0,D83<>""),IF(YEAR(Info_Salariés!$E$1)<>YEAR(AO83),1,IF((MONTH(AO83)-MONTH(Info_Salariés!$E$1))<0,0,1)),""),"") ->  | AW83: =IF(G83<>0,ROUNDDOWN((Base_Imposable_Sociale!$J$4-G83)/366,0),0) -> 0
A84: ='82'!$A$1 -> 82 | B84: =IF(Info_Salariés!$E$1-G84>0,IF(AND(C84<>0,D84<>""),IF(YEAR(Info_Salariés!$E$1)<>YEAR(AO84),1,IF((MONTH(AO84)-MONTH(Info_Salariés!$E$1))<0,0,1)),""),"") ->  | AW84: =IF(G84<>0,ROUNDDOWN((Base_Imposable_Sociale!$J$4-G84)/366,0),0) -> 0
A85: ='83'!$A$1 -> 83 | B85: =IF(Info_Salariés!$E$1-G85>0,IF(AND(C85<>0,D85<>""),IF(YEAR(Info_Salariés!$E$1)<>YEAR(AO85),1,IF((MONTH(AO85)-MONTH(Info_Salariés!$E$1))<0,0,1)),""),"") ->  | AW85: =IF(G85<>0,ROUNDDOWN((Base_Imposable_Sociale!$J$4-G85)/366,0),0) -> 0
A86: ='84'!$A$1 -> 84 | B86: =IF(Info_Salariés!$E$1-G86>0,IF(AND(C86<>0,D86<>""),IF(YEAR(Info_Salariés!$E$1)<>YEAR(AO86),1,IF((MONTH(AO86)-MONTH(Info_Salariés!$E$1))<0,0,1)),""),"") ->  | AW86: =IF(G86<>0,ROUNDDOWN((Base_Imposable_Sociale!$J$4-G86)/366,0),0) -> 0
A87: ='85'!$A$1 -> 85 | B87: =IF(Info_Salariés!$E$1-G87>0,IF(AND(C87<>0,D87<>""),IF(YEAR(Info_Salariés!$E$1)<>YEAR(AO87),1,IF((MONTH(AO87)-MONTH(Info_Salariés!$E$1))<0,0,1)),""),"") ->  | AW87: =IF(G87<>0,ROUNDDOWN((Base_Imposable_Sociale!$J$4-G87)/366,0),0) -> 0
A88: ='86'!$A$1 -> 86 | B88: =IF(Info_Salariés!$E$1-G88>0,IF(AND(C88<>0,D88<>""),IF(YEAR(Info_Salariés!$E$1)<>YEAR(AO88),1,IF((MONTH(AO88)-MONTH(Info_Salariés!$E$1))<0,0,1)),""),"") ->  | AW88: =IF(G88<>0,ROUNDDOWN((Base_Imposable_Sociale!$J$4-G88)/366,0),0) -> 0
A89: ='87'!$A$1 -> 87 | B89: =IF(Info_Salariés!$E$1-G89>0,IF(AND(C89<>0,D89<>""),IF(YEAR(Info_Salariés!$E$1)<>YEAR(AO89),1,IF((MONTH(AO89)-MONTH(Info_Salariés!$E$1))<0,0,1)),""),"") ->  | AW89: =IF(G89<>0,ROUNDDOWN((Base_Imposable_Sociale!$J$4-G89)/366,0),0) -> 0
A90: ='88'!$A$1 -> 88 | B90: =IF(Info_Salariés!$E$1-G90>0,IF(AND(C90<>0,D90<>""),IF(YEAR(Info_Salariés!$E$1)<>YEAR(AO90),1,IF((MONTH(AO90)-MONTH(Info_Salariés!$E$1))<0,0,1)),""),"") ->  | AW90: =IF(G90<>0,ROUNDDOWN((Base_Imposable_Sociale!$J$4-G90)/366,0),0) -> 0
A91: ='89'!$A$1 -> 89 | B91: =IF(Info_Salariés!$E$1-G91>0,IF(AND(C91<>0,D91<>""),IF(YEAR(Info_Salariés!$E$1)<>YEAR(AO91),1,IF((MONTH(AO91)-MONTH(Info_Salariés!$E$1))<0,0,1)),""),"") ->  | AW91: =IF(G91<>0,ROUNDDOWN((Base_Imposable_Sociale!$J$4-G91)/366,0),0) -> 0
A92: ='90'!$A$1 -> 90 | B92: =IF(Info_Salariés!$E$1-G92>0,IF(AND(C92<>0,D92<>""),IF(YEAR(Info_Salariés!$E$1)<>YEAR(AO92),1,IF((MONTH(AO92)-MONTH(Info_Salariés!$E$1))<0,0,1)),""),"") ->  | AW92: =IF(G92<>0,ROUNDDOWN((Base_Imposable_Sociale!$J$4-G92)/366,0),0) -> 0
A93: ='91'!$A$1 -> 91 | B93: =IF(Info_Salariés!$E$1-G93>0,IF(AND(C93<>0,D93<>""),IF(YEAR(Info_Salariés!$E$1)<>YEAR(AO93),1,IF((MONTH(AO93)-MONTH(Info_Salariés!$E$1))<0,0,1)),""),"") ->  | AW93: =IF(G93<>0,ROUNDDOWN((Base_Imposable_Sociale!$J$4-G93)/366,0),0) -> 0
A94: ='92'!$A$1 -> 92 | B94: =IF(Info_Salariés!$E$1-G94>0,IF(AND(C94<>0,D94<>""),IF(YEAR(Info_Salariés!$E$1)<>YEAR(AO94),1,IF((MONTH(AO94)-MONTH(Info_Salariés!$E$1))<0,0,1)),""),"") ->  | AW94: =IF(G94<>0,ROUNDDOWN((Base_Imposable_Sociale!$J$4-G94)/366,0),0) -> 0
A95: ='93'!$A$1 -> 93 | B95: =IF(Info_Salariés!$E$1-G95>0,IF(AND(C95<>0,D95<>""),IF(YEAR(Info_Salariés!$E$1)<>YEAR(AO95),1,IF((MONTH(AO95)-MONTH(Info_Salariés!$E$1))<0,0,1)),""),"") ->  | AW95: =IF(G95<>0,ROUNDDOWN((Base_Imposable_Sociale!$J$4-G95)/366,0),0) -> 0
A96: ='94'!$A$1 -> 94 | B96: =IF(Info_Salariés!$E$1-G96>0,IF(AND(C96<>0,D96<>""),IF(YEAR(Info_Salariés!$E$1)<>YEAR(AO96),1,IF((MONTH(AO96)-MONTH(Info_Salariés!$E$1))<0,0,1)),""),"") ->  | AW96: =IF(G96<>0,ROUNDDOWN((Base_Imposable_Sociale!$J$4-G96)/366,0),0) -> 0
A97: ='95'!$A$1 -> 95 | B97: =IF(Info_Salariés!$E$1-G97>0,IF(AND(C97<>0,D97<>""),IF(YEAR(Info_Salariés!$E$1)<>YEAR(AO97),1,IF((MONTH(AO97)-MONTH(Info_Salariés!$E$1))<0,0,1)),""),"") ->  | AW97: =IF(G97<>0,ROUNDDOWN((Base_Imposable_Sociale!$J$4-G97)/366,0),0) -> 0
A98: ='96'!$A$1 -> 96 | B98: =IF(Info_Salariés!$E$1-G98>0,IF(AND(C98<>0,D98<>""),IF(YEAR(Info_Salariés!$E$1)<>YEAR(AO98),1,IF((MONTH(AO98)-MONTH(Info_Salariés!$E$1))<0,0,1)),""),"") ->  | AW98: =IF(G98<>0,ROUNDDOWN((Base_Imposable_Sociale!$J$4-G98)/366,0),0) -> 0
A99: ='97'!$A$1 -> 97 | B99: =IF(Info_Salariés!$E$1-G99>0,IF(AND(C99<>0,D99<>""),IF(YEAR(Info_Salariés!$E$1)<>YEAR(AO99),1,IF((MONTH(AO99)-MONTH(Info_Salariés!$E$1))<0,0,1)),""),"") ->  | AW99: =IF(G99<>0,ROUNDDOWN((Base_Imposable_Sociale!$J$4-G99)/366,0),0) -> 0
A100: ='98'!$A$1 -> 98 | B100: =IF(Info_Salariés!$E$1-G100>0,IF(AND(C100<>0,D100<>""),IF(YEAR(Info_Salariés!$E$1)<>YEAR(AO100),1,IF((MONTH(AO100)-MONTH(Info_Salariés!$E$1))<0,0,1)),""),"") ->  | AW100: =IF(G100<>0,ROUNDDOWN((Base_Imposable_Sociale!$J$4-G100)/366,0),0) -> 0
A101: ='99'!$A$1 -> 99 | B101: =IF(Info_Salariés!$E$1-G101>0,IF(AND(C101<>0,D101<>""),IF(YEAR(Info_Salariés!$E$1)<>YEAR(AO101),1,IF((MONTH(AO101)-MONTH(Info_Salariés!$E$1))<0,0,1)),""),"") ->  | AW101: =IF(G101<>0,ROUNDDOWN((Base_Imposable_Sociale!$J$4-G101)/366,0),0) -> 0
A102: ='100'!$A$1 -> 100 | B102: =IF(Info_Salariés!$E$1-G102>0,IF(AND(C102<>0,D102<>""),IF(YEAR(Info_Salariés!$E$1)<>YEAR(AO102),1,IF((MONTH(AO102)-MONTH(Info_Salariés!$E$1))<0,0,1)),""),"") ->  | AW102: =IF(G102<>0,ROUNDDOWN((Base_Imposable_Sociale!$J$4-G102)/366,0),0) -> 0
C103: =SUBTOTAL(103,Info_Salariés[H/Sem]) -> 7 | D103: =SUBTOTAL(103,Info_Salariés[Nom & Prénoms]) -> 7 | E103: =SUBTOTAL(103,Info_Salariés[SEXE]) -> 7 | F103: =SUBTOTAL(103,Info_Salariés[CODE EMPLOI]) -> 7 | G103: =SUBTOTAL(103,Info_Salariés[Date Embauche]) -> 7 | H103: =SUBTOTAL(103,Info_Salariés[QUALIFICATION]) -> 1 | I103: =SUBTOTAL(103,Info_Salariés[Local Expat]) -> 7 | J103: =SUBTOTAL(103,Info_Salariés[MATRICULE]) -> 1 | K103: =SUBTOTAL(103,Info_Salariés[ADRESSE POSTALE]) -> 1 | L103: =SUBTOTAL(103,Info_Salariés[N° CNPS]) -> 1 | M103: =SUBTOTAL(103,Info_Salariés[SITUAT° MATRIMONIAL]) -> 7 | N103: =SUBTOTAL(103,Info_Salariés[ENFANTS]) -> 5 | O103: =SUBTOTAL(103,Info_Salariés[TYPE CONTRAT]) -> 7 | P103: =SUBTOTAL(103,Info_Salariés[emploi occupe]) -> 1 | Q103: =SUBTOTAL(103,Info_Salariés[CATEGORIE EMPLOI]) -> 0 | R103: =SUBTOTAL(109,Info_Salariés[SALAIRE DE BASE]) -> 1894281 | S103: =SUBTOTAL(109,Info_Salariés[Sursalaire]) -> 1544569 | T103: =SUBTOTAL(109,Info_Salariés[Prime de Transport]) -> 175000 | U103: =SUBTOTAL(109,Info_Salariés[Prime de Representation]) -> 0 | V103: =SUBTOTAL(109,Info_Salariés[Prime d''Outillage]) -> 0 | W103: =SUBTOTAL(105,Info_Salariés[Prime de Salissure]) -> 0 | X103: =SUBTOTAL(109,Info_Salariés[Autre Prime]) -> 0 | Y103: =SUBTOTAL(109,Info_Salariés[15%]) -> 0 | Z103: =SUBTOTAL(109,Info_Salariés[50%]) -> 0 | AA103: =SUBTOTAL(109,Info_Salariés[75%]) -> 0 | AB103: =SUBTOTAL(109,Info_Salariés[100%]) -> 0 | AC103: =SUBTOTAL(109,Info_Salariés[Heures]) -> 0 | AD103: =SUBTOTAL(109,Info_Salariés[Jours]) -> 0 | AO103: =SUBTOTAL(103,Info_Salariés[Date de Départ]) -> 0 | AP103: =SUBTOTAL(103,Info_Salariés[MOTIF]) -> 1 | AQ103: =SUBTOTAL(103,Info_Salariés[MODE]) -> 7 | AR103: =SUBTOTAL(103,Info_Salariés[BANQUE]) -> 1 | AS103: =SUBTOTAL(103,Info_Salariés[CODE BANQUE]) -> 1 | AT103: =SUBTOTAL(103,Info_Salariés[CODE GUICHET]) -> 1 | AU103: =SUBTOTAL(103,Info_Salariés[N° DE COMPTE]) -> 1 | AV103: =SUBTOTAL(103,Info_Salariés[Clé RIB]) -> 1
D105: =C1&" "&D1 -> 7 Embauchés
B106: ۩ | C106: =+Info_Entreprise!K6 -> A REVOIR
B107: =C1 -> 7 | D107: CONTRAT(S) ACTIF(S)
B108: =COUNTIF(B3:B102,0) -> 0 | D108: CONTRAT(S) ROMPU(S)
B109: =+A102-(B107+B108) -> 93 | C109: =A77-(B107+B108) -> 68 | D109: CONTRAT(S) INNEXISTANT(S)
B110: =+B107+B108+B109 -> 100 | D110: CONTRATS D'EMBAUCHES
B111: =F1 -> EviBoni PAIE_16.12+

Sheet Congés
A1: ʘ | B1: CONGES | C1: =EOMONTH(Y1,0) -> 2017-01-31 | D1: B | E1: =Info_Salariés!F1 -> EviBoni PAIE_16.12+ | T1: Paiement le | V1: 2016-11-16 | W1: ● | Y1: ="01/"&A2&"/"&Info_Entreprise!B2 -> 01/1/2017
A2: 1 | B2: POSTES | C2: Nom & Prenoms | D2: Année Ancienneté | E2: Date Retour Dernier Congé | F2: Départ Théorique | G2: Période Réf | H2: Nbre de jours | I2: Jours Ajoutés | J2: Nb Jrs theoriq | K2: FIN THEORIQUE | L2: Salaire Moyen Mensuel | M2: DEPART EFFECTIF | N2: FIN EFFECTIVE | O2: jrs Effectifs | P2: REPRISE | Q2: Jours restant | R2: JOURS RESTANT ANNEE N-1 | S2: TOTAL JOUR RESTANTS | T2: Montant Brut congé | U2: Indemnité Compensatrice de congé | V2: MODE DE PAIEMENT
A3: ='1'!$A$1 -> 1 | B3: =IF(Evaluat°Congés[[#This Row],[Période Réf]]<>0,Info_Salariés[[#This Row],[emploi occupe]],"") -> COMPTABLE | C3: =IF(Evaluat°Congés[[#This Row],[Période Réf]]<>0,Info_Salariés[[#This Row],[Nom & Prénoms]],"") -> EBENEZAH TOUSSAINT | D3: =IF(Evaluat°Congés[[#This Row],[Période Réf]]<>0,Info_Salariés!AW3,0) -> 1 | E3: =+Info_Salariés[[#This Row],[Date Retour Dernier Congé]] -> 2016-10-01 | F3: =+Info_Salariés[[#This Row],[Départ Théorique]] -> 2017-09-15 | G3: =ROUND(IF(AND(E3<>0,F3<>0),DAYS360(E3,F3)/30,0),2) -> 11.47 | H3: =IF(G3<>0,ROUND(+IF(AND(D3>=5,D3<10),1,0)+IF(AND(D3>=10,D3<15),2,0)+IF(AND(D3>=15,D3<20),3,0)+IF(AND(D3>=20,D3<25),5,0)+IF(D3>=25,7,0)+(IF($D$1="A",2.2*G3*7/6,2.2*G3*30/24)),0),0) -> 32 | I3: =+Info_Salariés[[#This Row],[Jours Ajoutés]] -> 0 | J3: =Evaluat°Congés[[#This Row],[Nbre de jours]]+Evaluat°Congés[[#This Row],[Jours Ajoutés]] -> 32 | K3: =IF(G3<>0,F3+J3-1,"") -> 2017-10-16 | L3: =+Info_Salariés[[#This Row],[Salaire Moyen Mensuel]] -> 318850 | M3: =+Info_Salariés[[#This Row],[DEPART EFFECTIF]] -> 2017-09-15 | N3: =+Info_Salariés[[#This Row],[FIN EFFECTIVE]] -> 00:00:00 | O3: =IF(AND(M3<>0,N3<>0),N3-M3+1,0) -> 0 | P3: =IF(N3<>0,N3+1,0) -> 00:00:00 | Q3: =J3-O3 -> 32 | R3: =+Info_Salariés[[#This Row],[JOURS REST. ANNEE N-1]] -> 0 | S3: =Q3+R3 -> 32 | T3: =ROUND(L3*J3/30,0) -> 340107 | U3: 0 | X3: =IF(T3<>0,1,0) -> 1
A4: ='2'!$A$1 -> 2 | B4: =IF(Evaluat°Congés[[#This Row],[Période Réf]]<>0,Info_Salariés[[#This Row],[emploi occupe]],"") ->  | C4: =IF(Evaluat°Congés[[#This Row],[Période Réf]]<>0,Info_Salariés[[#This Row],[Nom & Prénoms]],"") ->  | D4: =IF(Evaluat°Congés[[#This Row],[Période Réf]]<>0,Info_Salariés!AW4,0) -> 0 | E4: =+Info_Salariés[[#This Row],[Date Retour Dernier Congé]] -> 00:00:00 | F4: =+Info_Salariés[[#This Row],[Départ Théorique]] -> 00:00:00 | G4: =ROUND(IF(AND(E4<>0,F4<>0),DAYS360(E4,F4)/30,0),2) -> 0 | H4: 0 | I4: =+Info_Salariés[[#This Row],[Jours Ajoutés]] -> 0 | J4: =Evaluat°Congés[[#This Row],[Nbre de jours]]+Evaluat°Congés[[#This Row],[Jours Ajoutés]] -> 0 | L4: =+Info_Salariés[[#This Row],[Salaire Moyen Mensuel]] -> 0 | M4: =+Info_Salariés[[#This Row],[DEPART EFFECTIF]] -> 00:00:00 | N4: =+Info_Salariés[[#This Row],[FIN EFFECTIVE]] -> 00:00:00 | O4: =IF(AND(M4<>0,N4<>0),N4-M4+1,0) -> 0 | P4: =IF(N4<>0,N4+1,0) -> 00:00:00 | Q4: =J4-O4 -> 0 | R4: =+Info_Salariés[[#This Row],[JOURS REST. ANNEE N-1]] -> 0 | S4: =Q4+R4 -> 0 | T4: =ROUND(L4*J4/30,0) -> 0 | U4: 0 | X4: =IF(T4<>0,1,0) -> 0
A5: ='3'!$A$1 -> 3 | B5: =IF(Evaluat°Congés[[#This Row],[Période Réf]]<>0,Info_Salariés[[#This Row],[emploi occupe]],"") -> 0 | C5: =IF(Evaluat°Congés[[#This Row],[Période Réf]]<>0,Info_Salariés[[#This Row],[Nom & Prénoms]],"") -> BLEU Lisette | D5: =IF(Evaluat°Congés[[#This Row],[Période Réf]]<>0,Info_Salariés!AW5,0) -> 1 | E5: =+Info_Salariés[[#This Row],[Date Retour Dernier Congé]] -> 2016-01-01 | F5: =+Info_Salariés[[#This Row],[Départ Théorique]] -> 2017-06-09 | G5: 17.27 | H5: 47 | I5: =+Info_Salariés[[#This Row],[Jours Ajoutés]] -> 0 | J5: =Evaluat°Congés[[#This Row],[Nbre de jours]]+Evaluat°Congés[[#This Row],[Jours Ajoutés]] -> 47 | K5: 2017-07-25 | L5: =+Info_Salariés[[#This Row],[Salaire Moyen Mensuel]] -> 150000 | M5: =+Info_Salariés[[#This Row],[DEPART EFFECTIF]] -> 00:00:00 | N5: =+Info_Salariés[[#This Row],[FIN EFFECTIVE]] -> 00:00:00 | O5: 0 | P5: 00:00:00 | Q5: 47 | R5: =+Info_Salariés[[#This Row],[JOURS REST. ANNEE N-1]] -> 0 | S5: 47 | T5: 235000 | U5: 0 | V5: CHEQUE | X5: 1
A6: ='4'!$A$1 -> 4 | B6: =IF(Evaluat°Congés[[#This Row],[Période Réf]]<>0,Info_Salariés[[#This Row],[emploi occupe]],"") ->  | C6: =IF(Evaluat°Congés[[#This Row],[Période Réf]]<>0,Info_Salariés[[#This Row],[Nom & Prénoms]],"") ->  | D6: =IF(Evaluat°Congés[[#This Row],[Période Réf]]<>0,Info_Salariés!AW6,0) -> 0 | E6: =+Info_Salariés[[#This Row],[Date Retour Dernier Congé]] -> 00:00:00 | F6: =+Info_Salariés[[#This Row],[Départ Théorique]] -> 00:00:00 | G6: 0 | H6: 0 | I6: =+Info_Salariés[[#This Row],[Jours Ajoutés]] -> 0 | J6: =Evaluat°Congés[[#This Row],[Nbre de jours]]+Evaluat°Congés[[#This Row],[Jours Ajoutés]] -> 0 | L6: =+Info_Salariés[[#This Row],[Salaire Moyen Mensuel]] -> 0 | M6: =+Info_Salariés[[#This Row],[DEPART EFFECTIF]] -> 00:00:00 | N6: =+Info_Salariés[[#This Row],[FIN EFFECTIVE]] -> 00:00:00 | O6: 0 | P6: 00:00:00 | Q6: 0 | R6: =+Info_Salariés[[#This Row],[JOURS REST. ANNEE N-1]] -> 0 | S6: 0 | T6: 0 | U6: 0 | X6: 0
A7: ='5'!$A$1 -> 5 | B7: =IF(Evaluat°Congés[[#This Row],[Période Réf]]<>0,Info_Salariés[[#This Row],[emploi occupe]],"") ->  | C7: =IF(Evaluat°Congés[[#This Row],[Période Réf]]<>0,Info_Salariés[[#This Row],[Nom & Prénoms]],"") ->  | D7: =IF(Evaluat°Congés[[#This Row],[Période Réf]]<>0,Info_Salariés!AW7,0) -> 0 | E7: =+Info_Salariés[[#This Row],[Date Retour Dernier Congé]] -> 00:00:00 | F7: =+Info_Salariés[[#This Row],[Départ Théorique]] -> 00:00:00 | G7: 0 | H7: 0 | I7: =+Info_Salariés[[#This Row],[Jours Ajoutés]] -> 0 | J7: =Evaluat°Congés[[#This Row],[Nbre de jours]]+Evaluat°Congés[[#This Row],[Jours Ajoutés]] -> 0 | L7: =+Info_Salariés[[#This Row],[Salaire Moyen Mensuel]] -> 0 | M7: =+Info_Salariés[[#This Row],[DEPART EFFECTIF]] -> 00:00:00 | N7: =+Info_Salariés[[#This Row],[FIN EFFECTIVE]] -> 00:00:00 | O7: 0 | P7: 00:00:00 | Q7: 0 | R7: =+Info_Salariés[[#This Row],[JOURS REST. ANNEE N-1]] -> 0 | S7: 0 | T7: 0 | U7: 0 | X7: 0
A8: ='6'!$A$1 -> 6 | B8: =IF(Evaluat°Congés[[#This Row],[Période Réf]]<>0,Info_Salariés[[#This Row],[emploi occupe]],"") ->  | C8: =IF(Evaluat°Congés[[#This Row],[Période Réf]]<>0,Info_Salariés[[#This Row],[Nom & Prénoms]],"") ->  | D8: =IF(Evaluat°Congés[[#This Row],[Période Réf]]<>0,Info_Salariés!AW8,0) -> 0 | E8: =+Info_Salariés[[#This Row],[Date Retour Dernier Congé]] -> 00:00:00 | F8: =+Info_Salariés[[#This Row],[Départ Théorique]] -> 00:00:00 | G8: 0 | H8: 0 | I8: =+Info_Salariés[[#This Row],[Jours Ajoutés]] -> 0 | J8: =Evaluat°Congés[[#This Row],[Nbre de jours]]+Evaluat°Congés[[#This Row],[Jours Ajoutés]] -> 0 | L8: =+Info_Salariés[[#This Row],[Salaire Moyen Mensuel]] -> 0 | M8: =+Info_Salariés[[#This Row],[DEPART EFFECTIF]] -> 00:00:00 | N8: =+Info_Salariés[[#This Row],[FIN EFFECTIVE]] -> 00:00:00 | O8: 0 | P8: 00:00:00 | Q8: 0 | R8: =+Info_Salariés[[#This Row],[JOURS REST. ANNEE N-1]] -> 0 | S8: 0 | T8: 0 | U8: 0 | X8: 0
A9: ='7'!$A$1 -> 7 | B9: =IF(Evaluat°Congés[[#This Row],[Période Réf]]<>0,Info_Salariés[[#This Row],[emploi occupe]],"") ->  | C9: =IF(Evaluat°Congés[[#This Row],[Période Réf]]<>0,Info_Salariés[[#This Row],[Nom & Prénoms]],"") ->  | D9: =IF(Evaluat°Congés[[#This Row],[Période Réf]]<>0,Info_Salariés!AW9,0) -> 0 | E9: =+Info_Salariés[[#This Row],[Date Retour Dernier Congé]] -> 00:00:00 | F9: =+Info_Salariés[[#This Row],[Départ Théorique]] -> 00:00:00 | G9: 0 | H9: 0 | I9: =+Info_Salariés[[#This Row],[Jours Ajoutés]] -> 0 | J9: =Evaluat°Congés[[#This Row],[Nbre de jours]]+Evaluat°Congés[[#This Row],[Jours Ajoutés]] -> 0 | L9: =+Info_Salariés[[#This Row],[Salaire Moyen Mensuel]] -> 0 | M9: =+Info_Salariés[[#This Row],[DEPART EFFECTIF]] -> 00:00:00 | N9: =+Info_Salariés[[#This Row],[FIN EFFECTIVE]] -> 00:00:00 | O9: 0 | P9: 00:00:00 | Q9: 0 | R9: =+Info_Salariés[[#This Row],[JOURS REST. ANNEE N-1]] -> 0 | S9: 0 | T9: 0 | U9: 0 | X9: 0
A10: ='8'!$A$1 -> 8 | B10: =IF(Evaluat°Congés[[#This Row],[Période Réf]]<>0,Info_Salariés[[#This Row],[emploi occupe]],"") ->  | C10: =IF(Evaluat°Congés[[#This Row],[Période Réf]]<>0,Info_Salariés[[#This Row],[Nom & Prénoms]],"") ->  | D10: =IF(Evaluat°Congés[[#This Row],[Période Réf]]<>0,Info_Salariés!AW10,0) -> 0 | E10: =+Info_Salariés[[#This Row],[Date Retour Dernier Congé]] -> 00:00:00 | F10: =+Info_Salariés[[#This Row],[Départ Théorique]] -> 00:00:00 | G10: 0 | H10: 0 | I10: =+Info_Salariés[[#This Row],[Jours Ajoutés]] -> 0 | J10: =Evaluat°Congés[[#This Row],[Nbre de jours]]+Evaluat°Congés[[#This Row],[Jours Ajoutés]] -> 0 | L10: =+Info_Salariés[[#This Row],[Salaire Moyen Mensuel]] -> 0 | M10: =+Info_Salariés[[#This Row],[DEPART EFFECTIF]] -> 00:00:00 | N10: =+Info_Salariés[[#This Row],[FIN EFFECTIVE]] -> 00:00:00 | O10: 0 | P10: 00:00:00 | Q10: 0 | R10: =+Info_Salariés[[#This Row],[JOURS REST. ANNEE N-1]] -> 0 | S10: 0 | T10: 0 | U10: 0 | X10: 0
A11: ='9'!$A$1 -> 9 | B11: =IF(Evaluat°Congés[[#This Row],[Période Réf]]<>0,Info_Salariés[[#This Row],[emploi occupe]],"") ->  | C11: =IF(Evaluat°Congés[[#This Row],[Période Réf]]<>0,Info_Salariés[[#This Row],[Nom & Prénoms]],"") ->  | D11: =IF(Evaluat°Congés[[#This Row],[Période Réf]]<>0,Info_Salariés!AW11,0) -> 0 | E11: =+Info_Salariés[[#This Row],[Date Retour Dernier Congé]] -> 00:00:00 | F11: =+Info_Salariés[[#This Row],[Départ Théorique]] -> 00:00:00 | G11: 0 | H11: 0 | I11: =+Info_Salariés[[#This Row],[Jours Ajoutés]] -> 0 | J11: =Evaluat°Congés[[#This Row],[Nbre de jours]]+Evaluat°Congés[[#This Row],[Jours Ajoutés]] -> 0 | L11: =+Info_Salariés[[#This Row],[Salaire Moyen Mensuel]] -> 0 | M11: =+Info_Salariés[[#This Row],[DEPART EFFECTIF]] -> 00:00:00 | N11: =+Info_Salariés[[#This Row],[FIN EFFECTIVE]] -> 00:00:00 | O11: 0 | P11: 00:00:00 | Q11: 0 | R11: =+Info_Salariés[[#This Row],[JOURS REST. ANNEE N-1]] -> 0 | S11: 0 | T11: 0 | U11: 0 | X11: 0
A12: ='10'!$A$1 -> 10 | B12: =IF(Evaluat°Congés[[#This Row],[Période Réf]]<>0,Info_Salariés[[#This Row],[emploi occupe]],"") ->  | C12: =IF(Evaluat°Congés[[#This Row],[Période Réf]]<>0,Info_Salariés[[#This Row],[Nom & Prénoms]],"") ->  | D12: =IF(Evaluat°Congés[[#This Row],[Période Réf]]<>0,Info_Salariés!AW12,0) -> 0 | E12: =+Info_Salariés[[#This Row],[Date Retour Dernier Congé]] -> 00:00:00 | F12: =+Info_Salariés[[#This Row],[Départ Théorique]] -> 00:00:00 | G12: 0 | H12: 0 | I12: =+Info_Salariés[[#This Row],[Jours Ajoutés]] -> 0 | J12: =Evaluat°Congés[[#This Row],[Nbre de jours]]+Evaluat°Congés[[#This Row],[Jours Ajoutés]] -> 0 | L12: =+Info_Salariés[[#This Row],[Salaire Moyen Mensuel]] -> 0 | M12: =+Info_Salariés[[#This Row],[DEPART EFFECTIF]] -> 00:00:00 | N12: =+Info_Salariés[[#This Row],[FIN EFFECTIVE]] -> 00:00:00 | O12: 0 | P12: 00:00:00 | Q12: 0 | R12: =+Info_Salariés[[#This Row],[JOURS REST. ANNEE N-1]] -> 0 | S12: 0 | T12: 0 | U12: 0 | X12: 0
A13: ='11'!$A$1 -> 11 | B13: =IF(Evaluat°Congés[[#This Row],[Période Réf]]<>0,Info_Salariés[[#This Row],[emploi occupe]],"") ->  | C13: =IF(Evaluat°Congés[[#This Row],[Période Réf]]<>0,Info_Salariés[[#This Row],[Nom & Prénoms]],"") ->  | D13: =IF(Evaluat°Congés[[#This Row],[Période Réf]]<>0,Info_Salariés!AW13,0) -> 0 | E13: =+Info_Salariés[[#This Row],[Date Retour Dernier Congé]] -> 00:00:00 | F13: =+Info_Salariés[[#This Row],[Départ Théorique]] -> 00:00:00 | G13: 0 | H13: 0 | I13: =+Info_Salariés[[#This Row],[Jours Ajoutés]] -> 0 | J13: =Evaluat°Congés[[#This Row],[Nbre de jours]]+Evaluat°Congés[[#This Row],[Jours Ajoutés]] -> 0 | L13: =+Info_Salariés[[#This Row],[Salaire Moyen Mensuel]] -> 0 | M13: =+Info_Salariés[[#This Row],[DEPART EFFECTIF]] -> 00:00:00 | N13: =+Info_Salariés[[#This Row],[FIN EFFECTIVE]] -> 00:00:00 | O13: 0 | P13: 00:00:00 | Q13: 0 | R13: =+Info_Salariés[[#This Row],[JOURS REST. ANNEE N-1]] -> 0 | S13: 0 | T13: 0 | U13: 0 | X13: 0
A14: ='12'!$A$1 -> 12 | B14: =IF(Evaluat°Congés[[#This Row],[Période Réf]]<>0,Info_Salariés[[#This Row],[emploi occupe]],"") ->  | C14: =IF(Evaluat°Congés[[#This Row],[Période Réf]]<>0,Info_Salariés[[#This Row],[Nom & Prénoms]],"") ->  | D14: =IF(Evaluat°Congés[[#This Row],[Période Réf]]<>0,Info_Salariés!AW14,0) -> 0 | E14: =+Info_Salariés[[#This Row],[Date Retour Dernier Congé]] -> 00:00:00 | F14: =+Info_Salariés[[#This Row],[Départ Théorique]] -> 00:00:00 | G14: 0 | H14: 0 | I14: =+Info_Salariés[[#This Row],[Jours Ajoutés]] -> 0 | J14: =Evaluat°Congés[[#This Row],[Nbre de jours]]+Evaluat°Congés[[#This Row],[Jours Ajoutés]] -> 0 | L14: =+Info_Salariés[[#This Row],[Salaire Moyen Mensuel]] -> 0 | M14: =+Info_Salariés[[#This Row],[DEPART EFFECTIF]] -> 00:00:00 | N14: =+Info_Salariés[[#This Row],[FIN EFFECTIVE]] -> 00:00:00 | O14: 0 | P14: 00:00:00 | Q14: 0 | R14: =+Info_Salariés[[#This Row],[JOURS REST. ANNEE N-1]] -> 0 | S14: 0 | T14: 0 | U14: 0 | X14: 0
A15: ='13'!$A$1 -> 13 | B15: =IF(Evaluat°Congés[[#This Row],[Période Réf]]<>0,Info_Salariés[[#This Row],[emploi occupe]],"") ->  | C15: =IF(Evaluat°Congés[[#This Row],[Période Réf]]<>0,Info_Salariés[[#This Row],[Nom & Prénoms]],"") ->  | D15: =IF(Evaluat°Congés[[#This Row],[Période Réf]]<>0,Info_Salariés!AW15,0) -> 0 | E15: =+Info_Salariés[[#This Row],[Date Retour Dernier Congé]] -> 00:00:00 | F15: =+Info_Salariés[[#This Row],[Départ Théorique]] -> 00:00:00 | G15: 0 | H15: 0 | I15: =+Info_Salariés[[#This Row],[Jours Ajoutés]] -> 0 | J15: =Evaluat°Congés[[#This Row],[Nbre de jours]]+Evaluat°Congés[[#This Row],[Jours Ajoutés]] -> 0 | L15: =+Info_Salariés[[#This Row],[Salaire Moyen Mensuel]] -> 0 | M15: =+Info_Salariés[[#This Row],[DEPART EFFECTIF]] -> 00:00:00 | N15: =+Info_Salariés[[#This Row],[FIN EFFECTIVE]] -> 00:00:00 | O15: 0 | P15: 00:00:00 | Q15: 0 | R15: =+Info_Salariés[[#This Row],[JOURS REST. ANNEE N-1]] -> 0 | S15: 0 | T15: 0 | U15: 0 | X15: 0
A16: ='14'!$A$1 -> 14 | B16: =IF(Evaluat°Congés[[#This Row],[Période Réf]]<>0,Info_Salariés[[#This Row],[emploi occupe]],"") ->  | C16: =IF(Evaluat°Congés[[#This Row],[Période Réf]]<>0,Info_Salariés[[#This Row],[Nom & Prénoms]],"") ->  | D16: =IF(Evaluat°Congés[[#This Row],[Période Réf]]<>0,Info_Salariés!AW16,0) -> 0 | E16: =+Info_Salariés[[#This Row],[Date Retour Dernier Congé]] -> 00:00:00 | F16: =+Info_Salariés[[#This Row],[Départ Théorique]] -> 00:00:00 | G16: 0 | H16: 0 | I16: =+Info_Salariés[[#This Row],[Jours Ajoutés]] -> 0 | J16: =Evaluat°Congés[[#This Row],[Nbre de jours]]+Evaluat°Congés[[#This Row],[Jours Ajoutés]] -> 0 | L16: =+Info_Salariés[[#This Row],[Salaire Moyen Mensuel]] -> 0 | M16: =+Info_Salariés[[#This Row],[DEPART EFFECTIF]] -> 00:00:00 | N16: =+Info_Salariés[[#This Row],[FIN EFFECTIVE]] -> 00:00:00 | O16: 0 | P16: 00:00:00 | Q16: 0 | R16: =+Info_Salariés[[#This Row],[JOURS REST. ANNEE N-1]] -> 0 | S16: 0 | T16: 0 | U16: 0 | X16: 0
A17: ='15'!$A$1 -> 15 | B17: =IF(Evaluat°Congés[[#This Row],[Période Réf]]<>0,Info_Salariés[[#This Row],[emploi occupe]],"") ->  | C17: =IF(Evaluat°Congés[[#This Row],[Période Réf]]<>0,Info_Salariés[[#This Row],[Nom & Prénoms]],"") ->  | D17: =IF(Evaluat°Congés[[#This Row],[Période Réf]]<>0,Info_Salariés!AW17,0) -> 0 | E17: =+Info_Salariés[[#This Row],[Date Retour Dernier Congé]] -> 00:00:00 | F17: =+Info_Salariés[[#This Row],[Départ Théorique]] -> 00:00:00 | G17: 0 | H17: 0 | I17: =+Info_Salariés[[#This Row],[Jours Ajoutés]] -> 0 | J17: =Evaluat°Congés[[#This Row],[Nbre de jours]]+Evaluat°Congés[[#This Row],[Jours Ajoutés]] -> 0 | L17: =+Info_Salariés[[#This Row],[Salaire Moyen Mensuel]] -> 0 | M17: =+Info_Salariés[[#This Row],[DEPART EFFECTIF]] -> 00:00:00 | N17: =+Info_Salariés[[#This Row],[FIN EFFECTIVE]] -> 00:00:00 | O17: 0 | P17: 00:00:00 | Q17: 0 | R17: =+Info_Salariés[[#This Row],[JOURS REST. ANNEE N-1]] -> 0 | S17: 0 | T17: 0 | U17: 0 | X17: 0
A18: ='16'!$A$1 -> 16 | B18: =IF(Evaluat°Congés[[#This Row],[Période Réf]]<>0,Info_Salariés[[#This Row],[emploi occupe]],"") ->  | C18: =IF(Evaluat°Congés[[#This Row],[Période Réf]]<>0,Info_Salariés[[#This Row],[Nom & Prénoms]],"") ->  | D18: =IF(Evaluat°Congés[[#This Row],[Période Réf]]<>0,Info_Salariés!AW18,0) -> 0 | E18: =+Info_Salariés[[#This Row],[Date Retour Dernier Congé]] -> 00:00:00 | F18: =+Info_Salariés[[#This Row],[Départ Théorique]] -> 00:00:00 | G18: 0 | H18: 0 | I18: =+Info_Salariés[[#This Row],[Jours Ajoutés]] -> 0 | J18: =Evaluat°Congés[[#This Row],[Nbre de jours]]+Evaluat°Congés[[#This Row],[Jours Ajoutés]] -> 0 | L18: =+Info_Salariés[[#This Row],[Salaire Moyen Mensuel]] -> 0 | M18: =+Info_Salariés[[#This Row],[DEPART EFFECTIF]] -> 00:00:00 | N18: =+Info_Salariés[[#This Row],[FIN EFFECTIVE]] -> 00:00:00 | O18: 0 | P18: 00:00:00 | Q18: 0 | R18: =+Info_Salariés[[#This Row],[JOURS REST. ANNEE N-1]] -> 0 | S18: 0 | T18: 0 | U18: 0 | X18: 0
A19: ='17'!$A$1 -> 17 | B19: =IF(Evaluat°Congés[[#This Row],[Période Réf]]<>0,Info_Salariés[[#This Row],[emploi occupe]],"") ->  | C19: =IF(Evaluat°Congés[[#This Row],[Période Réf]]<>0,Info_Salariés[[#This Row],[Nom & Prénoms]],"") ->  | D19: =IF(Evaluat°Congés[[#This Row],[Période Réf]]<>0,Info_Salariés!AW19,0) -> 0 | E19: =+Info_Salariés[[#This Row],[Date Retour Dernier Congé]] -> 00:00:00 | F19: =+Info_Salariés[[#This Row],[Départ Théorique]] -> 00:00:00 | G19: 0 | H19: 0 | I19: =+Info_Salariés[[#This Row],[Jours Ajoutés]] -> 0 | J19: =Evaluat°Congés[[#This Row],[Nbre de jours]]+Evaluat°Congés[[#This Row],[Jours Ajoutés]] -> 0 | L19: =+Info_Salariés[[#This Row],[Salaire Moyen Mensuel]] -> 0 | M19: =+Info_Salariés[[#This Row],[DEPART EFFECTIF]] -> 00:00:00 | N19: =+Info_Salariés[[#This Row],[FIN EFFECTIVE]] -> 00:00:00 | O19: 0 | P19: 00:00:00 | Q19: 0 | R19: =+Info_Salariés[[#This Row],[JOURS REST. ANNEE N-1]] -> 0 | S19: 0 | T19: 0 | U19: 0 | X19: 0
A20: ='18'!$A$1 -> 18 | B20: =IF(Evaluat°Congés[[#This Row],[Période Réf]]<>0,Info_Salariés[[#This Row],[emploi occupe]],"") ->  | C20: =IF(Evaluat°Congés[[#This Row],[Période Réf]]<>0,Info_Salariés[[#This Row],[Nom & Prénoms]],"") ->  | D20: =IF(Evaluat°Congés[[#This Row],[Période Réf]]<>0,Info_Salariés!AW20,0) -> 0 | E20: =+Info_Salariés[[#This Row],[Date Retour Dernier Congé]] -> 00:00:00 | F20: =+Info_Salariés[[#This Row],[Départ Théorique]] -> 00:00:00 | G20: 0 | H20: 0 | I20: =+Info_Salariés[[#This Row],[Jours Ajoutés]] -> 0 | J20: =Evaluat°Congés[[#This Row],[Nbre de jours]]+Evaluat°Congés[[#This Row],[Jours Ajoutés]] -> 0 | L20: =+Info_Salariés[[#This Row],[Salaire Moyen Mensuel]] -> 0 | M20: =+Info_Salariés[[#This Row],[DEPART EFFECTIF]] -> 00:00:00 | N20: =+Info_Salariés[[#This Row],[FIN EFFECTIVE]] -> 00:00:00 | O20: 0 | P20: 00:00:00 | Q20: 0 | R20: =+Info_Salariés[[#This Row],[JOURS REST. ANNEE N-1]] -> 0 | S20: 0 | T20: 0 | U20: 0 | X20: 0
A21: ='19'!$A$1 -> 19 | B21: =IF(Evaluat°Congés[[#This Row],[Période Réf]]<>0,Info_Salariés[[#This Row],[emploi occupe]],"") ->  | C21: =IF(Evaluat°Congés[[#This Row],[Période Réf]]<>0,Info_Salariés[[#This Row],[Nom & Prénoms]],"") ->  | D21: =IF(Evaluat°Congés[[#This Row],[Période Réf]]<>0,Info_Salariés!AW21,0) -> 0 | E21: =+Info_Salariés[[#This Row],[Date Retour Dernier Congé]] -> 00:00:00 | F21: =+Info_Salariés[[#This Row],[Départ Théorique]] -> 00:00:00 | G21: 0 | H21: 0 | I21: =+Info_Salariés[[#This Row],[Jours Ajoutés]] -> 0 | J21: =Evaluat°Congés[[#This Row],[Nbre de jours]]+Evaluat°Congés[[#This Row],[Jours Ajoutés]] -> 0 | L21: =+Info_Salariés[[#This Row],[Salaire Moyen Mensuel]] -> 0 | M21: =+Info_Salariés[[#This Row],[DEPART EFFECTIF]] -> 00:00:00 | N21: =+Info_Salariés[[#This Row],[FIN EFFECTIVE]] -> 00:00:00 | O21: 0 | P21: 00:00:00 | Q21: 0 | R21: =+Info_Salariés[[#This Row],[JOURS REST. ANNEE N-1]] -> 0 | S21: 0 | T21: 0 | U21: 0 | X21: 0
A22: ='20'!$A$1 -> 20 | B22: =IF(Evaluat°Congés[[#This Row],[Période Réf]]<>0,Info_Salariés[[#This Row],[emploi occupe]],"") ->  | C22: =IF(Evaluat°Congés[[#This Row],[Période Réf]]<>0,Info_Salariés[[#This Row],[Nom & Prénoms]],"") ->  | D22: =IF(Evaluat°Congés[[#This Row],[Période Réf]]<>0,Info_Salariés!AW22,0) -> 0 | E22: =+Info_Salariés[[#This Row],[Date Retour Dernier Congé]] -> 00:00:00 | F22: =+Info_Salariés[[#This Row],[Départ Théorique]] -> 00:00:00 | G22: 0 | H22: 0 | I22: =+Info_Salariés[[#This Row],[Jours Ajoutés]] -> 0 | J22: =Evaluat°Congés[[#This Row],[Nbre de jours]]+Evaluat°Congés[[#This Row],[Jours Ajoutés]] -> 0 | L22: =+Info_Salariés[[#This Row],[Salaire Moyen Mensuel]] -> 0 | M22: =+Info_Salariés[[#This Row],[DEPART EFFECTIF]] -> 00:00:00 | N22: =+Info_Salariés[[#This Row],[FIN EFFECTIVE]] -> 00:00:00 | O22: 0 | P22: 00:00:00 | Q22: 0 | R22: =+Info_Salariés[[#This Row],[JOURS REST. ANNEE N-1]] -> 0 | S22: 0 | T22: 0 | U22: 0 | X22: 0
A23: ='21'!$A$1 -> 21 | B23: =IF(Evaluat°Congés[[#This Row],[Période Réf]]<>0,Info_Salariés[[#This Row],[emploi occupe]],"") ->  | C23: =IF(Evaluat°Congés[[#This Row],[Période Réf]]<>0,Info_Salariés[[#This Row],[Nom & Prénoms]],"") ->  | D23: =IF(Evaluat°Congés[[#This Row],[Période Réf]]<>0,Info_Salariés!AW23,0) -> 0 | E23: =+Info_Salariés[[#This Row],[Date Retour Dernier Congé]] -> 00:00:00 | F23: =+Info_Salariés[[#This Row],[Départ Théorique]] -> 00:00:00 | G23: 0 | H23: 0 | I23: =+Info_Salariés[[#This Row],[Jours Ajoutés]] -> 0 | J23: =Evaluat°Congés[[#This Row],[Nbre de jours]]+Evaluat°Congés[[#This Row],[Jours Ajoutés]] -> 0 | L23: =+Info_Salariés[[#This Row],[Salaire Moyen Mensuel]] -> 0 | M23: =+Info_Salariés[[#This Row],[DEPART EFFECTIF]] -> 00:00:00 | N23: =+Info_Salariés[[#This Row],[FIN EFFECTIVE]] -> 00:00:00 | O23: 0 | P23: 00:00:00 | Q23: 0 | R23: =+Info_Salariés[[#This Row],[JOURS REST. ANNEE N-1]] -> 0 | S23: 0 | T23: 0 | U23: 0 | X23: 0
A24: ='22'!$A$1 -> 22 | B24: =IF(Evaluat°Congés[[#This Row],[Période Réf]]<>0,Info_Salariés[[#This Row],[emploi occupe]],"") ->  | C24: =IF(Evaluat°Congés[[#This Row],[Période Réf]]<>0,Info_Salariés[[#This Row],[Nom & Prénoms]],"") ->  | D24: =IF(Evaluat°Congés[[#This Row],[Période Réf]]<>0,Info_Salariés!AW24,0) -> 0 | E24: =+Info_Salariés[[#This Row],[Date Retour Dernier Congé]] -> 00:00:00 | F24: =+Info_Salariés[[#This Row],[Départ Théorique]] -> 00:00:00 | G24: 0 | H24: 0 | I24: =+Info_Salariés[[#This Row],[Jours Ajoutés]] -> 0 | J24: =Evaluat°Congés[[#This Row],[Nbre de jours]]+Evaluat°Congés[[#This Row],[Jours Ajoutés]] -> 0 | L24: =+Info_Salariés[[#This Row],[Salaire Moyen Mensuel]] -> 0 | M24: =+Info_Salariés[[#This Row],[DEPART EFFECTIF]] -> 00:00:00 | N24: =+Info_Salariés[[#This Row],[FIN EFFECTIVE]] -> 00:00:00 | O24: 0 | P24: 00:00:00 | Q24: 0 | R24: =+Info_Salariés[[#This Row],[JOURS REST. ANNEE N-1]] -> 0 | S24: 0 | T24: 0 | U24: 0 | X24: 0
A25: ='23'!$A$1 -> 23 | B25: =IF(Evaluat°Congés[[#This Row],[Période Réf]]<>0,Info_Salariés[[#This Row],[emploi occupe]],"") ->  | C25: =IF(Evaluat°Congés[[#This Row],[Période Réf]]<>0,Info_Salariés[[#This Row],[Nom & Prénoms]],"") ->  | D25: =IF(Evaluat°Congés[[#This Row],[Période Réf]]<>0,Info_Salariés!AW25,0) -> 0 | E25: =+Info_Salariés[[#This Row],[Date Retour Dernier Congé]] -> 00:00:00 | F25: =+Info_Salariés[[#This Row],[Départ Théorique]] -> 00:00:00 | G25: 0 | H25: 0 | I25: =+Info_Salariés[[#This Row],[Jours Ajoutés]] -> 0 | J25: =Evaluat°Congés[[#This Row],[Nbre de jours]]+Evaluat°Congés[[#This Row],[Jours Ajoutés]] -> 0 | L25: =+Info_Salariés[[#This Row],[Salaire Moyen Mensuel]] -> 0 | M25: =+Info_Salariés[[#This Row],[DEPART EFFECTIF]] -> 00:00:00 | N25: =+Info_Salariés[[#This Row],[FIN EFFECTIVE]] -> 00:00:00 | O25: 0 | P25: 00:00:00 | Q25: 0 | R25: =+Info_Salariés[[#This Row],[JOURS REST. ANNEE N-1]] -> 0 | S25: 0 | T25: 0 | U25: 0 | X25: 0
A26: ='24'!$A$1 -> 24 | B26: =IF(Evaluat°Congés[[#This Row],[Période Réf]]<>0,Info_Salariés[[#This Row],[emploi occupe]],"") ->  | C26: =IF(Evaluat°Congés[[#This Row],[Période Réf]]<>0,Info_Salariés[[#This Row],[Nom & Prénoms]],"") ->  | D26: =IF(Evaluat°Congés[[#This Row],[Période Réf]]<>0,Info_Salariés!AW26,0) -> 0 | E26: =+Info_Salariés[[#This Row],[Date Retour Dernier Congé]] -> 00:00:00 | F26: =+Info_Salariés[[#This Row],[Départ Théorique]] -> 00:00:00 | G26: 0 | H26: 0 | I26: =+Info_Salariés[[#This Row],[Jours Ajoutés]] -> 0 | J26: =Evaluat°Congés[[#This Row],[Nbre de jours]]+Evaluat°Congés[[#This Row],[Jours Ajoutés]] -> 0 | L26: =+Info_Salariés[[#This Row],[Salaire Moyen Mensuel]] -> 0 | M26: =+Info_Salariés[[#This Row],[DEPART EFFECTIF]] -> 00:00:00 | N26: =+Info_Salariés[[#This Row],[FIN EFFECTIVE]] -> 00:00:00 | O26: 0 | P26: 00:00:00 | Q26: 0 | R26: =+Info_Salariés[[#This Row],[JOURS REST. ANNEE N-1]] -> 0 | S26: 0 | T26: 0 | U26: 0 | X26: 0
A27: ='25'!$A$1 -> 25 | B27: =IF(Evaluat°Congés[[#This Row],[Période Réf]]<>0,Info_Salariés[[#This Row],[emploi occupe]],"") ->  | C27: =IF(Evaluat°Congés[[#This Row],[Période Réf]]<>0,Info_Salariés[[#This Row],[Nom & Prénoms]],"") ->  | D27: =IF(Evaluat°Congés[[#This Row],[Période Réf]]<>0,Info_Salariés!AW27,0) -> 0 | E27: =+Info_Salariés[[#This Row],[Date Retour Dernier Congé]] -> 00:00:00 | F27: =+Info_Salariés[[#This Row],[Départ Théorique]] -> 00:00:00 | G27: 0 | H27: 0 | I27: =+Info_Salariés[[#This Row],[Jours Ajoutés]] -> 0 | J27: =Evaluat°Congés[[#This Row],[Nbre de jours]]+Evaluat°Congés[[#This Row],[Jours Ajoutés]] -> 0 | L27: =+Info_Salariés[[#This Row],[Salaire Moyen Mensuel]] -> 0 | M27: =+Info_Salariés[[#This Row],[DEPART EFFECTIF]] -> 00:00:00 | N27: =+Info_Salariés[[#This Row],[FIN EFFECTIVE]] -> 00:00:00 | O27: 0 | P27: 00:00:00 | Q27: 0 | R27: =+Info_Salariés[[#This Row],[JOURS REST. ANNEE N-1]] -> 0 | S27: 0 | T27: 0 | U27: 0 | X27: 0
A28: ='26'!$A$1 -> 26 | B28: =IF(Evaluat°Congés[[#This Row],[Période Réf]]<>0,Info_Salariés[[#This Row],[emploi occupe]],"") ->  | C28: =IF(Evaluat°Congés[[#This Row],[Période Réf]]<>0,Info_Salariés[[#This Row],[Nom & Prénoms]],"") ->  | D28: =IF(Evaluat°Congés[[#This Row],[Période Réf]]<>0,Info_Salariés!AW28,0) -> 0 | E28: =+Info_Salariés[[#This Row],[Date Retour Dernier Congé]] -> 00:00:00 | F28: =+Info_Salariés[[#This Row],[Départ Théorique]] -> 00:00:00 | G28: 0 | H28: 0 | I28: =+Info_Salariés[[#This Row],[Jours Ajoutés]] -> 0 | J28: =Evaluat°Congés[[#This Row],[Nbre de jours]]+Evaluat°Congés[[#This Row],[Jours Ajoutés]] -> 0 | L28: =+Info_Salariés[[#This Row],[Salaire Moyen Mensuel]] -> 0 | M28: =+Info_Salariés[[#This Row],[DEPART EFFECTIF]] -> 00:00:00 | N28: =+Info_Salariés[[#This Row],[FIN EFFECTIVE]] -> 00:00:00 | O28: 0 | P28: 00:00:00 | Q28: 0 | R28: =+Info_Salariés[[#This Row],[JOURS REST. ANNEE N-1]] -> 0 | S28: 0 | T28: 0 | U28: 0 | X28: 0
A29: ='27'!$A$1 -> 27 | B29: =IF(Evaluat°Congés[[#This Row],[Période Réf]]<>0,Info_Salariés[[#This Row],[emploi occupe]],"") ->  | C29: =IF(Evaluat°Congés[[#This Row],[Période Réf]]<>0,Info_Salariés[[#This Row],[Nom & Prénoms]],"") ->  | D29: =IF(Evaluat°Congés[[#This Row],[Période Réf]]<>0,Info_Salariés!AW29,0) -> 0 | E29: =+Info_Salariés[[#This Row],[Date Retour Dernier Congé]] -> 00:00:00 | F29: =+Info_Salariés[[#This Row],[Départ Théorique]] -> 00:00:00 | G29: 0 | H29: 0 | I29: =+Info_Salariés[[#This Row],[Jours Ajoutés]] -> 0 | J29: =Evaluat°Congés[[#This Row],[Nbre de jours]]+Evaluat°Congés[[#This Row],[Jours Ajoutés]] -> 0 | L29: =+Info_Salariés[[#This Row],[Salaire Moyen Mensuel]] -> 0 | M29: =+Info_Salariés[[#This Row],[DEPART EFFECTIF]] -> 00:00:00 | N29: =+Info_Salariés[[#This Row],[FIN EFFECTIVE]] -> 00:00:00 | O29: 0 | P29: 00:00:00 | Q29: 0 | R29: =+Info_Salariés[[#This Row],[JOURS REST. ANNEE N-1]] -> 0 | S29: 0 | T29: 0 | U29: 0 | X29: 0
A30: ='28'!$A$1 -> 28 | B30: =IF(Evaluat°Congés[[#This Row],[Période Réf]]<>0,Info_Salariés[[#This Row],[emploi occupe]],"") ->  | C30: =IF(Evaluat°Congés[[#This Row],[Période Réf]]<>0,Info_Salariés[[#This Row],[Nom & Prénoms]],"") ->  | D30: =IF(Evaluat°Congés[[#This Row],[Période Réf]]<>0,Info_Salariés!AW30,0) -> 0 | E30: =+Info_Salariés[[#This Row],[Date Retour Dernier Congé]] -> 00:00:00 | F30: =+Info_Salariés[[#This Row],[Départ Théorique]] -> 00:00:00 | G30: 0 | H30: 0 | I30: =+Info_Salariés[[#This Row],[Jours Ajoutés]] -> 0 | J30: =Evaluat°Congés[[#This Row],[Nbre de jours]]+Evaluat°Congés[[#This Row],[Jours Ajoutés]] -> 0 | L30: =+Info_Salariés[[#This Row],[Salaire Moyen Mensuel]] -> 0 | M30: =+Info_Salariés[[#This Row],[DEPART EFFECTIF]] -> 00:00:00 | N30: =+Info_Salariés[[#This Row],[FIN EFFECTIVE]] -> 00:00:00 | O30: =IF(AND(M30<>0,N30<>0),N30-M30+1,0) -> 0 | P30: 00:00:00 | Q30: 0 | R30: =+Info_Salariés[[#This Row],[JOURS REST. ANNEE N-1]] -> 0 | S30: 0 | T30: 0 | U30: 0 | X30: 0
A31: ='29'!$A$1 -> 29 | B31: =IF(Evaluat°Congés[[#This Row],[Période Réf]]<>0,Info_Salariés[[#This Row],[emploi occupe]],"") ->  | C31: =IF(Evaluat°Congés[[#This Row],[Période Réf]]<>0,Info_Salariés[[#This Row],[Nom & Prénoms]],"") ->  | D31: =IF(Evaluat°Congés[[#This Row],[Période Réf]]<>0,Info_Salariés!AW31,0) -> 0 | E31: =+Info_Salariés[[#This Row],[Date Retour Dernier Congé]] -> 00:00:00 | F31: =+Info_Salariés[[#This Row],[Départ Théorique]] -> 00:00:00 | G31: 0 | H31: 0 | I31: =+Info_Salariés[[#This Row],[Jours Ajoutés]] -> 0 | J31: =Evaluat°Congés[[#This Row],[Nbre de jours]]+Evaluat°Congés[[#This Row],[Jours Ajoutés]] -> 0 | L31: =+Info_Salariés[[#This Row],[Salaire Moyen Mensuel]] -> 0 | M31: =+Info_Salariés[[#This Row],[DEPART EFFECTIF]] -> 00:00:00 | N31: =+Info_Salariés[[#This Row],[FIN EFFECTIVE]] -> 00:00:00 | O31: 0 | P31: 00:00:00 | Q31: 0 | R31: =+Info_Salariés[[#This Row],[JOURS REST. ANNEE N-1]] -> 0 | S31: 0 | T31: 0 | U31: 0 | X31: 0
A32: ='30'!$A$1 -> 30 | B32: =IF(Evaluat°Congés[[#This Row],[Période Réf]]<>0,Info_Salariés[[#This Row],[emploi occupe]],"") ->  | C32: =IF(Evaluat°Congés[[#This Row],[Période Réf]]<>0,Info_Salariés[[#This Row],[Nom & Prénoms]],"") ->  | D32: =IF(Evaluat°Congés[[#This Row],[Période Réf]]<>0,Info_Salariés!AW32,0) -> 0 | E32: =+Info_Salariés[[#This Row],[Date Retour Dernier Congé]] -> 00:00:00 | F32: =+Info_Salariés[[#This Row],[Départ Théorique]] -> 00:00:00 | G32: 0 | H32: 0 | I32: =+Info_Salariés[[#This Row],[Jours Ajoutés]] -> 0 | J32: =Evaluat°Congés[[#This Row],[Nbre de jours]]+Evaluat°Congés[[#This Row],[Jours Ajoutés]] -> 0 | L32: =+Info_Salariés[[#This Row],[Salaire Moyen Mensuel]] -> 0 | M32: =+Info_Salariés[[#This Row],[DEPART EFFECTIF]] -> 00:00:00 | N32: =+Info_Salariés[[#This Row],[FIN EFFECTIVE]] -> 00:00:00 | O32: 0 | P32: 00:00:00 | Q32: 0 | R32: =+Info_Salariés[[#This Row],[JOURS REST. ANNEE N-1]] -> 0 | S32: 0 | T32: 0 | U32: 0 | X32: 0
A33: ='31'!$A$1 -> 31 | B33: =IF(Evaluat°Congés[[#This Row],[Période Réf]]<>0,Info_Salariés[[#This Row],[emploi occupe]],"") ->  | C33: =IF(Evaluat°Congés[[#This Row],[Période Réf]]<>0,Info_Salariés[[#This Row],[Nom & Prénoms]],"") ->  | D33: =IF(Evaluat°Congés[[#This Row],[Période Réf]]<>0,Info_Salariés!AW33,0) -> 0 | E33: =+Info_Salariés[[#This Row],[Date Retour Dernier Congé]] -> 00:00:00 | F33: =+Info_Salariés[[#This Row],[Départ Théorique]] -> 00:00:00 | G33: 0 | H33: 0 | I33: =+Info_Salariés[[#This Row],[Jours Ajoutés]] -> 0 | J33: =Evaluat°Congés[[#This Row],[Nbre de jours]]+Evaluat°Congés[[#This Row],[Jours Ajoutés]] -> 0 | L33: =+Info_Salariés[[#This Row],[Salaire Moyen Mensuel]] -> 0 | M33: =+Info_Salariés[[#This Row],[DEPART EFFECTIF]] -> 00:00:00 | N33: =+Info_Salariés[[#This Row],[FIN EFFECTIVE]] -> 00:00:00 | O33: 0 | P33: 00:00:00 | Q33: 0 | R33: =+Info_Salariés[[#This Row],[JOURS REST. ANNEE N-1]] -> 0 | S33: 0 | T33: 0 | U33: 0 | X33: 0
A34: ='32'!$A$1 -> 32 | B34: =IF(Evaluat°Congés[[#This Row],[Période Réf]]<>0,Info_Salariés[[#This Row],[emploi occupe]],"") ->  | C34: =IF(Evaluat°Congés[[#This Row],[Période Réf]]<>0,Info_Salariés[[#This Row],[Nom & Prénoms]],"") ->  | D34: =IF(Evaluat°Congés[[#This Row],[Période Réf]]<>0,Info_Salariés!AW34,0) -> 0 | E34: =+Info_Salariés[[#This Row],[Date Retour Dernier Congé]] -> 00:00:00 | F34: =+Info_Salariés[[#This Row],[Départ Théorique]] -> 00:00:00 | G34: 0 | H34: 0 | I34: =+Info_Salariés[[#This Row],[Jours Ajoutés]] -> 0 | J34: =Evaluat°Congés[[#This Row],[Nbre de jours]]+Evaluat°Congés[[#This Row],[Jours Ajoutés]] -> 0 | L34: =+Info_Salariés[[#This Row],[Salaire Moyen Mensuel]] -> 0 | M34: =+Info_Salariés[[#This Row],[DEPART EFFECTIF]] -> 00:00:00 | N34: =+Info_Salariés[[#This Row],[FIN EFFECTIVE]] -> 00:00:00 | O34: 0 | P34: 00:00:00 | Q34: 0 | R34: =+Info_Salariés[[#This Row],[JOURS REST. ANNEE N-1]] -> 0 | S34: 0 | T34: 0 | U34: 0 | X34: 0
A35: ='33'!$A$1 -> 33 | B35: =IF(Evaluat°Congés[[#This Row],[Période Réf]]<>0,Info_Salariés[[#This Row],[emploi occupe]],"") ->  | C35: =IF(Evaluat°Congés[[#This Row],[Période Réf]]<>0,Info_Salariés[[#This Row],[Nom & Prénoms]],"") ->  | D35: =IF(Evaluat°Congés[[#This Row],[Période Réf]]<>0,Info_Salariés!AW35,0) -> 0 | E35: =+Info_Salariés[[#This Row],[Date Retour Dernier Congé]] -> 00:00:00 | F35: =+Info_Salariés[[#This Row],[Départ Théorique]] -> 00:00:00 | G35: 0 | H35: =IF(G35<>0,ROUND(+IF(AND(D35>=5,D35<10),1,0)+IF(AND(D35>=10,D35<15),2,0)+IF(AND(D35>=15,D35<20),3,0)+IF(AND(D35>=20,D35<25),5,0)+IF(D35>=25,7,0)+(IF($D$1="A",2.2*G35*7/6,2.2*G35*30/24)),0),0) -> 0 | I35: =+Info_Salariés[[#This Row],[Jours Ajoutés]] -> 0 | J35: =Evaluat°Congés[[#This Row],[Nbre de jours]]+Evaluat°Congés[[#This Row],[Jours Ajoutés]] -> 0 | K35: =IF(G35<>0,F35+J35-1,"") ->  | L35: =+Info_Salariés[[#This Row],[Salaire Moyen Mensuel]] -> 0 | M35: =+Info_Salariés[[#This Row],[DEPART EFFECTIF]] -> 00:00:00 | N35: =+Info_Salariés[[#This Row],[FIN EFFECTIVE]] -> 00:00:00 | O35: 0 | P35: 00:00:00 | Q35: =J35-O35 -> 0 | R35: =+Info_Salariés[[#This Row],[JOURS REST. ANNEE N-1]] -> 0 | S35: 0 | T35: 0 | U35: 0 | X35: 0
A36: ='34'!$A$1 -> 34 | B36: =IF(Evaluat°Congés[[#This Row],[Période Réf]]<>0,Info_Salariés[[#This Row],[emploi occupe]],"") ->  | C36: =IF(Evaluat°Congés[[#This Row],[Période Réf]]<>0,Info_Salariés[[#This Row],[Nom & Prénoms]],"") ->  | D36: =IF(Evaluat°Congés[[#This Row],[Période Réf]]<>0,Info_Salariés!AW36,0) -> 0 | E36: =+Info_Salariés[[#This Row],[Date Retour Dernier Congé]] -> 00:00:00 | F36: =+Info_Salariés[[#This Row],[Départ Théorique]] -> 00:00:00 | G36: 0 | H36: 0 | I36: =+Info_Salariés[[#This Row],[Jours Ajoutés]] -> 0 | J36: =Evaluat°Congés[[#This Row],[Nbre de jours]]+Evaluat°Congés[[#This Row],[Jours Ajoutés]] -> 0 | L36: =+Info_Salariés[[#This Row],[Salaire Moyen Mensuel]] -> 0 | M36: =+Info_Salariés[[#This Row],[DEPART EFFECTIF]] -> 00:00:00 | N36: =+Info_Salariés[[#This Row],[FIN EFFECTIVE]] -> 00:00:00 | O36: 0 | P36: 00:00:00 | Q36: 0 | R36: =+Info_Salariés[[#This Row],[JOURS REST. ANNEE N-1]] -> 0 | S36: 0 | T36: 0 | U36: 0 | X36: 0
A37: ='35'!$A$1 -> 35 | B37: =IF(Evaluat°Congés[[#This Row],[Période Réf]]<>0,Info_Salariés[[#This Row],[emploi occupe]],"") ->  | C37: =IF(Evaluat°Congés[[#This Row],[Période Réf]]<>0,Info_Salariés[[#This Row],[Nom & Prénoms]],"") ->  | D37: =IF(Evaluat°Congés[[#This Row],[Période Réf]]<>0,Info_Salariés!AW37,0) -> 0 | E37: =+Info_Salariés[[#This Row],[Date Retour Dernier Congé]] -> 00:00:00 | F37: =+Info_Salariés[[#This Row],[Départ Théorique]] -> 00:00:00 | G37: 0 | H37: 0 | I37: =+Info_Salariés[[#This Row],[Jours Ajoutés]] -> 0 | J37: =Evaluat°Congés[[#This Row],[Nbre de jours]]+Evaluat°Congés[[#This Row],[Jours Ajoutés]] -> 0 | L37: =+Info_Salariés[[#This Row],[Salaire Moyen Mensuel]] -> 0 | M37: =+Info_Salariés[[#This Row],[DEPART EFFECTIF]] -> 00:00:00 | N37: =+Info_Salariés[[#This Row],[FIN EFFECTIVE]] -> 00:00:00 | O37: 0 | P37: 00:00:00 | Q37: 0 | R37: =+Info_Salariés[[#This Row],[JOURS REST. ANNEE N-1]] -> 0 | S37: 0 | T37: 0 | U37: 0 | X37: 0
A38: ='36'!$A$1 -> 36 | B38: =IF(Evaluat°Congés[[#This Row],[Période Réf]]<>0,Info_Salariés[[#This Row],[emploi occupe]],"") ->  | C38: =IF(Evaluat°Congés[[#This Row],[Période Réf]]<>0,Info_Salariés[[#This Row],[Nom & Prénoms]],"") ->  | D38: =IF(Evaluat°Congés[[#This Row],[Période Réf]]<>0,Info_Salariés!AW38,0) -> 0 | E38: =+Info_Salariés[[#This Row],[Date Retour Dernier Congé]] -> 00:00:00 | F38: =+Info_Salariés[[#This Row],[Départ Théorique]] -> 00:00:00 | G38: 0 | H38: 0 | I38: =+Info_Salariés[[#This Row],[Jours Ajoutés]] -> 0 | J38: =Evaluat°Congés[[#This Row],[Nbre de jours]]+Evaluat°Congés[[#This Row],[Jours Ajoutés]] -> 0 | L38: =+Info_Salariés[[#This Row],[Salaire Moyen Mensuel]] -> 0 | M38: =+Info_Salariés[[#This Row],[DEPART EFFECTIF]] -> 00:00:00 | N38: =+Info_Salariés[[#This Row],[FIN EFFECTIVE]] -> 00:00:00 | O38: 0 | P38: 00:00:00 | Q38: 0 | R38: =+Info_Salariés[[#This Row],[JOURS REST. ANNEE N-1]] -> 0 | S38: 0 | T38: 0 | U38: 0 | X38: 0
A39: ='37'!$A$1 -> 37 | B39: =IF(Evaluat°Congés[[#This Row],[Période Réf]]<>0,Info_Salariés[[#This Row],[emploi occupe]],"") ->  | C39: =IF(Evaluat°Congés[[#This Row],[Période Réf]]<>0,Info_Salariés[[#This Row],[Nom & Prénoms]],"") ->  | D39: =IF(Evaluat°Congés[[#This Row],[Période Réf]]<>0,Info_Salariés!AW39,0) -> 0 | E39: =+Info_Salariés[[#This Row],[Date Retour Dernier Congé]] -> 00:00:00 | F39: =+Info_Salariés[[#This Row],[Départ Théorique]] -> 00:00:00 | G39: 0 | H39: 0 | I39: =+Info_Salariés[[#This Row],[Jours Ajoutés]] -> 0 | J39: =Evaluat°Congés[[#This Row],[Nbre de jours]]+Evaluat°Congés[[#This Row],[Jours Ajoutés]] -> 0 | L39: =+Info_Salariés[[#This Row],[Salaire Moyen Mensuel]] -> 0 | M39: =+Info_Salariés[[#This Row],[DEPART EFFECTIF]] -> 00:00:00 | N39: =+Info_Salariés[[#This Row],[FIN EFFECTIVE]] -> 00:00:00 | O39: 0 | P39: 00:00:00 | Q39: 0 | R39: =+Info_Salariés[[#This Row],[JOURS REST. ANNEE N-1]] -> 0 | S39: 0 | T39: 0 | U39: 0 | X39: 0
A40: ='38'!$A$1 -> 38 | B40: =IF(Evaluat°Congés[[#This Row],[Période Réf]]<>0,Info_Salariés[[#This Row],[emploi occupe]],"") ->  | C40: =IF(Evaluat°Congés[[#This Row],[Période Réf]]<>0,Info_Salariés[[#This Row],[Nom & Prénoms]],"") ->  | D40: =IF(Evaluat°Congés[[#This Row],[Période Réf]]<>0,Info_Salariés!AW40,0) -> 0 | E40: =+Info_Salariés[[#This Row],[Date Retour Dernier Congé]] -> 00:00:00 | F40: =+Info_Salariés[[#This Row],[Départ Théorique]] -> 00:00:00 | G40: 0 | H40: 0 | I40: =+Info_Salariés[[#This Row],[Jours Ajoutés]] -> 0 | J40: =Evaluat°Congés[[#This Row],[Nbre de jours]]+Evaluat°Congés[[#This Row],[Jours Ajoutés]] -> 0 | L40: =+Info_Salariés[[#This Row],[Salaire Moyen Mensuel]] -> 0 | M40: =+Info_Salariés[[#This Row],[DEPART EFFECTIF]] -> 00:00:00 | N40: =+Info_Salariés[[#This Row],[FIN EFFECTIVE]] -> 00:00:00 | O40: 0 | P40: 00:00:00 | Q40: 0 | R40: =+Info_Salariés[[#This Row],[JOURS REST. ANNEE N-1]] -> 0 | S40: 0 | T40: 0 | U40: 0 | X40: 0
A41: ='39'!$A$1 -> 39 | B41: =IF(Evaluat°Congés[[#This Row],[Période Réf]]<>0,Info_Salariés[[#This Row],[emploi occupe]],"") ->  | C41: =IF(Evaluat°Congés[[#This Row],[Période Réf]]<>0,Info_Salariés[[#This Row],[Nom & Prénoms]],"") ->  | D41: =IF(Evaluat°Congés[[#This Row],[Période Réf]]<>0,Info_Salariés!AW41,0) -> 0 | E41: =+Info_Salariés[[#This Row],[Date Retour Dernier Congé]] -> 00:00:00 | F41: =+Info_Salariés[[#This Row],[Départ Théorique]] -> 00:00:00 | G41: 0 | H41: 0 | I41: =+Info_Salariés[[#This Row],[Jours Ajoutés]] -> 0 | J41: =Evaluat°Congés[[#This Row],[Nbre de jours]]+Evaluat°Congés[[#This Row],[Jours Ajoutés]] -> 0 | L41: =+Info_Salariés[[#This Row],[Salaire Moyen Mensuel]] -> 0 | M41: =+Info_Salariés[[#This Row],[DEPART EFFECTIF]] -> 00:00:00 | N41: =+Info_Salariés[[#This Row],[FIN EFFECTIVE]] -> 00:00:00 | O41: 0 | P41: 00:00:00 | Q41: 0 | R41: =+Info_Salariés[[#This Row],[JOURS REST. ANNEE N-1]] -> 0 | S41: 0 | T41: 0 | U41: 0 | X41: 0
A42: ='40'!$A$1 -> 40 | B42: =IF(Evaluat°Congés[[#This Row],[Période Réf]]<>0,Info_Salariés[[#This Row],[emploi occupe]],"") ->  | C42: =IF(Evaluat°Congés[[#This Row],[Période Réf]]<>0,Info_Salariés[[#This Row],[Nom & Prénoms]],"") ->  | D42: =IF(Evaluat°Congés[[#This Row],[Période Réf]]<>0,Info_Salariés!AW42,0) -> 0 | E42: =+Info_Salariés[[#This Row],[Date Retour Dernier Congé]] -> 00:00:00 | F42: =+Info_Salariés[[#This Row],[Départ Théorique]] -> 00:00:00 | G42: 0 | H42: 0 | I42: =+Info_Salariés[[#This Row],[Jours Ajoutés]] -> 0 | J42: =Evaluat°Congés[[#This Row],[Nbre de jours]]+Evaluat°Congés[[#This Row],[Jours Ajoutés]] -> 0 | L42: =+Info_Salariés[[#This Row],[Salaire Moyen Mensuel]] -> 0 | M42: =+Info_Salariés[[#This Row],[DEPART EFFECTIF]] -> 00:00:00 | N42: =+Info_Salariés[[#This Row],[FIN EFFECTIVE]] -> 00:00:00 | O42: 0 | P42: 00:00:00 | Q42: 0 | R42: =+Info_Salariés[[#This Row],[JOURS REST. ANNEE N-1]] -> 0 | S42: 0 | T42: 0 | U42: 0 | X42: 0
A43: ='41'!$A$1 -> 41 | B43: =IF(Evaluat°Congés[[#This Row],[Période Réf]]<>0,Info_Salariés[[#This Row],[emploi occupe]],"") ->  | C43: =IF(Evaluat°Congés[[#This Row],[Période Réf]]<>0,Info_Salariés[[#This Row],[Nom & Prénoms]],"") ->  | D43: =IF(Evaluat°Congés[[#This Row],[Période Réf]]<>0,Info_Salariés!AW43,0) -> 0 | E43: =+Info_Salariés[[#This Row],[Date Retour Dernier Congé]] -> 00:00:00 | F43: =+Info_Salariés[[#This Row],[Départ Théorique]] -> 00:00:00 | G43: 0 | H43: 0 | I43: =+Info_Salariés[[#This Row],[Jours Ajoutés]] -> 0 | J43: =Evaluat°Congés[[#This Row],[Nbre de jours]]+Evaluat°Congés[[#This Row],[Jours Ajoutés]] -> 0 | L43: =+Info_Salariés[[#This Row],[Salaire Moyen Mensuel]] -> 0 | M43: =+Info_Salariés[[#This Row],[DEPART EFFECTIF]] -> 00:00:00 | N43: =+Info_Salariés[[#This Row],[FIN EFFECTIVE]] -> 00:00:00 | O43: 0 | P43: 00:00:00 | Q43: 0 | R43: =+Info_Salariés[[#This Row],[JOURS REST. ANNEE N-1]] -> 0 | S43: 0 | T43: 0 | U43: 0 | X43: 0
A44: ='42'!$A$1 -> 42 | B44: =IF(Evaluat°Congés[[#This Row],[Période Réf]]<>0,Info_Salariés[[#This Row],[emploi occupe]],"") ->  | C44: =IF(Evaluat°Congés[[#This Row],[Période Réf]]<>0,Info_Salariés[[#This Row],[Nom & Prénoms]],"") ->  | D44: =IF(Evaluat°Congés[[#This Row],[Période Réf]]<>0,Info_Salariés!AW44,0) -> 0 | E44: =+Info_Salariés[[#This Row],[Date Retour Dernier Congé]] -> 00:00:00 | F44: =+Info_Salariés[[#This Row],[Départ Théorique]] -> 00:00:00 | G44: 0 | H44: 0 | I44: =+Info_Salariés[[#This Row],[Jours Ajoutés]] -> 0 | J44: =Evaluat°Congés[[#This Row],[Nbre de jours]]+Evaluat°Congés[[#This Row],[Jours Ajoutés]] -> 0 | L44: =+Info_Salariés[[#This Row],[Salaire Moyen Mensuel]] -> 0 | M44: =+Info_Salariés[[#This Row],[DEPART EFFECTIF]] -> 00:00:00 | N44: =+Info_Salariés[[#This Row],[FIN EFFECTIVE]] -> 00:00:00 | O44: 0 | P44: 00:00:00 | Q44: 0 | R44: =+Info_Salariés[[#This Row],[JOURS REST. ANNEE N-1]] -> 0 | S44: 0 | T44: 0 | U44: 0 | X44: 0
A45: ='43'!$A$1 -> 43 | B45: =IF(Evaluat°Congés[[#This Row],[Période Réf]]<>0,Info_Salariés[[#This Row],[emploi occupe]],"") ->  | C45: =IF(Evaluat°Congés[[#This Row],[Période Réf]]<>0,Info_Salariés[[#This Row],[Nom & Prénoms]],"") ->  | D45: =IF(Evaluat°Congés[[#This Row],[Période Réf]]<>0,Info_Salariés!AW45,0) -> 0 | E45: =+Info_Salariés[[#This Row],[Date Retour Dernier Congé]] -> 00:00:00 | F45: =+Info_Salariés[[#This Row],[Départ Théorique]] -> 00:00:00 | G45: 0 | H45: 0 | I45: =+Info_Salariés[[#This Row],[Jours Ajoutés]] -> 0 | J45: =Evaluat°Congés[[#This Row],[Nbre de jours]]+Evaluat°Congés[[#This Row],[Jours Ajoutés]] -> 0 | L45: =+Info_Salariés[[#This Row],[Salaire Moyen Mensuel]] -> 0 | M45: =+Info_Salariés[[#This Row],[DEPART EFFECTIF]] -> 00:00:00 | N45: =+Info_Salariés[[#This Row],[FIN EFFECTIVE]] -> 00:00:00 | O45: 0 | P45: 00:00:00 | Q45: 0 | R45: =+Info_Salariés[[#This Row],[JOURS REST. ANNEE N-1]] -> 0 | S45: 0 | T45: 0 | U45: 0 | X45: 0
A46: ='44'!$A$1 -> 44 | B46: =IF(Evaluat°Congés[[#This Row],[Période Réf]]<>0,Info_Salariés[[#This Row],[emploi occupe]],"") ->  | C46: =IF(Evaluat°Congés[[#This Row],[Période Réf]]<>0,Info_Salariés[[#This Row],[Nom & Prénoms]],"") ->  | D46: =IF(Evaluat°Congés[[#This Row],[Période Réf]]<>0,Info_Salariés!AW46,0) -> 0 | E46: =+Info_Salariés[[#This Row],[Date Retour Dernier Congé]] -> 00:00:00 | F46: =+Info_Salariés[[#This Row],[Départ Théorique]] -> 00:00:00 | G46: 0 | H46: 0 | I46: =+Info_Salariés[[#This Row],[Jours Ajoutés]] -> 0 | J46: =Evaluat°Congés[[#This Row],[Nbre de jours]]+Evaluat°Congés[[#This Row],[Jours Ajoutés]] -> 0 | L46: =+Info_Salariés[[#This Row],[Salaire Moyen Mensuel]] -> 0 | M46: =+Info_Salariés[[#This Row],[DEPART EFFECTIF]] -> 00:00:00 | N46: =+Info_Salariés[[#This Row],[FIN EFFECTIVE]] -> 00:00:00 | O46: 0 | P46: 00:00:00 | Q46: 0 | R46: =+Info_Salariés[[#This Row],[JOURS REST. ANNEE N-1]] -> 0 | S46: 0 | T46: 0 | U46: 0 | X46: 0
A47: ='45'!$A$1 -> 45 | B47: =IF(Evaluat°Congés[[#This Row],[Période Réf]]<>0,Info_Salariés[[#This Row],[emploi occupe]],"") ->  | C47: =IF(Evaluat°Congés[[#This Row],[Période Réf]]<>0,Info_Salariés[[#This Row],[Nom & Prénoms]],"") ->  | D47: =IF(Evaluat°Congés[[#This Row],[Période Réf]]<>0,Info_Salariés!AW47,0) -> 0 | E47: =+Info_Salariés[[#This Row],[Date Retour Dernier Congé]] -> 00:00:00 | F47: =+Info_Salariés[[#This Row],[Départ Théorique]] -> 00:00:00 | G47: 0 | H47: 0 | I47: =+Info_Salariés[[#This Row],[Jours Ajoutés]] -> 0 | J47: =Evaluat°Congés[[#This Row],[Nbre de jours]]+Evaluat°Congés[[#This Row],[Jours Ajoutés]] -> 0 | L47: =+Info_Salariés[[#This Row],[Salaire Moyen Mensuel]] -> 0 | M47: =+Info_Salariés[[#This Row],[DEPART EFFECTIF]] -> 00:00:00 | N47: =+Info_Salariés[[#This Row],[FIN EFFECTIVE]] -> 00:00:00 | O47: 0 | P47: 00:00:00 | Q47: 0 | R47: =+Info_Salariés[[#This Row],[JOURS REST. ANNEE N-1]] -> 0 | S47: 0 | T47: 0 | U47: 0 | X47: 0
A48: ='46'!$A$1 -> 46 | B48: =IF(Evaluat°Congés[[#This Row],[Période Réf]]<>0,Info_Salariés[[#This Row],[emploi occupe]],"") ->  | C48: =IF(Evaluat°Congés[[#This Row],[Période Réf]]<>0,Info_Salariés[[#This Row],[Nom & Prénoms]],"") ->  | D48: =IF(Evaluat°Congés[[#This Row],[Période Réf]]<>0,Info_Salariés!AW48,0) -> 0 | E48: =+Info_Salariés[[#This Row],[Date Retour Dernier Congé]] -> 00:00:00 | F48: =+Info_Salariés[[#This Row],[Départ Théorique]] -> 00:00:00 | G48: 0 | H48: 0 | I48: =+Info_Salariés[[#This Row],[Jours Ajoutés]] -> 0 | J48: =Evaluat°Congés[[#This Row],[Nbre de jours]]+Evaluat°Congés[[#This Row],[Jours Ajoutés]] -> 0 | L48: =+Info_Salariés[[#This Row],[Salaire Moyen Mensuel]] -> 0 | M48: =+Info_Salariés[[#This Row],[DEPART EFFECTIF]] -> 00:00:00 | N48: =+Info_Salariés[[#This Row],[FIN EFFECTIVE]] -> 00:00:00 | O48: 0 | P48: 00:00:00 | Q48: 0 | R48: =+Info_Salariés[[#This Row],[JOURS REST. ANNEE N-1]] -> 0 | S48: 0 | T48: 0 | U48: 0 | X48: 0
A49: ='47'!$A$1 -> 47 | B49: =IF(Evaluat°Congés[[#This Row],[Période Réf]]<>0,Info_Salariés[[#This Row],[emploi occupe]],"") ->  | C49: =IF(Evaluat°Congés[[#This Row],[Période Réf]]<>0,Info_Salariés[[#This Row],[Nom & Prénoms]],"") ->  | D49: =IF(Evaluat°Congés[[#This Row],[Période Réf]]<>0,Info_Salariés!AW49,0) -> 0 | E49: =+Info_Salariés[[#This Row],[Date Retour Dernier Congé]] -> 00:00:00 | F49: =+Info_Salariés[[#This Row],[Départ Théorique]] -> 00:00:00 | G49: 0 | H49: 0 | I49: =+Info_Salariés[[#This Row],[Jours Ajoutés]] -> 0 | J49: =Evaluat°Congés[[#This Row],[Nbre de jours]]+Evaluat°Congés[[#This Row],[Jours Ajoutés]] -> 0 | L49: =+Info_Salariés[[#This Row],[Salaire Moyen Mensuel]] -> 0 | M49: =+Info_Salariés[[#This Row],[DEPART EFFECTIF]] -> 00:00:00 | N49: =+Info_Salariés[[#This Row],[FIN EFFECTIVE]] -> 00:00:00 | O49: 0 | P49: 00:00:00 | Q49: 0 | R49: =+Info_Salariés[[#This Row],[JOURS REST. ANNEE N-1]] -> 0 | S49: 0 | T49: 0 | U49: 0 | X49: 0
A50: ='48'!$A$1 -> 48 | B50: =IF(Evaluat°Congés[[#This Row],[Période Réf]]<>0,Info_Salariés[[#This Row],[emploi occupe]],"") ->  | C50: =IF(Evaluat°Congés[[#This Row],[Période Réf]]<>0,Info_Salariés[[#This Row],[Nom & Prénoms]],"") ->  | D50: =IF(Evaluat°Congés[[#This Row],[Période Réf]]<>0,Info_Salariés!AW50,0) -> 0 | E50: =+Info_Salariés[[#This Row],[Date Retour Dernier Congé]] -> 00:00:00 | F50: =+Info_Salariés[[#This Row],[Départ Théorique]] -> 00:00:00 | G50: 0 | H50: 0 | I50: =+Info_Salariés[[#This Row],[Jours Ajoutés]] -> 0 | J50: =Evaluat°Congés[[#This Row],[Nbre de jours]]+Evaluat°Congés[[#This Row],[Jours Ajoutés]] -> 0 | L50: =+Info_Salariés[[#This Row],[Salaire Moyen Mensuel]] -> 0 | M50: =+Info_Salariés[[#This Row],[DEPART EFFECTIF]] -> 00:00:00 | N50: =+Info_Salariés[[#This Row],[FIN EFFECTIVE]] -> 00:00:00 | O50: 0 | P50: 00:00:00 | Q50: 0 | R50: =+Info_Salariés[[#This Row],[JOURS REST. ANNEE N-1]] -> 0 | S50: 0 | T50: 0 | U50: 0 | X50: 0
A51: ='49'!$A$1 -> 49 | B51: =IF(Evaluat°Congés[[#This Row],[Période Réf]]<>0,Info_Salariés[[#This Row],[emploi occupe]],"") ->  | C51: =IF(Evaluat°Congés[[#This Row],[Période Réf]]<>0,Info_Salariés[[#This Row],[Nom & Prénoms]],"") ->  | D51: =IF(Evaluat°Congés[[#This Row],[Période Réf]]<>0,Info_Salariés!AW51,0) -> 0 | E51: =+Info_Salariés[[#This Row],[Date Retour Dernier Congé]] -> 00:00:00 | F51: =+Info_Salariés[[#This Row],[Départ Théorique]] -> 00:00:00 | G51: 0 | H51: 0 | I51: =+Info_Salariés[[#This Row],[Jours Ajoutés]] -> 0 | J51: =Evaluat°Congés[[#This Row],[Nbre de jours]]+Evaluat°Congés[[#This Row],[Jours Ajoutés]] -> 0 | L51: =+Info_Salariés[[#This Row],[Salaire Moyen Mensuel]] -> 0 | M51: =+Info_Salariés[[#This Row],[DEPART EFFECTIF]] -> 00:00:00 | N51: =+Info_Salariés[[#This Row],[FIN EFFECTIVE]] -> 00:00:00 | O51: 0 | P51: 00:00:00 | Q51: 0 | R51: =+Info_Salariés[[#This Row],[JOURS REST. ANNEE N-1]] -> 0 | S51: 0 | T51: 0 | U51: 0 | X51: 0
A52: ='50'!$A$1 -> 50 | B52: =IF(Evaluat°Congés[[#This Row],[Période Réf]]<>0,Info_Salariés[[#This Row],[emploi occupe]],"") ->  | C52: =IF(Evaluat°Congés[[#This Row],[Période Réf]]<>0,Info_Salariés[[#This Row],[Nom & Prénoms]],"") ->  | D52: =IF(Evaluat°Congés[[#This Row],[Période Réf]]<>0,Info_Salariés!AW52,0) -> 0 | E52: =+Info_Salariés[[#This Row],[Date Retour Dernier Congé]] -> 00:00:00 | F52: =+Info_Salariés[[#This Row],[Départ Théorique]] -> 00:00:00 | G52: 0 | H52: 0 | I52: =+Info_Salariés[[#This Row],[Jours Ajoutés]] -> 0 | J52: =Evaluat°Congés[[#This Row],[Nbre de jours]]+Evaluat°Congés[[#This Row],[Jours Ajoutés]] -> 0 | L52: =+Info_Salariés[[#This Row],[Salaire Moyen Mensuel]] -> 0 | M52: =+Info_Salariés[[#This Row],[DEPART EFFECTIF]] -> 00:00:00 | N52: =+Info_Salariés[[#This Row],[FIN EFFECTIVE]] -> 00:00:00 | O52: 0 | P52: 00:00:00 | Q52: 0 | R52: =+Info_Salariés[[#This Row],[JOURS REST. ANNEE N-1]] -> 0 | S52: 0 | T52: 0 | U52: 0 | X52: 0
A53: ='51'!$A$1 -> 51 | B53: =IF(Evaluat°Congés[[#This Row],[Période Réf]]<>0,Info_Salariés[[#This Row],[emploi occupe]],"") ->  | C53: =IF(Evaluat°Congés[[#This Row],[Période Réf]]<>0,Info_Salariés[[#This Row],[Nom & Prénoms]],"") ->  | D53: =IF(Evaluat°Congés[[#This Row],[Période Réf]]<>0,Info_Salariés!AW53,0) -> 0 | E53: =+Info_Salariés[[#This Row],[Date Retour Dernier Congé]] -> 00:00:00 | F53: =+Info_Salariés[[#This Row],[Départ Théorique]] -> 00:00:00 | G53: 0 | H53: 0 | I53: =+Info_Salariés[[#This Row],[Jours Ajoutés]] -> 0 | J53: =Evaluat°Congés[[#This Row],[Nbre de jours]]+Evaluat°Congés[[#This Row],[Jours Ajoutés]] -> 0 | L53: =+Info_Salariés[[#This Row],[Salaire Moyen Mensuel]] -> 0 | M53: =+Info_Salariés[[#This Row],[DEPART EFFECTIF]] -> 00:00:00 | N53: =+Info_Salariés[[#This Row],[FIN EFFECTIVE]] -> 00:00:00 | O53: 0 | P53: 00:00:00 | Q53: 0 | R53: =+Info_Salariés[[#This Row],[JOURS REST. ANNEE N-1]] -> 0 | S53: 0 | T53: 0 | U53: 0 | X53: 0
A54: ='52'!$A$1 -> 52 | B54: =IF(Evaluat°Congés[[#This Row],[Période Réf]]<>0,Info_Salariés[[#This Row],[emploi occupe]],"") ->  | C54: =IF(Evaluat°Congés[[#This Row],[Période Réf]]<>0,Info_Salariés[[#This Row],[Nom & Prénoms]],"") ->  | D54: =IF(Evaluat°Congés[[#This Row],[Période Réf]]<>0,Info_Salariés!AW54,0) -> 0 | E54: =+Info_Salariés[[#This Row],[Date Retour Dernier Congé]] -> 00:00:00 | F54: =+Info_Salariés[[#This Row],[Départ Théorique]] -> 00:00:00 | G54: 0 | H54: 0 | I54: =+Info_Salariés[[#This Row],[Jours Ajoutés]] -> 0 | J54: =Evaluat°Congés[[#This Row],[Nbre de jours]]+Evaluat°Congés[[#This Row],[Jours Ajoutés]] -> 0 | L54: =+Info_Salariés[[#This Row],[Salaire Moyen Mensuel]] -> 0 | M54: =+Info_Salariés[[#This Row],[DEPART EFFECTIF]] -> 00:00:00 | N54: =+Info_Salariés[[#This Row],[FIN EFFECTIVE]] -> 00:00:00 | O54: 0 | P54: 00:00:00 | Q54: 0 | R54: =+Info_Salariés[[#This Row],[JOURS REST. ANNEE N-1]] -> 0 | S54: 0 | T54: 0 | U54: 0 | X54: 0
A55: ='53'!$A$1 -> 53 | B55: =IF(Evaluat°Congés[[#This Row],[Période Réf]]<>0,Info_Salariés[[#This Row],[emploi occupe]],"") ->  | C55: =IF(Evaluat°Congés[[#This Row],[Période Réf]]<>0,Info_Salariés[[#This Row],[Nom & Prénoms]],"") ->  | D55: =IF(Evaluat°Congés[[#This Row],[Période Réf]]<>0,Info_Salariés!AW55,0) -> 0 | E55: =+Info_Salariés[[#This Row],[Date Retour Dernier Congé]] -> 00:00:00 | F55: =+Info_Salariés[[#This Row],[Départ Théorique]] -> 00:00:00 | G55: 0 | H55: 0 | I55: =+Info_Salariés[[#This Row],[Jours Ajoutés]] -> 0 | J55: =Evaluat°Congés[[#This Row],[Nbre de jours]]+Evaluat°Congés[[#This Row],[Jours Ajoutés]] -> 0 | L55: =+Info_Salariés[[#This Row],[Salaire Moyen Mensuel]] -> 0 | M55: =+Info_Salariés[[#This Row],[DEPART EFFECTIF]] -> 00:00:00 | N55: =+Info_Salariés[[#This Row],[FIN EFFECTIVE]] -> 00:00:00 | O55: 0 | P55: 00:00:00 | Q55: 0 | R55: =+Info_Salariés[[#This Row],[JOURS REST. ANNEE N-1]] -> 0 | S55: 0 | T55: 0 | U55: 0 | X55: 0
A56: ='54'!$A$1 -> 54 | B56: =IF(Evaluat°Congés[[#This Row],[Période Réf]]<>0,Info_Salariés[[#This Row],[emploi occupe]],"") ->  | C56: =IF(Evaluat°Congés[[#This Row],[Période Réf]]<>0,Info_Salariés[[#This Row],[Nom & Prénoms]],"") ->  | D56: =IF(Evaluat°Congés[[#This Row],[Période Réf]]<>0,Info_Salariés!AW56,0) -> 0 | E56: =+Info_Salariés[[#This Row],[Date Retour Dernier Congé]] -> 00:00:00 | F56: =+Info_Salariés[[#This Row],[Départ Théorique]] -> 00:00:00 | G56: 0 | H56: 0 | I56: =+Info_Salariés[[#This Row],[Jours Ajoutés]] -> 0 | J56: =Evaluat°Congés[[#This Row],[Nbre de jours]]+Evaluat°Congés[[#This Row],[Jours Ajoutés]] -> 0 | L56: =+Info_Salariés[[#This Row],[Salaire Moyen Mensuel]] -> 0 | M56: =+Info_Salariés[[#This Row],[DEPART EFFECTIF]] -> 00:00:00 | N56: =+Info_Salariés[[#This Row],[FIN EFFECTIVE]] -> 00:00:00 | O56: 0 | P56: 00:00:00 | Q56: 0 | R56: =+Info_Salariés[[#This Row],[JOURS REST. ANNEE N-1]] -> 0 | S56: 0 | T56: 0 | U56: 0 | X56: 0
A57: ='55'!$A$1 -> 55 | B57: =IF(Evaluat°Congés[[#This Row],[Période Réf]]<>0,Info_Salariés[[#This Row],[emploi occupe]],"") ->  | C57: =IF(Evaluat°Congés[[#This Row],[Période Réf]]<>0,Info_Salariés[[#This Row],[Nom & Prénoms]],"") ->  | D57: =IF(Evaluat°Congés[[#This Row],[Période Réf]]<>0,Info_Salariés!AW57,0) -> 0 | E57: =+Info_Salariés[[#This Row],[Date Retour Dernier Congé]] -> 00:00:00 | F57: =+Info_Salariés[[#This Row],[Départ Théorique]] -> 00:00:00 | G57: 0 | H57: 0 | I57: =+Info_Salariés[[#This Row],[Jours Ajoutés]] -> 0 | J57: =Evaluat°Congés[[#This Row],[Nbre de jours]]+Evaluat°Congés[[#This Row],[Jours Ajoutés]] -> 0 | L57: =+Info_Salariés[[#This Row],[Salaire Moyen Mensuel]] -> 0 | M57: =+Info_Salariés[[#This Row],[DEPART EFFECTIF]] -> 00:00:00 | N57: =+Info_Salariés[[#This Row],[FIN EFFECTIVE]] -> 00:00:00 | O57: 0 | P57: 00:00:00 | Q57: 0 | R57: =+Info_Salariés[[#This Row],[JOURS REST. ANNEE N-1]] -> 0 | S57: 0 | T57: 0 | U57: 0 | X57: 0
A58: ='56'!$A$1 -> 56 | B58: =IF(Evaluat°Congés[[#This Row],[Période Réf]]<>0,Info_Salariés[[#This Row],[emploi occupe]],"") ->  | C58: =IF(Evaluat°Congés[[#This Row],[Période Réf]]<>0,Info_Salariés[[#This Row],[Nom & Prénoms]],"") ->  | D58: =IF(Evaluat°Congés[[#This Row],[Période Réf]]<>0,Info_Salariés!AW58,0) -> 0 | E58: =+Info_Salariés[[#This Row],[Date Retour Dernier Congé]] -> 00:00:00 | F58: =+Info_Salariés[[#This Row],[Départ Théorique]] -> 00:00:00 | G58: 0 | H58: 0 | I58: =+Info_Salariés[[#This Row],[Jours Ajoutés]] -> 0 | J58: =Evaluat°Congés[[#This Row],[Nbre de jours]]+Evaluat°Congés[[#This Row],[Jours Ajoutés]] -> 0 | L58: =+Info_Salariés[[#This Row],[Salaire Moyen Mensuel]] -> 0 | M58: =+Info_Salariés[[#This Row],[DEPART EFFECTIF]] -> 00:00:00 | N58: =+Info_Salariés[[#This Row],[FIN EFFECTIVE]] -> 00:00:00 | O58: 0 | P58: 00:00:00 | Q58: 0 | R58: =+Info_Salariés[[#This Row],[JOURS REST. ANNEE N-1]] -> 0 | S58: 0 | T58: 0 | U58: 0 | X58: 0
A59: ='57'!$A$1 -> 57 | B59: =IF(Evaluat°Congés[[#This Row],[Période Réf]]<>0,Info_Salariés[[#This Row],[emploi occupe]],"") ->  | C59: =IF(Evaluat°Congés[[#This Row],[Période Réf]]<>0,Info_Salariés[[#This Row],[Nom & Prénoms]],"") ->  | D59: =IF(Evaluat°Congés[[#This Row],[Période Réf]]<>0,Info_Salariés!AW59,0) -> 0 | E59: =+Info_Salariés[[#This Row],[Date Retour Dernier Congé]] -> 00:00:00 | F59: =+Info_Salariés[[#This Row],[Départ Théorique]] -> 00:00:00 | G59: 0 | H59: 0 | I59: =+Info_Salariés[[#This Row],[Jours Ajoutés]] -> 0 | J59: =Evaluat°Congés[[#This Row],[Nbre de jours]]+Evaluat°Congés[[#This Row],[Jours Ajoutés]] -> 0 | L59: =+Info_Salariés[[#This Row],[Salaire Moyen Mensuel]] -> 0 | M59: =+Info_Salariés[[#This Row],[DEPART EFFECTIF]] -> 00:00:00 | N59: =+Info_Salariés[[#This Row],[FIN EFFECTIVE]] -> 00:00:00 | O59: 0 | P59: 00:00:00 | Q59: 0 | R59: =+Info_Salariés[[#This Row],[JOURS REST. ANNEE N-1]] -> 0 | S59: 0 | T59: 0 | U59: 0 | X59: 0
A60: ='58'!$A$1 -> 58 | B60: =IF(Evaluat°Congés[[#This Row],[Période Réf]]<>0,Info_Salariés[[#This Row],[emploi occupe]],"") ->  | C60: =IF(Evaluat°Congés[[#This Row],[Période Réf]]<>0,Info_Salariés[[#This Row],[Nom & Prénoms]],"") ->  | D60: =IF(Evaluat°Congés[[#This Row],[Période Réf]]<>0,Info_Salariés!AW60,0) -> 0 | E60: =+Info_Salariés[[#This Row],[Date Retour Dernier Congé]] -> 00:00:00 | F60: =+Info_Salariés[[#This Row],[Départ Théorique]] -> 00:00:00 | G60: 0 | H60: 0 | I60: =+Info_Salariés[[#This Row],[Jours Ajoutés]] -> 0 | J60: =Evaluat°Congés[[#This Row],[Nbre de jours]]+Evaluat°Congés[[#This Row],[Jours Ajoutés]] -> 0 | L60: =+Info_Salariés[[#This Row],[Salaire Moyen Mensuel]] -> 0 | M60: =+Info_Salariés[[#This Row],[DEPART EFFECTIF]] -> 00:00:00 | N60: =+Info_Salariés[[#This Row],[FIN EFFECTIVE]] -> 00:00:00 | O60: 0 | P60: 00:00:00 | Q60: 0 | R60: =+Info_Salariés[[#This Row],[JOURS REST. ANNEE N-1]] -> 0 | S60: 0 | T60: 0 | U60: 0 | X60: 0
A61: ='59'!$A$1 -> 59 | B61: =IF(Evaluat°Congés[[#This Row],[Période Réf]]<>0,Info_Salariés[[#This Row],[emploi occupe]],"") ->  | C61: =IF(Evaluat°Congés[[#This Row],[Période Réf]]<>0,Info_Salariés[[#This Row],[Nom & Prénoms]],"") ->  | D61: =IF(Evaluat°Congés[[#This Row],[Période Réf]]<>0,Info_Salariés!AW61,0) -> 0 | E61: =+Info_Salariés[[#This Row],[Date Retour Dernier Congé]] -> 00:00:00 | F61: =+Info_Salariés[[#This Row],[Départ Théorique]] -> 00:00:00 | G61: 0 | H61: 0 | I61: =+Info_Salariés[[#This Row],[Jours Ajoutés]] -> 0 | J61: =Evaluat°Congés[[#This Row],[Nbre de jours]]+Evaluat°Congés[[#This Row],[Jours Ajoutés]] -> 0 | L61: =+Info_Salariés[[#This Row],[Salaire Moyen Mensuel]] -> 0 | M61: =+Info_Salariés[[#This Row],[DEPART EFFECTIF]] -> 00:00:00 | N61: =+Info_Salariés[[#This Row],[FIN EFFECTIVE]] -> 00:00:00 | O61: 0 | P61: 00:00:00 | Q61: 0 | R61: =+Info_Salariés[[#This Row],[JOURS REST. ANNEE N-1]] -> 0 | S61: 0 | T61: 0 | U61: 0 | X61: 0
A62: ='60'!$A$1 -> 60 | B62: =IF(Evaluat°Congés[[#This Row],[Période Réf]]<>0,Info_Salariés[[#This Row],[emploi occupe]],"") ->  | C62: =IF(Evaluat°Congés[[#This Row],[Période Réf]]<>0,Info_Salariés[[#This Row],[Nom & Prénoms]],"") ->  | D62: =IF(Evaluat°Congés[[#This Row],[Période Réf]]<>0,Info_Salariés!AW62,0) -> 0 | E62: =+Info_Salariés[[#This Row],[Date Retour Dernier Congé]] -> 00:00:00 | F62: =+Info_Salariés[[#This Row],[Départ Théorique]] -> 00:00:00 | G62: 0 | H62: 0 | I62: =+Info_Salariés[[#This Row],[Jours Ajoutés]] -> 0 | J62: =Evaluat°Congés[[#This Row],[Nbre de jours]]+Evaluat°Congés[[#This Row],[Jours Ajoutés]] -> 0 | L62: =+Info_Salariés[[#This Row],[Salaire Moyen Mensuel]] -> 0 | M62: =+Info_Salariés[[#This Row],[DEPART EFFECTIF]] -> 00:00:00 | N62: =+Info_Salariés[[#This Row],[FIN EFFECTIVE]] -> 00:00:00 | O62: 0 | P62: 00:00:00 | Q62: 0 | R62: =+Info_Salariés[[#This Row],[JOURS REST. ANNEE N-1]] -> 0 | S62: 0 | T62: 0 | U62: 0 | X62: 0
A63: ='61'!$A$1 -> 61 | B63: =IF(Evaluat°Congés[[#This Row],[Période Réf]]<>0,Info_Salariés[[#This Row],[emploi occupe]],"") ->  | C63: =IF(Evaluat°Congés[[#This Row],[Période Réf]]<>0,Info_Salariés[[#This Row],[Nom & Prénoms]],"") ->  | D63: =IF(Evaluat°Congés[[#This Row],[Période Réf]]<>0,Info_Salariés!AW63,0) -> 0 | E63: =+Info_Salariés[[#This Row],[Date Retour Dernier Congé]] -> 00:00:00 | F63: =+Info_Salariés[[#This Row],[Départ Théorique]] -> 00:00:00 | G63: 0 | H63: 0 | I63: =+Info_Salariés[[#This Row],[Jours Ajoutés]] -> 0 | J63: =Evaluat°Congés[[#This Row],[Nbre de jours]]+Evaluat°Congés[[#This Row],[Jours Ajoutés]] -> 0 | L63: =+Info_Salariés[[#This Row],[Salaire Moyen Mensuel]] -> 0 | M63: =+Info_Salariés[[#This Row],[DEPART EFFECTIF]] -> 00:00:00 | N63: =+Info_Salariés[[#This Row],[FIN EFFECTIVE]] -> 00:00:00 | O63: 0 | P63: 00:00:00 | Q63: 0 | R63: =+Info_Salariés[[#This Row],[JOURS REST. ANNEE N-1]] -> 0 | S63: 0 | T63: 0 | U63: 0 | X63: 0
A64: ='62'!$A$1 -> 62 | B64: =IF(Evaluat°Congés[[#This Row],[Période Réf]]<>0,Info_Salariés[[#This Row],[emploi occupe]],"") ->  | C64: =IF(Evaluat°Congés[[#This Row],[Période Réf]]<>0,Info_Salariés[[#This Row],[Nom & Prénoms]],"") ->  | D64: =IF(Evaluat°Congés[[#This Row],[Période Réf]]<>0,Info_Salariés!AW64,0) -> 0 | E64: =+Info_Salariés[[#This Row],[Date Retour Dernier Congé]] -> 00:00:00 | F64: =+Info_Salariés[[#This Row],[Départ Théorique]] -> 00:00:00 | G64: 0 | H64: 0 | I64: =+Info_Salariés[[#This Row],[Jours Ajoutés]] -> 0 | J64: =Evaluat°Congés[[#This Row],[Nbre de jours]]+Evaluat°Congés[[#This Row],[Jours Ajoutés]] -> 0 | L64: =+Info_Salariés[[#This Row],[Salaire Moyen Mensuel]] -> 0 | M64: =+Info_Salariés[[#This Row],[DEPART EFFECTIF]] -> 00:00:00 | N64: =+Info_Salariés[[#This Row],[FIN EFFECTIVE]] -> 00:00:00 | O64: 0 | P64: 00:00:00 | Q64: 0 | R64: =+Info_Salariés[[#This Row],[JOURS REST. ANNEE N-1]] -> 0 | S64: 0 | T64: 0 | U64: 0 | X64: 0
A65: ='63'!$A$1 -> 63 | B65: =IF(Evaluat°Congés[[#This Row],[Période Réf]]<>0,Info_Salariés[[#This Row],[emploi occupe]],"") ->  | C65: =IF(Evaluat°Congés[[#This Row],[Période Réf]]<>0,Info_Salariés[[#This Row],[Nom & Prénoms]],"") ->  | D65: =IF(Evaluat°Congés[[#This Row],[Période Réf]]<>0,Info_Salariés!AW65,0) -> 0 | E65: =+Info_Salariés[[#This Row],[Date Retour Dernier Congé]] -> 00:00:00 | F65: =+Info_Salariés[[#This Row],[Départ Théorique]] -> 00:00:00 | G65: 0 | H65: 0 | I65: =+Info_Salariés[[#This Row],[Jours Ajoutés]] -> 0 | J65: =Evaluat°Congés[[#This Row],[Nbre de jours]]+Evaluat°Congés[[#This Row],[Jours Ajoutés]] -> 0 | L65: =+Info_Salariés[[#This Row],[Salaire Moyen Mensuel]] -> 0 | M65: =+Info_Salariés[[#This Row],[DEPART EFFECTIF]] -> 00:00:00 | N65: =+Info_Salariés[[#This Row],[FIN EFFECTIVE]] -> 00:00:00 | O65: 0 | P65: 00:00:00 | Q65: 0 | R65: =+Info_Salariés[[#This Row],[JOURS REST. ANNEE N-1]] -> 0 | S65: 0 | T65: 0 | U65: 0 | X65: 0
A66: ='64'!$A$1 -> 64 | B66: =IF(Evaluat°Congés[[#This Row],[Période Réf]]<>0,Info_Salariés[[#This Row],[emploi occupe]],"") ->  | C66: =IF(Evaluat°Congés[[#This Row],[Période Réf]]<>0,Info_Salariés[[#This Row],[Nom & Prénoms]],"") ->  | D66: =IF(Evaluat°Congés[[#This Row],[Période Réf]]<>0,Info_Salariés!AW66,0) -> 0 | E66: =+Info_Salariés[[#This Row],[Date Retour Dernier Congé]] -> 00:00:00 | F66: =+Info_Salariés[[#This Row],[Départ Théorique]] -> 00:00:00 | G66: 0 | H66: 0 | I66: =+Info_Salariés[[#This Row],[Jours Ajoutés]] -> 0 | J66: =Evaluat°Congés[[#This Row],[Nbre de jours]]+Evaluat°Congés[[#This Row],[Jours Ajoutés]] -> 0 | L66: =+Info_Salariés[[#This Row],[Salaire Moyen Mensuel]] -> 0 | M66: =+Info_Salariés[[#This Row],[DEPART EFFECTIF]] -> 00:00:00 | N66: =+Info_Salariés[[#This Row],[FIN EFFECTIVE]] -> 00:00:00 | O66: 0 | P66: 00:00:00 | Q66: 0 | R66: =+Info_Salariés[[#This Row],[JOURS REST. ANNEE N-1]] -> 0 | S66: 0 | T66: 0 | U66: 0 | X66: 0
A67: ='65'!$A$1 -> 65 | B67: =IF(Evaluat°Congés[[#This Row],[Période Réf]]<>0,Info_Salariés[[#This Row],[emploi occupe]],"") ->  | C67: =IF(Evaluat°Congés[[#This Row],[Période Réf]]<>0,Info_Salariés[[#This Row],[Nom & Prénoms]],"") ->  | D67: =IF(Evaluat°Congés[[#This Row],[Période Réf]]<>0,Info_Salariés!AW67,0) -> 0 | E67: =+Info_Salariés[[#This Row],[Date Retour Dernier Congé]] -> 00:00:00 | F67: =+Info_Salariés[[#This Row],[Départ Théorique]] -> 00:00:00 | G67: 0 | H67: =IF(G67<>0,ROUND(+IF(AND(D67>=5,D67<10),1,0)+IF(AND(D67>=10,D67<15),2,0)+IF(AND(D67>=15,D67<20),3,0)+IF(AND(D67>=20,D67<25),5,0)+IF(D67>=25,7,0)+(IF($D$1="A",2.2*G67*7/6,2.2*G67*30/24)),0),0) -> 0 | I67: =+Info_Salariés[[#This Row],[Jours Ajoutés]] -> 0 | J67: =Evaluat°Congés[[#This Row],[Nbre de jours]]+Evaluat°Congés[[#This Row],[Jours Ajoutés]] -> 0 | K67: =IF(G67<>0,F67+J67-1,"") ->  | L67: =+Info_Salariés[[#This Row],[Salaire Moyen Mensuel]] -> 0 | M67: =+Info_Salariés[[#This Row],[DEPART EFFECTIF]] -> 00:00:00 | N67: =+Info_Salariés[[#This Row],[FIN EFFECTIVE]] -> 00:00:00 | O67: 0 | P67: 00:00:00 | Q67: =J67-O67 -> 0 | R67: =+Info_Salariés[[#This Row],[JOURS REST. ANNEE N-1]] -> 0 | S67: 0 | T67: 0 | U67: 0 | X67: 0
A68: ='66'!$A$1 -> 66 | B68: =IF(Evaluat°Congés[[#This Row],[Période Réf]]<>0,Info_Salariés[[#This Row],[emploi occupe]],"") ->  | C68: =IF(Evaluat°Congés[[#This Row],[Période Réf]]<>0,Info_Salariés[[#This Row],[Nom & Prénoms]],"") ->  | D68: =IF(Evaluat°Congés[[#This Row],[Période Réf]]<>0,Info_Salariés!AW68,0) -> 0 | E68: =+Info_Salariés[[#This Row],[Date Retour Dernier Congé]] -> 00:00:00 | F68: =+Info_Salariés[[#This Row],[Départ Théorique]] -> 00:00:00 | G68: =ROUND(IF(AND(E68<>0,F68<>0),DAYS360(E68,F68)/30,0),2) -> 0 | H68: 0 | I68: =+Info_Salariés[[#This Row],[Jours Ajoutés]] -> 0 | J68: =Evaluat°Congés[[#This Row],[Nbre de jours]]+Evaluat°Congés[[#This Row],[Jours Ajoutés]] -> 0 | L68: =+Info_Salariés[[#This Row],[Salaire Moyen Mensuel]] -> 0 | M68: =+Info_Salariés[[#This Row],[DEPART EFFECTIF]] -> 00:00:00 | N68: =+Info_Salariés[[#This Row],[FIN EFFECTIVE]] -> 00:00:00 | O68: =IF(AND(M68<>0,N68<>0),N68-M68+1,0) -> 0 | P68: =IF(N68<>0,N68+1,0) -> 00:00:00 | Q68: 0 | R68: =+Info_Salariés[[#This Row],[JOURS REST. ANNEE N-1]] -> 0 | S68: =Q68+R68 -> 0 | T68: =ROUND(L68*J68/30,0) -> 0 | U68: 0 | X68: =IF(T68<>0,1,0) -> 0
A69: ='67'!$A$1 -> 67 | B69: =IF(Evaluat°Congés[[#This Row],[Période Réf]]<>0,Info_Salariés[[#This Row],[emploi occupe]],"") ->  | C69: =IF(Evaluat°Congés[[#This Row],[Période Réf]]<>0,Info_Salariés[[#This Row],[Nom & Prénoms]],"") ->  | D69: =IF(Evaluat°Congés[[#This Row],[Période Réf]]<>0,Info_Salariés!AW69,0) -> 0 | E69: =+Info_Salariés[[#This Row],[Date Retour Dernier Congé]] -> 00:00:00 | F69: =+Info_Salariés[[#This Row],[Départ Théorique]] -> 00:00:00 | G69: 0 | H69: 0 | I69: =+Info_Salariés[[#This Row],[Jours Ajoutés]] -> 0 | J69: =Evaluat°Congés[[#This Row],[Nbre de jours]]+Evaluat°Congés[[#This Row],[Jours Ajoutés]] -> 0 | L69: =+Info_Salariés[[#This Row],[Salaire Moyen Mensuel]] -> 0 | M69: =+Info_Salariés[[#This Row],[DEPART EFFECTIF]] -> 00:00:00 | N69: =+Info_Salariés[[#This Row],[FIN EFFECTIVE]] -> 00:00:00 | O69: 0 | P69: 00:00:00 | Q69: 0 | R69: =+Info_Salariés[[#This Row],[JOURS REST. ANNEE N-1]] -> 0 | S69: 0 | T69: 0 | U69: 0 | X69: 0
A70: ='68'!$A$1 -> 68 | B70: =IF(Evaluat°Congés[[#This Row],[Période Réf]]<>0,Info_Salariés[[#This Row],[emploi occupe]],"") ->  | C70: =IF(Evaluat°Congés[[#This Row],[Période Réf]]<>0,Info_Salariés[[#This Row],[Nom & Prénoms]],"") ->  | D70: =IF(Evaluat°Congés[[#This Row],[Période Réf]]<>0,Info_Salariés!AW70,0) -> 0 | E70: =+Info_Salariés[[#This Row],[Date Retour Dernier Congé]] -> 00:00:00 | F70: =+Info_Salariés[[#This Row],[Départ Théorique]] -> 00:00:00 | G70: 0 | H70: 0 | I70: =+Info_Salariés[[#This Row],[Jours Ajoutés]] -> 0 | J70: =Evaluat°Congés[[#This Row],[Nbre de jours]]+Evaluat°Congés[[#This Row],[Jours Ajoutés]] -> 0 | L70: =+Info_Salariés[[#This Row],[Salaire Moyen Mensuel]] -> 0 | M70: =+Info_Salariés[[#This Row],[DEPART EFFECTIF]] -> 00:00:00 | N70: =+Info_Salariés[[#This Row],[FIN EFFECTIVE]] -> 00:00:00 | O70: 0 | P70: 00:00:00 | Q70: 0 | R70: =+Info_Salariés[[#This Row],[JOURS REST. ANNEE N-1]] -> 0 | S70: 0 | T70: 0 | U70: 0 | X70: 0
A71: ='69'!$A$1 -> 69 | B71: =IF(Evaluat°Congés[[#This Row],[Période Réf]]<>0,Info_Salariés[[#This Row],[emploi occupe]],"") ->  | C71: =IF(Evaluat°Congés[[#This Row],[Période Réf]]<>0,Info_Salariés[[#This Row],[Nom & Prénoms]],"") ->  | D71: =IF(Evaluat°Congés[[#This Row],[Période Réf]]<>0,Info_Salariés!AW71,0) -> 0 | E71: =+Info_Salariés[[#This Row],[Date Retour Dernier Congé]] -> 00:00:00 | F71: =+Info_Salariés[[#This Row],[Départ Théorique]] -> 00:00:00 | G71: 0 | H71: 0 | I71: =+Info_Salariés[[#This Row],[Jours Ajoutés]] -> 0 | J71: =Evaluat°Congés[[#This Row],[Nbre de jours]]+Evaluat°Congés[[#This Row],[Jours Ajoutés]] -> 0 | L71: =+Info_Salariés[[#This Row],[Salaire Moyen Mensuel]] -> 0 | M71: =+Info_Salariés[[#This Row],[DEPART EFFECTIF]] -> 00:00:00 | N71: =+Info_Salariés[[#This Row],[FIN EFFECTIVE]] -> 00:00:00 | O71: 0 | P71: 00:00:00 | Q71: 0 | R71: =+Info_Salariés[[#This Row],[JOURS REST. ANNEE N-1]] -> 0 | S71: 0 | T71: 0 | U71: 0 | X71: 0
A72: ='70'!$A$1 -> 70 | B72: =IF(Evaluat°Congés[[#This Row],[Période Réf]]<>0,Info_Salariés[[#This Row],[emploi occupe]],"") ->  | C72: =IF(Evaluat°Congés[[#This Row],[Période Réf]]<>0,Info_Salariés[[#This Row],[Nom & Prénoms]],"") ->  | D72: =IF(Evaluat°Congés[[#This Row],[Période Réf]]<>0,Info_Salariés!AW72,0) -> 0 | E72: =+Info_Salariés[[#This Row],[Date Retour Dernier Congé]] -> 00:00:00 | F72: =+Info_Salariés[[#This Row],[Départ Théorique]] -> 00:00:00 | G72: 0 | H72: 0 | I72: =+Info_Salariés[[#This Row],[Jours Ajoutés]] -> 0 | J72: =Evaluat°Congés[[#This Row],[Nbre de jours]]+Evaluat°Congés[[#This Row],[Jours Ajoutés]] -> 0 | L72: =+Info_Salariés[[#This Row],[Salaire Moyen Mensuel]] -> 0 | M72: =+Info_Salariés[[#This Row],[DEPART EFFECTIF]] -> 00:00:00 | N72: =+Info_Salariés[[#This Row],[FIN EFFECTIVE]] -> 00:00:00 | O72: 0 | P72: 00:00:00 | Q72: 0 | R72: =+Info_Salariés[[#This Row],[JOURS REST. ANNEE N-1]] -> 0 | S72: 0 | T72: 0 | U72: 0 | X72: 0
A73: ='71'!$A$1 -> 71 | B73: =IF(Evaluat°Congés[[#This Row],[Période Réf]]<>0,Info_Salariés[[#This Row],[emploi occupe]],"") ->  | C73: =IF(Evaluat°Congés[[#This Row],[Période Réf]]<>0,Info_Salariés[[#This Row],[Nom & Prénoms]],"") ->  | D73: =IF(Evaluat°Congés[[#This Row],[Période Réf]]<>0,Info_Salariés!AW73,0) -> 0 | E73: =+Info_Salariés[[#This Row],[Date Retour Dernier Congé]] -> 00:00:00 | F73: =+Info_Salariés[[#This Row],[Départ Théorique]] -> 00:00:00 | G73: 0 | H73: 0 | I73: =+Info_Salariés[[#This Row],[Jours Ajoutés]] -> 0 | J73: =Evaluat°Congés[[#This Row],[Nbre de jours]]+Evaluat°Congés[[#This Row],[Jours Ajoutés]] -> 0 | L73: =+Info_Salariés[[#This Row],[Salaire Moyen Mensuel]] -> 0 | M73: =+Info_Salariés[[#This Row],[DEPART EFFECTIF]] -> 00:00:00 | N73: =+Info_Salariés[[#This Row],[FIN EFFECTIVE]] -> 00:00:00 | O73: 0 | P73: 00:00:00 | Q73: 0 | R73: =+Info_Salariés[[#This Row],[JOURS REST. ANNEE N-1]] -> 0 | S73: 0 | T73: 0 | U73: 0 | X73: 0
A74: ='72'!$A$1 -> 72 | B74: =IF(Evaluat°Congés[[#This Row],[Période Réf]]<>0,Info_Salariés[[#This Row],[emploi occupe]],"") ->  | C74: =IF(Evaluat°Congés[[#This Row],[Période Réf]]<>0,Info_Salariés[[#This Row],[Nom & Prénoms]],"") ->  | D74: =IF(Evaluat°Congés[[#This Row],[Période Réf]]<>0,Info_Salariés!AW74,0) -> 0 | E74: =+Info_Salariés[[#This Row],[Date Retour Dernier Congé]] -> 00:00:00 | F74: =+Info_Salariés[[#This Row],[Départ Théorique]] -> 00:00:00 | G74: 0 | H74: 0 | I74: =+Info_Salariés[[#This Row],[Jours Ajoutés]] -> 0 | J74: =Evaluat°Congés[[#This Row],[Nbre de jours]]+Evaluat°Congés[[#This Row],[Jours Ajoutés]] -> 0 | L74: =+Info_Salariés[[#This Row],[Salaire Moyen Mensuel]] -> 0 | M74: =+Info_Salariés[[#This Row],[DEPART EFFECTIF]] -> 00:00:00 | N74: =+Info_Salariés[[#This Row],[FIN EFFECTIVE]] -> 00:00:00 | O74: 0 | P74: 00:00:00 | Q74: 0 | R74: =+Info_Salariés[[#This Row],[JOURS REST. ANNEE N-1]] -> 0 | S74: 0 | T74: 0 | U74: 0 | X74: 0
A75: ='73'!$A$1 -> 73 | B75: =IF(Evaluat°Congés[[#This Row],[Période Réf]]<>0,Info_Salariés[[#This Row],[emploi occupe]],"") ->  | C75: =IF(Evaluat°Congés[[#This Row],[Période Réf]]<>0,Info_Salariés[[#This Row],[Nom & Prénoms]],"") ->  | D75: =IF(Evaluat°Congés[[#This Row],[Période Réf]]<>0,Info_Salariés!AW75,0) -> 0 | E75: =+Info_Salariés[[#This Row],[Date Retour Dernier Congé]] -> 00:00:00 | F75: =+Info_Salariés[[#This Row],[Départ Théorique]] -> 00:00:00 | G75: 0 | H75: 0 | I75: =+Info_Salariés[[#This Row],[Jours Ajoutés]] -> 0 | J75: =Evaluat°Congés[[#This Row],[Nbre de jours]]+Evaluat°Congés[[#This Row],[Jours Ajoutés]] -> 0 | L75: =+Info_Salariés[[#This Row],[Salaire Moyen Mensuel]] -> 0 | M75: =+Info_Salariés[[#This Row],[DEPART EFFECTIF]] -> 00:00:00 | N75: =+Info_Salariés[[#This Row],[FIN EFFECTIVE]] -> 00:00:00 | O75: 0 | P75: 00:00:00 | Q75: 0 | R75: =+Info_Salariés[[#This Row],[JOURS REST. ANNEE N-1]] -> 0 | S75: 0 | T75: 0 | U75: 0 | X75: 0
A76: ='74'!$A$1 -> 74 | B76: =IF(Evaluat°Congés[[#This Row],[Période Réf]]<>0,Info_Salariés[[#This Row],[emploi occupe]],"") ->  | C76: =IF(Evaluat°Congés[[#This Row],[Période Réf]]<>0,Info_Salariés[[#This Row],[Nom & Prénoms]],"") ->  | D76: =IF(Evaluat°Congés[[#This Row],[Période Réf]]<>0,Info_Salariés!AW76,0) -> 0 | E76: =+Info_Salariés[[#This Row],[Date Retour Dernier Congé]] -> 00:00:00 | F76: =+Info_Salariés[[#This Row],[Départ Théorique]] -> 00:00:00 | G76: 0 | H76: 0 | I76: =+Info_Salariés[[#This Row],[Jours Ajoutés]] -> 0 | J76: =Evaluat°Congés[[#This Row],[Nbre de jours]]+Evaluat°Congés[[#This Row],[Jours Ajoutés]] -> 0 | L76: =+Info_Salariés[[#This Row],[Salaire Moyen Mensuel]] -> 0 | M76: =+Info_Salariés[[#This Row],[DEPART EFFECTIF]] -> 00:00:00 | N76: =+Info_Salariés[[#This Row],[FIN EFFECTIVE]] -> 00:00:00 | O76: 0 | P76: 00:00:00 | Q76: 0 | R76: =+Info_Salariés[[#This Row],[JOURS REST. ANNEE N-1]] -> 0 | S76: 0 | T76: 0 | U76: 0 | X76: 0
A77: ='75'!$A$1 -> 75 | B77: =IF(Evaluat°Congés[[#This Row],[Période Réf]]<>0,Info_Salariés[[#This Row],[emploi occupe]],"") ->  | C77: =IF(Evaluat°Congés[[#This Row],[Période Réf]]<>0,Info_Salariés[[#This Row],[Nom & Prénoms]],"") ->  | D77: =IF(Evaluat°Congés[[#This Row],[Période Réf]]<>0,Info_Salariés!AW77,0) -> 0 | E77: =+Info_Salariés[[#This Row],[Date Retour Dernier Congé]] -> 00:00:00 | F77: =+Info_Salariés[[#This Row],[Départ Théorique]] -> 00:00:00 | G77: 0 | H77: 0 | I77: =+Info_Salariés[[#This Row],[Jours Ajoutés]] -> 0 | J77: =Evaluat°Congés[[#This Row],[Nbre de jours]]+Evaluat°Congés[[#This Row],[Jours Ajoutés]] -> 0 | L77: =+Info_Salariés[[#This Row],[Salaire Moyen Mensuel]] -> 0 | M77: =+Info_Salariés[[#This Row],[DEPART EFFECTIF]] -> 00:00:00 | N77: =+Info_Salariés[[#This Row],[FIN EFFECTIVE]] -> 00:00:00 | O77: 0 | P77: 00:00:00 | Q77: 0 | R77: =+Info_Salariés[[#This Row],[JOURS REST. ANNEE N-1]] -> 0 | S77: 0 | T77: 0 | U77: 0 | X77: 0
A78: ='76'!$A$1 -> 76 | B78: =IF(Evaluat°Congés[[#This Row],[Période Réf]]<>0,Info_Salariés[[#This Row],[emploi occupe]],"") ->  | C78: =IF(Evaluat°Congés[[#This Row],[Période Réf]]<>0,Info_Salariés[[#This Row],[Nom & Prénoms]],"") ->  | D78: =IF(Evaluat°Congés[[#This Row],[Période Réf]]<>0,Info_Salariés!AW78,0) -> 0 | E78: =+Info_Salariés[[#This Row],[Date Retour Dernier Congé]] -> 00:00:00 | F78: =+Info_Salariés[[#This Row],[Départ Théorique]] -> 00:00:00 | G78: 0 | H78: 0 | I78: =+Info_Salariés[[#This Row],[Jours Ajoutés]] -> 0 | J78: =Evaluat°Congés[[#This Row],[Nbre de jours]]+Evaluat°Congés[[#This Row],[Jours Ajoutés]] -> 0 | L78: =+Info_Salariés[[#This Row],[Salaire Moyen Mensuel]] -> 0 | M78: =+Info_Salariés[[#This Row],[DEPART EFFECTIF]] -> 00:00:00 | N78: =+Info_Salariés[[#This Row],[FIN EFFECTIVE]] -> 00:00:00 | O78: 0 | P78: 00:00:00 | Q78: 0 | R78: =+Info_Salariés[[#This Row],[JOURS REST. ANNEE N-1]] -> 0 | S78: 0 | T78: 0 | U78: 0 | X78: 0
A79: ='77'!$A$1 -> 77 | B79: =IF(Evaluat°Congés[[#This Row],[Période Réf]]<>0,Info_Salariés[[#This Row],[emploi occupe]],"") ->  | C79: =IF(Evaluat°Congés[[#This Row],[Période Réf]]<>0,Info_Salariés[[#This Row],[Nom & Prénoms]],"") ->  | D79: =IF(Evaluat°Congés[[#This Row],[Période Réf]]<>0,Info_Salariés!AW79,0) -> 0 | E79: =+Info_Salariés[[#This Row],[Date Retour Dernier Congé]] -> 00:00:00 | F79: =+Info_Salariés[[#This Row],[Départ Théorique]] -> 00:00:00 | G79: 0 | H79: 0 | I79: =+Info_Salariés[[#This Row],[Jours Ajoutés]] -> 0 | J79: =Evaluat°Congés[[#This Row],[Nbre de jours]]+Evaluat°Congés[[#This Row],[Jours Ajoutés]] -> 0 | L79: =+Info_Salariés[[#This Row],[Salaire Moyen Mensuel]] -> 0 | M79: =+Info_Salariés[[#This Row],[DEPART EFFECTIF]] -> 00:00:00 | N79: =+Info_Salariés[[#This Row],[FIN EFFECTIVE]] -> 00:00:00 | O79: 0 | P79: 00:00:00 | Q79: 0 | R79: =+Info_Salariés[[#This Row],[JOURS REST. ANNEE N-1]] -> 0 | S79: 0 | T79: 0 | U79: 0 | X79: 0
A80: ='78'!$A$1 -> 78 | B80: =IF(Evaluat°Congés[[#This Row],[Période Réf]]<>0,Info_Salariés[[#This Row],[emploi occupe]],"") ->  | C80: =IF(Evaluat°Congés[[#This Row],[Période Réf]]<>0,Info_Salariés[[#This Row],[Nom & Prénoms]],"") ->  | D80: =IF(Evaluat°Congés[[#This Row],[Période Réf]]<>0,Info_Salariés!AW80,0) -> 0 | E80: =+Info_Salariés[[#This Row],[Date Retour Dernier Congé]] -> 00:00:00 | F80: =+Info_Salariés[[#This Row],[Départ Théorique]] -> 00:00:00 | G80: 0 | H80: 0 | I80: =+Info_Salariés[[#This Row],[Jours Ajoutés]] -> 0 | J80: =Evaluat°Congés[[#This Row],[Nbre de jours]]+Evaluat°Congés[[#This Row],[Jours Ajoutés]] -> 0 | L80: =+Info_Salariés[[#This Row],[Salaire Moyen Mensuel]] -> 0 | M80: =+Info_Salariés[[#This Row],[DEPART EFFECTIF]] -> 00:00:00 | N80: =+Info_Salariés[[#This Row],[FIN EFFECTIVE]] -> 00:00:00 | O80: 0 | P80: 00:00:00 | Q80: 0 | R80: =+Info_Salariés[[#This Row],[JOURS REST. ANNEE N-1]] -> 0 | S80: 0 | T80: 0 | U80: 0 | X80: 0
A81: ='79'!$A$1 -> 79 | B81: =IF(Evaluat°Congés[[#This Row],[Période Réf]]<>0,Info_Salariés[[#This Row],[emploi occupe]],"") ->  | C81: =IF(Evaluat°Congés[[#This Row],[Période Réf]]<>0,Info_Salariés[[#This Row],[Nom & Prénoms]],"") ->  | D81: =IF(Evaluat°Congés[[#This Row],[Période Réf]]<>0,Info_Salariés!AW81,0) -> 0 | E81: =+Info_Salariés[[#This Row],[Date Retour Dernier Congé]] -> 00:00:00 | F81: =+Info_Salariés[[#This Row],[Départ Théorique]] -> 00:00:00 | G81: 0 | H81: 0 | I81: =+Info_Salariés[[#This Row],[Jours Ajoutés]] -> 0 | J81: =Evaluat°Congés[[#This Row],[Nbre de jours]]+Evaluat°Congés[[#This Row],[Jours Ajoutés]] -> 0 | L81: =+Info_Salariés[[#This Row],[Salaire Moyen Mensuel]] -> 0 | M81: =+Info_Salariés[[#This Row],[DEPART EFFECTIF]] -> 00:00:00 | N81: =+Info_Salariés[[#This Row],[FIN EFFECTIVE]] -> 00:00:00 | O81: 0 | P81: 00:00:00 | Q81: 0 | R81: =+Info_Salariés[[#This Row],[JOURS REST. ANNEE N-1]] -> 0 | S81: 0 | T81: 0 | U81: 0 | X81: 0
A82: ='80'!$A$1 -> 80 | B82: =IF(Evaluat°Congés[[#This Row],[Période Réf]]<>0,Info_Salariés[[#This Row],[emploi occupe]],"") ->  | C82: =IF(Evaluat°Congés[[#This Row],[Période Réf]]<>0,Info_Salariés[[#This Row],[Nom & Prénoms]],"") ->  | D82: =IF(Evaluat°Congés[[#This Row],[Période Réf]]<>0,Info_Salariés!AW82,0) -> 0 | E82: =+Info_Salariés[[#This Row],[Date Retour Dernier Congé]] -> 00:00:00 | F82: =+Info_Salariés[[#This Row],[Départ Théorique]] -> 00:00:00 | G82: 0 | H82: 0 | I82: =+Info_Salariés[[#This Row],[Jours Ajoutés]] -> 0 | J82: =Evaluat°Congés[[#This Row],[Nbre de jours]]+Evaluat°Congés[[#This Row],[Jours Ajoutés]] -> 0 | L82: =+Info_Salariés[[#This Row],[Salaire Moyen Mensuel]] -> 0 | M82: =+Info_Salariés[[#This Row],[DEPART EFFECTIF]] -> 00:00:00 | N82: =+Info_Salariés[[#This Row],[FIN EFFECTIVE]] -> 00:00:00 | O82: 0 | P82: 00:00:00 | Q82: 0 | R82: =+Info_Salariés[[#This Row],[JOURS REST. ANNEE N-1]] -> 0 | S82: 0 | T82: 0 | U82: 0 | X82: 0
A83: ='81'!$A$1 -> 81 | B83: =IF(Evaluat°Congés[[#This Row],[Période Réf]]<>0,Info_Salariés[[#This Row],[emploi occupe]],"") ->  | C83: =IF(Evaluat°Congés[[#This Row],[Période Réf]]<>0,Info_Salariés[[#This Row],[Nom & Prénoms]],"") ->  | D83: =IF(Evaluat°Congés[[#This Row],[Période Réf]]<>0,Info_Salariés!AW83,0) -> 0 | E83: =+Info_Salariés[[#This Row],[Date Retour Dernier Congé]] -> 00:00:00 | F83: =+Info_Salariés[[#This Row],[Départ Théorique]] -> 00:00:00 | G83: 0 | H83: 0 | I83: =+Info_Salariés[[#This Row],[Jours Ajoutés]] -> 0 | J83: =Evaluat°Congés[[#This Row],[Nbre de jours]]+Evaluat°Congés[[#This Row],[Jours Ajoutés]] -> 0 | L83: =+Info_Salariés[[#This Row],[Salaire Moyen Mensuel]] -> 0 | M83: =+Info_Salariés[[#This Row],[DEPART EFFECTIF]] -> 00:00:00 | N83: =+Info_Salariés[[#This Row],[FIN EFFECTIVE]] -> 00:00:00 | O83: 0 | P83: 00:00:00 | Q83: 0 | R83: =+Info_Salariés[[#This Row],[JOURS REST. ANNEE N-1]] -> 0 | S83: 0 | T83: 0 | U83: 0 | X83: 0
A84: ='82'!$A$1 -> 82 | B84: =IF(Evaluat°Congés[[#This Row],[Période Réf]]<>0,Info_Salariés[[#This Row],[emploi occupe]],"") ->  | C84: =IF(Evaluat°Congés[[#This Row],[Période Réf]]<>0,Info_Salariés[[#This Row],[Nom & Prénoms]],"") ->  | D84: =IF(Evaluat°Congés[[#This Row],[Période Réf]]<>0,Info_Salariés!AW84,0) -> 0 | E84: =+Info_Salariés[[#This Row],[Date Retour Dernier Congé]] -> 00:00:00 | F84: =+Info_Salariés[[#This Row],[Départ Théorique]] -> 00:00:00 | G84: 0 | H84: 0 | I84: =+Info_Salariés[[#This Row],[Jours Ajoutés]] -> 0 | J84: =Evaluat°Congés[[#This Row],[Nbre de jours]]+Evaluat°Congés[[#This Row],[Jours Ajoutés]] -> 0 | L84: =+Info_Salariés[[#This Row],[Salaire Moyen Mensuel]] -> 0 | M84: =+Info_Salariés[[#This Row],[DEPART EFFECTIF]] -> 00:00:00 | N84: =+Info_Salariés[[#This Row],[FIN EFFECTIVE]] -> 00:00:00 | O84: 0 | P84: 00:00:00 | Q84: 0 | R84: =+Info_Salariés[[#This Row],[JOURS REST. ANNEE N-1]] -> 0 | S84: 0 | T84: 0 | U84: 0 | X84: 0
A85: ='83'!$A$1 -> 83 | B85: =IF(Evaluat°Congés[[#This Row],[Période Réf]]<>0,Info_Salariés[[#This Row],[emploi occupe]],"") ->  | C85: =IF(Evaluat°Congés[[#This Row],[Période Réf]]<>0,Info_Salariés[[#This Row],[Nom & Prénoms]],"") ->  | D85: =IF(Evaluat°Congés[[#This Row],[Période Réf]]<>0,Info_Salariés!AW85,0) -> 0 | E85: =+Info_Salariés[[#This Row],[Date Retour Dernier Congé]] -> 00:00:00 | F85: =+Info_Salariés[[#This Row],[Départ Théorique]] -> 00:00:00 | G85: 0 | H85: 0 | I85: =+Info_Salariés[[#This Row],[Jours Ajoutés]] -> 0 | J85: =Evaluat°Congés[[#This Row],[Nbre de jours]]+Evaluat°Congés[[#This Row],[Jours Ajoutés]] -> 0 | L85: =+Info_Salariés[[#This Row],[Salaire Moyen Mensuel]] -> 0 | M85: =+Info_Salariés[[#This Row],[DEPART EFFECTIF]] -> 00:00:00 | N85: =+Info_Salariés[[#This Row],[FIN EFFECTIVE]] -> 00:00:00 | O85: 0 | P85: 00:00:00 | Q85: 0 | R85: =+Info_Salariés[[#This Row],[JOURS REST. ANNEE N-1]] -> 0 | S85: 0 | T85: 0 | U85: 0 | X85: 0
A86: ='84'!$A$1 -> 84 | B86: =IF(Evaluat°Congés[[#This Row],[Période Réf]]<>0,Info_Salariés[[#This Row],[emploi occupe]],"") ->  | C86: =IF(Evaluat°Congés[[#This Row],[Période Réf]]<>0,Info_Salariés[[#This Row],[Nom & Prénoms]],"") ->  | D86: =IF(Evaluat°Congés[[#This Row],[Période Réf]]<>0,Info_Salariés!AW86,0) -> 0 | E86: =+Info_Salariés[[#This Row],[Date Retour Dernier Congé]] -> 00:00:00 | F86: =+Info_Salariés[[#This Row],[Départ Théorique]] -> 00:00:00 | G86: 0 | H86: 0 | I86: =+Info_Salariés[[#This Row],[Jours Ajoutés]] -> 0 | J86: =Evaluat°Congés[[#This Row],[Nbre de jours]]+Evaluat°Congés[[#This Row],[Jours Ajoutés]] -> 0 | L86: =+Info_Salariés[[#This Row],[Salaire Moyen Mensuel]] -> 0 | M86: =+Info_Salariés[[#This Row],[DEPART EFFECTIF]] -> 00:00:00 | N86: =+Info_Salariés[[#This Row],[FIN EFFECTIVE]] -> 00:00:00 | O86: 0 | P86: 00:00:00 | Q86: 0 | R86: =+Info_Salariés[[#This Row],[JOURS REST. ANNEE N-1]] -> 0 | S86: 0 | T86: 0 | U86: 0 | X86: 0
A87: ='85'!$A$1 -> 85 | B87: =IF(Evaluat°Congés[[#This Row],[Période Réf]]<>0,Info_Salariés[[#This Row],[emploi occupe]],"") ->  | C87: =IF(Evaluat°Congés[[#This Row],[Période Réf]]<>0,Info_Salariés[[#This Row],[Nom & Prénoms]],"") ->  | D87: =IF(Evaluat°Congés[[#This Row],[Période Réf]]<>0,Info_Salariés!AW87,0) -> 0 | E87: =+Info_Salariés[[#This Row],[Date Retour Dernier Congé]] -> 00:00:00 | F87: =+Info_Salariés[[#This Row],[Départ Théorique]] -> 00:00:00 | G87: 0 | H87: 0 | I87: =+Info_Salariés[[#This Row],[Jours Ajoutés]] -> 0 | J87: =Evaluat°Congés[[#This Row],[Nbre de jours]]+Evaluat°Congés[[#This Row],[Jours Ajoutés]] -> 0 | L87: =+Info_Salariés[[#This Row],[Salaire Moyen Mensuel]] -> 0 | M87: =+Info_Salariés[[#This Row],[DEPART EFFECTIF]] -> 00:00:00 | N87: =+Info_Salariés[[#This Row],[FIN EFFECTIVE]] -> 00:00:00 | O87: 0 | P87: 00:00:00 | Q87: 0 | R87: =+Info_Salariés[[#This Row],[JOURS REST. ANNEE N-1]] -> 0 | S87: 0 | T87: 0 | U87: 0 | X87: 0
A88: ='86'!$A$1 -> 86 | B88: =IF(Evaluat°Congés[[#This Row],[Période Réf]]<>0,Info_Salariés[[#This Row],[emploi occupe]],"") ->  | C88: =IF(Evaluat°Congés[[#This Row],[Période Réf]]<>0,Info_Salariés[[#This Row],[Nom & Prénoms]],"") ->  | D88: =IF(Evaluat°Congés[[#This Row],[Période Réf]]<>0,Info_Salariés!AW88,0) -> 0 | E88: =+Info_Salariés[[#This Row],[Date Retour Dernier Congé]] -> 00:00:00 | F88: =+Info_Salariés[[#This Row],[Départ Théorique]] -> 00:00:00 | G88: 0 | H88: 0 | I88: =+Info_Salariés[[#This Row],[Jours Ajoutés]] -> 0 | J88: =Evaluat°Congés[[#This Row],[Nbre de jours]]+Evaluat°Congés[[#This Row],[Jours Ajoutés]] -> 0 | L88: =+Info_Salariés[[#This Row],[Salaire Moyen Mensuel]] -> 0 | M88: =+Info_Salariés[[#This Row],[DEPART EFFECTIF]] -> 00:00:00 | N88: =+Info_Salariés[[#This Row],[FIN EFFECTIVE]] -> 00:00:00 | O88: 0 | P88: 00:00:00 | Q88: 0 | R88: =+Info_Salariés[[#This Row],[JOURS REST. ANNEE N-1]] -> 0 | S88: 0 | T88: 0 | U88: 0 | X88: 0
A89: ='87'!$A$1 -> 87 | B89: =IF(Evaluat°Congés[[#This Row],[Période Réf]]<>0,Info_Salariés[[#This Row],[emploi occupe]],"") ->  | C89: =IF(Evaluat°Congés[[#This Row],[Période Réf]]<>0,Info_Salariés[[#This Row],[Nom & Prénoms]],"") ->  | D89: =IF(Evaluat°Congés[[#This Row],[Période Réf]]<>0,Info_Salariés!AW89,0) -> 0 | E89: =+Info_Salariés[[#This Row],[Date Retour Dernier Congé]] -> 00:00:00 | F89: =+Info_Salariés[[#This Row],[Départ Théorique]] -> 00:00:00 | G89: 0 | H89: 0 | I89: =+Info_Salariés[[#This Row],[Jours Ajoutés]] -> 0 | J89: =Evaluat°Congés[[#This Row],[Nbre de jours]]+Evaluat°Congés[[#This Row],[Jours Ajoutés]] -> 0 | L89: =+Info_Salariés[[#This Row],[Salaire Moyen Mensuel]] -> 0 | M89: =+Info_Salariés[[#This Row],[DEPART EFFECTIF]] -> 00:00:00 | N89: =+Info_Salariés[[#This Row],[FIN EFFECTIVE]] -> 00:00:00 | O89: 0 | P89: 00:00:00 | Q89: 0 | R89: =+Info_Salariés[[#This Row],[JOURS REST. ANNEE N-1]] -> 0 | S89: 0 | T89: 0 | U89: 0 | X89: 0
A90: ='88'!$A$1 -> 88 | B90: =IF(Evaluat°Congés[[#This Row],[Période Réf]]<>0,Info_Salariés[[#This Row],[emploi occupe]],"") ->  | C90: =IF(Evaluat°Congés[[#This Row],[Période Réf]]<>0,Info_Salariés[[#This Row],[Nom & Prénoms]],"") ->  | D90: =IF(Evaluat°Congés[[#This Row],[Période Réf]]<>0,Info_Salariés!AW90,0) -> 0 | E90: =+Info_Salariés[[#This Row],[Date Retour Dernier Congé]] -> 00:00:00 | F90: =+Info_Salariés[[#This Row],[Départ Théorique]] -> 00:00:00 | G90: 0 | H90: 0 | I90: =+Info_Salariés[[#This Row],[Jours Ajoutés]] -> 0 | J90: =Evaluat°Congés[[#This Row],[Nbre de jours]]+Evaluat°Congés[[#This Row],[Jours Ajoutés]] -> 0 | L90: =+Info_Salariés[[#This Row],[Salaire Moyen Mensuel]] -> 0 | M90: =+Info_Salariés[[#This Row],[DEPART EFFECTIF]] -> 00:00:00 | N90: =+Info_Salariés[[#This Row],[FIN EFFECTIVE]] -> 00:00:00 | O90: 0 | P90: 00:00:00 | Q90: 0 | R90: =+Info_Salariés[[#This Row],[JOURS REST. ANNEE N-1]] -> 0 | S90: 0 | T90: 0 | U90: 0 | X90: 0
A91: ='89'!$A$1 -> 89 | B91: =IF(Evaluat°Congés[[#This Row],[Période Réf]]<>0,Info_Salariés[[#This Row],[emploi occupe]],"") ->  | C91: =IF(Evaluat°Congés[[#This Row],[Période Réf]]<>0,Info_Salariés[[#This Row],[Nom & Prénoms]],"") ->  | D91: =IF(Evaluat°Congés[[#This Row],[Période Réf]]<>0,Info_Salariés!AW91,0) -> 0 | E91: =+Info_Salariés[[#This Row],[Date Retour Dernier Congé]] -> 00:00:00 | F91: =+Info_Salariés[[#This Row],[Départ Théorique]] -> 00:00:00 | G91: 0 | H91: 0 | I91: =+Info_Salariés[[#This Row],[Jours Ajoutés]] -> 0 | J91: =Evaluat°Congés[[#This Row],[Nbre de jours]]+Evaluat°Congés[[#This Row],[Jours Ajoutés]] -> 0 | L91: =+Info_Salariés[[#This Row],[Salaire Moyen Mensuel]] -> 0 | M91: =+Info_Salariés[[#This Row],[DEPART EFFECTIF]] -> 00:00:00 | N91: =+Info_Salariés[[#This Row],[FIN EFFECTIVE]] -> 00:00:00 | O91: 0 | P91: 00:00:00 | Q91: 0 | R91: =+Info_Salariés[[#This Row],[JOURS REST. ANNEE N-1]] -> 0 | S91: 0 | T91: 0 | U91: 0 | X91: 0
A92: ='90'!$A$1 -> 90 | B92: =IF(Evaluat°Congés[[#This Row],[Période Réf]]<>0,Info_Salariés[[#This Row],[emploi occupe]],"") ->  | C92: =IF(Evaluat°Congés[[#This Row],[Période Réf]]<>0,Info_Salariés[[#This Row],[Nom & Prénoms]],"") ->  | D92: =IF(Evaluat°Congés[[#This Row],[Période Réf]]<>0,Info_Salariés!AW92,0) -> 0 | E92: =+Info_Salariés[[#This Row],[Date Retour Dernier Congé]] -> 00:00:00 | F92: =+Info_Salariés[[#This Row],[Départ Théorique]] -> 00:00:00 | G92: 0 | H92: 0 | I92: =+Info_Salariés[[#This Row],[Jours Ajoutés]] -> 0 | J92: =Evaluat°Congés[[#This Row],[Nbre de jours]]+Evaluat°Congés[[#This Row],[Jours Ajoutés]] -> 0 | L92: =+Info_Salariés[[#This Row],[Salaire Moyen Mensuel]] -> 0 | M92: =+Info_Salariés[[#This Row],[DEPART EFFECTIF]] -> 00:00:00 | N92: =+Info_Salariés[[#This Row],[FIN EFFECTIVE]] -> 00:00:00 | O92: 0 | P92: 00:00:00 | Q92: 0 | R92: =+Info_Salariés[[#This Row],[JOURS REST. ANNEE N-1]] -> 0 | S92: 0 | T92: 0 | U92: 0 | X92: 0
A93: ='91'!$A$1 -> 91 | B93: =IF(Evaluat°Congés[[#This Row],[Période Réf]]<>0,Info_Salariés[[#This Row],[emploi occupe]],"") ->  | C93: =IF(Evaluat°Congés[[#This Row],[Période Réf]]<>0,Info_Salariés[[#This Row],[Nom & Prénoms]],"") ->  | D93: =IF(Evaluat°Congés[[#This Row],[Période Réf]]<>0,Info_Salariés!AW93,0) -> 0 | E93: =+Info_Salariés[[#This Row],[Date Retour Dernier Congé]] -> 00:00:00 | F93: =+Info_Salariés[[#This Row],[Départ Théorique]] -> 00:00:00 | G93: 0 | H93: 0 | I93: =+Info_Salariés[[#This Row],[Jours Ajoutés]] -> 0 | J93: =Evaluat°Congés[[#This Row],[Nbre de jours]]+Evaluat°Congés[[#This Row],[Jours Ajoutés]] -> 0 | L93: =+Info_Salariés[[#This Row],[Salaire Moyen Mensuel]] -> 0 | M93: =+Info_Salariés[[#This Row],[DEPART EFFECTIF]] -> 00:00:00 | N93: =+Info_Salariés[[#This Row],[FIN EFFECTIVE]] -> 00:00:00 | O93: 0 | P93: 00:00:00 | Q93: 0 | R93: =+Info_Salariés[[#This Row],[JOURS REST. ANNEE N-1]] -> 0 | S93: 0 | T93: 0 | U93: 0 | X93: 0
A94: ='92'!$A$1 -> 92 | B94: =IF(Evaluat°Congés[[#This Row],[Période Réf]]<>0,Info_Salariés[[#This Row],[emploi occupe]],"") ->  | C94: =IF(Evaluat°Congés[[#This Row],[Période Réf]]<>0,Info_Salariés[[#This Row],[Nom & Prénoms]],"") ->  | D94: =IF(Evaluat°Congés[[#This Row],[Période Réf]]<>0,Info_Salariés!AW94,0) -> 0 | E94: =+Info_Salariés[[#This Row],[Date Retour Dernier Congé]] -> 00:00:00 | F94: =+Info_Salariés[[#This Row],[Départ Théorique]] -> 00:00:00 | G94: 0 | H94: 0 | I94: =+Info_Salariés[[#This Row],[Jours Ajoutés]] -> 0 | J94: =Evaluat°Congés[[#This Row],[Nbre de jours]]+Evaluat°Congés[[#This Row],[Jours Ajoutés]] -> 0 | L94: =+Info_Salariés[[#This Row],[Salaire Moyen Mensuel]] -> 0 | M94: =+Info_Salariés[[#This Row],[DEPART EFFECTIF]] -> 00:00:00 | N94: =+Info_Salariés[[#This Row],[FIN EFFECTIVE]] -> 00:00:00 | O94: 0 | P94: 00:00:00 | Q94: 0 | R94: =+Info_Salariés[[#This Row],[JOURS REST. ANNEE N-1]] -> 0 | S94: 0 | T94: 0 | U94: 0 | X94: 0
A95: ='93'!$A$1 -> 93 | B95: =IF(Evaluat°Congés[[#This Row],[Période Réf]]<>0,Info_Salariés[[#This Row],[emploi occupe]],"") ->  | C95: =IF(Evaluat°Congés[[#This Row],[Période Réf]]<>0,Info_Salariés[[#This Row],[Nom & Prénoms]],"") ->  | D95: =IF(Evaluat°Congés[[#This Row],[Période Réf]]<>0,Info_Salariés!AW95,0) -> 0 | E95: =+Info_Salariés[[#This Row],[Date Retour Dernier Congé]] -> 00:00:00 | F95: =+Info_Salariés[[#This Row],[Départ Théorique]] -> 00:00:00 | G95: 0 | H95: 0 | I95: =+Info_Salariés[[#This Row],[Jours Ajoutés]] -> 0 | J95: =Evaluat°Congés[[#This Row],[Nbre de jours]]+Evaluat°Congés[[#This Row],[Jours Ajoutés]] -> 0 | L95: =+Info_Salariés[[#This Row],[Salaire Moyen Mensuel]] -> 0 | M95: =+Info_Salariés[[#This Row],[DEPART EFFECTIF]] -> 00:00:00 | N95: =+Info_Salariés[[#This Row],[FIN EFFECTIVE]] -> 00:00:00 | O95: 0 | P95: 00:00:00 | Q95: 0 | R95: =+Info_Salariés[[#This Row],[JOURS REST. ANNEE N-1]] -> 0 | S95: 0 | T95: 0 | U95: 0 | X95: 0
A96: ='94'!$A$1 -> 94 | B96: =IF(Evaluat°Congés[[#This Row],[Période Réf]]<>0,Info_Salariés[[#This Row],[emploi occupe]],"") ->  | C96: =IF(Evaluat°Congés[[#This Row],[Période Réf]]<>0,Info_Salariés[[#This Row],[Nom & Prénoms]],"") ->  | D96: =IF(Evaluat°Congés[[#This Row],[Période Réf]]<>0,Info_Salariés!AW96,0) -> 0 | E96: =+Info_Salariés[[#This Row],[Date Retour Dernier Congé]] -> 00:00:00 | F96: =+Info_Salariés[[#This Row],[Départ Théorique]] -> 00:00:00 | G96: 0 | H96: 0 | I96: =+Info_Salariés[[#This Row],[Jours Ajoutés]] -> 0 | J96: =Evaluat°Congés[[#This Row],[Nbre de jours]]+Evaluat°Congés[[#This Row],[Jours Ajoutés]] -> 0 | L96: =+Info_Salariés[[#This Row],[Salaire Moyen Mensuel]] -> 0 | M96: =+Info_Salariés[[#This Row],[DEPART EFFECTIF]] -> 00:00:00 | N96: =+Info_Salariés[[#This Row],[FIN EFFECTIVE]] -> 00:00:00 | O96: 0 | P96: 00:00:00 | Q96: 0 | R96: =+Info_Salariés[[#This Row],[JOURS REST. ANNEE N-1]] -> 0 | S96: 0 | T96: 0 | U96: 0 | X96: 0
A97: ='95'!$A$1 -> 95 | B97: =IF(Evaluat°Congés[[#This Row],[Période Réf]]<>0,Info_Salariés[[#This Row],[emploi occupe]],"") ->  | C97: =IF(Evaluat°Congés[[#This Row],[Période Réf]]<>0,Info_Salariés[[#This Row],[Nom & Prénoms]],"") ->  | D97: =IF(Evaluat°Congés[[#This Row],[Période Réf]]<>0,Info_Salariés!AW97,0) -> 0 | E97: =+Info_Salariés[[#This Row],[Date Retour Dernier Congé]] -> 00:00:00 | F97: =+Info_Salariés[[#This Row],[Départ Théorique]] -> 00:00:00 | G97: 0 | H97: 0 | I97: =+Info_Salariés[[#This Row],[Jours Ajoutés]] -> 0 | J97: =Evaluat°Congés[[#This Row],[Nbre de jours]]+Evaluat°Congés[[#This Row],[Jours Ajoutés]] -> 0 | L97: =+Info_Salariés[[#This Row],[Salaire Moyen Mensuel]] -> 0 | M97: =+Info_Salariés[[#This Row],[DEPART EFFECTIF]] -> 00:00:00 | N97: =+Info_Salariés[[#This Row],[FIN EFFECTIVE]] -> 00:00:00 | O97: 0 | P97: 00:00:00 | Q97: 0 | R97: =+Info_Salariés[[#This Row],[JOURS REST. ANNEE N-1]] -> 0 | S97: 0 | T97: 0 | U97: 0 | X97: 0
A98: ='96'!$A$1 -> 96 | B98: =IF(Evaluat°Congés[[#This Row],[Période Réf]]<>0,Info_Salariés[[#This Row],[emploi occupe]],"") ->  | C98: =IF(Evaluat°Congés[[#This Row],[Période Réf]]<>0,Info_Salariés[[#This Row],[Nom & Prénoms]],"") ->  | D98: =IF(Evaluat°Congés[[#This Row],[Période Réf]]<>0,Info_Salariés!AW98,0) -> 0 | E98: =+Info_Salariés[[#This Row],[Date Retour Dernier Congé]] -> 00:00:00 | F98: =+Info_Salariés[[#This Row],[Départ Théorique]] -> 00:00:00 | G98: 0 | H98: 0 | I98: =+Info_Salariés[[#This Row],[Jours Ajoutés]] -> 0 | J98: =Evaluat°Congés[[#This Row],[Nbre de jours]]+Evaluat°Congés[[#This Row],[Jours Ajoutés]] -> 0 | L98: =+Info_Salariés[[#This Row],[Salaire Moyen Mensuel]] -> 0 | M98: =+Info_Salariés[[#This Row],[DEPART EFFECTIF]] -> 00:00:00 | N98: =+Info_Salariés[[#This Row],[FIN EFFECTIVE]] -> 00:00:00 | O98: 0 | P98: 00:00:00 | Q98: 0 | R98: =+Info_Salariés[[#This Row],[JOURS REST. ANNEE N-1]] -> 0 | S98: 0 | T98: 0 | U98: 0 | X98: 0
A99: ='97'!$A$1 -> 97 | B99: =IF(Evaluat°Congés[[#This Row],[Période Réf]]<>0,Info_Salariés[[#This Row],[emploi occupe]],"") ->  | C99: =IF(Evaluat°Congés[[#This Row],[Période Réf]]<>0,Info_Salariés[[#This Row],[Nom & Prénoms]],"") ->  | D99: =IF(Evaluat°Congés[[#This Row],[Période Réf]]<>0,Info_Salariés!AW99,0) -> 0 | E99: =+Info_Salariés[[#This Row],[Date Retour Dernier Congé]] -> 00:00:00 | F99: =+Info_Salariés[[#This Row],[Départ Théorique]] -> 00:00:00 | G99: 0 | H99: =IF(G99<>0,ROUND(+IF(AND(D99>=5,D99<10),1,0)+IF(AND(D99>=10,D99<15),2,0)+IF(AND(D99>=15,D99<20),3,0)+IF(AND(D99>=20,D99<25),5,0)+IF(D99>=25,7,0)+(IF($D$1="A",2.2*G99*7/6,2.2*G99*30/24)),0),0) -> 0 | I99: =+Info_Salariés[[#This Row],[Jours Ajoutés]] -> 0 | J99: =Evaluat°Congés[[#This Row],[Nbre de jours]]+Evaluat°Congés[[#This Row],[Jours Ajoutés]] -> 0 | K99: =IF(G99<>0,F99+J99-1,"") ->  | L99: =+Info_Salariés[[#This Row],[Salaire Moyen Mensuel]] -> 0 | M99: =+Info_Salariés[[#This Row],[DEPART EFFECTIF]] -> 00:00:00 | N99: =+Info_Salariés[[#This Row],[FIN EFFECTIVE]] -> 00:00:00 | O99: 0 | P99: 00:00:00 | Q99: 0 | R99: =+Info_Salariés[[#This Row],[JOURS REST. ANNEE N-1]] -> 0 | S99: 0 | T99: 0 | U99: 0 | X99: 0
A100: ='98'!$A$1 -> 98 | B100: =IF(Evaluat°Congés[[#This Row],[Période Réf]]<>0,Info_Salariés[[#This Row],[emploi occupe]],"") ->  | C100: =IF(Evaluat°Congés[[#This Row],[Période Réf]]<>0,Info_Salariés[[#This Row],[Nom & Prénoms]],"") ->  | D100: =IF(Evaluat°Congés[[#This Row],[Période Réf]]<>0,Info_Salariés!AW100,0) -> 0 | E100: =+Info_Salariés[[#This Row],[Date Retour Dernier Congé]] -> 00:00:00 | F100: =+Info_Salariés[[#This Row],[Départ Théorique]] -> 00:00:00 | G100: 0 | H100: 0 | I100: =+Info_Salariés[[#This Row],[Jours Ajoutés]] -> 0 | J100: =Evaluat°Congés[[#This Row],[Nbre de jours]]+Evaluat°Congés[[#This Row],[Jours Ajoutés]] -> 0 | L100: =+Info_Salariés[[#This Row],[Salaire Moyen Mensuel]] -> 0 | M100: =+Info_Salariés[[#This Row],[DEPART EFFECTIF]] -> 00:00:00 | N100: =+Info_Salariés[[#This Row],[FIN EFFECTIVE]] -> 00:00:00 | O100: 0 | P100: 00:00:00 | Q100: 0 | R100: =+Info_Salariés[[#This Row],[JOURS REST. ANNEE N-1]] -> 0 | S100: 0 | T100: 0 | U100: 0 | X100: 0
A101: ='99'!$A$1 -> 99 | B101: =IF(Evaluat°Congés[[#This Row],[Période Réf]]<>0,Info_Salariés[[#This Row],[emploi occupe]],"") ->  | C101: =IF(Evaluat°Congés[[#This Row],[Période Réf]]<>0,Info_Salariés[[#This Row],[Nom & Prénoms]],"") ->  | D101: =IF(Evaluat°Congés[[#This Row],[Période Réf]]<>0,Info_Salariés!AW101,0) -> 0 | E101: =+Info_Salariés[[#This Row],[Date Retour Dernier Congé]] -> 00:00:00 | F101: =+Info_Salariés[[#This Row],[Départ Théorique]] -> 00:00:00 | G101: 0 | H101: 0 | I101: =+Info_Salariés[[#This Row],[Jours Ajoutés]] -> 0 | J101: =Evaluat°Congés[[#This Row],[Nbre de jours]]+Evaluat°Congés[[#This Row],[Jours Ajoutés]] -> 0 | L101: =+Info_Salariés[[#This Row],[Salaire Moyen Mensuel]] -> 0 | M101: =+Info_Salariés[[#This Row],[DEPART EFFECTIF]] -> 00:00:00 | N101: =+Info_Salariés[[#This Row],[FIN EFFECTIVE]] -> 00:00:00 | O101: 0 | P101: 00:00:00 | Q101: 0 | R101: =+Info_Salariés[[#This Row],[JOURS REST. ANNEE N-1]] -> 0 | S101: 0 | T101: 0 | U101: 0 | X101: 0
A102: ='100'!$A$1 -> 100 | B102: =IF(Evaluat°Congés[[#This Row],[Période Réf]]<>0,Info_Salariés[[#This Row],[emploi occupe]],"") ->  | C102: =IF(Evaluat°Congés[[#This Row],[Période Réf]]<>0,Info_Salariés[[#This Row],[Nom & Prénoms]],"") ->  | D102: =IF(Evaluat°Congés[[#This Row],[Période Réf]]<>0,Info_Salariés!AW102,0) -> 0 | E102: =+Info_Salariés[[#This Row],[Date Retour Dernier Congé]] -> 00:00:00 | F102: =+Info_Salariés[[#This Row],[Départ Théorique]] -> 00:00:00 | G102: 0 | H102: 0 | I102: =+Info_Salariés[[#This Row],[Jours Ajoutés]] -> 0 | J102: =Evaluat°Congés[[#This Row],[Nbre de jours]]+Evaluat°Congés[[#This Row],[Jours Ajoutés]] -> 0 | L102: =+Info_Salariés[[#This Row],[Salaire Moyen Mensuel]] -> 0 | M102: =+Info_Salariés[[#This Row],[DEPART EFFECTIF]] -> 00:00:00 | N102: =+Info_Salariés[[#This Row],[FIN EFFECTIVE]] -> 00:00:00 | O102: 0 | P102: 00:00:00 | Q102: 0 | R102: =+Info_Salariés[[#This Row],[JOURS REST. ANNEE N-1]] -> 0 | S102: 0 | T102: 0 | U102: 0 | X102: 0
B103: =Info_Entreprise!K6 -> A REVOIR | C103: =X103&" "&IF(OR(X103=0,X103=1),"Embauché en Congé","Embauchés en Congés") -> 2 Embauchés en Congés | D103: =C1 -> 2017-01-31 | T103: =SUBTOTAL(109,Evaluat°Congés[Montant Brut congé]) -> 575107 | V103: =Info_Salariés!F1 -> EviBoni PAIE_16.12+ | X103: =SUM(X3:X102) -> 2

Sheet Gratifications
A1: ʘ | B1: GRATIF | C1: =Info_Entreprise!S5 -> 2017-09-30 | E1: =Info_Salariés!F1 -> EviBoni PAIE_16.12+ | J1: Paiement le | K1: 2016-11-16 | L1: ●
B2: POSTES | C2: Nom & Prenoms | D2: Année Ancienneté | E2: DATE DEPART | F2: DATE FIN | G2: Nbre de jours | H2: TAUX(%) | I2: Salaire de base ou Catégoriel | J2: Montant Brut Gratification | K2: MODE DE PAIEMENT
A3: ='1'!$A$1 -> 1 | B3: =IF(AND(Evaluat°Gratif[[#This Row],[Nbre de jours]]<>0,Evaluat°Gratif[[#This Row],[TAUX(%)]]<>0),Info_Salariés[[#This Row],[emploi occupe]],"") ->  | C3: =IF(AND(Evaluat°Gratif[[#This Row],[Nbre de jours]]<>0,Evaluat°Gratif[[#This Row],[TAUX(%)]]<>0),Info_Salariés[[#This Row],[Nom & Prénoms]],"") ->  | D3: =IF(AND(Evaluat°Gratif[[#This Row],[Nbre de jours]]<>0,Evaluat°Gratif[[#This Row],[TAUX(%)]]<>0),Info_Salariés!AW3,0) -> 0 | E3: =+Info_Salariés[[#This Row],[DATE DEPART]] -> 00:00:00 | F3: =+Info_Salariés[[#This Row],[DATE FIN]] -> 00:00:00 | G3: =+DAYS360(Evaluat°Gratif[[#This Row],[DATE DEPART]],Evaluat°Gratif[[#This Row],[DATE FIN]]) -> 0 | H3: =+Info_Salariés[[#This Row],[TAUX(%)]] -> 0 | I3: =IF(AND(Evaluat°Gratif[[#This Row],[Nbre de jours]]<>0,Evaluat°Gratif[[#This Row],[TAUX(%)]]<>0),Info_Salariés[[#This Row],[SALAIRE DE BASE]],0) -> 0 | J3: =ROUND(Evaluat°Gratif[[#This Row],[Salaire de base ou Catégoriel]]*Evaluat°Gratif[[#This Row],[TAUX(%)]]*Evaluat°Gratif[[#This Row],[Nbre de jours]]/36000,0) -> 0 | M3: =IF(J3<>0,1,0) -> 0
A4: ='2'!$A$1 -> 2 | B4: =IF(AND(Evaluat°Gratif[[#This Row],[Nbre de jours]]<>0,Evaluat°Gratif[[#This Row],[TAUX(%)]]<>0),Info_Salariés[[#This Row],[emploi occupe]],"") -> 0 | C4: =IF(AND(Evaluat°Gratif[[#This Row],[Nbre de jours]]<>0,Evaluat°Gratif[[#This Row],[TAUX(%)]]<>0),Info_Salariés[[#This Row],[Nom & Prénoms]],"") -> BIAKPA Boni | D4: =IF(AND(Evaluat°Gratif[[#This Row],[Nbre de jours]]<>0,Evaluat°Gratif[[#This Row],[TAUX(%)]]<>0),Info_Salariés!AW4,0) -> 2 | E4: =+Info_Salariés[[#This Row],[DATE DEPART]] -> 2017-01-01 | F4: =+Info_Salariés[[#This Row],[DATE FIN]] -> 2017-06-09 | G4: =+DAYS360(Evaluat°Gratif[[#This Row],[DATE DEPART]],Evaluat°Gratif[[#This Row],[DATE FIN]]) -> 158 | H4: =+Info_Salariés[[#This Row],[TAUX(%)]] -> 75 | I4: =IF(AND(Evaluat°Gratif[[#This Row],[Nbre de jours]]<>0,Evaluat°Gratif[[#This Row],[TAUX(%)]]<>0),Info_Salariés[[#This Row],[SALAIRE DE BASE]],0) -> 350000 | J4: =ROUND(Evaluat°Gratif[[#This Row],[Salaire de base ou Catégoriel]]*Evaluat°Gratif[[#This Row],[TAUX(%)]]*Evaluat°Gratif[[#This Row],[Nbre de jours]]/36000,0) -> 115208 | K4: ESPECE | M4: 1
A5: ='3'!$A$1 -> 3 | B5: =IF(AND(Evaluat°Gratif[[#This Row],[Nbre de jours]]<>0,Evaluat°Gratif[[#This Row],[TAUX(%)]]<>0),Info_Salariés[[#This Row],[emploi occupe]],"") -> 0 | C5: =IF(AND(Evaluat°Gratif[[#This Row],[Nbre de jours]]<>0,Evaluat°Gratif[[#This Row],[TAUX(%)]]<>0),Info_Salariés[[#This Row],[Nom & Prénoms]],"") -> BLEU Lisette | D5: =IF(AND(Evaluat°Gratif[[#This Row],[Nbre de jours]]<>0,Evaluat°Gratif[[#This Row],[TAUX(%)]]<>0),Info_Salariés!AW5,0) -> 1 | E5: =+Info_Salariés[[#This Row],[DATE DEPART]] -> 2017-01-01 | F5: =+Info_Salariés[[#This Row],[DATE FIN]] -> 2017-06-09 | G5: =+DAYS360(Evaluat°Gratif[[#This Row],[DATE DEPART]],Evaluat°Gratif[[#This Row],[DATE FIN]]) -> 158 | H5: =+Info_Salariés[[#This Row],[TAUX(%)]] -> 75 | I5: =IF(AND(Evaluat°Gratif[[#This Row],[Nbre de jours]]<>0,Evaluat°Gratif[[#This Row],[TAUX(%)]]<>0),Info_Salariés[[#This Row],[SALAIRE DE BASE]],0) -> 250000 | J5: =ROUND(Evaluat°Gratif[[#This Row],[Salaire de base ou Catégoriel]]*Evaluat°Gratif[[#This Row],[TAUX(%)]]*Evaluat°Gratif[[#This Row],[Nbre de jours]]/36000,0) -> 82292 | K5: VIREMENT BANCAIRE | M5: 1
A6: ='4'!$A$1 -> 4 | B6: =IF(AND(Evaluat°Gratif[[#This Row],[Nbre de jours]]<>0,Evaluat°Gratif[[#This Row],[TAUX(%)]]<>0),Info_Salariés[[#This Row],[emploi occupe]],"") -> 0 | C6: =IF(AND(Evaluat°Gratif[[#This Row],[Nbre de jours]]<>0,Evaluat°Gratif[[#This Row],[TAUX(%)]]<>0),Info_Salariés[[#This Row],[Nom & Prénoms]],"") -> BONI Boni Mathias | D6: =IF(AND(Evaluat°Gratif[[#This Row],[Nbre de jours]]<>0,Evaluat°Gratif[[#This Row],[TAUX(%)]]<>0),Info_Salariés!AW6,0) -> 2 | E6: =+Info_Salariés[[#This Row],[DATE DEPART]] -> 2017-01-01 | F6: =+Info_Salariés[[#This Row],[DATE FIN]] -> 2017-06-09 | G6: =+DAYS360(Evaluat°Gratif[[#This Row],[DATE DEPART]],Evaluat°Gratif[[#This Row],[DATE FIN]]) -> 158 | H6: =+Info_Salariés[[#This Row],[TAUX(%)]] -> 75 | I6: =IF(AND(Evaluat°Gratif[[#This Row],[Nbre de jours]]<>0,Evaluat°Gratif[[#This Row],[TAUX(%)]]<>0),Info_Salariés[[#This Row],[SALAIRE DE BASE]],0) -> 250000 | J6: =ROUND(Evaluat°Gratif[[#This Row],[Salaire de base ou Catégoriel]]*Evaluat°Gratif[[#This Row],[TAUX(%)]]*Evaluat°Gratif[[#This Row],[Nbre de jours]]/36000,0) -> 82292 | K6: ESPECE | M6: 1
A7: ='5'!$A$1 -> 5 | B7: =IF(AND(Evaluat°Gratif[[#This Row],[Nbre de jours]]<>0,Evaluat°Gratif[[#This Row],[TAUX(%)]]<>0),Info_Salariés[[#This Row],[emploi occupe]],"") -> 0 | C7: =IF(AND(Evaluat°Gratif[[#This Row],[Nbre de jours]]<>0,Evaluat°Gratif[[#This Row],[TAUX(%)]]<>0),Info_Salariés[[#This Row],[Nom & Prénoms]],"") -> DELI Thelo Anne Marie | D7: =IF(AND(Evaluat°Gratif[[#This Row],[Nbre de jours]]<>0,Evaluat°Gratif[[#This Row],[TAUX(%)]]<>0),Info_Salariés!AW7,0) -> 1 | E7: =+Info_Salariés[[#This Row],[DATE DEPART]] -> 2017-01-01 | F7: =+Info_Salariés[[#This Row],[DATE FIN]] -> 2017-06-09 | G7: =+DAYS360(Evaluat°Gratif[[#This Row],[DATE DEPART]],Evaluat°Gratif[[#This Row],[DATE FIN]]) -> 158 | H7: =+Info_Salariés[[#This Row],[TAUX(%)]] -> 75 | I7: =IF(AND(Evaluat°Gratif[[#This Row],[Nbre de jours]]<>0,Evaluat°Gratif[[#This Row],[TAUX(%)]]<>0),Info_Salariés[[#This Row],[SALAIRE DE BASE]],0) -> 250000 | J7: =ROUND(Evaluat°Gratif[[#This Row],[Salaire de base ou Catégoriel]]*Evaluat°Gratif[[#This Row],[TAUX(%)]]*Evaluat°Gratif[[#This Row],[Nbre de jours]]/36000,0) -> 82292 | K7: ESPECE | M7: 1
A8: ='6'!$A$1 -> 6 | B8: =IF(AND(Evaluat°Gratif[[#This Row],[Nbre de jours]]<>0,Evaluat°Gratif[[#This Row],[TAUX(%)]]<>0),Info_Salariés[[#This Row],[emploi occupe]],"") -> 0 | C8: =IF(AND(Evaluat°Gratif[[#This Row],[Nbre de jours]]<>0,Evaluat°Gratif[[#This Row],[TAUX(%)]]<>0),Info_Salariés[[#This Row],[Nom & Prénoms]],"") -> KOUASSI Evi | D8: =IF(AND(Evaluat°Gratif[[#This Row],[Nbre de jours]]<>0,Evaluat°Gratif[[#This Row],[TAUX(%)]]<>0),Info_Salariés!AW8,0) -> 2 | E8: =+Info_Salariés[[#This Row],[DATE DEPART]] -> 2017-01-01 | F8: =+Info_Salariés[[#This Row],[DATE FIN]] -> 2017-06-09 | G8: =+DAYS360(Evaluat°Gratif[[#This Row],[DATE DEPART]],Evaluat°Gratif[[#This Row],[DATE FIN]]) -> 158 | H8: =+Info_Salariés[[#This Row],[TAUX(%)]] -> 75 | I8: =IF(AND(Evaluat°Gratif[[#This Row],[Nbre de jours]]<>0,Evaluat°Gratif[[#This Row],[TAUX(%)]]<>0),Info_Salariés[[#This Row],[SALAIRE DE BASE]],0) -> 470000 | J8: =ROUND(Evaluat°Gratif[[#This Row],[Salaire de base ou Catégoriel]]*Evaluat°Gratif[[#This Row],[TAUX(%)]]*Evaluat°Gratif[[#This Row],[Nbre de jours]]/36000,0) -> 154708 | K8: CHEQUE | M8: 1
A9: ='7'!$A$1 -> 7 | B9: =IF(AND(Evaluat°Gratif[[#This Row],[Nbre de jours]]<>0,Evaluat°Gratif[[#This Row],[TAUX(%)]]<>0),Info_Salariés[[#This Row],[emploi occupe]],"") -> 0 | C9: =IF(AND(Evaluat°Gratif[[#This Row],[Nbre de jours]]<>0,Evaluat°Gratif[[#This Row],[TAUX(%)]]<>0),Info_Salariés[[#This Row],[Nom & Prénoms]],"") -> OUATTARA Gemima | D9: =IF(AND(Evaluat°Gratif[[#This Row],[Nbre de jours]]<>0,Evaluat°Gratif[[#This Row],[TAUX(%)]]<>0),Info_Salariés!AW9,0) -> 1 | E9: =+Info_Salariés[[#This Row],[DATE DEPART]] -> 2017-01-01 | F9: =+Info_Salariés[[#This Row],[DATE FIN]] -> 2017-06-09 | G9: =+DAYS360(Evaluat°Gratif[[#This Row],[DATE DEPART]],Evaluat°Gratif[[#This Row],[DATE FIN]]) -> 158 | H9: =+Info_Salariés[[#This Row],[TAUX(%)]] -> 75 | I9: =IF(AND(Evaluat°Gratif[[#This Row],[Nbre de jours]]<>0,Evaluat°Gratif[[#This Row],[TAUX(%)]]<>0),Info_Salariés[[#This Row],[SALAIRE DE BASE]],0) -> 150000 | J9: =ROUND(Evaluat°Gratif[[#This Row],[Salaire de base ou Catégoriel]]*Evaluat°Gratif[[#This Row],[TAUX(%)]]*Evaluat°Gratif[[#This Row],[Nbre de jours]]/36000,0) -> 49375 | K9: VIREMENT BANCAIRE | M9: 1
A10: ='8'!$A$1 -> 8 | B10: =IF(AND(Evaluat°Gratif[[#This Row],[Nbre de jours]]<>0,Evaluat°Gratif[[#This Row],[TAUX(%)]]<>0),Info_Salariés[[#This Row],[emploi occupe]],"") ->  | C10: =IF(AND(Evaluat°Gratif[[#This Row],[Nbre de jours]]<>0,Evaluat°Gratif[[#This Row],[TAUX(%)]]<>0),Info_Salariés[[#This Row],[Nom & Prénoms]],"") ->  | D10: =IF(AND(Evaluat°Gratif[[#This Row],[Nbre de jours]]<>0,Evaluat°Gratif[[#This Row],[TAUX(%)]]<>0),Info_Salariés!AW10,0) -> 0 | E10: =+Info_Salariés[[#This Row],[DATE DEPART]] -> 00:00:00 | F10: =+Info_Salariés[[#This Row],[DATE FIN]] -> 00:00:00 | G10: =+DAYS360(Evaluat°Gratif[[#This Row],[DATE DEPART]],Evaluat°Gratif[[#This Row],[DATE FIN]]) -> 0 | H10: =+Info_Salariés[[#This Row],[TAUX(%)]] -> 0 | I10: =IF(AND(Evaluat°Gratif[[#This Row],[Nbre de jours]]<>0,Evaluat°Gratif[[#This Row],[TAUX(%)]]<>0),Info_Salariés[[#This Row],[SALAIRE DE BASE]],0) -> 0 | J10: =ROUND(Evaluat°Gratif[[#This Row],[Salaire de base ou Catégoriel]]*Evaluat°Gratif[[#This Row],[TAUX(%)]]*Evaluat°Gratif[[#This Row],[Nbre de jours]]/36000,0) -> 0 | M10: 0
A11: ='9'!$A$1 -> 9 | B11: =IF(AND(Evaluat°Gratif[[#This Row],[Nbre de jours]]<>0,Evaluat°Gratif[[#This Row],[TAUX(%)]]<>0),Info_Salariés[[#This Row],[emploi occupe]],"") ->  | C11: =IF(AND(Evaluat°Gratif[[#This Row],[Nbre de jours]]<>0,Evaluat°Gratif[[#This Row],[TAUX(%)]]<>0),Info_Salariés[[#This Row],[Nom & Prénoms]],"") ->  | D11: =IF(AND(Evaluat°Gratif[[#This Row],[Nbre de jours]]<>0,Evaluat°Gratif[[#This Row],[TAUX(%)]]<>0),Info_Salariés!AW11,0) -> 0 | E11: =+Info_Salariés[[#This Row],[DATE DEPART]] -> 00:00:00 | F11: =+Info_Salariés[[#This Row],[DATE FIN]] -> 00:00:00 | G11: =+DAYS360(Evaluat°Gratif[[#This Row],[DATE DEPART]],Evaluat°Gratif[[#This Row],[DATE FIN]]) -> 0 | H11: =+Info_Salariés[[#This Row],[TAUX(%)]] -> 0 | I11: =IF(AND(Evaluat°Gratif[[#This Row],[Nbre de jours]]<>0,Evaluat°Gratif[[#This Row],[TAUX(%)]]<>0),Info_Salariés[[#This Row],[SALAIRE DE BASE]],0) -> 0 | J11: =ROUND(Evaluat°Gratif[[#This Row],[Salaire de base ou Catégoriel]]*Evaluat°Gratif[[#This Row],[TAUX(%)]]*Evaluat°Gratif[[#This Row],[Nbre de jours]]/36000,0) -> 0 | M11: 0
A12: ='10'!$A$1 -> 10 | B12: =IF(AND(Evaluat°Gratif[[#This Row],[Nbre de jours]]<>0,Evaluat°Gratif[[#This Row],[TAUX(%)]]<>0),Info_Salariés[[#This Row],[emploi occupe]],"") ->  | C12: =IF(AND(Evaluat°Gratif[[#This Row],[Nbre de jours]]<>0,Evaluat°Gratif[[#This Row],[TAUX(%)]]<>0),Info_Salariés[[#This Row],[Nom & Prénoms]],"") ->  | D12: =IF(AND(Evaluat°Gratif[[#This Row],[Nbre de jours]]<>0,Evaluat°Gratif[[#This Row],[TAUX(%)]]<>0),Info_Salariés!AW12,0) -> 0 | E12: =+Info_Salariés[[#This Row],[DATE DEPART]] -> 00:00:00 | F12: =+Info_Salariés[[#This Row],[DATE FIN]] -> 00:00:00 | G12: =+DAYS360(Evaluat°Gratif[[#This Row],[DATE DEPART]],Evaluat°Gratif[[#This Row],[DATE FIN]]) -> 0 | H12: =+Info_Salariés[[#This Row],[TAUX(%)]] -> 0 | I12: =IF(AND(Evaluat°Gratif[[#This Row],[Nbre de jours]]<>0,Evaluat°Gratif[[#This Row],[TAUX(%)]]<>0),Info_Salariés[[#This Row],[SALAIRE DE BASE]],0) -> 0 | J12: =ROUND(Evaluat°Gratif[[#This Row],[Salaire de base ou Catégoriel]]*Evaluat°Gratif[[#This Row],[TAUX(%)]]*Evaluat°Gratif[[#This Row],[Nbre de jours]]/36000,0) -> 0 | M12: 0
A13: ='11'!$A$1 -> 11 | B13: =IF(AND(Evaluat°Gratif[[#This Row],[Nbre de jours]]<>0,Evaluat°Gratif[[#This Row],[TAUX(%)]]<>0),Info_Salariés[[#This Row],[emploi occupe]],"") ->  | C13: =IF(AND(Evaluat°Gratif[[#This Row],[Nbre de jours]]<>0,Evaluat°Gratif[[#This Row],[TAUX(%)]]<>0),Info_Salariés[[#This Row],[Nom & Prénoms]],"") ->  | D13: =IF(AND(Evaluat°Gratif[[#This Row],[Nbre de jours]]<>0,Evaluat°Gratif[[#This Row],[TAUX(%)]]<>0),Info_Salariés!AW13,0) -> 0 | E13: =+Info_Salariés[[#This Row],[DATE DEPART]] -> 00:00:00 | F13: =+Info_Salariés[[#This Row],[DATE FIN]] -> 00:00:00 | G13: =+DAYS360(Evaluat°Gratif[[#This Row],[DATE DEPART]],Evaluat°Gratif[[#This Row],[DATE FIN]]) -> 0 | H13: =+Info_Salariés[[#This Row],[TAUX(%)]] -> 0 | I13: =IF(AND(Evaluat°Gratif[[#This Row],[Nbre de jours]]<>0,Evaluat°Gratif[[#This Row],[TAUX(%)]]<>0),Info_Salariés[[#This Row],[SALAIRE DE BASE]],0) -> 0 | J13: =ROUND(Evaluat°Gratif[[#This Row],[Salaire de base ou Catégoriel]]*Evaluat°Gratif[[#This Row],[TAUX(%)]]*Evaluat°Gratif[[#This Row],[Nbre de jours]]/36000,0) -> 0 | M13: 0
A14: ='12'!$A$1 -> 12 | B14: =IF(AND(Evaluat°Gratif[[#This Row],[Nbre de jours]]<>0,Evaluat°Gratif[[#This Row],[TAUX(%)]]<>0),Info_Salariés[[#This Row],[emploi occupe]],"") ->  | C14: =IF(AND(Evaluat°Gratif[[#This Row],[Nbre de jours]]<>0,Evaluat°Gratif[[#This Row],[TAUX(%)]]<>0),Info_Salariés[[#This Row],[Nom & Prénoms]],"") ->  | D14: =IF(AND(Evaluat°Gratif[[#This Row],[Nbre de jours]]<>0,Evaluat°Gratif[[#This Row],[TAUX(%)]]<>0),Info_Salariés!AW14,0) -> 0 | E14: =+Info_Salariés[[#This Row],[DATE DEPART]] -> 00:00:00 | F14: =+Info_Salariés[[#This Row],[DATE FIN]] -> 00:00:00 | G14: =+DAYS360(Evaluat°Gratif[[#This Row],[DATE DEPART]],Evaluat°Gratif[[#This Row],[DATE FIN]]) -> 0 | H14: =+Info_Salariés[[#This Row],[TAUX(%)]] -> 0 | I14: =IF(AND(Evaluat°Gratif[[#This Row],[Nbre de jours]]<>0,Evaluat°Gratif[[#This Row],[TAUX(%)]]<>0),Info_Salariés[[#This Row],[SALAIRE DE BASE]],0) -> 0 | J14: =ROUND(Evaluat°Gratif[[#This Row],[Salaire de base ou Catégoriel]]*Evaluat°Gratif[[#This Row],[TAUX(%)]]*Evaluat°Gratif[[#This Row],[Nbre de jours]]/36000,0) -> 0 | M14: 0
A15: ='13'!$A$1 -> 13 | B15: =IF(AND(Evaluat°Gratif[[#This Row],[Nbre de jours]]<>0,Evaluat°Gratif[[#This Row],[TAUX(%)]]<>0),Info_Salariés[[#This Row],[emploi occupe]],"") ->  | C15: =IF(AND(Evaluat°Gratif[[#This Row],[Nbre de jours]]<>0,Evaluat°Gratif[[#This Row],[TAUX(%)]]<>0),Info_Salariés[[#This Row],[Nom & Prénoms]],"") ->  | D15: =IF(AND(Evaluat°Gratif[[#This Row],[Nbre de jours]]<>0,Evaluat°Gratif[[#This Row],[TAUX(%)]]<>0),Info_Salariés!AW15,0) -> 0 | E15: =+Info_Salariés[[#This Row],[DATE DEPART]] -> 00:00:00 | F15: =+Info_Salariés[[#This Row],[DATE FIN]] -> 00:00:00 | G15: =+DAYS360(Evaluat°Gratif[[#This Row],[DATE DEPART]],Evaluat°Gratif[[#This Row],[DATE FIN]]) -> 0 | H15: =+Info_Salariés[[#This Row],[TAUX(%)]] -> 0 | I15: =IF(AND(Evaluat°Gratif[[#This Row],[Nbre de jours]]<>0,Evaluat°Gratif[[#This Row],[TAUX(%)]]<>0),Info_Salariés[[#This Row],[SALAIRE DE BASE]],0) -> 0 | J15: =ROUND(Evaluat°Gratif[[#This Row],[Salaire de base ou Catégoriel]]*Evaluat°Gratif[[#This Row],[TAUX(%)]]*Evaluat°Gratif[[#This Row],[Nbre de jours]]/36000,0) -> 0 | M15: 0
A16: ='14'!$A$1 -> 14 | B16: =IF(AND(Evaluat°Gratif[[#This Row],[Nbre de jours]]<>0,Evaluat°Gratif[[#This Row],[TAUX(%)]]<>0),Info_Salariés[[#This Row],[emploi occupe]],"") ->  | C16: =IF(AND(Evaluat°Gratif[[#This Row],[Nbre de jours]]<>0,Evaluat°Gratif[[#This Row],[TAUX(%)]]<>0),Info_Salariés[[#This Row],[Nom & Prénoms]],"") ->  | D16: =IF(AND(Evaluat°Gratif[[#This Row],[Nbre de jours]]<>0,Evaluat°Gratif[[#This Row],[TAUX(%)]]<>0),Info_Salariés!AW16,0) -> 0 | E16: =+Info_Salariés[[#This Row],[DATE DEPART]] -> 00:00:00 | F16: =+Info_Salariés[[#This Row],[DATE FIN]] -> 00:00:00 | G16: =+DAYS360(Evaluat°Gratif[[#This Row],[DATE DEPART]],Evaluat°Gratif[[#This Row],[DATE FIN]]) -> 0 | H16: =+Info_Salariés[[#This Row],[TAUX(%)]] -> 0 | I16: =IF(AND(Evaluat°Gratif[[#This Row],[Nbre de jours]]<>0,Evaluat°Gratif[[#This Row],[TAUX(%)]]<>0),Info_Salariés[[#This Row],[SALAIRE DE BASE]],0) -> 0 | J16: =ROUND(Evaluat°Gratif[[#This Row],[Salaire de base ou Catégoriel]]*Evaluat°Gratif[[#This Row],[TAUX(%)]]*Evaluat°Gratif[[#This Row],[Nbre de jours]]/36000,0) -> 0 | M16: 0
A17: ='15'!$A$1 -> 15 | B17: =IF(AND(Evaluat°Gratif[[#This Row],[Nbre de jours]]<>0,Evaluat°Gratif[[#This Row],[TAUX(%)]]<>0),Info_Salariés[[#This Row],[emploi occupe]],"") ->  | C17: =IF(AND(Evaluat°Gratif[[#This Row],[Nbre de jours]]<>0,Evaluat°Gratif[[#This Row],[TAUX(%)]]<>0),Info_Salariés[[#This Row],[Nom & Prénoms]],"") ->  | D17: =IF(AND(Evaluat°Gratif[[#This Row],[Nbre de jours]]<>0,Evaluat°Gratif[[#This Row],[TAUX(%)]]<>0),Info_Salariés!AW17,0) -> 0 | E17: =+Info_Salariés[[#This Row],[DATE DEPART]] -> 00:00:00 | F17: =+Info_Salariés[[#This Row],[DATE FIN]] -> 00:00:00 | G17: =+DAYS360(Evaluat°Gratif[[#This Row],[DATE DEPART]],Evaluat°Gratif[[#This Row],[DATE FIN]]) -> 0 | H17: =+Info_Salariés[[#This Row],[TAUX(%)]] -> 0 | I17: =IF(AND(Evaluat°Gratif[[#This Row],[Nbre de jours]]<>0,Evaluat°Gratif[[#This Row],[TAUX(%)]]<>0),Info_Salariés[[#This Row],[SALAIRE DE BASE]],0) -> 0 | J17: =ROUND(Evaluat°Gratif[[#This Row],[Salaire de base ou Catégoriel]]*Evaluat°Gratif[[#This Row],[TAUX(%)]]*Evaluat°Gratif[[#This Row],[Nbre de jours]]/36000,0) -> 0 | M17: 0
A18: ='16'!$A$1 -> 16 | B18: =IF(AND(Evaluat°Gratif[[#This Row],[Nbre de jours]]<>0,Evaluat°Gratif[[#This Row],[TAUX(%)]]<>0),Info_Salariés[[#This Row],[emploi occupe]],"") ->  | C18: =IF(AND(Evaluat°Gratif[[#This Row],[Nbre de jours]]<>0,Evaluat°Gratif[[#This Row],[TAUX(%)]]<>0),Info_Salariés[[#This Row],[Nom & Prénoms]],"") ->  | D18: =IF(AND(Evaluat°Gratif[[#This Row],[Nbre de jours]]<>0,Evaluat°Gratif[[#This Row],[TAUX(%)]]<>0),Info_Salariés!AW18,0) -> 0 | E18: =+Info_Salariés[[#This Row],[DATE DEPART]] -> 00:00:00 | F18: =+Info_Salariés[[#This Row],[DATE FIN]] -> 00:00:00 | G18: =+DAYS360(Evaluat°Gratif[[#This Row],[DATE DEPART]],Evaluat°Gratif[[#This Row],[DATE FIN]]) -> 0 | H18: =+Info_Salariés[[#This Row],[TAUX(%)]] -> 0 | I18: =IF(AND(Evaluat°Gratif[[#This Row],[Nbre de jours]]<>0,Evaluat°Gratif[[#This Row],[TAUX(%)]]<>0),Info_Salariés[[#This Row],[SALAIRE DE BASE]],0) -> 0 | J18: =ROUND(Evaluat°Gratif[[#This Row],[Salaire de base ou Catégoriel]]*Evaluat°Gratif[[#This Row],[TAUX(%)]]*Evaluat°Gratif[[#This Row],[Nbre de jours]]/36000,0) -> 0 | M18: 0
A19: ='17'!$A$1 -> 17 | B19: =IF(AND(Evaluat°Gratif[[#This Row],[Nbre de jours]]<>0,Evaluat°Gratif[[#This Row],[TAUX(%)]]<>0),Info_Salariés[[#This Row],[emploi occupe]],"") ->  | C19: =IF(AND(Evaluat°Gratif[[#This Row],[Nbre de jours]]<>0,Evaluat°Gratif[[#This Row],[TAUX(%)]]<>0),Info_Salariés[[#This Row],[Nom & Prénoms]],"") ->  | D19: =IF(AND(Evaluat°Gratif[[#This Row],[Nbre de jours]]<>0,Evaluat°Gratif[[#This Row],[TAUX(%)]]<>0),Info_Salariés!AW19,0) -> 0 | E19: =+Info_Salariés[[#This Row],[DATE DEPART]] -> 00:00:00 | F19: =+Info_Salariés[[#This Row],[DATE FIN]] -> 00:00:00 | G19: =+DAYS360(Evaluat°Gratif[[#This Row],[DATE DEPART]],Evaluat°Gratif[[#This Row],[DATE FIN]]) -> 0 | H19: =+Info_Salariés[[#This Row],[TAUX(%)]] -> 0 | I19: =IF(AND(Evaluat°Gratif[[#This Row],[Nbre de jours]]<>0,Evaluat°Gratif[[#This Row],[TAUX(%)]]<>0),Info_Salariés[[#This Row],[SALAIRE DE BASE]],0) -> 0 | J19: =ROUND(Evaluat°Gratif[[#This Row],[Salaire de base ou Catégoriel]]*Evaluat°Gratif[[#This Row],[TAUX(%)]]*Evaluat°Gratif[[#This Row],[Nbre de jours]]/36000,0) -> 0 | M19: 0
A20: ='18'!$A$1 -> 18 | B20: =IF(AND(Evaluat°Gratif[[#This Row],[Nbre de jours]]<>0,Evaluat°Gratif[[#This Row],[TAUX(%)]]<>0),Info_Salariés[[#This Row],[emploi occupe]],"") ->  | C20: =IF(AND(Evaluat°Gratif[[#This Row],[Nbre de jours]]<>0,Evaluat°Gratif[[#This Row],[TAUX(%)]]<>0),Info_Salariés[[#This Row],[Nom & Prénoms]],"") ->  | D20: =IF(AND(Evaluat°Gratif[[#This Row],[Nbre de jours]]<>0,Evaluat°Gratif[[#This Row],[TAUX(%)]]<>0),Info_Salariés!AW20,0) -> 0 | E20: =+Info_Salariés[[#This Row],[DATE DEPART]] -> 00:00:00 | F20: =+Info_Salariés[[#This Row],[DATE FIN]] -> 00:00:00 | G20: =+DAYS360(Evaluat°Gratif[[#This Row],[DATE DEPART]],Evaluat°Gratif[[#This Row],[DATE FIN]]) -> 0 | H20: =+Info_Salariés[[#This Row],[TAUX(%)]] -> 0 | I20: =IF(AND(Evaluat°Gratif[[#This Row],[Nbre de jours]]<>0,Evaluat°Gratif[[#This Row],[TAUX(%)]]<>0),Info_Salariés[[#This Row],[SALAIRE DE BASE]],0) -> 0 | J20: =ROUND(Evaluat°Gratif[[#This Row],[Salaire de base ou Catégoriel]]*Evaluat°Gratif[[#This Row],[TAUX(%)]]*Evaluat°Gratif[[#This Row],[Nbre de jours]]/36000,0) -> 0 | M20: 0
A21: ='19'!$A$1 -> 19 | B21: =IF(AND(Evaluat°Gratif[[#This Row],[Nbre de jours]]<>0,Evaluat°Gratif[[#This Row],[TAUX(%)]]<>0),Info_Salariés[[#This Row],[emploi occupe]],"") ->  | C21: =IF(AND(Evaluat°Gratif[[#This Row],[Nbre de jours]]<>0,Evaluat°Gratif[[#This Row],[TAUX(%)]]<>0),Info_Salariés[[#This Row],[Nom & Prénoms]],"") ->  | D21: =IF(AND(Evaluat°Gratif[[#This Row],[Nbre de jours]]<>0,Evaluat°Gratif[[#This Row],[TAUX(%)]]<>0),Info_Salariés!AW21,0) -> 0 | E21: =+Info_Salariés[[#This Row],[DATE DEPART]] -> 00:00:00 | F21: =+Info_Salariés[[#This Row],[DATE FIN]] -> 00:00:00 | G21: =+DAYS360(Evaluat°Gratif[[#This Row],[DATE DEPART]],Evaluat°Gratif[[#This Row],[DATE FIN]]) -> 0 | H21: =+Info_Salariés[[#This Row],[TAUX(%)]] -> 0 | I21: =IF(AND(Evaluat°Gratif[[#This Row],[Nbre de jours]]<>0,Evaluat°Gratif[[#This Row],[TAUX(%)]]<>0),Info_Salariés[[#This Row],[SALAIRE DE BASE]],0) -> 0 | J21: =ROUND(Evaluat°Gratif[[#This Row],[Salaire de base ou Catégoriel]]*Evaluat°Gratif[[#This Row],[TAUX(%)]]*Evaluat°Gratif[[#This Row],[Nbre de jours]]/36000,0) -> 0 | M21: 0
A22: ='20'!$A$1 -> 20 | B22: =IF(AND(Evaluat°Gratif[[#This Row],[Nbre de jours]]<>0,Evaluat°Gratif[[#This Row],[TAUX(%)]]<>0),Info_Salariés[[#This Row],[emploi occupe]],"") ->  | C22: =IF(AND(Evaluat°Gratif[[#This Row],[Nbre de jours]]<>0,Evaluat°Gratif[[#This Row],[TAUX(%)]]<>0),Info_Salariés[[#This Row],[Nom & Prénoms]],"") ->  | D22: =IF(AND(Evaluat°Gratif[[#This Row],[Nbre de jours]]<>0,Evaluat°Gratif[[#This Row],[TAUX(%)]]<>0),Info_Salariés!AW22,0) -> 0 | E22: =+Info_Salariés[[#This Row],[DATE DEPART]] -> 00:00:00 | F22: =+Info_Salariés[[#This Row],[DATE FIN]] -> 00:00:00 | G22: =+DAYS360(Evaluat°Gratif[[#This Row],[DATE DEPART]],Evaluat°Gratif[[#This Row],[DATE FIN]]) -> 0 | H22: =+Info_Salariés[[#This Row],[TAUX(%)]] -> 0 | I22: =IF(AND(Evaluat°Gratif[[#This Row],[Nbre de jours]]<>0,Evaluat°Gratif[[#This Row],[TAUX(%)]]<>0),Info_Salariés[[#This Row],[SALAIRE DE BASE]],0) -> 0 | J22: =ROUND(Evaluat°Gratif[[#This Row],[Salaire de base ou Catégoriel]]*Evaluat°Gratif[[#This Row],[TAUX(%)]]*Evaluat°Gratif[[#This Row],[Nbre de jours]]/36000,0) -> 0 | M22: 0
A23: ='21'!$A$1 -> 21 | B23: =IF(AND(Evaluat°Gratif[[#This Row],[Nbre de jours]]<>0,Evaluat°Gratif[[#This Row],[TAUX(%)]]<>0),Info_Salariés[[#This Row],[emploi occupe]],"") ->  | C23: =IF(AND(Evaluat°Gratif[[#This Row],[Nbre de jours]]<>0,Evaluat°Gratif[[#This Row],[TAUX(%)]]<>0),Info_Salariés[[#This Row],[Nom & Prénoms]],"") ->  | D23: =IF(AND(Evaluat°Gratif[[#This Row],[Nbre de jours]]<>0,Evaluat°Gratif[[#This Row],[TAUX(%)]]<>0),Info_Salariés!AW23,0) -> 0 | E23: =+Info_Salariés[[#This Row],[DATE DEPART]] -> 00:00:00 | F23: =+Info_Salariés[[#This Row],[DATE FIN]] -> 00:00:00 | G23: =+DAYS360(Evaluat°Gratif[[#This Row],[DATE DEPART]],Evaluat°Gratif[[#This Row],[DATE FIN]]) -> 0 | H23: =+Info_Salariés[[#This Row],[TAUX(%)]] -> 0 | I23: =IF(AND(Evaluat°Gratif[[#This Row],[Nbre de jours]]<>0,Evaluat°Gratif[[#This Row],[TAUX(%)]]<>0),Info_Salariés[[#This Row],[SALAIRE DE BASE]],0) -> 0 | J23: =ROUND(Evaluat°Gratif[[#This Row],[Salaire de base ou Catégoriel]]*Evaluat°Gratif[[#This Row],[TAUX(%)]]*Evaluat°Gratif[[#This Row],[Nbre de jours]]/36000,0) -> 0 | M23: 0
A24: ='22'!$A$1 -> 22 | B24: =IF(AND(Evaluat°Gratif[[#This Row],[Nbre de jours]]<>0,Evaluat°Gratif[[#This Row],[TAUX(%)]]<>0),Info_Salariés[[#This Row],[emploi occupe]],"") ->  | C24: =IF(AND(Evaluat°Gratif[[#This Row],[Nbre de jours]]<>0,Evaluat°Gratif[[#This Row],[TAUX(%)]]<>0),Info_Salariés[[#This Row],[Nom & Prénoms]],"") ->  | D24: =IF(AND(Evaluat°Gratif[[#This Row],[Nbre de jours]]<>0,Evaluat°Gratif[[#This Row],[TAUX(%)]]<>0),Info_Salariés!AW24,0) -> 0 | E24: =+Info_Salariés[[#This Row],[DATE DEPART]] -> 00:00:00 | F24: =+Info_Salariés[[#This Row],[DATE FIN]] -> 00:00:00 | G24: =+DAYS360(Evaluat°Gratif[[#This Row],[DATE DEPART]],Evaluat°Gratif[[#This Row],[DATE FIN]]) -> 0 | H24: =+Info_Salariés[[#This Row],[TAUX(%)]] -> 0 | I24: =IF(AND(Evaluat°Gratif[[#This Row],[Nbre de jours]]<>0,Evaluat°Gratif[[#This Row],[TAUX(%)]]<>0),Info_Salariés[[#This Row],[SALAIRE DE BASE]],0) -> 0 | J24: =ROUND(Evaluat°Gratif[[#This Row],[Salaire de base ou Catégoriel]]*Evaluat°Gratif[[#This Row],[TAUX(%)]]*Evaluat°Gratif[[#This Row],[Nbre de jours]]/36000,0) -> 0 | M24: 0
A25: ='23'!$A$1 -> 23 | B25: =IF(AND(Evaluat°Gratif[[#This Row],[Nbre de jours]]<>0,Evaluat°Gratif[[#This Row],[TAUX(%)]]<>0),Info_Salariés[[#This Row],[emploi occupe]],"") ->  | C25: =IF(AND(Evaluat°Gratif[[#This Row],[Nbre de jours]]<>0,Evaluat°Gratif[[#This Row],[TAUX(%)]]<>0),Info_Salariés[[#This Row],[Nom & Prénoms]],"") ->  | D25: =IF(AND(Evaluat°Gratif[[#This Row],[Nbre de jours]]<>0,Evaluat°Gratif[[#This Row],[TAUX(%)]]<>0),Info_Salariés!AW25,0) -> 0 | E25: =+Info_Salariés[[#This Row],[DATE DEPART]] -> 00:00:00 | F25: =+Info_Salariés[[#This Row],[DATE FIN]] -> 00:00:00 | G25: =+DAYS360(Evaluat°Gratif[[#This Row],[DATE DEPART]],Evaluat°Gratif[[#This Row],[DATE FIN]]) -> 0 | H25: =+Info_Salariés[[#This Row],[TAUX(%)]] -> 0 | I25: =IF(AND(Evaluat°Gratif[[#This Row],[Nbre de jours]]<>0,Evaluat°Gratif[[#This Row],[TAUX(%)]]<>0),Info_Salariés[[#This Row],[SALAIRE DE BASE]],0) -> 0 | J25: =ROUND(Evaluat°Gratif[[#This Row],[Salaire de base ou Catégoriel]]*Evaluat°Gratif[[#This Row],[TAUX(%)]]*Evaluat°Gratif[[#This Row],[Nbre de jours]]/36000,0) -> 0 | M25: 0
A26: ='24'!$A$1 -> 24 | B26: =IF(AND(Evaluat°Gratif[[#This Row],[Nbre de jours]]<>0,Evaluat°Gratif[[#This Row],[TAUX(%)]]<>0),Info_Salariés[[#This Row],[emploi occupe]],"") ->  | C26: =IF(AND(Evaluat°Gratif[[#This Row],[Nbre de jours]]<>0,Evaluat°Gratif[[#This Row],[TAUX(%)]]<>0),Info_Salariés[[#This Row],[Nom & Prénoms]],"") ->  | D26: =IF(AND(Evaluat°Gratif[[#This Row],[Nbre de jours]]<>0,Evaluat°Gratif[[#This Row],[TAUX(%)]]<>0),Info_Salariés!AW26,0) -> 0 | E26: =+Info_Salariés[[#This Row],[DATE DEPART]] -> 00:00:00 | F26: =+Info_Salariés[[#This Row],[DATE FIN]] -> 00:00:00 | G26: =+DAYS360(Evaluat°Gratif[[#This Row],[DATE DEPART]],Evaluat°Gratif[[#This Row],[DATE FIN]]) -> 0 | H26: =+Info_Salariés[[#This Row],[TAUX(%)]] -> 0 | I26: =IF(AND(Evaluat°Gratif[[#This Row],[Nbre de jours]]<>0,Evaluat°Gratif[[#This Row],[TAUX(%)]]<>0),Info_Salariés[[#This Row],[SALAIRE DE BASE]],0) -> 0 | J26: =ROUND(Evaluat°Gratif[[#This Row],[Salaire de base ou Catégoriel]]*Evaluat°Gratif[[#This Row],[TAUX(%)]]*Evaluat°Gratif[[#This Row],[Nbre de jours]]/36000,0) -> 0 | M26: 0
A27: ='25'!$A$1 -> 25 | B27: =IF(AND(Evaluat°Gratif[[#This Row],[Nbre de jours]]<>0,Evaluat°Gratif[[#This Row],[TAUX(%)]]<>0),Info_Salariés[[#This Row],[emploi occupe]],"") ->  | C27: =IF(AND(Evaluat°Gratif[[#This Row],[Nbre de jours]]<>0,Evaluat°Gratif[[#This Row],[TAUX(%)]]<>0),Info_Salariés[[#This Row],[Nom & Prénoms]],"") ->  | D27: =IF(AND(Evaluat°Gratif[[#This Row],[Nbre de jours]]<>0,Evaluat°Gratif[[#This Row],[TAUX(%)]]<>0),Info_Salariés!AW27,0) -> 0 | E27: =+Info_Salariés[[#This Row],[DATE DEPART]] -> 00:00:00 | F27: =+Info_Salariés[[#This Row],[DATE FIN]] -> 00:00:00 | G27: =+DAYS360(Evaluat°Gratif[[#This Row],[DATE DEPART]],Evaluat°Gratif[[#This Row],[DATE FIN]]) -> 0 | H27: =+Info_Salariés[[#This Row],[TAUX(%)]] -> 0 | I27: =IF(AND(Evaluat°Gratif[[#This Row],[Nbre de jours]]<>0,Evaluat°Gratif[[#This Row],[TAUX(%)]]<>0),Info_Salariés[[#This Row],[SALAIRE DE BASE]],0) -> 0 | J27: =ROUND(Evaluat°Gratif[[#This Row],[Salaire de base ou Catégoriel]]*Evaluat°Gratif[[#This Row],[TAUX(%)]]*Evaluat°Gratif[[#This Row],[Nbre de jours]]/36000,0) -> 0 | M27: 0
A28: ='26'!$A$1 -> 26 | B28: =IF(AND(Evaluat°Gratif[[#This Row],[Nbre de jours]]<>0,Evaluat°Gratif[[#This Row],[TAUX(%)]]<>0),Info_Salariés[[#This Row],[emploi occupe]],"") ->  | C28: =IF(AND(Evaluat°Gratif[[#This Row],[Nbre de jours]]<>0,Evaluat°Gratif[[#This Row],[TAUX(%)]]<>0),Info_Salariés[[#This Row],[Nom & Prénoms]],"") ->  | D28: =IF(AND(Evaluat°Gratif[[#This Row],[Nbre de jours]]<>0,Evaluat°Gratif[[#This Row],[TAUX(%)]]<>0),Info_Salariés!AW28,0) -> 0 | E28: =+Info_Salariés[[#This Row],[DATE DEPART]] -> 00:00:00 | F28: =+Info_Salariés[[#This Row],[DATE FIN]] -> 00:00:00 | G28: =+DAYS360(Evaluat°Gratif[[#This Row],[DATE DEPART]],Evaluat°Gratif[[#This Row],[DATE FIN]]) -> 0 | H28: =+Info_Salariés[[#This Row],[TAUX(%)]] -> 0 | I28: =IF(AND(Evaluat°Gratif[[#This Row],[Nbre de jours]]<>0,Evaluat°Gratif[[#This Row],[TAUX(%)]]<>0),Info_Salariés[[#This Row],[SALAIRE DE BASE]],0) -> 0 | J28: =ROUND(Evaluat°Gratif[[#This Row],[Salaire de base ou Catégoriel]]*Evaluat°Gratif[[#This Row],[TAUX(%)]]*Evaluat°Gratif[[#This Row],[Nbre de jours]]/36000,0) -> 0 | M28: 0
A29: ='27'!$A$1 -> 27 | B29: =IF(AND(Evaluat°Gratif[[#This Row],[Nbre de jours]]<>0,Evaluat°Gratif[[#This Row],[TAUX(%)]]<>0),Info_Salariés[[#This Row],[emploi occupe]],"") ->  | C29: =IF(AND(Evaluat°Gratif[[#This Row],[Nbre de jours]]<>0,Evaluat°Gratif[[#This Row],[TAUX(%)]]<>0),Info_Salariés[[#This Row],[Nom & Prénoms]],"") ->  | D29: =IF(AND(Evaluat°Gratif[[#This Row],[Nbre de jours]]<>0,Evaluat°Gratif[[#This Row],[TAUX(%)]]<>0),Info_Salariés!AW29,0) -> 0 | E29: =+Info_Salariés[[#This Row],[DATE DEPART]] -> 00:00:00 | F29: =+Info_Salariés[[#This Row],[DATE FIN]] -> 00:00:00 | G29: =+DAYS360(Evaluat°Gratif[[#This Row],[DATE DEPART]],Evaluat°Gratif[[#This Row],[DATE FIN]]) -> 0 | H29: =+Info_Salariés[[#This Row],[TAUX(%)]] -> 0 | I29: =IF(AND(Evaluat°Gratif[[#This Row],[Nbre de jours]]<>0,Evaluat°Gratif[[#This Row],[TAUX(%)]]<>0),Info_Salariés[[#This Row],[SALAIRE DE BASE]],0) -> 0 | J29: =ROUND(Evaluat°Gratif[[#This Row],[Salaire de base ou Catégoriel]]*Evaluat°Gratif[[#This Row],[TAUX(%)]]*Evaluat°Gratif[[#This Row],[Nbre de jours]]/36000,0) -> 0 | M29: 0
A30: ='28'!$A$1 -> 28 | B30: =IF(AND(Evaluat°Gratif[[#This Row],[Nbre de jours]]<>0,Evaluat°Gratif[[#This Row],[TAUX(%)]]<>0),Info_Salariés[[#This Row],[emploi occupe]],"") ->  | C30: =IF(AND(Evaluat°Gratif[[#This Row],[Nbre de jours]]<>0,Evaluat°Gratif[[#This Row],[TAUX(%)]]<>0),Info_Salariés[[#This Row],[Nom & Prénoms]],"") ->  | D30: =IF(AND(Evaluat°Gratif[[#This Row],[Nbre de jours]]<>0,Evaluat°Gratif[[#This Row],[TAUX(%)]]<>0),Info_Salariés!AW30,0) -> 0 | E30: =+Info_Salariés[[#This Row],[DATE DEPART]] -> 00:00:00 | F30: =+Info_Salariés[[#This Row],[DATE FIN]] -> 00:00:00 | G30: =+DAYS360(Evaluat°Gratif[[#This Row],[DATE DEPART]],Evaluat°Gratif[[#This Row],[DATE FIN]]) -> 0 | H30: =+Info_Salariés[[#This Row],[TAUX(%)]] -> 0 | I30: =IF(AND(Evaluat°Gratif[[#This Row],[Nbre de jours]]<>0,Evaluat°Gratif[[#This Row],[TAUX(%)]]<>0),Info_Salariés[[#This Row],[SALAIRE DE BASE]],0) -> 0 | J30: =ROUND(Evaluat°Gratif[[#This Row],[Salaire de base ou Catégoriel]]*Evaluat°Gratif[[#This Row],[TAUX(%)]]*Evaluat°Gratif[[#This Row],[Nbre de jours]]/36000,0) -> 0 | M30: 0
A31: ='29'!$A$1 -> 29 | B31: =IF(AND(Evaluat°Gratif[[#This Row],[Nbre de jours]]<>0,Evaluat°Gratif[[#This Row],[TAUX(%)]]<>0),Info_Salariés[[#This Row],[emploi occupe]],"") ->  | C31: =IF(AND(Evaluat°Gratif[[#This Row],[Nbre de jours]]<>0,Evaluat°Gratif[[#This Row],[TAUX(%)]]<>0),Info_Salariés[[#This Row],[Nom & Prénoms]],"") ->  | D31: =IF(AND(Evaluat°Gratif[[#This Row],[Nbre de jours]]<>0,Evaluat°Gratif[[#This Row],[TAUX(%)]]<>0),Info_Salariés!AW31,0) -> 0 | E31: =+Info_Salariés[[#This Row],[DATE DEPART]] -> 00:00:00 | F31: =+Info_Salariés[[#This Row],[DATE FIN]] -> 00:00:00 | G31: =+DAYS360(Evaluat°Gratif[[#This Row],[DATE DEPART]],Evaluat°Gratif[[#This Row],[DATE FIN]]) -> 0 | H31: =+Info_Salariés[[#This Row],[TAUX(%)]] -> 0 | I31: =IF(AND(Evaluat°Gratif[[#This Row],[Nbre de jours]]<>0,Evaluat°Gratif[[#This Row],[TAUX(%)]]<>0),Info_Salariés[[#This Row],[SALAIRE DE BASE]],0) -> 0 | J31: =ROUND(Evaluat°Gratif[[#This Row],[Salaire de base ou Catégoriel]]*Evaluat°Gratif[[#This Row],[TAUX(%)]]*Evaluat°Gratif[[#This Row],[Nbre de jours]]/36000,0) -> 0 | M31: 0
A32: ='30'!$A$1 -> 30 | B32: =IF(AND(Evaluat°Gratif[[#This Row],[Nbre de jours]]<>0,Evaluat°Gratif[[#This Row],[TAUX(%)]]<>0),Info_Salariés[[#This Row],[emploi occupe]],"") ->  | C32: =IF(AND(Evaluat°Gratif[[#This Row],[Nbre de jours]]<>0,Evaluat°Gratif[[#This Row],[TAUX(%)]]<>0),Info_Salariés[[#This Row],[Nom & Prénoms]],"") ->  | D32: =IF(AND(Evaluat°Gratif[[#This Row],[Nbre de jours]]<>0,Evaluat°Gratif[[#This Row],[TAUX(%)]]<>0),Info_Salariés!AW32,0) -> 0 | E32: =+Info_Salariés[[#This Row],[DATE DEPART]] -> 00:00:00 | F32: =+Info_Salariés[[#This Row],[DATE FIN]] -> 00:00:00 | G32: =+DAYS360(Evaluat°Gratif[[#This Row],[DATE DEPART]],Evaluat°Gratif[[#This Row],[DATE FIN]]) -> 0 | H32: =+Info_Salariés[[#This Row],[TAUX(%)]] -> 0 | I32: =IF(AND(Evaluat°Gratif[[#This Row],[Nbre de jours]]<>0,Evaluat°Gratif[[#This Row],[TAUX(%)]]<>0),Info_Salariés[[#This Row],[SALAIRE DE BASE]],0) -> 0 | J32: =ROUND(Evaluat°Gratif[[#This Row],[Salaire de base ou Catégoriel]]*Evaluat°Gratif[[#This Row],[TAUX(%)]]*Evaluat°Gratif[[#This Row],[Nbre de jours]]/36000,0) -> 0 | M32: 0
A33: ='31'!$A$1 -> 31 | B33: =IF(AND(Evaluat°Gratif[[#This Row],[Nbre de jours]]<>0,Evaluat°Gratif[[#This Row],[TAUX(%)]]<>0),Info_Salariés[[#This Row],[emploi occupe]],"") ->  | C33: =IF(AND(Evaluat°Gratif[[#This Row],[Nbre de jours]]<>0,Evaluat°Gratif[[#This Row],[TAUX(%)]]<>0),Info_Salariés[[#This Row],[Nom & Prénoms]],"") ->  | D33: =IF(AND(Evaluat°Gratif[[#This Row],[Nbre de jours]]<>0,Evaluat°Gratif[[#This Row],[TAUX(%)]]<>0),Info_Salariés!AW33,0) -> 0 | E33: =+Info_Salariés[[#This Row],[DATE DEPART]] -> 00:00:00 | F33: =+Info_Salariés[[#This Row],[DATE FIN]] -> 00:00:00 | G33: =+DAYS360(Evaluat°Gratif[[#This Row],[DATE DEPART]],Evaluat°Gratif[[#This Row],[DATE FIN]]) -> 0 | H33: =+Info_Salariés[[#This Row],[TAUX(%)]] -> 0 | I33: =IF(AND(Evaluat°Gratif[[#This Row],[Nbre de jours]]<>0,Evaluat°Gratif[[#This Row],[TAUX(%)]]<>0),Info_Salariés[[#This Row],[SALAIRE DE BASE]],0) -> 0 | J33: =ROUND(Evaluat°Gratif[[#This Row],[Salaire de base ou Catégoriel]]*Evaluat°Gratif[[#This Row],[TAUX(%)]]*Evaluat°Gratif[[#This Row],[Nbre de jours]]/36000,0) -> 0 | M33: 0
A34: ='32'!$A$1 -> 32 | B34: =IF(AND(Evaluat°Gratif[[#This Row],[Nbre de jours]]<>0,Evaluat°Gratif[[#This Row],[TAUX(%)]]<>0),Info_Salariés[[#This Row],[emploi occupe]],"") ->  | C34: =IF(AND(Evaluat°Gratif[[#This Row],[Nbre de jours]]<>0,Evaluat°Gratif[[#This Row],[TAUX(%)]]<>0),Info_Salariés[[#This Row],[Nom & Prénoms]],"") ->  | D34: =IF(AND(Evaluat°Gratif[[#This Row],[Nbre de jours]]<>0,Evaluat°Gratif[[#This Row],[TAUX(%)]]<>0),Info_Salariés!AW34,0) -> 0 | E34: =+Info_Salariés[[#This Row],[DATE DEPART]] -> 00:00:00 | F34: =+Info_Salariés[[#This Row],[DATE FIN]] -> 00:00:00 | G34: =+DAYS360(Evaluat°Gratif[[#This Row],[DATE DEPART]],Evaluat°Gratif[[#This Row],[DATE FIN]]) -> 0 | H34: =+Info_Salariés[[#This Row],[TAUX(%)]] -> 0 | I34: =IF(AND(Evaluat°Gratif[[#This Row],[Nbre de jours]]<>0,Evaluat°Gratif[[#This Row],[TAUX(%)]]<>0),Info_Salariés[[#This Row],[SALAIRE DE BASE]],0) -> 0 | J34: =ROUND(Evaluat°Gratif[[#This Row],[Salaire de base ou Catégoriel]]*Evaluat°Gratif[[#This Row],[TAUX(%)]]*Evaluat°Gratif[[#This Row],[Nbre de jours]]/36000,0) -> 0 | M34: 0
A35: ='33'!$A$1 -> 33 | B35: =IF(AND(Evaluat°Gratif[[#This Row],[Nbre de jours]]<>0,Evaluat°Gratif[[#This Row],[TAUX(%)]]<>0),Info_Salariés[[#This Row],[emploi occupe]],"") ->  | C35: =IF(AND(Evaluat°Gratif[[#This Row],[Nbre de jours]]<>0,Evaluat°Gratif[[#This Row],[TAUX(%)]]<>0),Info_Salariés[[#This Row],[Nom & Prénoms]],"") ->  | D35: =IF(AND(Evaluat°Gratif[[#This Row],[Nbre de jours]]<>0,Evaluat°Gratif[[#This Row],[TAUX(%)]]<>0),Info_Salariés!AW35,0) -> 0 | E35: =+Info_Salariés[[#This Row],[DATE DEPART]] -> 00:00:00 | F35: =+Info_Salariés[[#This Row],[DATE FIN]] -> 00:00:00 | G35: =+DAYS360(Evaluat°Gratif[[#This Row],[DATE DEPART]],Evaluat°Gratif[[#This Row],[DATE FIN]]) -> 0 | H35: =+Info_Salariés[[#This Row],[TAUX(%)]] -> 0 | I35: =IF(AND(Evaluat°Gratif[[#This Row],[Nbre de jours]]<>0,Evaluat°Gratif[[#This Row],[TAUX(%)]]<>0),Info_Salariés[[#This Row],[SALAIRE DE BASE]],0) -> 0 | J35: =ROUND(Evaluat°Gratif[[#This Row],[Salaire de base ou Catégoriel]]*Evaluat°Gratif[[#This Row],[TAUX(%)]]*Evaluat°Gratif[[#This Row],[Nbre de jours]]/36000,0) -> 0 | M35: =IF(J35<>0,1,0) -> 0
A36: ='34'!$A$1 -> 34 | B36: =IF(AND(Evaluat°Gratif[[#This Row],[Nbre de jours]]<>0,Evaluat°Gratif[[#This Row],[TAUX(%)]]<>0),Info_Salariés[[#This Row],[emploi occupe]],"") ->  | C36: =IF(AND(Evaluat°Gratif[[#This Row],[Nbre de jours]]<>0,Evaluat°Gratif[[#This Row],[TAUX(%)]]<>0),Info_Salariés[[#This Row],[Nom & Prénoms]],"") ->  | D36: =IF(AND(Evaluat°Gratif[[#This Row],[Nbre de jours]]<>0,Evaluat°Gratif[[#This Row],[TAUX(%)]]<>0),Info_Salariés!AW36,0) -> 0 | E36: =+Info_Salariés[[#This Row],[DATE DEPART]] -> 00:00:00 | F36: =+Info_Salariés[[#This Row],[DATE FIN]] -> 00:00:00 | G36: =+DAYS360(Evaluat°Gratif[[#This Row],[DATE DEPART]],Evaluat°Gratif[[#This Row],[DATE FIN]]) -> 0 | H36: =+Info_Salariés[[#This Row],[TAUX(%)]] -> 0 | I36: =IF(AND(Evaluat°Gratif[[#This Row],[Nbre de jours]]<>0,Evaluat°Gratif[[#This Row],[TAUX(%)]]<>0),Info_Salariés[[#This Row],[SALAIRE DE BASE]],0) -> 0 | J36: =ROUND(Evaluat°Gratif[[#This Row],[Salaire de base ou Catégoriel]]*Evaluat°Gratif[[#This Row],[TAUX(%)]]*Evaluat°Gratif[[#This Row],[Nbre de jours]]/36000,0) -> 0 | M36: 0
A37: ='35'!$A$1 -> 35 | B37: =IF(AND(Evaluat°Gratif[[#This Row],[Nbre de jours]]<>0,Evaluat°Gratif[[#This Row],[TAUX(%)]]<>0),Info_Salariés[[#This Row],[emploi occupe]],"") ->  | C37: =IF(AND(Evaluat°Gratif[[#This Row],[Nbre de jours]]<>0,Evaluat°Gratif[[#This Row],[TAUX(%)]]<>0),Info_Salariés[[#This Row],[Nom & Prénoms]],"") ->  | D37: =IF(AND(Evaluat°Gratif[[#This Row],[Nbre de jours]]<>0,Evaluat°Gratif[[#This Row],[TAUX(%)]]<>0),Info_Salariés!AW37,0) -> 0 | E37: =+Info_Salariés[[#This Row],[DATE DEPART]] -> 00:00:00 | F37: =+Info_Salariés[[#This Row],[DATE FIN]] -> 00:00:00 | G37: =+DAYS360(Evaluat°Gratif[[#This Row],[DATE DEPART]],Evaluat°Gratif[[#This Row],[DATE FIN]]) -> 0 | H37: =+Info_Salariés[[#This Row],[TAUX(%)]] -> 0 | I37: =IF(AND(Evaluat°Gratif[[#This Row],[Nbre de jours]]<>0,Evaluat°Gratif[[#This Row],[TAUX(%)]]<>0),Info_Salariés[[#This Row],[SALAIRE DE BASE]],0) -> 0 | J37: =ROUND(Evaluat°Gratif[[#This Row],[Salaire de base ou Catégoriel]]*Evaluat°Gratif[[#This Row],[TAUX(%)]]*Evaluat°Gratif[[#This Row],[Nbre de jours]]/36000,0) -> 0 | M37: 0
A38: ='36'!$A$1 -> 36 | B38: =IF(AND(Evaluat°Gratif[[#This Row],[Nbre de jours]]<>0,Evaluat°Gratif[[#This Row],[TAUX(%)]]<>0),Info_Salariés[[#This Row],[emploi occupe]],"") ->  | C38: =IF(AND(Evaluat°Gratif[[#This Row],[Nbre de jours]]<>0,Evaluat°Gratif[[#This Row],[TAUX(%)]]<>0),Info_Salariés[[#This Row],[Nom & Prénoms]],"") ->  | D38: =IF(AND(Evaluat°Gratif[[#This Row],[Nbre de jours]]<>0,Evaluat°Gratif[[#This Row],[TAUX(%)]]<>0),Info_Salariés!AW38,0) -> 0 | E38: =+Info_Salariés[[#This Row],[DATE DEPART]] -> 00:00:00 | F38: =+Info_Salariés[[#This Row],[DATE FIN]] -> 00:00:00 | G38: =+DAYS360(Evaluat°Gratif[[#This Row],[DATE DEPART]],Evaluat°Gratif[[#This Row],[DATE FIN]]) -> 0 | H38: =+Info_Salariés[[#This Row],[TAUX(%)]] -> 0 | I38: =IF(AND(Evaluat°Gratif[[#This Row],[Nbre de jours]]<>0,Evaluat°Gratif[[#This Row],[TAUX(%)]]<>0),Info_Salariés[[#This Row],[SALAIRE DE BASE]],0) -> 0 | J38: =ROUND(Evaluat°Gratif[[#This Row],[Salaire de base ou Catégoriel]]*Evaluat°Gratif[[#This Row],[TAUX(%)]]*Evaluat°Gratif[[#This Row],[Nbre de jours]]/36000,0) -> 0 | M38: 0
A39: ='37'!$A$1 -> 37 | B39: =IF(AND(Evaluat°Gratif[[#This Row],[Nbre de jours]]<>0,Evaluat°Gratif[[#This Row],[TAUX(%)]]<>0),Info_Salariés[[#This Row],[emploi occupe]],"") ->  | C39: =IF(AND(Evaluat°Gratif[[#This Row],[Nbre de jours]]<>0,Evaluat°Gratif[[#This Row],[TAUX(%)]]<>0),Info_Salariés[[#This Row],[Nom & Prénoms]],"") ->  | D39: =IF(AND(Evaluat°Gratif[[#This Row],[Nbre de jours]]<>0,Evaluat°Gratif[[#This Row],[TAUX(%)]]<>0),Info_Salariés!AW39,0) -> 0 | E39: =+Info_Salariés[[#This Row],[DATE DEPART]] -> 00:00:00 | F39: =+Info_Salariés[[#This Row],[DATE FIN]] -> 00:00:00 | G39: =+DAYS360(Evaluat°Gratif[[#This Row],[DATE DEPART]],Evaluat°Gratif[[#This Row],[DATE FIN]]) -> 0 | H39: =+Info_Salariés[[#This Row],[TAUX(%)]] -> 0 | I39: =IF(AND(Evaluat°Gratif[[#This Row],[Nbre de jours]]<>0,Evaluat°Gratif[[#This Row],[TAUX(%)]]<>0),Info_Salariés[[#This Row],[SALAIRE DE BASE]],0) -> 0 | J39: =ROUND(Evaluat°Gratif[[#This Row],[Salaire de base ou Catégoriel]]*Evaluat°Gratif[[#This Row],[TAUX(%)]]*Evaluat°Gratif[[#This Row],[Nbre de jours]]/36000,0) -> 0 | M39: 0
A40: ='38'!$A$1 -> 38 | B40: =IF(AND(Evaluat°Gratif[[#This Row],[Nbre de jours]]<>0,Evaluat°Gratif[[#This Row],[TAUX(%)]]<>0),Info_Salariés[[#This Row],[emploi occupe]],"") ->  | C40: =IF(AND(Evaluat°Gratif[[#This Row],[Nbre de jours]]<>0,Evaluat°Gratif[[#This Row],[TAUX(%)]]<>0),Info_Salariés[[#This Row],[Nom & Prénoms]],"") ->  | D40: =IF(AND(Evaluat°Gratif[[#This Row],[Nbre de jours]]<>0,Evaluat°Gratif[[#This Row],[TAUX(%)]]<>0),Info_Salariés!AW40,0) -> 0 | E40: =+Info_Salariés[[#This Row],[DATE DEPART]] -> 00:00:00 | F40: =+Info_Salariés[[#This Row],[DATE FIN]] -> 00:00:00 | G40: =+DAYS360(Evaluat°Gratif[[#This Row],[DATE DEPART]],Evaluat°Gratif[[#This Row],[DATE FIN]]) -> 0 | H40: =+Info_Salariés[[#This Row],[TAUX(%)]] -> 0 | I40: =IF(AND(Evaluat°Gratif[[#This Row],[Nbre de jours]]<>0,Evaluat°Gratif[[#This Row],[TAUX(%)]]<>0),Info_Salariés[[#This Row],[SALAIRE DE BASE]],0) -> 0 | J40: =ROUND(Evaluat°Gratif[[#This Row],[Salaire de base ou Catégoriel]]*Evaluat°Gratif[[#This Row],[TAUX(%)]]*Evaluat°Gratif[[#This Row],[Nbre de jours]]/36000,0) -> 0 | M40: 0
A41: ='39'!$A$1 -> 39 | B41: =IF(AND(Evaluat°Gratif[[#This Row],[Nbre de jours]]<>0,Evaluat°Gratif[[#This Row],[TAUX(%)]]<>0),Info_Salariés[[#This Row],[emploi occupe]],"") ->  | C41: =IF(AND(Evaluat°Gratif[[#This Row],[Nbre de jours]]<>0,Evaluat°Gratif[[#This Row],[TAUX(%)]]<>0),Info_Salariés[[#This Row],[Nom & Prénoms]],"") ->  | D41: =IF(AND(Evaluat°Gratif[[#This Row],[Nbre de jours]]<>0,Evaluat°Gratif[[#This Row],[TAUX(%)]]<>0),Info_Salariés!AW41,0) -> 0 | E41: =+Info_Salariés[[#This Row],[DATE DEPART]] -> 00:00:00 | F41: =+Info_Salariés[[#This Row],[DATE FIN]] -> 00:00:00 | G41: =+DAYS360(Evaluat°Gratif[[#This Row],[DATE DEPART]],Evaluat°Gratif[[#This Row],[DATE FIN]]) -> 0 | H41: =+Info_Salariés[[#This Row],[TAUX(%)]] -> 0 | I41: =IF(AND(Evaluat°Gratif[[#This Row],[Nbre de jours]]<>0,Evaluat°Gratif[[#This Row],[TAUX(%)]]<>0),Info_Salariés[[#This Row],[SALAIRE DE BASE]],0) -> 0 | J41: =ROUND(Evaluat°Gratif[[#This Row],[Salaire de base ou Catégoriel]]*Evaluat°Gratif[[#This Row],[TAUX(%)]]*Evaluat°Gratif[[#This Row],[Nbre de jours]]/36000,0) -> 0 | M41: 0
A42: ='40'!$A$1 -> 40 | B42: =IF(AND(Evaluat°Gratif[[#This Row],[Nbre de jours]]<>0,Evaluat°Gratif[[#This Row],[TAUX(%)]]<>0),Info_Salariés[[#This Row],[emploi occupe]],"") ->  | C42: =IF(AND(Evaluat°Gratif[[#This Row],[Nbre de jours]]<>0,Evaluat°Gratif[[#This Row],[TAUX(%)]]<>0),Info_Salariés[[#This Row],[Nom & Prénoms]],"") ->  | D42: =IF(AND(Evaluat°Gratif[[#This Row],[Nbre de jours]]<>0,Evaluat°Gratif[[#This Row],[TAUX(%)]]<>0),Info_Salariés!AW42,0) -> 0 | E42: =+Info_Salariés[[#This Row],[DATE DEPART]] -> 00:00:00 | F42: =+Info_Salariés[[#This Row],[DATE FIN]] -> 00:00:00 | G42: =+DAYS360(Evaluat°Gratif[[#This Row],[DATE DEPART]],Evaluat°Gratif[[#This Row],[DATE FIN]]) -> 0 | H42: =+Info_Salariés[[#This Row],[TAUX(%)]] -> 0 | I42: =IF(AND(Evaluat°Gratif[[#This Row],[Nbre de jours]]<>0,Evaluat°Gratif[[#This Row],[TAUX(%)]]<>0),Info_Salariés[[#This Row],[SALAIRE DE BASE]],0) -> 0 | J42: =ROUND(Evaluat°Gratif[[#This Row],[Salaire de base ou Catégoriel]]*Evaluat°Gratif[[#This Row],[TAUX(%)]]*Evaluat°Gratif[[#This Row],[Nbre de jours]]/36000,0) -> 0 | M42: 0
A43: ='41'!$A$1 -> 41 | B43: =IF(AND(Evaluat°Gratif[[#This Row],[Nbre de jours]]<>0,Evaluat°Gratif[[#This Row],[TAUX(%)]]<>0),Info_Salariés[[#This Row],[emploi occupe]],"") ->  | C43: =IF(AND(Evaluat°Gratif[[#This Row],[Nbre de jours]]<>0,Evaluat°Gratif[[#This Row],[TAUX(%)]]<>0),Info_Salariés[[#This Row],[Nom & Prénoms]],"") ->  | D43: =IF(AND(Evaluat°Gratif[[#This Row],[Nbre de jours]]<>0,Evaluat°Gratif[[#This Row],[TAUX(%)]]<>0),Info_Salariés!AW43,0) -> 0 | E43: =+Info_Salariés[[#This Row],[DATE DEPART]] -> 00:00:00 | F43: =+Info_Salariés[[#This Row],[DATE FIN]] -> 00:00:00 | G43: =+DAYS360(Evaluat°Gratif[[#This Row],[DATE DEPART]],Evaluat°Gratif[[#This Row],[DATE FIN]]) -> 0 | H43: =+Info_Salariés[[#This Row],[TAUX(%)]] -> 0 | I43: =IF(AND(Evaluat°Gratif[[#This Row],[Nbre de jours]]<>0,Evaluat°Gratif[[#This Row],[TAUX(%)]]<>0),Info_Salariés[[#This Row],[SALAIRE DE BASE]],0) -> 0 | J43: =ROUND(Evaluat°Gratif[[#This Row],[Salaire de base ou Catégoriel]]*Evaluat°Gratif[[#This Row],[TAUX(%)]]*Evaluat°Gratif[[#This Row],[Nbre de jours]]/36000,0) -> 0 | M43: 0
A44: ='42'!$A$1 -> 42 | B44: =IF(AND(Evaluat°Gratif[[#This Row],[Nbre de jours]]<>0,Evaluat°Gratif[[#This Row],[TAUX(%)]]<>0),Info_Salariés[[#This Row],[emploi occupe]],"") ->  | C44: =IF(AND(Evaluat°Gratif[[#This Row],[Nbre de jours]]<>0,Evaluat°Gratif[[#This Row],[TAUX(%)]]<>0),Info_Salariés[[#This Row],[Nom & Prénoms]],"") ->  | D44: =IF(AND(Evaluat°Gratif[[#This Row],[Nbre de jours]]<>0,Evaluat°Gratif[[#This Row],[TAUX(%)]]<>0),Info_Salariés!AW44,0) -> 0 | E44: =+Info_Salariés[[#This Row],[DATE DEPART]] -> 00:00:00 | F44: =+Info_Salariés[[#This Row],[DATE FIN]] -> 00:00:00 | G44: =+DAYS360(Evaluat°Gratif[[#This Row],[DATE DEPART]],Evaluat°Gratif[[#This Row],[DATE FIN]]) -> 0 | H44: =+Info_Salariés[[#This Row],[TAUX(%)]] -> 0 | I44: =IF(AND(Evaluat°Gratif[[#This Row],[Nbre de jours]]<>0,Evaluat°Gratif[[#This Row],[TAUX(%)]]<>0),Info_Salariés[[#This Row],[SALAIRE DE BASE]],0) -> 0 | J44: =ROUND(Evaluat°Gratif[[#This Row],[Salaire de base ou Catégoriel]]*Evaluat°Gratif[[#This Row],[TAUX(%)]]*Evaluat°Gratif[[#This Row],[Nbre de jours]]/36000,0) -> 0 | M44: 0
A45: ='43'!$A$1 -> 43 | B45: =IF(AND(Evaluat°Gratif[[#This Row],[Nbre de jours]]<>0,Evaluat°Gratif[[#This Row],[TAUX(%)]]<>0),Info_Salariés[[#This Row],[emploi occupe]],"") ->  | C45: =IF(AND(Evaluat°Gratif[[#This Row],[Nbre de jours]]<>0,Evaluat°Gratif[[#This Row],[TAUX(%)]]<>0),Info_Salariés[[#This Row],[Nom & Prénoms]],"") ->  | D45: =IF(AND(Evaluat°Gratif[[#This Row],[Nbre de jours]]<>0,Evaluat°Gratif[[#This Row],[TAUX(%)]]<>0),Info_Salariés!AW45,0) -> 0 | E45: =+Info_Salariés[[#This Row],[DATE DEPART]] -> 00:00:00 | F45: =+Info_Salariés[[#This Row],[DATE FIN]] -> 00:00:00 | G45: =+DAYS360(Evaluat°Gratif[[#This Row],[DATE DEPART]],Evaluat°Gratif[[#This Row],[DATE FIN]]) -> 0 | H45: =+Info_Salariés[[#This Row],[TAUX(%)]] -> 0 | I45: =IF(AND(Evaluat°Gratif[[#This Row],[Nbre de jours]]<>0,Evaluat°Gratif[[#This Row],[TAUX(%)]]<>0),Info_Salariés[[#This Row],[SALAIRE DE BASE]],0) -> 0 | J45: =ROUND(Evaluat°Gratif[[#This Row],[Salaire de base ou Catégoriel]]*Evaluat°Gratif[[#This Row],[TAUX(%)]]*Evaluat°Gratif[[#This Row],[Nbre de jours]]/36000,0) -> 0 | M45: 0
A46: ='44'!$A$1 -> 44 | B46: =IF(AND(Evaluat°Gratif[[#This Row],[Nbre de jours]]<>0,Evaluat°Gratif[[#This Row],[TAUX(%)]]<>0),Info_Salariés[[#This Row],[emploi occupe]],"") ->  | C46: =IF(AND(Evaluat°Gratif[[#This Row],[Nbre de jours]]<>0,Evaluat°Gratif[[#This Row],[TAUX(%)]]<>0),Info_Salariés[[#This Row],[Nom & Prénoms]],"") ->  | D46: =IF(AND(Evaluat°Gratif[[#This Row],[Nbre de jours]]<>0,Evaluat°Gratif[[#This Row],[TAUX(%)]]<>0),Info_Salariés!AW46,0) -> 0 | E46: =+Info_Salariés[[#This Row],[DATE DEPART]] -> 00:00:00 | F46: =+Info_Salariés[[#This Row],[DATE FIN]] -> 00:00:00 | G46: =+DAYS360(Evaluat°Gratif[[#This Row],[DATE DEPART]],Evaluat°Gratif[[#This Row],[DATE FIN]]) -> 0 | H46: =+Info_Salariés[[#This Row],[TAUX(%)]] -> 0 | I46: =IF(AND(Evaluat°Gratif[[#This Row],[Nbre de jours]]<>0,Evaluat°Gratif[[#This Row],[TAUX(%)]]<>0),Info_Salariés[[#This Row],[SALAIRE DE BASE]],0) -> 0 | J46: =ROUND(Evaluat°Gratif[[#This Row],[Salaire de base ou Catégoriel]]*Evaluat°Gratif[[#This Row],[TAUX(%)]]*Evaluat°Gratif[[#This Row],[Nbre de jours]]/36000,0) -> 0 | M46: 0
A47: ='45'!$A$1 -> 45 | B47: =IF(AND(Evaluat°Gratif[[#This Row],[Nbre de jours]]<>0,Evaluat°Gratif[[#This Row],[TAUX(%)]]<>0),Info_Salariés[[#This Row],[emploi occupe]],"") ->  | C47: =IF(AND(Evaluat°Gratif[[#This Row],[Nbre de jours]]<>0,Evaluat°Gratif[[#This Row],[TAUX(%)]]<>0),Info_Salariés[[#This Row],[Nom & Prénoms]],"") ->  | D47: =IF(AND(Evaluat°Gratif[[#This Row],[Nbre de jours]]<>0,Evaluat°Gratif[[#This Row],[TAUX(%)]]<>0),Info_Salariés!AW47,0) -> 0 | E47: =+Info_Salariés[[#This Row],[DATE DEPART]] -> 00:00:00 | F47: =+Info_Salariés[[#This Row],[DATE FIN]] -> 00:00:00 | G47: =+DAYS360(Evaluat°Gratif[[#This Row],[DATE DEPART]],Evaluat°Gratif[[#This Row],[DATE FIN]]) -> 0 | H47: =+Info_Salariés[[#This Row],[TAUX(%)]] -> 0 | I47: =IF(AND(Evaluat°Gratif[[#This Row],[Nbre de jours]]<>0,Evaluat°Gratif[[#This Row],[TAUX(%)]]<>0),Info_Salariés[[#This Row],[SALAIRE DE BASE]],0) -> 0 | J47: =ROUND(Evaluat°Gratif[[#This Row],[Salaire de base ou Catégoriel]]*Evaluat°Gratif[[#This Row],[TAUX(%)]]*Evaluat°Gratif[[#This Row],[Nbre de jours]]/36000,0) -> 0 | M47: 0
A48: ='46'!$A$1 -> 46 | B48: =IF(AND(Evaluat°Gratif[[#This Row],[Nbre de jours]]<>0,Evaluat°Gratif[[#This Row],[TAUX(%)]]<>0),Info_Salariés[[#This Row],[emploi occupe]],"") ->  | C48: =IF(AND(Evaluat°Gratif[[#This Row],[Nbre de jours]]<>0,Evaluat°Gratif[[#This Row],[TAUX(%)]]<>0),Info_Salariés[[#This Row],[Nom & Prénoms]],"") ->  | D48: =IF(AND(Evaluat°Gratif[[#This Row],[Nbre de jours]]<>0,Evaluat°Gratif[[#This Row],[TAUX(%)]]<>0),Info_Salariés!AW48,0) -> 0 | E48: =+Info_Salariés[[#This Row],[DATE DEPART]] -> 00:00:00 | F48: =+Info_Salariés[[#This Row],[DATE FIN]] -> 00:00:00 | G48: =+DAYS360(Evaluat°Gratif[[#This Row],[DATE DEPART]],Evaluat°Gratif[[#This Row],[DATE FIN]]) -> 0 | H48: =+Info_Salariés[[#This Row],[TAUX(%)]] -> 0 | I48: =IF(AND(Evaluat°Gratif[[#This Row],[Nbre de jours]]<>0,Evaluat°Gratif[[#This Row],[TAUX(%)]]<>0),Info_Salariés[[#This Row],[SALAIRE DE BASE]],0) -> 0 | J48: =ROUND(Evaluat°Gratif[[#This Row],[Salaire de base ou Catégoriel]]*Evaluat°Gratif[[#This Row],[TAUX(%)]]*Evaluat°Gratif[[#This Row],[Nbre de jours]]/36000,0) -> 0 | M48: 0
A49: ='47'!$A$1 -> 47 | B49: =IF(AND(Evaluat°Gratif[[#This Row],[Nbre de jours]]<>0,Evaluat°Gratif[[#This Row],[TAUX(%)]]<>0),Info_Salariés[[#This Row],[emploi occupe]],"") ->  | C49: =IF(AND(Evaluat°Gratif[[#This Row],[Nbre de jours]]<>0,Evaluat°Gratif[[#This Row],[TAUX(%)]]<>0),Info_Salariés[[#This Row],[Nom & Prénoms]],"") ->  | D49: =IF(AND(Evaluat°Gratif[[#This Row],[Nbre de jours]]<>0,Evaluat°Gratif[[#This Row],[TAUX(%)]]<>0),Info_Salariés!AW49,0) -> 0 | E49: =+Info_Salariés[[#This Row],[DATE DEPART]] -> 00:00:00 | F49: =+Info_Salariés[[#This Row],[DATE FIN]] -> 00:00:00 | G49: =+DAYS360(Evaluat°Gratif[[#This Row],[DATE DEPART]],Evaluat°Gratif[[#This Row],[DATE FIN]]) -> 0 | H49: =+Info_Salariés[[#This Row],[TAUX(%)]] -> 0 | I49: =IF(AND(Evaluat°Gratif[[#This Row],[Nbre de jours]]<>0,Evaluat°Gratif[[#This Row],[TAUX(%)]]<>0),Info_Salariés[[#This Row],[SALAIRE DE BASE]],0) -> 0 | J49: =ROUND(Evaluat°Gratif[[#This Row],[Salaire de base ou Catégoriel]]*Evaluat°Gratif[[#This Row],[TAUX(%)]]*Evaluat°Gratif[[#This Row],[Nbre de jours]]/36000,0) -> 0 | M49: 0
A50: ='48'!$A$1 -> 48 | B50: =IF(AND(Evaluat°Gratif[[#This Row],[Nbre de jours]]<>0,Evaluat°Gratif[[#This Row],[TAUX(%)]]<>0),Info_Salariés[[#This Row],[emploi occupe]],"") ->  | C50: =IF(AND(Evaluat°Gratif[[#This Row],[Nbre de jours]]<>0,Evaluat°Gratif[[#This Row],[TAUX(%)]]<>0),Info_Salariés[[#This Row],[Nom & Prénoms]],"") ->  | D50: =IF(AND(Evaluat°Gratif[[#This Row],[Nbre de jours]]<>0,Evaluat°Gratif[[#This Row],[TAUX(%)]]<>0),Info_Salariés!AW50,0) -> 0 | E50: =+Info_Salariés[[#This Row],[DATE DEPART]] -> 00:00:00 | F50: =+Info_Salariés[[#This Row],[DATE FIN]] -> 00:00:00 | G50: =+DAYS360(Evaluat°Gratif[[#This Row],[DATE DEPART]],Evaluat°Gratif[[#This Row],[DATE FIN]]) -> 0 | H50: =+Info_Salariés[[#This Row],[TAUX(%)]] -> 0 | I50: =IF(AND(Evaluat°Gratif[[#This Row],[Nbre de jours]]<>0,Evaluat°Gratif[[#This Row],[TAUX(%)]]<>0),Info_Salariés[[#This Row],[SALAIRE DE BASE]],0) -> 0 | J50: =ROUND(Evaluat°Gratif[[#This Row],[Salaire de base ou Catégoriel]]*Evaluat°Gratif[[#This Row],[TAUX(%)]]*Evaluat°Gratif[[#This Row],[Nbre de jours]]/36000,0) -> 0 | M50: 0
A51: ='49'!$A$1 -> 49 | B51: =IF(AND(Evaluat°Gratif[[#This Row],[Nbre de jours]]<>0,Evaluat°Gratif[[#This Row],[TAUX(%)]]<>0),Info_Salariés[[#This Row],[emploi occupe]],"") ->  | C51: =IF(AND(Evaluat°Gratif[[#This Row],[Nbre de jours]]<>0,Evaluat°Gratif[[#This Row],[TAUX(%)]]<>0),Info_Salariés[[#This Row],[Nom & Prénoms]],"") ->  | D51: =IF(AND(Evaluat°Gratif[[#This Row],[Nbre de jours]]<>0,Evaluat°Gratif[[#This Row],[TAUX(%)]]<>0),Info_Salariés!AW51,0) -> 0 | E51: =+Info_Salariés[[#This Row],[DATE DEPART]] -> 00:00:00 | F51: =+Info_Salariés[[#This Row],[DATE FIN]] -> 00:00:00 | G51: =+DAYS360(Evaluat°Gratif[[#This Row],[DATE DEPART]],Evaluat°Gratif[[#This Row],[DATE FIN]]) -> 0 | H51: =+Info_Salariés[[#This Row],[TAUX(%)]] -> 0 | I51: =IF(AND(Evaluat°Gratif[[#This Row],[Nbre de jours]]<>0,Evaluat°Gratif[[#This Row],[TAUX(%)]]<>0),Info_Salariés[[#This Row],[SALAIRE DE BASE]],0) -> 0 | J51: =ROUND(Evaluat°Gratif[[#This Row],[Salaire de base ou Catégoriel]]*Evaluat°Gratif[[#This Row],[TAUX(%)]]*Evaluat°Gratif[[#This Row],[Nbre de jours]]/36000,0) -> 0 | M51: 0
A52: ='50'!$A$1 -> 50 | B52: =IF(AND(Evaluat°Gratif[[#This Row],[Nbre de jours]]<>0,Evaluat°Gratif[[#This Row],[TAUX(%)]]<>0),Info_Salariés[[#This Row],[emploi occupe]],"") ->  | C52: =IF(AND(Evaluat°Gratif[[#This Row],[Nbre de jours]]<>0,Evaluat°Gratif[[#This Row],[TAUX(%)]]<>0),Info_Salariés[[#This Row],[Nom & Prénoms]],"") ->  | D52: =IF(AND(Evaluat°Gratif[[#This Row],[Nbre de jours]]<>0,Evaluat°Gratif[[#This Row],[TAUX(%)]]<>0),Info_Salariés!AW52,0) -> 0 | E52: =+Info_Salariés[[#This Row],[DATE DEPART]] -> 00:00:00 | F52: =+Info_Salariés[[#This Row],[DATE FIN]] -> 00:00:00 | G52: =+DAYS360(Evaluat°Gratif[[#This Row],[DATE DEPART]],Evaluat°Gratif[[#This Row],[DATE FIN]]) -> 0 | H52: =+Info_Salariés[[#This Row],[TAUX(%)]] -> 0 | I52: =IF(AND(Evaluat°Gratif[[#This Row],[Nbre de jours]]<>0,Evaluat°Gratif[[#This Row],[TAUX(%)]]<>0),Info_Salariés[[#This Row],[SALAIRE DE BASE]],0) -> 0 | J52: =ROUND(Evaluat°Gratif[[#This Row],[Salaire de base ou Catégoriel]]*Evaluat°Gratif[[#This Row],[TAUX(%)]]*Evaluat°Gratif[[#This Row],[Nbre de jours]]/36000,0) -> 0 | M52: 0
A53: ='51'!$A$1 -> 51 | B53: =IF(AND(Evaluat°Gratif[[#This Row],[Nbre de jours]]<>0,Evaluat°Gratif[[#This Row],[TAUX(%)]]<>0),Info_Salariés[[#This Row],[emploi occupe]],"") ->  | C53: =IF(AND(Evaluat°Gratif[[#This Row],[Nbre de jours]]<>0,Evaluat°Gratif[[#This Row],[TAUX(%)]]<>0),Info_Salariés[[#This Row],[Nom & Prénoms]],"") ->  | D53: =IF(AND(Evaluat°Gratif[[#This Row],[Nbre de jours]]<>0,Evaluat°Gratif[[#This Row],[TAUX(%)]]<>0),Info_Salariés!AW53,0) -> 0 | E53: =+Info_Salariés[[#This Row],[DATE DEPART]] -> 00:00:00 | F53: =+Info_Salariés[[#This Row],[DATE FIN]] -> 00:00:00 | G53: =+DAYS360(Evaluat°Gratif[[#This Row],[DATE DEPART]],Evaluat°Gratif[[#This Row],[DATE FIN]]) -> 0 | H53: =+Info_Salariés[[#This Row],[TAUX(%)]] -> 0 | I53: =IF(AND(Evaluat°Gratif[[#This Row],[Nbre de jours]]<>0,Evaluat°Gratif[[#This Row],[TAUX(%)]]<>0),Info_Salariés[[#This Row],[SALAIRE DE BASE]],0) -> 0 | J53: =ROUND(Evaluat°Gratif[[#This Row],[Salaire de base ou Catégoriel]]*Evaluat°Gratif[[#This Row],[TAUX(%)]]*Evaluat°Gratif[[#This Row],[Nbre de jours]]/36000,0) -> 0 | M53: 0
A54: ='52'!$A$1 -> 52 | B54: =IF(AND(Evaluat°Gratif[[#This Row],[Nbre de jours]]<>0,Evaluat°Gratif[[#This Row],[TAUX(%)]]<>0),Info_Salariés[[#This Row],[emploi occupe]],"") ->  | C54: =IF(AND(Evaluat°Gratif[[#This Row],[Nbre de jours]]<>0,Evaluat°Gratif[[#This Row],[TAUX(%)]]<>0),Info_Salariés[[#This Row],[Nom & Prénoms]],"") ->  | D54: =IF(AND(Evaluat°Gratif[[#This Row],[Nbre de jours]]<>0,Evaluat°Gratif[[#This Row],[TAUX(%)]]<>0),Info_Salariés!AW54,0) -> 0 | E54: =+Info_Salariés[[#This Row],[DATE DEPART]] -> 00:00:00 | F54: =+Info_Salariés[[#This Row],[DATE FIN]] -> 00:00:00 | G54: =+DAYS360(Evaluat°Gratif[[#This Row],[DATE DEPART]],Evaluat°Gratif[[#This Row],[DATE FIN]]) -> 0 | H54: =+Info_Salariés[[#This Row],[TAUX(%)]] -> 0 | I54: =IF(AND(Evaluat°Gratif[[#This Row],[Nbre de jours]]<>0,Evaluat°Gratif[[#This Row],[TAUX(%)]]<>0),Info_Salariés[[#This Row],[SALAIRE DE BASE]],0) -> 0 | J54: =ROUND(Evaluat°Gratif[[#This Row],[Salaire de base ou Catégoriel]]*Evaluat°Gratif[[#This Row],[TAUX(%)]]*Evaluat°Gratif[[#This Row],[Nbre de jours]]/36000,0) -> 0 | M54: 0
A55: ='53'!$A$1 -> 53 | B55: =IF(AND(Evaluat°Gratif[[#This Row],[Nbre de jours]]<>0,Evaluat°Gratif[[#This Row],[TAUX(%)]]<>0),Info_Salariés[[#This Row],[emploi occupe]],"") ->  | C55: =IF(AND(Evaluat°Gratif[[#This Row],[Nbre de jours]]<>0,Evaluat°Gratif[[#This Row],[TAUX(%)]]<>0),Info_Salariés[[#This Row],[Nom & Prénoms]],"") ->  | D55: =IF(AND(Evaluat°Gratif[[#This Row],[Nbre de jours]]<>0,Evaluat°Gratif[[#This Row],[TAUX(%)]]<>0),Info_Salariés!AW55,0) -> 0 | E55: =+Info_Salariés[[#This Row],[DATE DEPART]] -> 00:00:00 | F55: =+Info_Salariés[[#This Row],[DATE FIN]] -> 00:00:00 | G55: =+DAYS360(Evaluat°Gratif[[#This Row],[DATE DEPART]],Evaluat°Gratif[[#This Row],[DATE FIN]]) -> 0 | H55: =+Info_Salariés[[#This Row],[TAUX(%)]] -> 0 | I55: =IF(AND(Evaluat°Gratif[[#This Row],[Nbre de jours]]<>0,Evaluat°Gratif[[#This Row],[TAUX(%)]]<>0),Info_Salariés[[#This Row],[SALAIRE DE BASE]],0) -> 0 | J55: =ROUND(Evaluat°Gratif[[#This Row],[Salaire de base ou Catégoriel]]*Evaluat°Gratif[[#This Row],[TAUX(%)]]*Evaluat°Gratif[[#This Row],[Nbre de jours]]/36000,0) -> 0 | M55: 0
A56: ='54'!$A$1 -> 54 | B56: =IF(AND(Evaluat°Gratif[[#This Row],[Nbre de jours]]<>0,Evaluat°Gratif[[#This Row],[TAUX(%)]]<>0),Info_Salariés[[#This Row],[emploi occupe]],"") ->  | C56: =IF(AND(Evaluat°Gratif[[#This Row],[Nbre de jours]]<>0,Evaluat°Gratif[[#This Row],[TAUX(%)]]<>0),Info_Salariés[[#This Row],[Nom & Prénoms]],"") ->  | D56: =IF(AND(Evaluat°Gratif[[#This Row],[Nbre de jours]]<>0,Evaluat°Gratif[[#This Row],[TAUX(%)]]<>0),Info_Salariés!AW56,0) -> 0 | E56: =+Info_Salariés[[#This Row],[DATE DEPART]] -> 00:00:00 | F56: =+Info_Salariés[[#This Row],[DATE FIN]] -> 00:00:00 | G56: =+DAYS360(Evaluat°Gratif[[#This Row],[DATE DEPART]],Evaluat°Gratif[[#This Row],[DATE FIN]]) -> 0 | H56: =+Info_Salariés[[#This Row],[TAUX(%)]] -> 0 | I56: =IF(AND(Evaluat°Gratif[[#This Row],[Nbre de jours]]<>0,Evaluat°Gratif[[#This Row],[TAUX(%)]]<>0),Info_Salariés[[#This Row],[SALAIRE DE BASE]],0) -> 0 | J56: =ROUND(Evaluat°Gratif[[#This Row],[Salaire de base ou Catégoriel]]*Evaluat°Gratif[[#This Row],[TAUX(%)]]*Evaluat°Gratif[[#This Row],[Nbre de jours]]/36000,0) -> 0 | M56: 0
A57: ='55'!$A$1 -> 55 | B57: =IF(AND(Evaluat°Gratif[[#This Row],[Nbre de jours]]<>0,Evaluat°Gratif[[#This Row],[TAUX(%)]]<>0),Info_Salariés[[#This Row],[emploi occupe]],"") ->  | C57: =IF(AND(Evaluat°Gratif[[#This Row],[Nbre de jours]]<>0,Evaluat°Gratif[[#This Row],[TAUX(%)]]<>0),Info_Salariés[[#This Row],[Nom & Prénoms]],"") ->  | D57: =IF(AND(Evaluat°Gratif[[#This Row],[Nbre de jours]]<>0,Evaluat°Gratif[[#This Row],[TAUX(%)]]<>0),Info_Salariés!AW57,0) -> 0 | E57: =+Info_Salariés[[#This Row],[DATE DEPART]] -> 00:00:00 | F57: =+Info_Salariés[[#This Row],[DATE FIN]] -> 00:00:00 | G57: =+DAYS360(Evaluat°Gratif[[#This Row],[DATE DEPART]],Evaluat°Gratif[[#This Row],[DATE FIN]]) -> 0 | H57: =+Info_Salariés[[#This Row],[TAUX(%)]] -> 0 | I57: =IF(AND(Evaluat°Gratif[[#This Row],[Nbre de jours]]<>0,Evaluat°Gratif[[#This Row],[TAUX(%)]]<>0),Info_Salariés[[#This Row],[SALAIRE DE BASE]],0) -> 0 | J57: =ROUND(Evaluat°Gratif[[#This Row],[Salaire de base ou Catégoriel]]*Evaluat°Gratif[[#This Row],[TAUX(%)]]*Evaluat°Gratif[[#This Row],[Nbre de jours]]/36000,0) -> 0 | M57: 0
A58: ='56'!$A$1 -> 56 | B58: =IF(AND(Evaluat°Gratif[[#This Row],[Nbre de jours]]<>0,Evaluat°Gratif[[#This Row],[TAUX(%)]]<>0),Info_Salariés[[#This Row],[emploi occupe]],"") ->  | C58: =IF(AND(Evaluat°Gratif[[#This Row],[Nbre de jours]]<>0,Evaluat°Gratif[[#This Row],[TAUX(%)]]<>0),Info_Salariés[[#This Row],[Nom & Prénoms]],"") ->  | D58: =IF(AND(Evaluat°Gratif[[#This Row],[Nbre de jours]]<>0,Evaluat°Gratif[[#This Row],[TAUX(%)]]<>0),Info_Salariés!AW58,0) -> 0 | E58: =+Info_Salariés[[#This Row],[DATE DEPART]] -> 00:00:00 | F58: =+Info_Salariés[[#This Row],[DATE FIN]] -> 00:00:00 | G58: =+DAYS360(Evaluat°Gratif[[#This Row],[DATE DEPART]],Evaluat°Gratif[[#This Row],[DATE FIN]]) -> 0 | H58: =+Info_Salariés[[#This Row],[TAUX(%)]] -> 0 | I58: =IF(AND(Evaluat°Gratif[[#This Row],[Nbre de jours]]<>0,Evaluat°Gratif[[#This Row],[TAUX(%)]]<>0),Info_Salariés[[#This Row],[SALAIRE DE BASE]],0) -> 0 | J58: =ROUND(Evaluat°Gratif[[#This Row],[Salaire de base ou Catégoriel]]*Evaluat°Gratif[[#This Row],[TAUX(%)]]*Evaluat°Gratif[[#This Row],[Nbre de jours]]/36000,0) -> 0 | M58: 0
A59: ='57'!$A$1 -> 57 | B59: =IF(AND(Evaluat°Gratif[[#This Row],[Nbre de jours]]<>0,Evaluat°Gratif[[#This Row],[TAUX(%)]]<>0),Info_Salariés[[#This Row],[emploi occupe]],"") ->  | C59: =IF(AND(Evaluat°Gratif[[#This Row],[Nbre de jours]]<>0,Evaluat°Gratif[[#This Row],[TAUX(%)]]<>0),Info_Salariés[[#This Row],[Nom & Prénoms]],"") ->  | D59: =IF(AND(Evaluat°Gratif[[#This Row],[Nbre de jours]]<>0,Evaluat°Gratif[[#This Row],[TAUX(%)]]<>0),Info_Salariés!AW59,0) -> 0 | E59: =+Info_Salariés[[#This Row],[DATE DEPART]] -> 00:00:00 | F59: =+Info_Salariés[[#This Row],[DATE FIN]] -> 00:00:00 | G59: =+DAYS360(Evaluat°Gratif[[#This Row],[DATE DEPART]],Evaluat°Gratif[[#This Row],[DATE FIN]]) -> 0 | H59: =+Info_Salariés[[#This Row],[TAUX(%)]] -> 0 | I59: =IF(AND(Evaluat°Gratif[[#This Row],[Nbre de jours]]<>0,Evaluat°Gratif[[#This Row],[TAUX(%)]]<>0),Info_Salariés[[#This Row],[SALAIRE DE BASE]],0) -> 0 | J59: =ROUND(Evaluat°Gratif[[#This Row],[Salaire de base ou Catégoriel]]*Evaluat°Gratif[[#This Row],[TAUX(%)]]*Evaluat°Gratif[[#This Row],[Nbre de jours]]/36000,0) -> 0 | M59: 0
A60: ='58'!$A$1 -> 58 | B60: =IF(AND(Evaluat°Gratif[[#This Row],[Nbre de jours]]<>0,Evaluat°Gratif[[#This Row],[TAUX(%)]]<>0),Info_Salariés[[#This Row],[emploi occupe]],"") ->  | C60: =IF(AND(Evaluat°Gratif[[#This Row],[Nbre de jours]]<>0,Evaluat°Gratif[[#This Row],[TAUX(%)]]<>0),Info_Salariés[[#This Row],[Nom & Prénoms]],"") ->  | D60: =IF(AND(Evaluat°Gratif[[#This Row],[Nbre de jours]]<>0,Evaluat°Gratif[[#This Row],[TAUX(%)]]<>0),Info_Salariés!AW60,0) -> 0 | E60: =+Info_Salariés[[#This Row],[DATE DEPART]] -> 00:00:00 | F60: =+Info_Salariés[[#This Row],[DATE FIN]] -> 00:00:00 | G60: =+DAYS360(Evaluat°Gratif[[#This Row],[DATE DEPART]],Evaluat°Gratif[[#This Row],[DATE FIN]]) -> 0 | H60: =+Info_Salariés[[#This Row],[TAUX(%)]] -> 0 | I60: =IF(AND(Evaluat°Gratif[[#This Row],[Nbre de jours]]<>0,Evaluat°Gratif[[#This Row],[TAUX(%)]]<>0),Info_Salariés[[#This Row],[SALAIRE DE BASE]],0) -> 0 | J60: =ROUND(Evaluat°Gratif[[#This Row],[Salaire de base ou Catégoriel]]*Evaluat°Gratif[[#This Row],[TAUX(%)]]*Evaluat°Gratif[[#This Row],[Nbre de jours]]/36000,0) -> 0 | M60: 0
A61: ='59'!$A$1 -> 59 | B61: =IF(AND(Evaluat°Gratif[[#This Row],[Nbre de jours]]<>0,Evaluat°Gratif[[#This Row],[TAUX(%)]]<>0),Info_Salariés[[#This Row],[emploi occupe]],"") ->  | C61: =IF(AND(Evaluat°Gratif[[#This Row],[Nbre de jours]]<>0,Evaluat°Gratif[[#This Row],[TAUX(%)]]<>0),Info_Salariés[[#This Row],[Nom & Prénoms]],"") ->  | D61: =IF(AND(Evaluat°Gratif[[#This Row],[Nbre de jours]]<>0,Evaluat°Gratif[[#This Row],[TAUX(%)]]<>0),Info_Salariés!AW61,0) -> 0 | E61: =+Info_Salariés[[#This Row],[DATE DEPART]] -> 00:00:00 | F61: =+Info_Salariés[[#This Row],[DATE FIN]] -> 00:00:00 | G61: =+DAYS360(Evaluat°Gratif[[#This Row],[DATE DEPART]],Evaluat°Gratif[[#This Row],[DATE FIN]]) -> 0 | H61: =+Info_Salariés[[#This Row],[TAUX(%)]] -> 0 | I61: =IF(AND(Evaluat°Gratif[[#This Row],[Nbre de jours]]<>0,Evaluat°Gratif[[#This Row],[TAUX(%)]]<>0),Info_Salariés[[#This Row],[SALAIRE DE BASE]],0) -> 0 | J61: =ROUND(Evaluat°Gratif[[#This Row],[Salaire de base ou Catégoriel]]*Evaluat°Gratif[[#This Row],[TAUX(%)]]*Evaluat°Gratif[[#This Row],[Nbre de jours]]/36000,0) -> 0 | M61: 0
A62: ='60'!$A$1 -> 60 | B62: =IF(AND(Evaluat°Gratif[[#This Row],[Nbre de jours]]<>0,Evaluat°Gratif[[#This Row],[TAUX(%)]]<>0),Info_Salariés[[#This Row],[emploi occupe]],"") ->  | C62: =IF(AND(Evaluat°Gratif[[#This Row],[Nbre de jours]]<>0,Evaluat°Gratif[[#This Row],[TAUX(%)]]<>0),Info_Salariés[[#This Row],[Nom & Prénoms]],"") ->  | D62: =IF(AND(Evaluat°Gratif[[#This Row],[Nbre de jours]]<>0,Evaluat°Gratif[[#This Row],[TAUX(%)]]<>0),Info_Salariés!AW62,0) -> 0 | E62: =+Info_Salariés[[#This Row],[DATE DEPART]] -> 00:00:00 | F62: =+Info_Salariés[[#This Row],[DATE FIN]] -> 00:00:00 | G62: =+DAYS360(Evaluat°Gratif[[#This Row],[DATE DEPART]],Evaluat°Gratif[[#This Row],[DATE FIN]]) -> 0 | H62: =+Info_Salariés[[#This Row],[TAUX(%)]] -> 0 | I62: =IF(AND(Evaluat°Gratif[[#This Row],[Nbre de jours]]<>0,Evaluat°Gratif[[#This Row],[TAUX(%)]]<>0),Info_Salariés[[#This Row],[SALAIRE DE BASE]],0) -> 0 | J62: =ROUND(Evaluat°Gratif[[#This Row],[Salaire de base ou Catégoriel]]*Evaluat°Gratif[[#This Row],[TAUX(%)]]*Evaluat°Gratif[[#This Row],[Nbre de jours]]/36000,0) -> 0 | M62: 0
A63: ='61'!$A$1 -> 61 | B63: =IF(AND(Evaluat°Gratif[[#This Row],[Nbre de jours]]<>0,Evaluat°Gratif[[#This Row],[TAUX(%)]]<>0),Info_Salariés[[#This Row],[emploi occupe]],"") ->  | C63: =IF(AND(Evaluat°Gratif[[#This Row],[Nbre de jours]]<>0,Evaluat°Gratif[[#This Row],[TAUX(%)]]<>0),Info_Salariés[[#This Row],[Nom & Prénoms]],"") ->  | D63: =IF(AND(Evaluat°Gratif[[#This Row],[Nbre de jours]]<>0,Evaluat°Gratif[[#This Row],[TAUX(%)]]<>0),Info_Salariés!AW63,0) -> 0 | E63: =+Info_Salariés[[#This Row],[DATE DEPART]] -> 00:00:00 | F63: =+Info_Salariés[[#This Row],[DATE FIN]] -> 00:00:00 | G63: =+DAYS360(Evaluat°Gratif[[#This Row],[DATE DEPART]],Evaluat°Gratif[[#This Row],[DATE FIN]]) -> 0 | H63: =+Info_Salariés[[#This Row],[TAUX(%)]] -> 0 | I63: =IF(AND(Evaluat°Gratif[[#This Row],[Nbre de jours]]<>0,Evaluat°Gratif[[#This Row],[TAUX(%)]]<>0),Info_Salariés[[#This Row],[SALAIRE DE BASE]],0) -> 0 | J63: =ROUND(Evaluat°Gratif[[#This Row],[Salaire de base ou Catégoriel]]*Evaluat°Gratif[[#This Row],[TAUX(%)]]*Evaluat°Gratif[[#This Row],[Nbre de jours]]/36000,0) -> 0 | M63: 0
A64: ='62'!$A$1 -> 62 | B64: =IF(AND(Evaluat°Gratif[[#This Row],[Nbre de jours]]<>0,Evaluat°Gratif[[#This Row],[TAUX(%)]]<>0),Info_Salariés[[#This Row],[emploi occupe]],"") ->  | C64: =IF(AND(Evaluat°Gratif[[#This Row],[Nbre de jours]]<>0,Evaluat°Gratif[[#This Row],[TAUX(%)]]<>0),Info_Salariés[[#This Row],[Nom & Prénoms]],"") ->  | D64: =IF(AND(Evaluat°Gratif[[#This Row],[Nbre de jours]]<>0,Evaluat°Gratif[[#This Row],[TAUX(%)]]<>0),Info_Salariés!AW64,0) -> 0 | E64: =+Info_Salariés[[#This Row],[DATE DEPART]] -> 00:00:00 | F64: =+Info_Salariés[[#This Row],[DATE FIN]] -> 00:00:00 | G64: =+DAYS360(Evaluat°Gratif[[#This Row],[DATE DEPART]],Evaluat°Gratif[[#This Row],[DATE FIN]]) -> 0 | H64: =+Info_Salariés[[#This Row],[TAUX(%)]] -> 0 | I64: =IF(AND(Evaluat°Gratif[[#This Row],[Nbre de jours]]<>0,Evaluat°Gratif[[#This Row],[TAUX(%)]]<>0),Info_Salariés[[#This Row],[SALAIRE DE BASE]],0) -> 0 | J64: =ROUND(Evaluat°Gratif[[#This Row],[Salaire de base ou Catégoriel]]*Evaluat°Gratif[[#This Row],[TAUX(%)]]*Evaluat°Gratif[[#This Row],[Nbre de jours]]/36000,0) -> 0 | M64: 0
A65: ='63'!$A$1 -> 63 | B65: =IF(AND(Evaluat°Gratif[[#This Row],[Nbre de jours]]<>0,Evaluat°Gratif[[#This Row],[TAUX(%)]]<>0),Info_Salariés[[#This Row],[emploi occupe]],"") ->  | C65: =IF(AND(Evaluat°Gratif[[#This Row],[Nbre de jours]]<>0,Evaluat°Gratif[[#This Row],[TAUX(%)]]<>0),Info_Salariés[[#This Row],[Nom & Prénoms]],"") ->  | D65: =IF(AND(Evaluat°Gratif[[#This Row],[Nbre de jours]]<>0,Evaluat°Gratif[[#This Row],[TAUX(%)]]<>0),Info_Salariés!AW65,0) -> 0 | E65: =+Info_Salariés[[#This Row],[DATE DEPART]] -> 00:00:00 | F65: =+Info_Salariés[[#This Row],[DATE FIN]] -> 00:00:00 | G65: =+DAYS360(Evaluat°Gratif[[#This Row],[DATE DEPART]],Evaluat°Gratif[[#This Row],[DATE FIN]]) -> 0 | H65: =+Info_Salariés[[#This Row],[TAUX(%)]] -> 0 | I65: =IF(AND(Evaluat°Gratif[[#This Row],[Nbre de jours]]<>0,Evaluat°Gratif[[#This Row],[TAUX(%)]]<>0),Info_Salariés[[#This Row],[SALAIRE DE BASE]],0) -> 0 | J65: =ROUND(Evaluat°Gratif[[#This Row],[Salaire de base ou Catégoriel]]*Evaluat°Gratif[[#This Row],[TAUX(%)]]*Evaluat°Gratif[[#This Row],[Nbre de jours]]/36000,0) -> 0 | M65: 0
A66: ='64'!$A$1 -> 64 | B66: =IF(AND(Evaluat°Gratif[[#This Row],[Nbre de jours]]<>0,Evaluat°Gratif[[#This Row],[TAUX(%)]]<>0),Info_Salariés[[#This Row],[emploi occupe]],"") ->  | C66: =IF(AND(Evaluat°Gratif[[#This Row],[Nbre de jours]]<>0,Evaluat°Gratif[[#This Row],[TAUX(%)]]<>0),Info_Salariés[[#This Row],[Nom & Prénoms]],"") ->  | D66: =IF(AND(Evaluat°Gratif[[#This Row],[Nbre de jours]]<>0,Evaluat°Gratif[[#This Row],[TAUX(%)]]<>0),Info_Salariés!AW66,0) -> 0 | E66: =+Info_Salariés[[#This Row],[DATE DEPART]] -> 00:00:00 | F66: =+Info_Salariés[[#This Row],[DATE FIN]] -> 00:00:00 | G66: =+DAYS360(Evaluat°Gratif[[#This Row],[DATE DEPART]],Evaluat°Gratif[[#This Row],[DATE FIN]]) -> 0 | H66: =+Info_Salariés[[#This Row],[TAUX(%)]] -> 0 | I66: =IF(AND(Evaluat°Gratif[[#This Row],[Nbre de jours]]<>0,Evaluat°Gratif[[#This Row],[TAUX(%)]]<>0),Info_Salariés[[#This Row],[SALAIRE DE BASE]],0) -> 0 | J66: =ROUND(Evaluat°Gratif[[#This Row],[Salaire de base ou Catégoriel]]*Evaluat°Gratif[[#This Row],[TAUX(%)]]*Evaluat°Gratif[[#This Row],[Nbre de jours]]/36000,0) -> 0 | M66: 0
A67: ='65'!$A$1 -> 65 | B67: =IF(AND(Evaluat°Gratif[[#This Row],[Nbre de jours]]<>0,Evaluat°Gratif[[#This Row],[TAUX(%)]]<>0),Info_Salariés[[#This Row],[emploi occupe]],"") ->  | C67: =IF(AND(Evaluat°Gratif[[#This Row],[Nbre de jours]]<>0,Evaluat°Gratif[[#This Row],[TAUX(%)]]<>0),Info_Salariés[[#This Row],[Nom & Prénoms]],"") ->  | D67: =IF(AND(Evaluat°Gratif[[#This Row],[Nbre de jours]]<>0,Evaluat°Gratif[[#This Row],[TAUX(%)]]<>0),Info_Salariés!AW67,0) -> 0 | E67: =+Info_Salariés[[#This Row],[DATE DEPART]] -> 00:00:00 | F67: =+Info_Salariés[[#This Row],[DATE FIN]] -> 00:00:00 | G67: =+DAYS360(Evaluat°Gratif[[#This Row],[DATE DEPART]],Evaluat°Gratif[[#This Row],[DATE FIN]]) -> 0 | H67: =+Info_Salariés[[#This Row],[TAUX(%)]] -> 0 | I67: =IF(AND(Evaluat°Gratif[[#This Row],[Nbre de jours]]<>0,Evaluat°Gratif[[#This Row],[TAUX(%)]]<>0),Info_Salariés[[#This Row],[SALAIRE DE BASE]],0) -> 0 | J67: =ROUND(Evaluat°Gratif[[#This Row],[Salaire de base ou Catégoriel]]*Evaluat°Gratif[[#This Row],[TAUX(%)]]*Evaluat°Gratif[[#This Row],[Nbre de jours]]/36000,0) -> 0 | M67: =IF(J67<>0,1,0) -> 0
A68: ='66'!$A$1 -> 66 | B68: =IF(AND(Evaluat°Gratif[[#This Row],[Nbre de jours]]<>0,Evaluat°Gratif[[#This Row],[TAUX(%)]]<>0),Info_Salariés[[#This Row],[emploi occupe]],"") ->  | C68: =IF(AND(Evaluat°Gratif[[#This Row],[Nbre de jours]]<>0,Evaluat°Gratif[[#This Row],[TAUX(%)]]<>0),Info_Salariés[[#This Row],[Nom & Prénoms]],"") ->  | D68: =IF(AND(Evaluat°Gratif[[#This Row],[Nbre de jours]]<>0,Evaluat°Gratif[[#This Row],[TAUX(%)]]<>0),Info_Salariés!AW68,0) -> 0 | E68: =+Info_Salariés[[#This Row],[DATE DEPART]] -> 00:00:00 | F68: =+Info_Salariés[[#This Row],[DATE FIN]] -> 00:00:00 | G68: =+DAYS360(Evaluat°Gratif[[#This Row],[DATE DEPART]],Evaluat°Gratif[[#This Row],[DATE FIN]]) -> 0 | H68: =+Info_Salariés[[#This Row],[TAUX(%)]] -> 0 | I68: =IF(AND(Evaluat°Gratif[[#This Row],[Nbre de jours]]<>0,Evaluat°Gratif[[#This Row],[TAUX(%)]]<>0),Info_Salariés[[#This Row],[SALAIRE DE BASE]],0) -> 0 | J68: =ROUND(Evaluat°Gratif[[#This Row],[Salaire de base ou Catégoriel]]*Evaluat°Gratif[[#This Row],[TAUX(%)]]*Evaluat°Gratif[[#This Row],[Nbre de jours]]/36000,0) -> 0 | M68: 0
A69: ='67'!$A$1 -> 67 | B69: =IF(AND(Evaluat°Gratif[[#This Row],[Nbre de jours]]<>0,Evaluat°Gratif[[#This Row],[TAUX(%)]]<>0),Info_Salariés[[#This Row],[emploi occupe]],"") ->  | C69: =IF(AND(Evaluat°Gratif[[#This Row],[Nbre de jours]]<>0,Evaluat°Gratif[[#This Row],[TAUX(%)]]<>0),Info_Salariés[[#This Row],[Nom & Prénoms]],"") ->  | D69: =IF(AND(Evaluat°Gratif[[#This Row],[Nbre de jours]]<>0,Evaluat°Gratif[[#This Row],[TAUX(%)]]<>0),Info_Salariés!AW69,0) -> 0 | E69: =+Info_Salariés[[#This Row],[DATE DEPART]] -> 00:00:00 | F69: =+Info_Salariés[[#This Row],[DATE FIN]] -> 00:00:00 | G69: =+DAYS360(Evaluat°Gratif[[#This Row],[DATE DEPART]],Evaluat°Gratif[[#This Row],[DATE FIN]]) -> 0 | H69: =+Info_Salariés[[#This Row],[TAUX(%)]] -> 0 | I69: =IF(AND(Evaluat°Gratif[[#This Row],[Nbre de jours]]<>0,Evaluat°Gratif[[#This Row],[TAUX(%)]]<>0),Info_Salariés[[#This Row],[SALAIRE DE BASE]],0) -> 0 | J69: =ROUND(Evaluat°Gratif[[#This Row],[Salaire de base ou Catégoriel]]*Evaluat°Gratif[[#This Row],[TAUX(%)]]*Evaluat°Gratif[[#This Row],[Nbre de jours]]/36000,0) -> 0 | M69: 0
A70: ='68'!$A$1 -> 68 | B70: =IF(AND(Evaluat°Gratif[[#This Row],[Nbre de jours]]<>0,Evaluat°Gratif[[#This Row],[TAUX(%)]]<>0),Info_Salariés[[#This Row],[emploi occupe]],"") ->  | C70: =IF(AND(Evaluat°Gratif[[#This Row],[Nbre de jours]]<>0,Evaluat°Gratif[[#This Row],[TAUX(%)]]<>0),Info_Salariés[[#This Row],[Nom & Prénoms]],"") ->  | D70: =IF(AND(Evaluat°Gratif[[#This Row],[Nbre de jours]]<>0,Evaluat°Gratif[[#This Row],[TAUX(%)]]<>0),Info_Salariés!AW70,0) -> 0 | E70: =+Info_Salariés[[#This Row],[DATE DEPART]] -> 00:00:00 | F70: =+Info_Salariés[[#This Row],[DATE FIN]] -> 00:00:00 | G70: =+DAYS360(Evaluat°Gratif[[#This Row],[DATE DEPART]],Evaluat°Gratif[[#This Row],[DATE FIN]]) -> 0 | H70: =+Info_Salariés[[#This Row],[TAUX(%)]] -> 0 | I70: =IF(AND(Evaluat°Gratif[[#This Row],[Nbre de jours]]<>0,Evaluat°Gratif[[#This Row],[TAUX(%)]]<>0),Info_Salariés[[#This Row],[SALAIRE DE BASE]],0) -> 0 | J70: =ROUND(Evaluat°Gratif[[#This Row],[Salaire de base ou Catégoriel]]*Evaluat°Gratif[[#This Row],[TAUX(%)]]*Evaluat°Gratif[[#This Row],[Nbre de jours]]/36000,0) -> 0 | M70: 0
A71: ='69'!$A$1 -> 69 | B71: =IF(AND(Evaluat°Gratif[[#This Row],[Nbre de jours]]<>0,Evaluat°Gratif[[#This Row],[TAUX(%)]]<>0),Info_Salariés[[#This Row],[emploi occupe]],"") ->  | C71: =IF(AND(Evaluat°Gratif[[#This Row],[Nbre de jours]]<>0,Evaluat°Gratif[[#This Row],[TAUX(%)]]<>0),Info_Salariés[[#This Row],[Nom & Prénoms]],"") ->  | D71: =IF(AND(Evaluat°Gratif[[#This Row],[Nbre de jours]]<>0,Evaluat°Gratif[[#This Row],[TAUX(%)]]<>0),Info_Salariés!AW71,0) -> 0 | E71: =+Info_Salariés[[#This Row],[DATE DEPART]] -> 00:00:00 | F71: =+Info_Salariés[[#This Row],[DATE FIN]] -> 00:00:00 | G71: =+DAYS360(Evaluat°Gratif[[#This Row],[DATE DEPART]],Evaluat°Gratif[[#This Row],[DATE FIN]]) -> 0 | H71: =+Info_Salariés[[#This Row],[TAUX(%)]] -> 0 | I71: =IF(AND(Evaluat°Gratif[[#This Row],[Nbre de jours]]<>0,Evaluat°Gratif[[#This Row],[TAUX(%)]]<>0),Info_Salariés[[#This Row],[SALAIRE DE BASE]],0) -> 0 | J71: =ROUND(Evaluat°Gratif[[#This Row],[Salaire de base ou Catégoriel]]*Evaluat°Gratif[[#This Row],[TAUX(%)]]*Evaluat°Gratif[[#This Row],[Nbre de jours]]/36000,0) -> 0 | M71: 0
A72: ='70'!$A$1 -> 70 | B72: =IF(AND(Evaluat°Gratif[[#This Row],[Nbre de jours]]<>0,Evaluat°Gratif[[#This Row],[TAUX(%)]]<>0),Info_Salariés[[#This Row],[emploi occupe]],"") ->  | C72: =IF(AND(Evaluat°Gratif[[#This Row],[Nbre de jours]]<>0,Evaluat°Gratif[[#This Row],[TAUX(%)]]<>0),Info_Salariés[[#This Row],[Nom & Prénoms]],"") ->  | D72: =IF(AND(Evaluat°Gratif[[#This Row],[Nbre de jours]]<>0,Evaluat°Gratif[[#This Row],[TAUX(%)]]<>0),Info_Salariés!AW72,0) -> 0 | E72: =+Info_Salariés[[#This Row],[DATE DEPART]] -> 00:00:00 | F72: =+Info_Salariés[[#This Row],[DATE FIN]] -> 00:00:00 | G72: =+DAYS360(Evaluat°Gratif[[#This Row],[DATE DEPART]],Evaluat°Gratif[[#This Row],[DATE FIN]]) -> 0 | H72: =+Info_Salariés[[#This Row],[TAUX(%)]] -> 0 | I72: =IF(AND(Evaluat°Gratif[[#This Row],[Nbre de jours]]<>0,Evaluat°Gratif[[#This Row],[TAUX(%)]]<>0),Info_Salariés[[#This Row],[SALAIRE DE BASE]],0) -> 0 | J72: =ROUND(Evaluat°Gratif[[#This Row],[Salaire de base ou Catégoriel]]*Evaluat°Gratif[[#This Row],[TAUX(%)]]*Evaluat°Gratif[[#This Row],[Nbre de jours]]/36000,0) -> 0 | M72: 0
A73: ='71'!$A$1 -> 71 | B73: =IF(AND(Evaluat°Gratif[[#This Row],[Nbre de jours]]<>0,Evaluat°Gratif[[#This Row],[TAUX(%)]]<>0),Info_Salariés[[#This Row],[emploi occupe]],"") ->  | C73: =IF(AND(Evaluat°Gratif[[#This Row],[Nbre de jours]]<>0,Evaluat°Gratif[[#This Row],[TAUX(%)]]<>0),Info_Salariés[[#This Row],[Nom & Prénoms]],"") ->  | D73: =IF(AND(Evaluat°Gratif[[#This Row],[Nbre de jours]]<>0,Evaluat°Gratif[[#This Row],[TAUX(%)]]<>0),Info_Salariés!AW73,0) -> 0 | E73: =+Info_Salariés[[#This Row],[DATE DEPART]] -> 00:00:00 | F73: =+Info_Salariés[[#This Row],[DATE FIN]] -> 00:00:00 | G73: =+DAYS360(Evaluat°Gratif[[#This Row],[DATE DEPART]],Evaluat°Gratif[[#This Row],[DATE FIN]]) -> 0 | H73: =+Info_Salariés[[#This Row],[TAUX(%)]] -> 0 | I73: =IF(AND(Evaluat°Gratif[[#This Row],[Nbre de jours]]<>0,Evaluat°Gratif[[#This Row],[TAUX(%)]]<>0),Info_Salariés[[#This Row],[SALAIRE DE BASE]],0) -> 0 | J73: =ROUND(Evaluat°Gratif[[#This Row],[Salaire de base ou Catégoriel]]*Evaluat°Gratif[[#This Row],[TAUX(%)]]*Evaluat°Gratif[[#This Row],[Nbre de jours]]/36000,0) -> 0 | M73: 0
A74: ='72'!$A$1 -> 72 | B74: =IF(AND(Evaluat°Gratif[[#This Row],[Nbre de jours]]<>0,Evaluat°Gratif[[#This Row],[TAUX(%)]]<>0),Info_Salariés[[#This Row],[emploi occupe]],"") ->  | C74: =IF(AND(Evaluat°Gratif[[#This Row],[Nbre de jours]]<>0,Evaluat°Gratif[[#This Row],[TAUX(%)]]<>0),Info_Salariés[[#This Row],[Nom & Prénoms]],"") ->  | D74: =IF(AND(Evaluat°Gratif[[#This Row],[Nbre de jours]]<>0,Evaluat°Gratif[[#This Row],[TAUX(%)]]<>0),Info_Salariés!AW74,0) -> 0 | E74: =+Info_Salariés[[#This Row],[DATE DEPART]] -> 00:00:00 | F74: =+Info_Salariés[[#This Row],[DATE FIN]] -> 00:00:00 | G74: =+DAYS360(Evaluat°Gratif[[#This Row],[DATE DEPART]],Evaluat°Gratif[[#This Row],[DATE FIN]]) -> 0 | H74: =+Info_Salariés[[#This Row],[TAUX(%)]] -> 0 | I74: =IF(AND(Evaluat°Gratif[[#This Row],[Nbre de jours]]<>0,Evaluat°Gratif[[#This Row],[TAUX(%)]]<>0),Info_Salariés[[#This Row],[SALAIRE DE BASE]],0) -> 0 | J74: =ROUND(Evaluat°Gratif[[#This Row],[Salaire de base ou Catégoriel]]*Evaluat°Gratif[[#This Row],[TAUX(%)]]*Evaluat°Gratif[[#This Row],[Nbre de jours]]/36000,0) -> 0 | M74: 0
A75: ='73'!$A$1 -> 73 | B75: =IF(AND(Evaluat°Gratif[[#This Row],[Nbre de jours]]<>0,Evaluat°Gratif[[#This Row],[TAUX(%)]]<>0),Info_Salariés[[#This Row],[emploi occupe]],"") ->  | C75: =IF(AND(Evaluat°Gratif[[#This Row],[Nbre de jours]]<>0,Evaluat°Gratif[[#This Row],[TAUX(%)]]<>0),Info_Salariés[[#This Row],[Nom & Prénoms]],"") ->  | D75: =IF(AND(Evaluat°Gratif[[#This Row],[Nbre de jours]]<>0,Evaluat°Gratif[[#This Row],[TAUX(%)]]<>0),Info_Salariés!AW75,0) -> 0 | E75: =+Info_Salariés[[#This Row],[DATE DEPART]] -> 00:00:00 | F75: =+Info_Salariés[[#This Row],[DATE FIN]] -> 00:00:00 | G75: =+DAYS360(Evaluat°Gratif[[#This Row],[DATE DEPART]],Evaluat°Gratif[[#This Row],[DATE FIN]]) -> 0 | H75: =+Info_Salariés[[#This Row],[TAUX(%)]] -> 0 | I75: =IF(AND(Evaluat°Gratif[[#This Row],[Nbre de jours]]<>0,Evaluat°Gratif[[#This Row],[TAUX(%)]]<>0),Info_Salariés[[#This Row],[SALAIRE DE BASE]],0) -> 0 | J75: =ROUND(Evaluat°Gratif[[#This Row],[Salaire de base ou Catégoriel]]*Evaluat°Gratif[[#This Row],[TAUX(%)]]*Evaluat°Gratif[[#This Row],[Nbre de jours]]/36000,0) -> 0 | M75: 0
A76: ='74'!$A$1 -> 74 | B76: =IF(AND(Evaluat°Gratif[[#This Row],[Nbre de jours]]<>0,Evaluat°Gratif[[#This Row],[TAUX(%)]]<>0),Info_Salariés[[#This Row],[emploi occupe]],"") ->  | C76: =IF(AND(Evaluat°Gratif[[#This Row],[Nbre de jours]]<>0,Evaluat°Gratif[[#This Row],[TAUX(%)]]<>0),Info_Salariés[[#This Row],[Nom & Prénoms]],"") ->  | D76: =IF(AND(Evaluat°Gratif[[#This Row],[Nbre de jours]]<>0,Evaluat°Gratif[[#This Row],[TAUX(%)]]<>0),Info_Salariés!AW76,0) -> 0 | E76: =+Info_Salariés[[#This Row],[DATE DEPART]] -> 00:00:00 | F76: =+Info_Salariés[[#This Row],[DATE FIN]] -> 00:00:00 | G76: =+DAYS360(Evaluat°Gratif[[#This Row],[DATE DEPART]],Evaluat°Gratif[[#This Row],[DATE FIN]]) -> 0 | H76: =+Info_Salariés[[#This Row],[TAUX(%)]] -> 0 | I76: =IF(AND(Evaluat°Gratif[[#This Row],[Nbre de jours]]<>0,Evaluat°Gratif[[#This Row],[TAUX(%)]]<>0),Info_Salariés[[#This Row],[SALAIRE DE BASE]],0) -> 0 | J76: =ROUND(Evaluat°Gratif[[#This Row],[Salaire de base ou Catégoriel]]*Evaluat°Gratif[[#This Row],[TAUX(%)]]*Evaluat°Gratif[[#This Row],[Nbre de jours]]/36000,0) -> 0 | M76: 0
A77: ='75'!$A$1 -> 75 | B77: =IF(AND(Evaluat°Gratif[[#This Row],[Nbre de jours]]<>0,Evaluat°Gratif[[#This Row],[TAUX(%)]]<>0),Info_Salariés[[#This Row],[emploi occupe]],"") ->  | C77: =IF(AND(Evaluat°Gratif[[#This Row],[Nbre de jours]]<>0,Evaluat°Gratif[[#This Row],[TAUX(%)]]<>0),Info_Salariés[[#This Row],[Nom & Prénoms]],"") ->  | D77: =IF(AND(Evaluat°Gratif[[#This Row],[Nbre de jours]]<>0,Evaluat°Gratif[[#This Row],[TAUX(%)]]<>0),Info_Salariés!AW77,0) -> 0 | E77: =+Info_Salariés[[#This Row],[DATE DEPART]] -> 00:00:00 | F77: =+Info_Salariés[[#This Row],[DATE FIN]] -> 00:00:00 | G77: =+DAYS360(Evaluat°Gratif[[#This Row],[DATE DEPART]],Evaluat°Gratif[[#This Row],[DATE FIN]]) -> 0 | H77: =+Info_Salariés[[#This Row],[TAUX(%)]] -> 0 | I77: =IF(AND(Evaluat°Gratif[[#This Row],[Nbre de jours]]<>0,Evaluat°Gratif[[#This Row],[TAUX(%)]]<>0),Info_Salariés[[#This Row],[SALAIRE DE BASE]],0) -> 0 | J77: =ROUND(Evaluat°Gratif[[#This Row],[Salaire de base ou Catégoriel]]*Evaluat°Gratif[[#This Row],[TAUX(%)]]*Evaluat°Gratif[[#This Row],[Nbre de jours]]/36000,0) -> 0 | M77: 0
A78: ='76'!$A$1 -> 76 | B78: =IF(AND(Evaluat°Gratif[[#This Row],[Nbre de jours]]<>0,Evaluat°Gratif[[#This Row],[TAUX(%)]]<>0),Info_Salariés[[#This Row],[emploi occupe]],"") ->  | C78: =IF(AND(Evaluat°Gratif[[#This Row],[Nbre de jours]]<>0,Evaluat°Gratif[[#This Row],[TAUX(%)]]<>0),Info_Salariés[[#This Row],[Nom & Prénoms]],"") ->  | D78: =IF(AND(Evaluat°Gratif[[#This Row],[Nbre de jours]]<>0,Evaluat°Gratif[[#This Row],[TAUX(%)]]<>0),Info_Salariés!AW78,0) -> 0 | E78: =+Info_Salariés[[#This Row],[DATE DEPART]] -> 00:00:00 | F78: =+Info_Salariés[[#This Row],[DATE FIN]] -> 00:00:00 | G78: =+DAYS360(Evaluat°Gratif[[#This Row],[DATE DEPART]],Evaluat°Gratif[[#This Row],[DATE FIN]]) -> 0 | H78: =+Info_Salariés[[#This Row],[TAUX(%)]] -> 0 | I78: =IF(AND(Evaluat°Gratif[[#This Row],[Nbre de jours]]<>0,Evaluat°Gratif[[#This Row],[TAUX(%)]]<>0),Info_Salariés[[#This Row],[SALAIRE DE BASE]],0) -> 0 | J78: =ROUND(Evaluat°Gratif[[#This Row],[Salaire de base ou Catégoriel]]*Evaluat°Gratif[[#This Row],[TAUX(%)]]*Evaluat°Gratif[[#This Row],[Nbre de jours]]/36000,0) -> 0 | M78: 0
A79: ='77'!$A$1 -> 77 | B79: =IF(AND(Evaluat°Gratif[[#This Row],[Nbre de jours]]<>0,Evaluat°Gratif[[#This Row],[TAUX(%)]]<>0),Info_Salariés[[#This Row],[emploi occupe]],"") ->  | C79: =IF(AND(Evaluat°Gratif[[#This Row],[Nbre de jours]]<>0,Evaluat°Gratif[[#This Row],[TAUX(%)]]<>0),Info_Salariés[[#This Row],[Nom & Prénoms]],"") ->  | D79: =IF(AND(Evaluat°Gratif[[#This Row],[Nbre de jours]]<>0,Evaluat°Gratif[[#This Row],[TAUX(%)]]<>0),Info_Salariés!AW79,0) -> 0 | E79: =+Info_Salariés[[#This Row],[DATE DEPART]] -> 00:00:00 | F79: =+Info_Salariés[[#This Row],[DATE FIN]] -> 00:00:00 | G79: =+DAYS360(Evaluat°Gratif[[#This Row],[DATE DEPART]],Evaluat°Gratif[[#This Row],[DATE FIN]]) -> 0 | H79: =+Info_Salariés[[#This Row],[TAUX(%)]] -> 0 | I79: =IF(AND(Evaluat°Gratif[[#This Row],[Nbre de jours]]<>0,Evaluat°Gratif[[#This Row],[TAUX(%)]]<>0),Info_Salariés[[#This Row],[SALAIRE DE BASE]],0) -> 0 | J79: =ROUND(Evaluat°Gratif[[#This Row],[Salaire de base ou Catégoriel]]*Evaluat°Gratif[[#This Row],[TAUX(%)]]*Evaluat°Gratif[[#This Row],[Nbre de jours]]/36000,0) -> 0 | M79: 0
A80: ='78'!$A$1 -> 78 | B80: =IF(AND(Evaluat°Gratif[[#This Row],[Nbre de jours]]<>0,Evaluat°Gratif[[#This Row],[TAUX(%)]]<>0),Info_Salariés[[#This Row],[emploi occupe]],"") ->  | C80: =IF(AND(Evaluat°Gratif[[#This Row],[Nbre de jours]]<>0,Evaluat°Gratif[[#This Row],[TAUX(%)]]<>0),Info_Salariés[[#This Row],[Nom & Prénoms]],"") ->  | D80: =IF(AND(Evaluat°Gratif[[#This Row],[Nbre de jours]]<>0,Evaluat°Gratif[[#This Row],[TAUX(%)]]<>0),Info_Salariés!AW80,0) -> 0 | E80: =+Info_Salariés[[#This Row],[DATE DEPART]] -> 00:00:00 | F80: =+Info_Salariés[[#This Row],[DATE FIN]] -> 00:00:00 | G80: =+DAYS360(Evaluat°Gratif[[#This Row],[DATE DEPART]],Evaluat°Gratif[[#This Row],[DATE FIN]]) -> 0 | H80: =+Info_Salariés[[#This Row],[TAUX(%)]] -> 0 | I80: =IF(AND(Evaluat°Gratif[[#This Row],[Nbre de jours]]<>0,Evaluat°Gratif[[#This Row],[TAUX(%)]]<>0),Info_Salariés[[#This Row],[SALAIRE DE BASE]],0) -> 0 | J80: =ROUND(Evaluat°Gratif[[#This Row],[Salaire de base ou Catégoriel]]*Evaluat°Gratif[[#This Row],[TAUX(%)]]*Evaluat°Gratif[[#This Row],[Nbre de jours]]/36000,0) -> 0 | M80: 0
A81: ='79'!$A$1 -> 79 | B81: =IF(AND(Evaluat°Gratif[[#This Row],[Nbre de jours]]<>0,Evaluat°Gratif[[#This Row],[TAUX(%)]]<>0),Info_Salariés[[#This Row],[emploi occupe]],"") ->  | C81: =IF(AND(Evaluat°Gratif[[#This Row],[Nbre de jours]]<>0,Evaluat°Gratif[[#This Row],[TAUX(%)]]<>0),Info_Salariés[[#This Row],[Nom & Prénoms]],"") ->  | D81: =IF(AND(Evaluat°Gratif[[#This Row],[Nbre de jours]]<>0,Evaluat°Gratif[[#This Row],[TAUX(%)]]<>0),Info_Salariés!AW81,0) -> 0 | E81: =+Info_Salariés[[#This Row],[DATE DEPART]] -> 00:00:00 | F81: =+Info_Salariés[[#This Row],[DATE FIN]] -> 00:00:00 | G81: =+DAYS360(Evaluat°Gratif[[#This Row],[DATE DEPART]],Evaluat°Gratif[[#This Row],[DATE FIN]]) -> 0 | H81: =+Info_Salariés[[#This Row],[TAUX(%)]] -> 0 | I81: =IF(AND(Evaluat°Gratif[[#This Row],[Nbre de jours]]<>0,Evaluat°Gratif[[#This Row],[TAUX(%)]]<>0),Info_Salariés[[#This Row],[SALAIRE DE BASE]],0) -> 0 | J81: =ROUND(Evaluat°Gratif[[#This Row],[Salaire de base ou Catégoriel]]*Evaluat°Gratif[[#This Row],[TAUX(%)]]*Evaluat°Gratif[[#This Row],[Nbre de jours]]/36000,0) -> 0 | M81: 0
A82: ='80'!$A$1 -> 80 | B82: =IF(AND(Evaluat°Gratif[[#This Row],[Nbre de jours]]<>0,Evaluat°Gratif[[#This Row],[TAUX(%)]]<>0),Info_Salariés[[#This Row],[emploi occupe]],"") ->  | C82: =IF(AND(Evaluat°Gratif[[#This Row],[Nbre de jours]]<>0,Evaluat°Gratif[[#This Row],[TAUX(%)]]<>0),Info_Salariés[[#This Row],[Nom & Prénoms]],"") ->  | D82: =IF(AND(Evaluat°Gratif[[#This Row],[Nbre de jours]]<>0,Evaluat°Gratif[[#This Row],[TAUX(%)]]<>0),Info_Salariés!AW82,0) -> 0 | E82: =+Info_Salariés[[#This Row],[DATE DEPART]] -> 00:00:00 | F82: =+Info_Salariés[[#This Row],[DATE FIN]] -> 00:00:00 | G82: =+DAYS360(Evaluat°Gratif[[#This Row],[DATE DEPART]],Evaluat°Gratif[[#This Row],[DATE FIN]]) -> 0 | H82: =+Info_Salariés[[#This Row],[TAUX(%)]] -> 0 | I82: =IF(AND(Evaluat°Gratif[[#This Row],[Nbre de jours]]<>0,Evaluat°Gratif[[#This Row],[TAUX(%)]]<>0),Info_Salariés[[#This Row],[SALAIRE DE BASE]],0) -> 0 | J82: =ROUND(Evaluat°Gratif[[#This Row],[Salaire de base ou Catégoriel]]*Evaluat°Gratif[[#This Row],[TAUX(%)]]*Evaluat°Gratif[[#This Row],[Nbre de jours]]/36000,0) -> 0 | M82: 0
A83: ='81'!$A$1 -> 81 | B83: =IF(AND(Evaluat°Gratif[[#This Row],[Nbre de jours]]<>0,Evaluat°Gratif[[#This Row],[TAUX(%)]]<>0),Info_Salariés[[#This Row],[emploi occupe]],"") ->  | C83: =IF(AND(Evaluat°Gratif[[#This Row],[Nbre de jours]]<>0,Evaluat°Gratif[[#This Row],[TAUX(%)]]<>0),Info_Salariés[[#This Row],[Nom & Prénoms]],"") ->  | D83: =IF(AND(Evaluat°Gratif[[#This Row],[Nbre de jours]]<>0,Evaluat°Gratif[[#This Row],[TAUX(%)]]<>0),Info_Salariés!AW83,0) -> 0 | E83: =+Info_Salariés[[#This Row],[DATE DEPART]] -> 00:00:00 | F83: =+Info_Salariés[[#This Row],[DATE FIN]] -> 00:00:00 | G83: =+DAYS360(Evaluat°Gratif[[#This Row],[DATE DEPART]],Evaluat°Gratif[[#This Row],[DATE FIN]]) -> 0 | H83: =+Info_Salariés[[#This Row],[TAUX(%)]] -> 0 | I83: =IF(AND(Evaluat°Gratif[[#This Row],[Nbre de jours]]<>0,Evaluat°Gratif[[#This Row],[TAUX(%)]]<>0),Info_Salariés[[#This Row],[SALAIRE DE BASE]],0) -> 0 | J83: =ROUND(Evaluat°Gratif[[#This Row],[Salaire de base ou Catégoriel]]*Evaluat°Gratif[[#This Row],[TAUX(%)]]*Evaluat°Gratif[[#This Row],[Nbre de jours]]/36000,0) -> 0 | M83: 0
A84: ='82'!$A$1 -> 82 | B84: =IF(AND(Evaluat°Gratif[[#This Row],[Nbre de jours]]<>0,Evaluat°Gratif[[#This Row],[TAUX(%)]]<>0),Info_Salariés[[#This Row],[emploi occupe]],"") ->  | C84: =IF(AND(Evaluat°Gratif[[#This Row],[Nbre de jours]]<>0,Evaluat°Gratif[[#This Row],[TAUX(%)]]<>0),Info_Salariés[[#This Row],[Nom & Prénoms]],"") ->  | D84: =IF(AND(Evaluat°Gratif[[#This Row],[Nbre de jours]]<>0,Evaluat°Gratif[[#This Row],[TAUX(%)]]<>0),Info_Salariés!AW84,0) -> 0 | E84: =+Info_Salariés[[#This Row],[DATE DEPART]] -> 00:00:00 | F84: =+Info_Salariés[[#This Row],[DATE FIN]] -> 00:00:00 | G84: =+DAYS360(Evaluat°Gratif[[#This Row],[DATE DEPART]],Evaluat°Gratif[[#This Row],[DATE FIN]]) -> 0 | H84: =+Info_Salariés[[#This Row],[TAUX(%)]] -> 0 | I84: =IF(AND(Evaluat°Gratif[[#This Row],[Nbre de jours]]<>0,Evaluat°Gratif[[#This Row],[TAUX(%)]]<>0),Info_Salariés[[#This Row],[SALAIRE DE BASE]],0) -> 0 | J84: =ROUND(Evaluat°Gratif[[#This Row],[Salaire de base ou Catégoriel]]*Evaluat°Gratif[[#This Row],[TAUX(%)]]*Evaluat°Gratif[[#This Row],[Nbre de jours]]/36000,0) -> 0 | M84: 0
A85: ='83'!$A$1 -> 83 | B85: =IF(AND(Evaluat°Gratif[[#This Row],[Nbre de jours]]<>0,Evaluat°Gratif[[#This Row],[TAUX(%)]]<>0),Info_Salariés[[#This Row],[emploi occupe]],"") ->  | C85: =IF(AND(Evaluat°Gratif[[#This Row],[Nbre de jours]]<>0,Evaluat°Gratif[[#This Row],[TAUX(%)]]<>0),Info_Salariés[[#This Row],[Nom & Prénoms]],"") ->  | D85: =IF(AND(Evaluat°Gratif[[#This Row],[Nbre de jours]]<>0,Evaluat°Gratif[[#This Row],[TAUX(%)]]<>0),Info_Salariés!AW85,0) -> 0 | E85: =+Info_Salariés[[#This Row],[DATE DEPART]] -> 00:00:00 | F85: =+Info_Salariés[[#This Row],[DATE FIN]] -> 00:00:00 | G85: =+DAYS360(Evaluat°Gratif[[#This Row],[DATE DEPART]],Evaluat°Gratif[[#This Row],[DATE FIN]]) -> 0 | H85: =+Info_Salariés[[#This Row],[TAUX(%)]] -> 0 | I85: =IF(AND(Evaluat°Gratif[[#This Row],[Nbre de jours]]<>0,Evaluat°Gratif[[#This Row],[TAUX(%)]]<>0),Info_Salariés[[#This Row],[SALAIRE DE BASE]],0) -> 0 | J85: =ROUND(Evaluat°Gratif[[#This Row],[Salaire de base ou Catégoriel]]*Evaluat°Gratif[[#This Row],[TAUX(%)]]*Evaluat°Gratif[[#This Row],[Nbre de jours]]/36000,0) -> 0 | M85: 0
A86: ='84'!$A$1 -> 84 | B86: =IF(AND(Evaluat°Gratif[[#This Row],[Nbre de jours]]<>0,Evaluat°Gratif[[#This Row],[TAUX(%)]]<>0),Info_Salariés[[#This Row],[emploi occupe]],"") ->  | C86: =IF(AND(Evaluat°Gratif[[#This Row],[Nbre de jours]]<>0,Evaluat°Gratif[[#This Row],[TAUX(%)]]<>0),Info_Salariés[[#This Row],[Nom & Prénoms]],"") ->  | D86: =IF(AND(Evaluat°Gratif[[#This Row],[Nbre de jours]]<>0,Evaluat°Gratif[[#This Row],[TAUX(%)]]<>0),Info_Salariés!AW86,0) -> 0 | E86: =+Info_Salariés[[#This Row],[DATE DEPART]] -> 00:00:00 | F86: =+Info_Salariés[[#This Row],[DATE FIN]] -> 00:00:00 | G86: =+DAYS360(Evaluat°Gratif[[#This Row],[DATE DEPART]],Evaluat°Gratif[[#This Row],[DATE FIN]]) -> 0 | H86: =+Info_Salariés[[#This Row],[TAUX(%)]] -> 0 | I86: =IF(AND(Evaluat°Gratif[[#This Row],[Nbre de jours]]<>0,Evaluat°Gratif[[#This Row],[TAUX(%)]]<>0),Info_Salariés[[#This Row],[SALAIRE DE BASE]],0) -> 0 | J86: =ROUND(Evaluat°Gratif[[#This Row],[Salaire de base ou Catégoriel]]*Evaluat°Gratif[[#This Row],[TAUX(%)]]*Evaluat°Gratif[[#This Row],[Nbre de jours]]/36000,0) -> 0 | M86: 0
A87: ='85'!$A$1 -> 85 | B87: =IF(AND(Evaluat°Gratif[[#This Row],[Nbre de jours]]<>0,Evaluat°Gratif[[#This Row],[TAUX(%)]]<>0),Info_Salariés[[#This Row],[emploi occupe]],"") ->  | C87: =IF(AND(Evaluat°Gratif[[#This Row],[Nbre de jours]]<>0,Evaluat°Gratif[[#This Row],[TAUX(%)]]<>0),Info_Salariés[[#This Row],[Nom & Prénoms]],"") ->  | D87: =IF(AND(Evaluat°Gratif[[#This Row],[Nbre de jours]]<>0,Evaluat°Gratif[[#This Row],[TAUX(%)]]<>0),Info_Salariés!AW87,0) -> 0 | E87: =+Info_Salariés[[#This Row],[DATE DEPART]] -> 00:00:00 | F87: =+Info_Salariés[[#This Row],[DATE FIN]] -> 00:00:00 | G87: =+DAYS360(Evaluat°Gratif[[#This Row],[DATE DEPART]],Evaluat°Gratif[[#This Row],[DATE FIN]]) -> 0 | H87: =+Info_Salariés[[#This Row],[TAUX(%)]] -> 0 | I87: =IF(AND(Evaluat°Gratif[[#This Row],[Nbre de jours]]<>0,Evaluat°Gratif[[#This Row],[TAUX(%)]]<>0),Info_Salariés[[#This Row],[SALAIRE DE BASE]],0) -> 0 | J87: =ROUND(Evaluat°Gratif[[#This Row],[Salaire de base ou Catégoriel]]*Evaluat°Gratif[[#This Row],[TAUX(%)]]*Evaluat°Gratif[[#This Row],[Nbre de jours]]/36000,0) -> 0 | M87: 0
A88: ='86'!$A$1 -> 86 | B88: =IF(AND(Evaluat°Gratif[[#This Row],[Nbre de jours]]<>0,Evaluat°Gratif[[#This Row],[TAUX(%)]]<>0),Info_Salariés[[#This Row],[emploi occupe]],"") ->  | C88: =IF(AND(Evaluat°Gratif[[#This Row],[Nbre de jours]]<>0,Evaluat°Gratif[[#This Row],[TAUX(%)]]<>0),Info_Salariés[[#This Row],[Nom & Prénoms]],"") ->  | D88: =IF(AND(Evaluat°Gratif[[#This Row],[Nbre de jours]]<>0,Evaluat°Gratif[[#This Row],[TAUX(%)]]<>0),Info_Salariés!AW88,0) -> 0 | E88: =+Info_Salariés[[#This Row],[DATE DEPART]] -> 00:00:00 | F88: =+Info_Salariés[[#This Row],[DATE FIN]] -> 00:00:00 | G88: =+DAYS360(Evaluat°Gratif[[#This Row],[DATE DEPART]],Evaluat°Gratif[[#This Row],[DATE FIN]]) -> 0 | H88: =+Info_Salariés[[#This Row],[TAUX(%)]] -> 0 | I88: =IF(AND(Evaluat°Gratif[[#This Row],[Nbre de jours]]<>0,Evaluat°Gratif[[#This Row],[TAUX(%)]]<>0),Info_Salariés[[#This Row],[SALAIRE DE BASE]],0) -> 0 | J88: =ROUND(Evaluat°Gratif[[#This Row],[Salaire de base ou Catégoriel]]*Evaluat°Gratif[[#This Row],[TAUX(%)]]*Evaluat°Gratif[[#This Row],[Nbre de jours]]/36000,0) -> 0 | M88: 0
A89: ='87'!$A$1 -> 87 | B89: =IF(AND(Evaluat°Gratif[[#This Row],[Nbre de jours]]<>0,Evaluat°Gratif[[#This Row],[TAUX(%)]]<>0),Info_Salariés[[#This Row],[emploi occupe]],"") ->  | C89: =IF(AND(Evaluat°Gratif[[#This Row],[Nbre de jours]]<>0,Evaluat°Gratif[[#This Row],[TAUX(%)]]<>0),Info_Salariés[[#This Row],[Nom & Prénoms]],"") ->  | D89: =IF(AND(Evaluat°Gratif[[#This Row],[Nbre de jours]]<>0,Evaluat°Gratif[[#This Row],[TAUX(%)]]<>0),Info_Salariés!AW89,0) -> 0 | E89: =+Info_Salariés[[#This Row],[DATE DEPART]] -> 00:00:00 | F89: =+Info_Salariés[[#This Row],[DATE FIN]] -> 00:00:00 | G89: =+DAYS360(Evaluat°Gratif[[#This Row],[DATE DEPART]],Evaluat°Gratif[[#This Row],[DATE FIN]]) -> 0 | H89: =+Info_Salariés[[#This Row],[TAUX(%)]] -> 0 | I89: =IF(AND(Evaluat°Gratif[[#This Row],[Nbre de jours]]<>0,Evaluat°Gratif[[#This Row],[TAUX(%)]]<>0),Info_Salariés[[#This Row],[SALAIRE DE BASE]],0) -> 0 | J89: =ROUND(Evaluat°Gratif[[#This Row],[Salaire de base ou Catégoriel]]*Evaluat°Gratif[[#This Row],[TAUX(%)]]*Evaluat°Gratif[[#This Row],[Nbre de jours]]/36000,0) -> 0 | M89: 0
A90: ='88'!$A$1 -> 88 | B90: =IF(AND(Evaluat°Gratif[[#This Row],[Nbre de jours]]<>0,Evaluat°Gratif[[#This Row],[TAUX(%)]]<>0),Info_Salariés[[#This Row],[emploi occupe]],"") ->  | C90: =IF(AND(Evaluat°Gratif[[#This Row],[Nbre de jours]]<>0,Evaluat°Gratif[[#This Row],[TAUX(%)]]<>0),Info_Salariés[[#This Row],[Nom & Prénoms]],"") ->  | D90: =IF(AND(Evaluat°Gratif[[#This Row],[Nbre de jours]]<>0,Evaluat°Gratif[[#This Row],[TAUX(%)]]<>0),Info_Salariés!AW90,0) -> 0 | E90: =+Info_Salariés[[#This Row],[DATE DEPART]] -> 00:00:00 | F90: =+Info_Salariés[[#This Row],[DATE FIN]] -> 00:00:00 | G90: =+DAYS360(Evaluat°Gratif[[#This Row],[DATE DEPART]],Evaluat°Gratif[[#This Row],[DATE FIN]]) -> 0 | H90: =+Info_Salariés[[#This Row],[TAUX(%)]] -> 0 | I90: =IF(AND(Evaluat°Gratif[[#This Row],[Nbre de jours]]<>0,Evaluat°Gratif[[#This Row],[TAUX(%)]]<>0),Info_Salariés[[#This Row],[SALAIRE DE BASE]],0) -> 0 | J90: =ROUND(Evaluat°Gratif[[#This Row],[Salaire de base ou Catégoriel]]*Evaluat°Gratif[[#This Row],[TAUX(%)]]*Evaluat°Gratif[[#This Row],[Nbre de jours]]/36000,0) -> 0 | M90: 0
A91: ='89'!$A$1 -> 89 | B91: =IF(AND(Evaluat°Gratif[[#This Row],[Nbre de jours]]<>0,Evaluat°Gratif[[#This Row],[TAUX(%)]]<>0),Info_Salariés[[#This Row],[emploi occupe]],"") ->  | C91: =IF(AND(Evaluat°Gratif[[#This Row],[Nbre de jours]]<>0,Evaluat°Gratif[[#This Row],[TAUX(%)]]<>0),Info_Salariés[[#This Row],[Nom & Prénoms]],"") ->  | D91: =IF(AND(Evaluat°Gratif[[#This Row],[Nbre de jours]]<>0,Evaluat°Gratif[[#This Row],[TAUX(%)]]<>0),Info_Salariés!AW91,0) -> 0 | E91: =+Info_Salariés[[#This Row],[DATE DEPART]] -> 00:00:00 | F91: =+Info_Salariés[[#This Row],[DATE FIN]] -> 00:00:00 | G91: =+DAYS360(Evaluat°Gratif[[#This Row],[DATE DEPART]],Evaluat°Gratif[[#This Row],[DATE FIN]]) -> 0 | H91: =+Info_Salariés[[#This Row],[TAUX(%)]] -> 0 | I91: =IF(AND(Evaluat°Gratif[[#This Row],[Nbre de jours]]<>0,Evaluat°Gratif[[#This Row],[TAUX(%)]]<>0),Info_Salariés[[#This Row],[SALAIRE DE BASE]],0) -> 0 | J91: =ROUND(Evaluat°Gratif[[#This Row],[Salaire de base ou Catégoriel]]*Evaluat°Gratif[[#This Row],[TAUX(%)]]*Evaluat°Gratif[[#This Row],[Nbre de jours]]/36000,0) -> 0 | M91: 0
A92: ='90'!$A$1 -> 90 | B92: =IF(AND(Evaluat°Gratif[[#This Row],[Nbre de jours]]<>0,Evaluat°Gratif[[#This Row],[TAUX(%)]]<>0),Info_Salariés[[#This Row],[emploi occupe]],"") ->  | C92: =IF(AND(Evaluat°Gratif[[#This Row],[Nbre de jours]]<>0,Evaluat°Gratif[[#This Row],[TAUX(%)]]<>0),Info_Salariés[[#This Row],[Nom & Prénoms]],"") ->  | D92: =IF(AND(Evaluat°Gratif[[#This Row],[Nbre de jours]]<>0,Evaluat°Gratif[[#This Row],[TAUX(%)]]<>0),Info_Salariés!AW92,0) -> 0 | E92: =+Info_Salariés[[#This Row],[DATE DEPART]] -> 00:00:00 | F92: =+Info_Salariés[[#This Row],[DATE FIN]] -> 00:00:00 | G92: =+DAYS360(Evaluat°Gratif[[#This Row],[DATE DEPART]],Evaluat°Gratif[[#This Row],[DATE FIN]]) -> 0 | H92: =+Info_Salariés[[#This Row],[TAUX(%)]] -> 0 | I92: =IF(AND(Evaluat°Gratif[[#This Row],[Nbre de jours]]<>0,Evaluat°Gratif[[#This Row],[TAUX(%)]]<>0),Info_Salariés[[#This Row],[SALAIRE DE BASE]],0) -> 0 | J92: =ROUND(Evaluat°Gratif[[#This Row],[Salaire de base ou Catégoriel]]*Evaluat°Gratif[[#This Row],[TAUX(%)]]*Evaluat°Gratif[[#This Row],[Nbre de jours]]/36000,0) -> 0 | M92: 0
A93: ='91'!$A$1 -> 91 | B93: =IF(AND(Evaluat°Gratif[[#This Row],[Nbre de jours]]<>0,Evaluat°Gratif[[#This Row],[TAUX(%)]]<>0),Info_Salariés[[#This Row],[emploi occupe]],"") ->  | C93: =IF(AND(Evaluat°Gratif[[#This Row],[Nbre de jours]]<>0,Evaluat°Gratif[[#This Row],[TAUX(%)]]<>0),Info_Salariés[[#This Row],[Nom & Prénoms]],"") ->  | D93: =IF(AND(Evaluat°Gratif[[#This Row],[Nbre de jours]]<>0,Evaluat°Gratif[[#This Row],[TAUX(%)]]<>0),Info_Salariés!AW93,0) -> 0 | E93: =+Info_Salariés[[#This Row],[DATE DEPART]] -> 00:00:00 | F93: =+Info_Salariés[[#This Row],[DATE FIN]] -> 00:00:00 | G93: =+DAYS360(Evaluat°Gratif[[#This Row],[DATE DEPART]],Evaluat°Gratif[[#This Row],[DATE FIN]]) -> 0 | H93: =+Info_Salariés[[#This Row],[TAUX(%)]] -> 0 | I93: =IF(AND(Evaluat°Gratif[[#This Row],[Nbre de jours]]<>0,Evaluat°Gratif[[#This Row],[TAUX(%)]]<>0),Info_Salariés[[#This Row],[SALAIRE DE BASE]],0) -> 0 | J93: =ROUND(Evaluat°Gratif[[#This Row],[Salaire de base ou Catégoriel]]*Evaluat°Gratif[[#This Row],[TAUX(%)]]*Evaluat°Gratif[[#This Row],[Nbre de jours]]/36000,0) -> 0 | M93: 0
A94: ='92'!$A$1 -> 92 | B94: =IF(AND(Evaluat°Gratif[[#This Row],[Nbre de jours]]<>0,Evaluat°Gratif[[#This Row],[TAUX(%)]]<>0),Info_Salariés[[#This Row],[emploi occupe]],"") ->  | C94: =IF(AND(Evaluat°Gratif[[#This Row],[Nbre de jours]]<>0,Evaluat°Gratif[[#This Row],[TAUX(%)]]<>0),Info_Salariés[[#This Row],[Nom & Prénoms]],"") ->  | D94: =IF(AND(Evaluat°Gratif[[#This Row],[Nbre de jours]]<>0,Evaluat°Gratif[[#This Row],[TAUX(%)]]<>0),Info_Salariés!AW94,0) -> 0 | E94: =+Info_Salariés[[#This Row],[DATE DEPART]] -> 00:00:00 | F94: =+Info_Salariés[[#This Row],[DATE FIN]] -> 00:00:00 | G94: =+DAYS360(Evaluat°Gratif[[#This Row],[DATE DEPART]],Evaluat°Gratif[[#This Row],[DATE FIN]]) -> 0 | H94: =+Info_Salariés[[#This Row],[TAUX(%)]] -> 0 | I94: =IF(AND(Evaluat°Gratif[[#This Row],[Nbre de jours]]<>0,Evaluat°Gratif[[#This Row],[TAUX(%)]]<>0),Info_Salariés[[#This Row],[SALAIRE DE BASE]],0) -> 0 | J94: =ROUND(Evaluat°Gratif[[#This Row],[Salaire de base ou Catégoriel]]*Evaluat°Gratif[[#This Row],[TAUX(%)]]*Evaluat°Gratif[[#This Row],[Nbre de jours]]/36000,0) -> 0 | M94: 0
A95: ='93'!$A$1 -> 93 | B95: =IF(AND(Evaluat°Gratif[[#This Row],[Nbre de jours]]<>0,Evaluat°Gratif[[#This Row],[TAUX(%)]]<>0),Info_Salariés[[#This Row],[emploi occupe]],"") ->  | C95: =IF(AND(Evaluat°Gratif[[#This Row],[Nbre de jours]]<>0,Evaluat°Gratif[[#This Row],[TAUX(%)]]<>0),Info_Salariés[[#This Row],[Nom & Prénoms]],"") ->  | D95: =IF(AND(Evaluat°Gratif[[#This Row],[Nbre de jours]]<>0,Evaluat°Gratif[[#This Row],[TAUX(%)]]<>0),Info_Salariés!AW95,0) -> 0 | E95: =+Info_Salariés[[#This Row],[DATE DEPART]] -> 00:00:00 | F95: =+Info_Salariés[[#This Row],[DATE FIN]] -> 00:00:00 | G95: =+DAYS360(Evaluat°Gratif[[#This Row],[DATE DEPART]],Evaluat°Gratif[[#This Row],[DATE FIN]]) -> 0 | H95: =+Info_Salariés[[#This Row],[TAUX(%)]] -> 0 | I95: =IF(AND(Evaluat°Gratif[[#This Row],[Nbre de jours]]<>0,Evaluat°Gratif[[#This Row],[TAUX(%)]]<>0),Info_Salariés[[#This Row],[SALAIRE DE BASE]],0) -> 0 | J95: =ROUND(Evaluat°Gratif[[#This Row],[Salaire de base ou Catégoriel]]*Evaluat°Gratif[[#This Row],[TAUX(%)]]*Evaluat°Gratif[[#This Row],[Nbre de jours]]/36000,0) -> 0 | M95: 0
A96: ='94'!$A$1 -> 94 | B96: =IF(AND(Evaluat°Gratif[[#This Row],[Nbre de jours]]<>0,Evaluat°Gratif[[#This Row],[TAUX(%)]]<>0),Info_Salariés[[#This Row],[emploi occupe]],"") ->  | C96: =IF(AND(Evaluat°Gratif[[#This Row],[Nbre de jours]]<>0,Evaluat°Gratif[[#This Row],[TAUX(%)]]<>0),Info_Salariés[[#This Row],[Nom & Prénoms]],"") ->  | D96: =IF(AND(Evaluat°Gratif[[#This Row],[Nbre de jours]]<>0,Evaluat°Gratif[[#This Row],[TAUX(%)]]<>0),Info_Salariés!AW96,0) -> 0 | E96: =+Info_Salariés[[#This Row],[DATE DEPART]] -> 00:00:00 | F96: =+Info_Salariés[[#This Row],[DATE FIN]] -> 00:00:00 | G96: =+DAYS360(Evaluat°Gratif[[#This Row],[DATE DEPART]],Evaluat°Gratif[[#This Row],[DATE FIN]]) -> 0 | H96: =+Info_Salariés[[#This Row],[TAUX(%)]] -> 0 | I96: =IF(AND(Evaluat°Gratif[[#This Row],[Nbre de jours]]<>0,Evaluat°Gratif[[#This Row],[TAUX(%)]]<>0),Info_Salariés[[#This Row],[SALAIRE DE BASE]],0) -> 0 | J96: =ROUND(Evaluat°Gratif[[#This Row],[Salaire de base ou Catégoriel]]*Evaluat°Gratif[[#This Row],[TAUX(%)]]*Evaluat°Gratif[[#This Row],[Nbre de jours]]/36000,0) -> 0 | M96: 0
A97: ='95'!$A$1 -> 95 | B97: =IF(AND(Evaluat°Gratif[[#This Row],[Nbre de jours]]<>0,Evaluat°Gratif[[#This Row],[TAUX(%)]]<>0),Info_Salariés[[#This Row],[emploi occupe]],"") ->  | C97: =IF(AND(Evaluat°Gratif[[#This Row],[Nbre de jours]]<>0,Evaluat°Gratif[[#This Row],[TAUX(%)]]<>0),Info_Salariés[[#This Row],[Nom & Prénoms]],"") ->  | D97: =IF(AND(Evaluat°Gratif[[#This Row],[Nbre de jours]]<>0,Evaluat°Gratif[[#This Row],[TAUX(%)]]<>0),Info_Salariés!AW97,0) -> 0 | E97: =+Info_Salariés[[#This Row],[DATE DEPART]] -> 00:00:00 | F97: =+Info_Salariés[[#This Row],[DATE FIN]] -> 00:00:00 | G97: =+DAYS360(Evaluat°Gratif[[#This Row],[DATE DEPART]],Evaluat°Gratif[[#This Row],[DATE FIN]]) -> 0 | H97: =+Info_Salariés[[#This Row],[TAUX(%)]] -> 0 | I97: =IF(AND(Evaluat°Gratif[[#This Row],[Nbre de jours]]<>0,Evaluat°Gratif[[#This Row],[TAUX(%)]]<>0),Info_Salariés[[#This Row],[SALAIRE DE BASE]],0) -> 0 | J97: =ROUND(Evaluat°Gratif[[#This Row],[Salaire de base ou Catégoriel]]*Evaluat°Gratif[[#This Row],[TAUX(%)]]*Evaluat°Gratif[[#This Row],[Nbre de jours]]/36000,0) -> 0 | M97: 0
A98: ='96'!$A$1 -> 96 | B98: =IF(AND(Evaluat°Gratif[[#This Row],[Nbre de jours]]<>0,Evaluat°Gratif[[#This Row],[TAUX(%)]]<>0),Info_Salariés[[#This Row],[emploi occupe]],"") ->  | C98: =IF(AND(Evaluat°Gratif[[#This Row],[Nbre de jours]]<>0,Evaluat°Gratif[[#This Row],[TAUX(%)]]<>0),Info_Salariés[[#This Row],[Nom & Prénoms]],"") ->  | D98: =IF(AND(Evaluat°Gratif[[#This Row],[Nbre de jours]]<>0,Evaluat°Gratif[[#This Row],[TAUX(%)]]<>0),Info_Salariés!AW98,0) -> 0 | E98: =+Info_Salariés[[#This Row],[DATE DEPART]] -> 00:00:00 | F98: =+Info_Salariés[[#This Row],[DATE FIN]] -> 00:00:00 | G98: =+DAYS360(Evaluat°Gratif[[#This Row],[DATE DEPART]],Evaluat°Gratif[[#This Row],[DATE FIN]]) -> 0 | H98: =+Info_Salariés[[#This Row],[TAUX(%)]] -> 0 | I98: =IF(AND(Evaluat°Gratif[[#This Row],[Nbre de jours]]<>0,Evaluat°Gratif[[#This Row],[TAUX(%)]]<>0),Info_Salariés[[#This Row],[SALAIRE DE BASE]],0) -> 0 | J98: =ROUND(Evaluat°Gratif[[#This Row],[Salaire de base ou Catégoriel]]*Evaluat°Gratif[[#This Row],[TAUX(%)]]*Evaluat°Gratif[[#This Row],[Nbre de jours]]/36000,0) -> 0 | M98: 0
A99: ='97'!$A$1 -> 97 | B99: =IF(AND(Evaluat°Gratif[[#This Row],[Nbre de jours]]<>0,Evaluat°Gratif[[#This Row],[TAUX(%)]]<>0),Info_Salariés[[#This Row],[emploi occupe]],"") ->  | C99: =IF(AND(Evaluat°Gratif[[#This Row],[Nbre de jours]]<>0,Evaluat°Gratif[[#This Row],[TAUX(%)]]<>0),Info_Salariés[[#This Row],[Nom & Prénoms]],"") ->  | D99: =IF(AND(Evaluat°Gratif[[#This Row],[Nbre de jours]]<>0,Evaluat°Gratif[[#This Row],[TAUX(%)]]<>0),Info_Salariés!AW99,0) -> 0 | E99: =+Info_Salariés[[#This Row],[DATE DEPART]] -> 00:00:00 | F99: =+Info_Salariés[[#This Row],[DATE FIN]] -> 00:00:00 | G99: =+DAYS360(Evaluat°Gratif[[#This Row],[DATE DEPART]],Evaluat°Gratif[[#This Row],[DATE FIN]]) -> 0 | H99: =+Info_Salariés[[#This Row],[TAUX(%)]] -> 0 | I99: =IF(AND(Evaluat°Gratif[[#This Row],[Nbre de jours]]<>0,Evaluat°Gratif[[#This Row],[TAUX(%)]]<>0),Info_Salariés[[#This Row],[SALAIRE DE BASE]],0) -> 0 | J99: =ROUND(Evaluat°Gratif[[#This Row],[Salaire de base ou Catégoriel]]*Evaluat°Gratif[[#This Row],[TAUX(%)]]*Evaluat°Gratif[[#This Row],[Nbre de jours]]/36000,0) -> 0 | M99: 0
A100: ='98'!$A$1 -> 98 | B100: =IF(AND(Evaluat°Gratif[[#This Row],[Nbre de jours]]<>0,Evaluat°Gratif[[#This Row],[TAUX(%)]]<>0),Info_Salariés[[#This Row],[emploi occupe]],"") ->  | C100: =IF(AND(Evaluat°Gratif[[#This Row],[Nbre de jours]]<>0,Evaluat°Gratif[[#This Row],[TAUX(%)]]<>0),Info_Salariés[[#This Row],[Nom & Prénoms]],"") ->  | D100: =IF(AND(Evaluat°Gratif[[#This Row],[Nbre de jours]]<>0,Evaluat°Gratif[[#This Row],[TAUX(%)]]<>0),Info_Salariés!AW100,0) -> 0 | E100: =+Info_Salariés[[#This Row],[DATE DEPART]] -> 00:00:00 | F100: =+Info_Salariés[[#This Row],[DATE FIN]] -> 00:00:00 | G100: =+DAYS360(Evaluat°Gratif[[#This Row],[DATE DEPART]],Evaluat°Gratif[[#This Row],[DATE FIN]]) -> 0 | H100: =+Info_Salariés[[#This Row],[TAUX(%)]] -> 0 | I100: =IF(AND(Evaluat°Gratif[[#This Row],[Nbre de jours]]<>0,Evaluat°Gratif[[#This Row],[TAUX(%)]]<>0),Info_Salariés[[#This Row],[SALAIRE DE BASE]],0) -> 0 | J100: =ROUND(Evaluat°Gratif[[#This Row],[Salaire de base ou Catégoriel]]*Evaluat°Gratif[[#This Row],[TAUX(%)]]*Evaluat°Gratif[[#This Row],[Nbre de jours]]/36000,0) -> 0 | M100: 0
A101: ='99'!$A$1 -> 99 | B101: =IF(AND(Evaluat°Gratif[[#This Row],[Nbre de jours]]<>0,Evaluat°Gratif[[#This Row],[TAUX(%)]]<>0),Info_Salariés[[#This Row],[emploi occupe]],"") ->  | C101: =IF(AND(Evaluat°Gratif[[#This Row],[Nbre de jours]]<>0,Evaluat°Gratif[[#This Row],[TAUX(%)]]<>0),Info_Salariés[[#This Row],[Nom & Prénoms]],"") ->  | D101: =IF(AND(Evaluat°Gratif[[#This Row],[Nbre de jours]]<>0,Evaluat°Gratif[[#This Row],[TAUX(%)]]<>0),Info_Salariés!AW101,0) -> 0 | E101: =+Info_Salariés[[#This Row],[DATE DEPART]] -> 00:00:00 | F101: =+Info_Salariés[[#This Row],[DATE FIN]] -> 00:00:00 | G101: =+DAYS360(Evaluat°Gratif[[#This Row],[DATE DEPART]],Evaluat°Gratif[[#This Row],[DATE FIN]]) -> 0 | H101: =+Info_Salariés[[#This Row],[TAUX(%)]] -> 0 | I101: =IF(AND(Evaluat°Gratif[[#This Row],[Nbre de jours]]<>0,Evaluat°Gratif[[#This Row],[TAUX(%)]]<>0),Info_Salariés[[#This Row],[SALAIRE DE BASE]],0) -> 0 | J101: =ROUND(Evaluat°Gratif[[#This Row],[Salaire de base ou Catégoriel]]*Evaluat°Gratif[[#This Row],[TAUX(%)]]*Evaluat°Gratif[[#This Row],[Nbre de jours]]/36000,0) -> 0 | M101: 0
A102: ='100'!$A$1 -> 100 | B102: =IF(AND(Evaluat°Gratif[[#This Row],[Nbre de jours]]<>0,Evaluat°Gratif[[#This Row],[TAUX(%)]]<>0),Info_Salariés[[#This Row],[emploi occupe]],"") ->  | C102: =IF(AND(Evaluat°Gratif[[#This Row],[Nbre de jours]]<>0,Evaluat°Gratif[[#This Row],[TAUX(%)]]<>0),Info_Salariés[[#This Row],[Nom & Prénoms]],"") ->  | D102: =IF(AND(Evaluat°Gratif[[#This Row],[Nbre de jours]]<>0,Evaluat°Gratif[[#This Row],[TAUX(%)]]<>0),Info_Salariés!AW102,0) -> 0 | E102: =+Info_Salariés[[#This Row],[DATE DEPART]] -> 00:00:00 | F102: =+Info_Salariés[[#This Row],[DATE FIN]] -> 00:00:00 | G102: =+DAYS360(Evaluat°Gratif[[#This Row],[DATE DEPART]],Evaluat°Gratif[[#This Row],[DATE FIN]]) -> 0 | H102: =+Info_Salariés[[#This Row],[TAUX(%)]] -> 0 | I102: =IF(AND(Evaluat°Gratif[[#This Row],[Nbre de jours]]<>0,Evaluat°Gratif[[#This Row],[TAUX(%)]]<>0),Info_Salariés[[#This Row],[SALAIRE DE BASE]],0) -> 0 | J102: =ROUND(Evaluat°Gratif[[#This Row],[Salaire de base ou Catégoriel]]*Evaluat°Gratif[[#This Row],[TAUX(%)]]*Evaluat°Gratif[[#This Row],[Nbre de jours]]/36000,0) -> 0 | M102: 0
B103: =Info_Entreprise!K6 -> A REVOIR | C103: =M103&" "&IF(OR(M103=0,M103=1),"Embauché - Gratification","Embauchés - Gratifications") -> 6 Embauchés - Gratifications | D103: =C1 -> 2017-09-30 | J103: =SUBTOTAL(109,Evaluat°Gratif[Montant Brut Gratification]) -> 566167 | K103: =Info_Salariés!F1 -> EviBoni PAIE_16.12+ | M103: =SUM(M3:M102) -> 6

Sheet Journaliers_occasionnels
A1: ʘ | B1: JOURNALIERS-OCCASIONNELS | C1: =Info_Salariés!F1 -> EviBoni PAIE_16.12+ | G1: Période du | I1: =Base_Imposable_Sociale!H4 -> 01/09/2017 | K1: au | L1: =Base_Imposable_Sociale!J4 -> 2017-09-30
B2: SALAIRE BRUT HORAIRE | C2: =ROUND(U161,0) -> 110720 | E2: DGI - CNPS | F2: =+AA161 -> 138847 | I2: Salaire Horaire: | K2: 346
B3: CONGE BRUT HORAIRE | C3: =ROUND(V161,0) -> 9920 | E3: IS | F3: =AB161 -> 1666 | I3: Congé horaire: | K3: 31
B4: GRATIFICATION HORAIRE | C4: =ROUND(W161,0) -> 7040 | E4: CR | F4: =AC161 -> 8747 | I4: Gratif. horaire: | K4: 22
B5: HEURES SUPPL | C5: =ROUND(X161,0) -> 7647 | I5: Précarité horaire: | K5: 11
B6: PRECARITE | C6: =ROUND(Y161,0) -> 3520 | E6: NET | F6: =AD161 -> 129934 | I6: Indem. Transport: | K6: 833
B7: AUTRES PRIMES NON IMPOSABLE | C7: =+Q161 -> 1500 | E7: TRSPT | F7: =AE161 -> 33320
B8: SALAIRE BRUT TOTAL | C8: =SUM(C2:D7) -> 140347 | E8: NAP | F8: =AF161 -> 163254
B9: =IF(SUM(AG11:AG160)=1,SUM(AG11:AG160)&" Jounalier",SUM(AG11:AG160)&" Jounaliers") -> 2 Jounaliers | C9: semaine 1 | E9: semaine 2 | G9: semaine 3 | I9: semaine 4 | K9: semaine 5 | M9: =ROUND(M161*M162,0) -> 1592 | N9: =N161*N162 -> 2595 | O9: =O161*O162 -> 0 | P9: =P161*P162 -> 3460
B10: NOMS & PRENOMS | C10: JOURS-1 | D10: HEURES-1 | E10: JOURS-2 | F10: HEURES-2 | G10: JOURS-3 | H10: HEURES-3 | I10: JOURS-4 | J10: HEURES-4 | K10: JOURS-5 | L10: HEURES-5 | M10: H S à 15% | N10: H. S. à 50% | O10: H. S. à 75% | P10: H. S. à 100% | Q10: AUTRES PRIMES NON IMPOSABLE | R10: JOUR TOTAL | S10: HEURES NORMALES | T10: HEURES TOTALES | U10: SAL BRUT HORAIRE | V10: CONGE BRUT HORAIRE | W10: GRAT. BUT HORAIRE | X10: REM. HEURES SUPPL. | Y10: PRECARITE | Z10: SAL BRUT | AA10: SAL IMPOSABLE ET SOCIAL | AB10: IS | AC10: CR | AD10: SALAIRE NET | AE10: TRANSPORT | AF10: SAL NET A PAYER | AG10: 0 | AH10: REMUNERATION DES HEURES ET AUTRES DROITS HORAIRE
A11: =IF(AG11=1,AG11+SUM($AG$10:AG10),0) -> 1 | B11: BIAKPA N'Guessan Ange Nathan | C11: 5 | D11: 40 | E11: 5 | F11: 40 | G11: 5 | H11: 40 | I11: 5 | J11: 40 | N11: 5 | R11: =ROUND(+C11+E11+G11+I11+K11,0) -> 20 | S11: =ROUND(D11+F11+H11+J11+L11,2) -> 160 | T11: =ROUND(M11+N11+O11+P11+S11,2) -> 165 | U11: =ROUND(S11*$K$2,0) -> 55360 | V11: =ROUND(S11*$K$3,0) -> 4960 | W11: =ROUND(S11*$K$4,0) -> 3520 | X11: =+ROUND(M11*$M$162+N11*$N$162+O11*$O$162+P11*$P$162,0) -> 2595 | Y11: =ROUND(S11*$K$5,0) -> 1760 | Z11: =ROUND(SUM(U11:Y11)+Q11,0) -> 68195 | AA11: =+Z11-Q11 -> 68195 | AB11: =ROUND(ROUND(AA11*$AI$22,0),0) -> 818 | AC11: =ROUND(ROUND(AA11*$AI$23,0),0) -> 4296 | AD11: =ROUND(Z11-SUM(AB11:AC11),0) -> 63081 | AE11: =ROUND(R11*$K$6,0) -> 16660 | AF11: =ROUND(AD11+AE11,0) -> 79741 | AG11: =IF(S11<>0,1,0) -> 1
A12: =IF(AG12=1,AG12+SUM($AG$10:AG11),0) -> 2 | B12: BIAKPA Morié Daan Marvyn | C12: 5 | D12: 40 | E12: 5 | F12: 40 | G12: 5 | H12: 40 | I12: 5 | J12: 40 | M12: 4 | P12: 5 | Q12: 1500 | R12: =ROUND(+C12+E12+G12+I12+K12,0) -> 20 | S12: =ROUND(D12+F12+H12+J12+L12,2) -> 160 | T12: =ROUND(M12+N12+O12+P12+S12,2) -> 169 | U12: 55360 | V12: 4960 | W12: 3520 | X12: 5052 | Y12: 1760 | Z12: =ROUND(SUM(U12:Y12)+Q12,0) -> 72152 | AA12: =+Z12-Q12 -> 70652 | AB12: =ROUND(ROUND(AA12*$AI$22,0),0) -> 848 | AC12: =ROUND(ROUND(AA12*$AI$23,0),0) -> 4451 | AD12: =ROUND(Z12-SUM(AB12:AC12),0) -> 66853 | AE12: 16660 | AF12: =ROUND(AD12+AE12,0) -> 83513 | AG12: 1
A13: =IF(AG13=1,AG13+SUM($AG$10:AG12),0) -> 0 | R13: 0 | S13: 0 | T13: 0 | U13: 0 | V13: 0 | W13: 0 | X13: 0 | Y13: 0 | Z13: =ROUND(SUM(U13:Y13)+Q13,0) -> 0 | AA13: 0 | AB13: 0 | AC13: 0 | AD13: 0 | AE13: 0 | AF13: 0 | AG13: 0
A14: =IF(AG14=1,AG14+SUM($AG$10:AG13),0) -> 0 | R14: 0 | S14: 0 | T14: 0 | U14: 0 | V14: 0 | W14: 0 | X14: 0 | Y14: 0 | Z14: 0 | AA14: 0 | AB14: 0 | AC14: 0 | AD14: 0 | AE14: 0 | AF14: 0 | AG14: 0
A15: =IF(AG15=1,AG15+SUM($AG$10:AG14),0) -> 0 | R15: 0 | S15: 0 | T15: 0 | U15: 0 | V15: 0 | W15: 0 | X15: 0 | Y15: 0 | Z15: 0 | AA15: 0 | AB15: 0 | AC15: 0 | AD15: 0 | AE15: 0 | AF15: 0 | AG15: 0 | AH15: Heures Supplémentaires(15%): | AI15: =ROUND($K$2*1.15,0) -> 398
A16: =IF(AG16=1,AG16+SUM($AG$10:AG15),0) -> 0 | R16: 0 | S16: 0 | T16: 0 | U16: 0 | V16: 0 | W16: 0 | X16: 0 | Y16: 0 | Z16: 0 | AA16: 0 | AB16: 0 | AC16: 0 | AD16: 0 | AE16: 0 | AF16: 0 | AG16: 0 | AH16: Heures Supplémentaires(50%): | AI16: =ROUND($K$2*1.5,0) -> 519
A17: =IF(AG17=1,AG17+SUM($AG$10:AG16),0) -> 0 | R17: 0 | S17: 0 | T17: 0 | U17: 0 | V17: 0 | W17: 0 | X17: 0 | Y17: 0 | Z17: 0 | AA17: 0 | AB17: 0 | AC17: 0 | AD17: 0 | AE17: 0 | AF17: 0 | AG17: 0 | AH17: Heures Supplémentaires(75%): | AI17: =ROUND($K$2*1.75,0) -> 606
A18: =IF(AG18=1,AG18+SUM($AG$10:AG17),0) -> 0 | R18: 0 | S18: 0 | T18: 0 | U18: 0 | V18: 0 | W18: 0 | X18: 0 | Y18: 0 | Z18: 0 | AA18: 0 | AB18: 0 | AC18: 0 | AD18: 0 | AE18: 0 | AF18: 0 | AG18: 0 | AH18: Heures Supplémentaires(100%): | AI18: =ROUND($K$2*2,0) -> 692
A19: =IF(AG19=1,AG19+SUM($AG$10:AG18),0) -> 0 | R19: 0 | S19: 0 | T19: 0 | U19: 0 | V19: 0 | W19: 0 | X19: 0 | Y19: 0 | Z19: 0 | AA19: 0 | AB19: 0 | AC19: 0 | AD19: 0 | AE19: 0 | AF19: 0 | AG19: 0 | AH19: Prime de nuit: | AI19: =ROUND(K2*3,0) -> 1038
A20: =IF(AG20=1,AG20+SUM($AG$10:AG19),0) -> 0 | R20: 0 | S20: 0 | T20: 0 | U20: 0 | V20: 0 | W20: 0 | X20: 0 | Y20: 0 | Z20: 0 | AA20: 0 | AB20: 0 | AC20: 0 | AD20: 0 | AE20: 0 | AF20: 0 | AG20: 0
A21: =IF(AG21=1,AG21+SUM($AG$10:AG20),0) -> 0 | R21: 0 | S21: 0 | T21: 0 | U21: 0 | V21: 0 | W21: 0 | X21: 0 | Y21: 0 | Z21: 0 | AA21: 0 | AB21: 0 | AC21: 0 | AD21: 0 | AE21: 0 | AF21: 0 | AG21: 0 | AH21: RETENUES
A22: =IF(AG22=1,AG22+SUM($AG$10:AG21),0) -> 0 | R22: 0 | S22: 0 | T22: 0 | U22: 0 | V22: 0 | W22: 0 | X22: 0 | Y22: 0 | Z22: 0 | AA22: 0 | AB22: 0 | AC22: 0 | AD22: 0 | AE22: 0 | AF22: 0 | AG22: 0 | AH22: IS: | AI22: =Base_Imposable_Sociale!N8/100 -> 0.012
A23: =IF(AG23=1,AG23+SUM($AG$10:AG22),0) -> 0 | R23: 0 | S23: 0 | T23: 0 | U23: 0 | V23: 0 | W23: 0 | X23: 0 | Y23: 0 | Z23: 0 | AA23: 0 | AB23: 0 | AC23: 0 | AD23: 0 | AE23: 0 | AF23: 0 | AG23: 0 | AH23: CR: | AI23: =Base_Imposable_Sociale!N12/100 -> 0.063
A24: =IF(AG24=1,AG24+SUM($AG$10:AG23),0) -> 0 | R24: 0 | S24: 0 | T24: 0 | U24: 0 | V24: 0 | W24: 0 | X24: 0 | Y24: 0 | Z24: 0 | AA24: 0 | AB24: 0 | AC24: 0 | AD24: 0 | AE24: 0 | AF24: 0 | AG24: 0
A25: =IF(AG25=1,AG25+SUM($AG$10:AG24),0) -> 0 | R25: 0 | S25: 0 | T25: 0 | U25: 0 | V25: 0 | W25: 0 | X25: 0 | Y25: 0 | Z25: 0 | AA25: 0 | AB25: 0 | AC25: 0 | AD25: 0 | AE25: 0 | AF25: 0 | AG25: 0
A26: =IF(AG26=1,AG26+SUM($AG$10:AG25),0) -> 0 | R26: 0 | S26: 0 | T26: 0 | U26: 0 | V26: 0 | W26: 0 | X26: 0 | Y26: 0 | Z26: 0 | AA26: 0 | AB26: 0 | AC26: 0 | AD26: 0 | AE26: 0 | AF26: 0 | AG26: 0
A27: =IF(AG27=1,AG27+SUM($AG$10:AG26),0) -> 0 | R27: 0 | S27: 0 | T27: 0 | U27: 0 | V27: 0 | W27: 0 | X27: 0 | Y27: 0 | Z27: 0 | AA27: 0 | AB27: 0 | AC27: 0 | AD27: 0 | AE27: 0 | AF27: 0 | AG27: 0
A28: =IF(AG28=1,AG28+SUM($AG$10:AG27),0) -> 0 | R28: 0 | S28: 0 | T28: 0 | U28: 0 | V28: 0 | W28: 0 | X28: 0 | Y28: 0 | Z28: 0 | AA28: 0 | AB28: 0 | AC28: 0 | AD28: 0 | AE28: 0 | AF28: 0 | AG28: 0
A29: =IF(AG29=1,AG29+SUM($AG$10:AG28),0) -> 0 | R29: 0 | S29: 0 | T29: 0 | U29: 0 | V29: 0 | W29: 0 | X29: 0 | Y29: 0 | Z29: 0 | AA29: 0 | AB29: 0 | AC29: 0 | AD29: 0 | AE29: 0 | AF29: 0 | AG29: 0
A30: =IF(AG30=1,AG30+SUM($AG$10:AG29),0) -> 0 | R30: 0 | S30: 0 | T30: 0 | U30: 0 | V30: 0 | W30: 0 | X30: 0 | Y30: 0 | Z30: 0 | AA30: 0 | AB30: 0 | AC30: 0 | AD30: 0 | AE30: 0 | AF30: 0 | AG30: 0
A31: =IF(AG31=1,AG31+SUM($AG$10:AG30),0) -> 0 | R31: 0 | S31: 0 | T31: 0 | U31: 0 | V31: 0 | W31: 0 | X31: 0 | Y31: 0 | Z31: 0 | AA31: 0 | AB31: 0 | AC31: 0 | AD31: 0 | AE31: 0 | AF31: 0 | AG31: 0
A32: =IF(AG32=1,AG32+SUM($AG$10:AG31),0) -> 0 | R32: 0 | S32: 0 | T32: 0 | U32: 0 | V32: 0 | W32: 0 | X32: 0 | Y32: 0 | Z32: 0 | AA32: 0 | AB32: 0 | AC32: 0 | AD32: 0 | AE32: 0 | AF32: 0 | AG32: 0
A33: =IF(AG33=1,AG33+SUM($AG$10:AG32),0) -> 0 | R33: 0 | S33: 0 | T33: 0 | U33: 0 | V33: 0 | W33: 0 | X33: 0 | Y33: 0 | Z33: 0 | AA33: 0 | AB33: 0 | AC33: 0 | AD33: 0 | AE33: 0 | AF33: 0 | AG33: 0
A34: =IF(AG34=1,AG34+SUM($AG$10:AG33),0) -> 0 | R34: 0 | S34: 0 | T34: 0 | U34: 0 | V34: 0 | W34: 0 | X34: 0 | Y34: 0 | Z34: 0 | AA34: 0 | AB34: 0 | AC34: 0 | AD34: 0 | AE34: 0 | AF34: 0 | AG34: 0
A35: =IF(AG35=1,AG35+SUM($AG$10:AG34),0) -> 0 | R35: 0 | S35: 0 | T35: 0 | U35: 0 | V35: 0 | W35: 0 | X35: 0 | Y35: 0 | Z35: 0 | AA35: 0 | AB35: 0 | AC35: 0 | AD35: 0 | AE35: 0 | AF35: 0 | AG35: 0
A36: =IF(AG36=1,AG36+SUM($AG$10:AG35),0) -> 0 | R36: 0 | S36: 0 | T36: 0 | U36: 0 | V36: 0 | W36: 0 | X36: 0 | Y36: 0 | Z36: 0 | AA36: 0 | AB36: 0 | AC36: 0 | AD36: 0 | AE36: 0 | AF36: 0 | AG36: 0
A37: =IF(AG37=1,AG37+SUM($AG$10:AG36),0) -> 0 | R37: 0 | S37: 0 | T37: 0 | U37: 0 | V37: 0 | W37: 0 | X37: 0 | Y37: 0 | Z37: 0 | AA37: 0 | AB37: 0 | AC37: 0 | AD37: 0 | AE37: 0 | AF37: 0 | AG37: 0
A38: =IF(AG38=1,AG38+SUM($AG$10:AG37),0) -> 0 | R38: 0 | S38: 0 | T38: 0 | U38: 0 | V38: 0 | W38: 0 | X38: 0 | Y38: 0 | Z38: 0 | AA38: 0 | AB38: 0 | AC38: 0 | AD38: 0 | AE38: 0 | AF38: 0 | AG38: 0
A39: =IF(AG39=1,AG39+SUM($AG$10:AG38),0) -> 0 | R39: 0 | S39: 0 | T39: 0 | U39: 0 | V39: 0 | W39: 0 | X39: 0 | Y39: 0 | Z39: 0 | AA39: 0 | AB39: 0 | AC39: 0 | AD39: 0 | AE39: 0 | AF39: 0 | AG39: 0
A40: =IF(AG40=1,AG40+SUM($AG$10:AG39),0) -> 0 | R40: 0 | S40: 0 | T40: 0 | U40: 0 | V40: 0 | W40: 0 | X40: 0 | Y40: 0 | Z40: 0 | AA40: 0 | AB40: 0 | AC40: 0 | AD40: 0 | AE40: 0 | AF40: 0 | AG40: 0
A41: =IF(AG41=1,AG41+SUM($AG$10:AG40),0) -> 0 | R41: 0 | S41: 0 | T41: 0 | U41: 0 | V41: 0 | W41: 0 | X41: 0 | Y41: 0 | Z41: 0 | AA41: 0 | AB41: 0 | AC41: 0 | AD41: 0 | AE41: 0 | AF41: 0 | AG41: 0
A42: =IF(AG42=1,AG42+SUM($AG$10:AG41),0) -> 0 | R42: 0 | S42: 0 | T42: 0 | U42: 0 | V42: 0 | W42: 0 | X42: 0 | Y42: 0 | Z42: 0 | AA42: 0 | AB42: 0 | AC42: 0 | AD42: 0 | AE42: 0 | AF42: 0 | AG42: 0
A43: =IF(AG43=1,AG43+SUM($AG$10:AG42),0) -> 0 | R43: 0 | S43: 0 | T43: 0 | U43: =ROUND(S43*$K$2,0) -> 0 | V43: =ROUND(S43*$K$3,0) -> 0 | W43: =ROUND(S43*$K$4,0) -> 0 | X43: =+ROUND(M43*$M$162+N43*$N$162+O43*$O$162+P43*$P$162,0) -> 0 | Y43: =ROUND(S43*$K$5,0) -> 0 | Z43: 0 | AA43: 0 | AB43: 0 | AC43: 0 | AD43: 0 | AE43: =ROUND(R43*$K$6,0) -> 0 | AF43: 0 | AG43: =IF(S43<>0,1,0) -> 0
A44: =IF(AG44=1,AG44+SUM($AG$10:AG43),0) -> 0 | R44: 0 | S44: 0 | T44: 0 | U44: 0 | V44: 0 | W44: 0 | X44: 0 | Y44: 0 | Z44: 0 | AA44: 0 | AB44: 0 | AC44: 0 | AD44: 0 | AE44: 0 | AF44: 0 | AG44: 0
A45: =IF(AG45=1,AG45+SUM($AG$10:AG44),0) -> 0 | R45: 0 | S45: 0 | T45: 0 | U45: 0 | V45: 0 | W45: 0 | X45: 0 | Y45: 0 | Z45: 0 | AA45: 0 | AB45: 0 | AC45: 0 | AD45: 0 | AE45: 0 | AF45: 0 | AG45: 0
A46: =IF(AG46=1,AG46+SUM($AG$10:AG45),0) -> 0 | R46: 0 | S46: 0 | T46: 0 | U46: 0 | V46: 0 | W46: 0 | X46: 0 | Y46: 0 | Z46: 0 | AA46: 0 | AB46: 0 | AC46: 0 | AD46: 0 | AE46: 0 | AF46: 0 | AG46: 0
A47: =IF(AG47=1,AG47+SUM($AG$10:AG46),0) -> 0 | R47: 0 | S47: 0 | T47: 0 | U47: 0 | V47: 0 | W47: 0 | X47: 0 | Y47: 0 | Z47: 0 | AA47: 0 | AB47: 0 | AC47: 0 | AD47: 0 | AE47: 0 | AF47: 0 | AG47: 0
A48: =IF(AG48=1,AG48+SUM($AG$10:AG47),0) -> 0 | R48: 0 | S48: 0 | T48: 0 | U48: 0 | V48: 0 | W48: 0 | X48: 0 | Y48: 0 | Z48: 0 | AA48: 0 | AB48: 0 | AC48: 0 | AD48: 0 | AE48: 0 | AF48: 0 | AG48: 0
A49: =IF(AG49=1,AG49+SUM($AG$10:AG48),0) -> 0 | R49: 0 | S49: 0 | T49: 0 | U49: 0 | V49: 0 | W49: 0 | X49: 0 | Y49: 0 | Z49: 0 | AA49: 0 | AB49: 0 | AC49: 0 | AD49: 0 | AE49: 0 | AF49: 0 | AG49: 0
A50: =IF(AG50=1,AG50+SUM($AG$10:AG49),0) -> 0 | R50: 0 | S50: 0 | T50: 0 | U50: 0 | V50: 0 | W50: 0 | X50: 0 | Y50: 0 | Z50: 0 | AA50: 0 | AB50: 0 | AC50: 0 | AD50: 0 | AE50: 0 | AF50: 0 | AG50: 0
A51: =IF(AG51=1,AG51+SUM($AG$10:AG50),0) -> 0 | R51: 0 | S51: 0 | T51: 0 | U51: 0 | V51: 0 | W51: 0 | X51: 0 | Y51: 0 | Z51: 0 | AA51: 0 | AB51: 0 | AC51: 0 | AD51: 0 | AE51: 0 | AF51: 0 | AG51: 0
A52: =IF(AG52=1,AG52+SUM($AG$10:AG51),0) -> 0 | R52: 0 | S52: 0 | T52: 0 | U52: 0 | V52: 0 | W52: 0 | X52: 0 | Y52: 0 | Z52: 0 | AA52: 0 | AB52: 0 | AC52: 0 | AD52: 0 | AE52: 0 | AF52: 0 | AG52: 0
A53: =IF(AG53=1,AG53+SUM($AG$10:AG52),0) -> 0 | R53: 0 | S53: 0 | T53: 0 | U53: 0 | V53: 0 | W53: 0 | X53: 0 | Y53: 0 | Z53: 0 | AA53: 0 | AB53: 0 | AC53: 0 | AD53: 0 | AE53: 0 | AF53: 0 | AG53: 0
A54: =IF(AG54=1,AG54+SUM($AG$10:AG53),0) -> 0 | R54: 0 | S54: 0 | T54: 0 | U54: 0 | V54: 0 | W54: 0 | X54: 0 | Y54: 0 | Z54: 0 | AA54: 0 | AB54: 0 | AC54: 0 | AD54: 0 | AE54: 0 | AF54: 0 | AG54: 0
A55: =IF(AG55=1,AG55+SUM($AG$10:AG54),0) -> 0 | R55: 0 | S55: 0 | T55: 0 | U55: 0 | V55: 0 | W55: 0 | X55: 0 | Y55: 0 | Z55: 0 | AA55: 0 | AB55: 0 | AC55: 0 | AD55: 0 | AE55: 0 | AF55: 0 | AG55: 0
A56: =IF(AG56=1,AG56+SUM($AG$10:AG55),0) -> 0 | R56: 0 | S56: 0 | T56: 0 | U56: 0 | V56: 0 | W56: 0 | X56: 0 | Y56: 0 | Z56: 0 | AA56: 0 | AB56: 0 | AC56: 0 | AD56: 0 | AE56: 0 | AF56: 0 | AG56: 0
A57: =IF(AG57=1,AG57+SUM($AG$10:AG56),0) -> 0 | R57: 0 | S57: 0 | T57: 0 | U57: 0 | V57: 0 | W57: 0 | X57: 0 | Y57: 0 | Z57: 0 | AA57: 0 | AB57: 0 | AC57: 0 | AD57: 0 | AE57: 0 | AF57: 0 | AG57: 0
A58: =IF(AG58=1,AG58+SUM($AG$10:AG57),0) -> 0 | R58: 0 | S58: 0 | T58: 0 | U58: 0 | V58: 0 | W58: 0 | X58: 0 | Y58: 0 | Z58: 0 | AA58: 0 | AB58: 0 | AC58: 0 | AD58: 0 | AE58: 0 | AF58: 0 | AG58: 0
A59: =IF(AG59=1,AG59+SUM($AG$10:AG58),0) -> 0 | R59: 0 | S59: 0 | T59: 0 | U59: 0 | V59: 0 | W59: 0 | X59: 0 | Y59: 0 | Z59: 0 | AA59: 0 | AB59: 0 | AC59: 0 | AD59: 0 | AE59: 0 | AF59: 0 | AG59: 0
A60: =IF(AG60=1,AG60+SUM($AG$10:AG59),0) -> 0 | R60: 0 | S60: 0 | T60: 0 | U60: 0 | V60: 0 | W60: 0 | X60: 0 | Y60: 0 | Z60: 0 | AA60: 0 | AB60: 0 | AC60: 0 | AD60: 0 | AE60: 0 | AF60: 0 | AG60: 0
A61: =IF(AG61=1,AG61+SUM($AG$10:AG60),0) -> 0 | R61: 0 | S61: 0 | T61: 0 | U61: 0 | V61: 0 | W61: 0 | X61: 0 | Y61: 0 | Z61: 0 | AA61: 0 | AB61: 0 | AC61: 0 | AD61: 0 | AE61: 0 | AF61: 0 | AG61: 0
A62: =IF(AG62=1,AG62+SUM($AG$10:AG61),0) -> 0 | R62: 0 | S62: 0 | T62: 0 | U62: 0 | V62: 0 | W62: 0 | X62: 0 | Y62: 0 | Z62: 0 | AA62: 0 | AB62: 0 | AC62: 0 | AD62: 0 | AE62: 0 | AF62: 0 | AG62: 0
A63: =IF(AG63=1,AG63+SUM($AG$10:AG62),0) -> 0 | R63: 0 | S63: 0 | T63: 0 | U63: 0 | V63: 0 | W63: 0 | X63: 0 | Y63: 0 | Z63: 0 | AA63: 0 | AB63: 0 | AC63: 0 | AD63: 0 | AE63: 0 | AF63: 0 | AG63: 0
A64: =IF(AG64=1,AG64+SUM($AG$10:AG63),0) -> 0 | R64: 0 | S64: 0 | T64: 0 | U64: 0 | V64: 0 | W64: 0 | X64: 0 | Y64: 0 | Z64: 0 | AA64: 0 | AB64: 0 | AC64: 0 | AD64: 0 | AE64: 0 | AF64: 0 | AG64: 0
A65: =IF(AG65=1,AG65+SUM($AG$10:AG64),0) -> 0 | R65: 0 | S65: 0 | T65: 0 | U65: 0 | V65: 0 | W65: 0 | X65: 0 | Y65: 0 | Z65: 0 | AA65: 0 | AB65: 0 | AC65: 0 | AD65: 0 | AE65: 0 | AF65: 0 | AG65: 0
A66: =IF(AG66=1,AG66+SUM($AG$10:AG65),0) -> 0 | R66: 0 | S66: 0 | T66: 0 | U66: 0 | V66: 0 | W66: 0 | X66: 0 | Y66: 0 | Z66: 0 | AA66: 0 | AB66: 0 | AC66: 0 | AD66: 0 | AE66: 0 | AF66: 0 | AG66: =IF(S66<>0,1,0) -> 0
A67: =IF(AG67=1,AG67+SUM($AG$10:AG66),0) -> 0 | R67: 0 | S67: 0 | T67: 0 | U67: 0 | V67: 0 | W67: 0 | X67: 0 | Y67: 0 | Z67: 0 | AA67: 0 | AB67: 0 | AC67: 0 | AD67: 0 | AE67: 0 | AF67: 0 | AG67: 0
A68: =IF(AG68=1,AG68+SUM($AG$10:AG67),0) -> 0 | R68: 0 | S68: 0 | T68: 0 | U68: 0 | V68: 0 | W68: 0 | X68: 0 | Y68: 0 | Z68: 0 | AA68: 0 | AB68: 0 | AC68: 0 | AD68: 0 | AE68: 0 | AF68: 0 | AG68: 0
A69: =IF(AG69=1,AG69+SUM($AG$10:AG68),0) -> 0 | R69: 0 | S69: 0 | T69: 0 | U69: 0 | V69: 0 | W69: 0 | X69: 0 | Y69: 0 | Z69: 0 | AA69: 0 | AB69: 0 | AC69: 0 | AD69: 0 | AE69: 0 | AF69: 0 | AG69: 0
A70: =IF(AG70=1,AG70+SUM($AG$10:AG69),0) -> 0 | R70: 0 | S70: 0 | T70: 0 | U70: 0 | V70: 0 | W70: 0 | X70: 0 | Y70: 0 | Z70: 0 | AA70: 0 | AB70: 0 | AC70: 0 | AD70: 0 | AE70: 0 | AF70: 0 | AG70: 0
A71: =IF(AG71=1,AG71+SUM($AG$10:AG70),0) -> 0 | R71: 0 | S71: 0 | T71: 0 | U71: 0 | V71: 0 | W71: 0 | X71: 0 | Y71: 0 | Z71: 0 | AA71: 0 | AB71: 0 | AC71: 0 | AD71: 0 | AE71: 0 | AF71: 0 | AG71: 0
A72: =IF(AG72=1,AG72+SUM($AG$10:AG71),0) -> 0 | R72: 0 | S72: 0 | T72: 0 | U72: 0 | V72: 0 | W72: 0 | X72: 0 | Y72: 0 | Z72: 0 | AA72: 0 | AB72: 0 | AC72: 0 | AD72: 0 | AE72: 0 | AF72: 0 | AG72: 0
A73: =IF(AG73=1,AG73+SUM($AG$10:AG72),0) -> 0 | R73: 0 | S73: 0 | T73: 0 | U73: 0 | V73: 0 | W73: 0 | X73: 0 | Y73: 0 | Z73: 0 | AA73: 0 | AB73: 0 | AC73: 0 | AD73: 0 | AE73: 0 | AF73: 0 | AG73: 0
A74: =IF(AG74=1,AG74+SUM($AG$10:AG73),0) -> 0 | R74: 0 | S74: 0 | T74: 0 | U74: 0 | V74: 0 | W74: 0 | X74: 0 | Y74: 0 | Z74: 0 | AA74: 0 | AB74: 0 | AC74: 0 | AD74: 0 | AE74: 0 | AF74: 0 | AG74: 0
A75: =IF(AG75=1,AG75+SUM($AG$10:AG74),0) -> 0 | R75: 0 | S75: 0 | T75: 0 | U75: =ROUND(S75*$K$2,0) -> 0 | V75: =ROUND(S75*$K$3,0) -> 0 | W75: =ROUND(S75*$K$4,0) -> 0 | X75: =+ROUND(M75*$M$162+N75*$N$162+O75*$O$162+P75*$P$162,0) -> 0 | Y75: =ROUND(S75*$K$5,0) -> 0 | Z75: 0 | AA75: 0 | AB75: 0 | AC75: 0 | AD75: 0 | AE75: =ROUND(R75*$K$6,0) -> 0 | AF75: 0 | AG75: =IF(S75<>0,1,0) -> 0
A76: =IF(AG76=1,AG76+SUM($AG$10:AG75),0) -> 0 | R76: =ROUND(+C76+E76+G76+I76+K76,0) -> 0 | S76: =ROUND(D76+F76+H76+J76+L76,2) -> 0 | T76: =ROUND(M76+N76+O76+P76+S76,2) -> 0 | U76: 0 | V76: 0 | W76: 0 | X76: 0 | Y76: 0 | Z76: =ROUND(SUM(U76:Y76)+Q76,0) -> 0 | AA76: =+Z76-Q76 -> 0 | AB76: =ROUND(ROUND(AA76*$AI$22,0),0) -> 0 | AC76: =ROUND(ROUND(AA76*$AI$23,0),0) -> 0 | AD76: =ROUND(Z76-SUM(AB76:AC76),0) -> 0 | AE76: 0 | AF76: =ROUND(AD76+AE76,0) -> 0 | AG76: 0
A77: =IF(AG77=1,AG77+SUM($AG$10:AG76),0) -> 0 | R77: 0 | S77: 0 | T77: 0 | U77: 0 | V77: 0 | W77: 0 | X77: 0 | Y77: 0 | Z77: 0 | AA77: 0 | AB77: 0 | AC77: 0 | AD77: 0 | AE77: 0 | AF77: 0 | AG77: 0
A78: =IF(AG78=1,AG78+SUM($AG$10:AG77),0) -> 0 | R78: 0 | S78: 0 | T78: 0 | U78: 0 | V78: 0 | W78: 0 | X78: 0 | Y78: 0 | Z78: 0 | AA78: 0 | AB78: 0 | AC78: 0 | AD78: 0 | AE78: 0 | AF78: 0 | AG78: 0
A79: =IF(AG79=1,AG79+SUM($AG$10:AG78),0) -> 0 | R79: 0 | S79: 0 | T79: 0 | U79: 0 | V79: 0 | W79: 0 | X79: 0 | Y79: 0 | Z79: 0 | AA79: 0 | AB79: 0 | AC79: 0 | AD79: 0 | AE79: 0 | AF79: 0 | AG79: 0
A80: =IF(AG80=1,AG80+SUM($AG$10:AG79),0) -> 0 | R80: 0 | S80: 0 | T80: 0 | U80: 0 | V80: 0 | W80: 0 | X80: 0 | Y80: 0 | Z80: 0 | AA80: 0 | AB80: 0 | AC80: 0 | AD80: 0 | AE80: 0 | AF80: 0 | AG80: 0
A81: =IF(AG81=1,AG81+SUM($AG$10:AG80),0) -> 0 | R81: 0 | S81: 0 | T81: 0 | U81: 0 | V81: 0 | W81: 0 | X81: 0 | Y81: 0 | Z81: 0 | AA81: 0 | AB81: 0 | AC81: 0 | AD81: 0 | AE81: 0 | AF81: 0 | AG81: 0
A82: =IF(AG82=1,AG82+SUM($AG$10:AG81),0) -> 0 | R82: 0 | S82: 0 | T82: 0 | U82: 0 | V82: 0 | W82: 0 | X82: 0 | Y82: 0 | Z82: 0 | AA82: 0 | AB82: 0 | AC82: 0 | AD82: 0 | AE82: 0 | AF82: 0 | AG82: 0
A83: =IF(AG83=1,AG83+SUM($AG$10:AG82),0) -> 0 | R83: 0 | S83: 0 | T83: 0 | U83: 0 | V83: 0 | W83: 0 | X83: 0 | Y83: 0 | Z83: 0 | AA83: 0 | AB83: 0 | AC83: 0 | AD83: 0 | AE83: 0 | AF83: 0 | AG83: 0
A84: =IF(AG84=1,AG84+SUM($AG$10:AG83),0) -> 0 | R84: 0 | S84: 0 | T84: 0 | U84: 0 | V84: 0 | W84: 0 | X84: 0 | Y84: 0 | Z84: 0 | AA84: 0 | AB84: 0 | AC84: 0 | AD84: 0 | AE84: 0 | AF84: 0 | AG84: 0
A85: =IF(AG85=1,AG85+SUM($AG$10:AG84),0) -> 0 | R85: 0 | S85: 0 | T85: 0 | U85: 0 | V85: 0 | W85: 0 | X85: 0 | Y85: 0 | Z85: 0 | AA85: 0 | AB85: 0 | AC85: 0 | AD85: 0 | AE85: 0 | AF85: 0 | AG85: 0
A86: =IF(AG86=1,AG86+SUM($AG$10:AG85),0) -> 0 | R86: 0 | S86: 0 | T86: 0 | U86: 0 | V86: 0 | W86: 0 | X86: 0 | Y86: 0 | Z86: 0 | AA86: 0 | AB86: 0 | AC86: 0 | AD86: 0 | AE86: 0 | AF86: 0 | AG86: 0
A87: =IF(AG87=1,AG87+SUM($AG$10:AG86),0) -> 0 | R87: 0 | S87: 0 | T87: 0 | U87: 0 | V87: 0 | W87: 0 | X87: 0 | Y87: 0 | Z87: 0 | AA87: 0 | AB87: 0 | AC87: 0 | AD87: 0 | AE87: 0 | AF87: 0 | AG87: 0
A88: =IF(AG88=1,AG88+SUM($AG$10:AG87),0) -> 0 | R88: 0 | S88: 0 | T88: 0 | U88: 0 | V88: 0 | W88: 0 | X88: 0 | Y88: 0 | Z88: 0 | AA88: 0 | AB88: 0 | AC88: 0 | AD88: 0 | AE88: 0 | AF88: 0 | AG88: 0
A89: =IF(AG89=1,AG89+SUM($AG$10:AG88),0) -> 0 | R89: 0 | S89: 0 | T89: 0 | U89: 0 | V89: 0 | W89: 0 | X89: 0 | Y89: 0 | Z89: 0 | AA89: 0 | AB89: 0 | AC89: 0 | AD89: 0 | AE89: 0 | AF89: 0 | AG89: 0
A90: =IF(AG90=1,AG90+SUM($AG$10:AG89),0) -> 0 | R90: 0 | S90: 0 | T90: 0 | U90: 0 | V90: 0 | W90: 0 | X90: 0 | Y90: 0 | Z90: 0 | AA90: 0 | AB90: 0 | AC90: 0 | AD90: 0 | AE90: 0 | AF90: 0 | AG90: 0
A91: =IF(AG91=1,AG91+SUM($AG$10:AG90),0) -> 0 | R91: 0 | S91: 0 | T91: 0 | U91: 0 | V91: 0 | W91: 0 | X91: 0 | Y91: 0 | Z91: 0 | AA91: 0 | AB91: 0 | AC91: 0 | AD91: 0 | AE91: 0 | AF91: 0 | AG91: 0
A92: =IF(AG92=1,AG92+SUM($AG$10:AG91),0) -> 0 | R92: 0 | S92: 0 | T92: 0 | U92: 0 | V92: 0 | W92: 0 | X92: 0 | Y92: 0 | Z92: 0 | AA92: 0 | AB92: 0 | AC92: 0 | AD92: 0 | AE92: 0 | AF92: 0 | AG92: 0
A93: =IF(AG93=1,AG93+SUM($AG$10:AG92),0) -> 0 | R93: 0 | S93: 0 | T93: 0 | U93: 0 | V93: 0 | W93: 0 | X93: 0 | Y93: 0 | Z93: 0 | AA93: 0 | AB93: 0 | AC93: 0 | AD93: 0 | AE93: 0 | AF93: 0 | AG93: 0
A94: =IF(AG94=1,AG94+SUM($AG$10:AG93),0) -> 0 | R94: 0 | S94: 0 | T94: 0 | U94: 0 | V94: 0 | W94: 0 | X94: 0 | Y94: 0 | Z94: 0 | AA94: 0 | AB94: 0 | AC94: 0 | AD94: 0 | AE94: 0 | AF94: 0 | AG94: 0
A95: =IF(AG95=1,AG95+SUM($AG$10:AG94),0) -> 0 | R95: 0 | S95: 0 | T95: 0 | U95: 0 | V95: 0 | W95: 0 | X95: 0 | Y95: 0 | Z95: 0 | AA95: 0 | AB95: 0 | AC95: 0 | AD95: 0 | AE95: 0 | AF95: 0 | AG95: 0
A96: =IF(AG96=1,AG96+SUM($AG$10:AG95),0) -> 0 | R96: 0 | S96: 0 | T96: 0 | U96: 0 | V96: 0 | W96: 0 | X96: 0 | Y96: 0 | Z96: 0 | AA96: 0 | AB96: 0 | AC96: 0 | AD96: 0 | AE96: 0 | AF96: 0 | AG96: 0
A97: =IF(AG97=1,AG97+SUM($AG$10:AG96),0) -> 0 | R97: 0 | S97: 0 | T97: 0 | U97: 0 | V97: 0 | W97: 0 | X97: 0 | Y97: 0 | Z97: 0 | AA97: 0 | AB97: 0 | AC97: 0 | AD97: 0 | AE97: 0 | AF97: 0 | AG97: 0
A98: =IF(AG98=1,AG98+SUM($AG$10:AG97),0) -> 0 | R98: 0 | S98: 0 | T98: 0 | U98: 0 | V98: 0 | W98: 0 | X98: 0 | Y98: 0 | Z98: 0 | AA98: 0 | AB98: 0 | AC98: 0 | AD98: 0 | AE98: 0 | AF98: 0 | AG98: 0
A99: =IF(AG99=1,AG99+SUM($AG$10:AG98),0) -> 0 | R99: 0 | S99: 0 | T99: 0 | U99: 0 | V99: 0 | W99: 0 | X99: 0 | Y99: 0 | Z99: 0 | AA99: 0 | AB99: 0 | AC99: 0 | AD99: 0 | AE99: 0 | AF99: 0 | AG99: 0
A100: =IF(AG100=1,AG100+SUM($AG$10:AG99),0) -> 0 | R100: 0 | S100: 0 | T100: 0 | U100: 0 | V100: 0 | W100: 0 | X100: 0 | Y100: 0 | Z100: 0 | AA100: 0 | AB100: 0 | AC100: 0 | AD100: 0 | AE100: 0 | AF100: 0 | AG100: 0
A101: =IF(AG101=1,AG101+SUM($AG$10:AG100),0) -> 0 | R101: 0 | S101: 0 | T101: 0 | U101: 0 | V101: 0 | W101: 0 | X101: 0 | Y101: 0 | Z101: 0 | AA101: 0 | AB101: 0 | AC101: 0 | AD101: 0 | AE101: 0 | AF101: 0 | AG101: 0
A102: =IF(AG102=1,AG102+SUM($AG$10:AG101),0) -> 0 | R102: 0 | S102: 0 | T102: 0 | U102: 0 | V102: 0 | W102: 0 | X102: 0 | Y102: 0 | Z102: 0 | AA102: 0 | AB102: 0 | AC102: 0 | AD102: 0 | AE102: 0 | AF102: 0 | AG102: 0
A103: =IF(AG103=1,AG103+SUM($AG$10:AG102),0) -> 0 | R103: 0 | S103: 0 | T103: 0 | U103: 0 | V103: 0 | W103: 0 | X103: 0 | Y103: 0 | Z103: 0 | AA103: 0 | AB103: 0 | AC103: 0 | AD103: 0 | AE103: 0 | AF103: 0 | AG103: 0
A104: =IF(AG104=1,AG104+SUM($AG$10:AG103),0) -> 0 | R104: 0 | S104: 0 | T104: 0 | U104: 0 | V104: 0 | W104: 0 | X104: 0 | Y104: 0 | Z104: 0 | AA104: 0 | AB104: 0 | AC104: 0 | AD104: 0 | AE104: 0 | AF104: 0 | AG104: 0
A105: =IF(AG105=1,AG105+SUM($AG$10:AG104),0) -> 0 | R105: 0 | S105: 0 | T105: 0 | U105: 0 | V105: 0 | W105: 0 | X105: 0 | Y105: 0 | Z105: 0 | AA105: 0 | AB105: 0 | AC105: 0 | AD105: 0 | AE105: 0 | AF105: 0 | AG105: 0
A106: =IF(AG106=1,AG106+SUM($AG$10:AG105),0) -> 0 | R106: 0 | S106: 0 | T106: 0 | U106: 0 | V106: 0 | W106: 0 | X106: 0 | Y106: 0 | Z106: 0 | AA106: 0 | AB106: 0 | AC106: 0 | AD106: 0 | AE106: 0 | AF106: 0 | AG106: 0
A107: =IF(AG107=1,AG107+SUM($AG$10:AG106),0) -> 0 | R107: 0 | S107: 0 | T107: 0 | U107: =ROUND(S107*$K$2,0) -> 0 | V107: =ROUND(S107*$K$3,0) -> 0 | W107: =ROUND(S107*$K$4,0) -> 0 | X107: =+ROUND(M107*$M$162+N107*$N$162+O107*$O$162+P107*$P$162,0) -> 0 | Y107: =ROUND(S107*$K$5,0) -> 0 | Z107: 0 | AA107: 0 | AB107: 0 | AC107: 0 | AD107: 0 | AE107: =ROUND(R107*$K$6,0) -> 0 | AF107: 0 | AG107: =IF(S107<>0,1,0) -> 0
A108: =IF(AG108=1,AG108+SUM($AG$10:AG107),0) -> 0 | R108: 0 | S108: 0 | T108: 0 | U108: 0 | V108: 0 | W108: 0 | X108: 0 | Y108: 0 | Z108: 0 | AA108: 0 | AB108: 0 | AC108: 0 | AD108: 0 | AE108: 0 | AF108: 0 | AG108: 0
A109: =IF(AG109=1,AG109+SUM($AG$10:AG108),0) -> 0 | R109: 0 | S109: 0 | T109: 0 | U109: 0 | V109: 0 | W109: 0 | X109: 0 | Y109: 0 | Z109: 0 | AA109: 0 | AB109: 0 | AC109: 0 | AD109: 0 | AE109: 0 | AF109: 0 | AG109: 0
A110: =IF(AG110=1,AG110+SUM($AG$10:AG109),0) -> 0 | R110: 0 | S110: 0 | T110: 0 | U110: 0 | V110: 0 | W110: 0 | X110: 0 | Y110: 0 | Z110: 0 | AA110: 0 | AB110: 0 | AC110: 0 | AD110: 0 | AE110: 0 | AF110: 0 | AG110: 0
A111: =IF(AG111=1,AG111+SUM($AG$10:AG110),0) -> 0 | R111: 0 | S111: 0 | T111: 0 | U111: 0 | V111: 0 | W111: 0 | X111: 0 | Y111: 0 | Z111: 0 | AA111: 0 | AB111: 0 | AC111: 0 | AD111: 0 | AE111: 0 | AF111: 0 | AG111: 0
A112: =IF(AG112=1,AG112+SUM($AG$10:AG111),0) -> 0 | R112: 0 | S112: 0 | T112: 0 | U112: 0 | V112: 0 | W112: 0 | X112: 0 | Y112: 0 | Z112: 0 | AA112: 0 | AB112: 0 | AC112: 0 | AD112: 0 | AE112: 0 | AF112: 0 | AG112: 0
A113: =IF(AG113=1,AG113+SUM($AG$10:AG112),0) -> 0 | R113: 0 | S113: 0 | T113: 0 | U113: 0 | V113: 0 | W113: 0 | X113: 0 | Y113: 0 | Z113: 0 | AA113: 0 | AB113: 0 | AC113: 0 | AD113: 0 | AE113: 0 | AF113: 0 | AG113: 0
A114: =IF(AG114=1,AG114+SUM($AG$10:AG113),0) -> 0 | R114: 0 | S114: 0 | T114: 0 | U114: 0 | V114: 0 | W114: 0 | X114: 0 | Y114: 0 | Z114: 0 | AA114: 0 | AB114: 0 | AC114: 0 | AD114: 0 | AE114: 0 | AF114: 0 | AG114: 0
A115: =IF(AG115=1,AG115+SUM($AG$10:AG114),0) -> 0 | R115: 0 | S115: 0 | T115: 0 | U115: 0 | V115: 0 | W115: 0 | X115: 0 | Y115: 0 | Z115: 0 | AA115: 0 | AB115: 0 | AC115: 0 | AD115: 0 | AE115: 0 | AF115: 0 | AG115: 0
A116: =IF(AG116=1,AG116+SUM($AG$10:AG115),0) -> 0 | R116: 0 | S116: 0 | T116: 0 | U116: 0 | V116: 0 | W116: 0 | X116: 0 | Y116: 0 | Z116: 0 | AA116: 0 | AB116: 0 | AC116: 0 | AD116: 0 | AE116: 0 | AF116: 0 | AG116: 0
A117: =IF(AG117=1,AG117+SUM($AG$10:AG116),0) -> 0 | R117: 0 | S117: 0 | T117: 0 | U117: 0 | V117: 0 | W117: 0 | X117: 0 | Y117: 0 | Z117: 0 | AA117: 0 | AB117: 0 | AC117: 0 | AD117: 0 | AE117: 0 | AF117: 0 | AG117: 0
A118: =IF(AG118=1,AG118+SUM($AG$10:AG117),0) -> 0 | R118: 0 | S118: 0 | T118: 0 | U118: 0 | V118: 0 | W118: 0 | X118: 0 | Y118: 0 | Z118: 0 | AA118: 0 | AB118: 0 | AC118: 0 | AD118: 0 | AE118: 0 | AF118: 0 | AG118: 0
A119: =IF(AG119=1,AG119+SUM($AG$10:AG118),0) -> 0 | R119: 0 | S119: 0 | T119: 0 | U119: 0 | V119: 0 | W119: 0 | X119: 0 | Y119: 0 | Z119: 0 | AA119: 0 | AB119: 0 | AC119: 0 | AD119: 0 | AE119: 0 | AF119: 0 | AG119: 0
A120: =IF(AG120=1,AG120+SUM($AG$10:AG119),0) -> 0 | R120: 0 | S120: 0 | T120: 0 | U120: 0 | V120: 0 | W120: 0 | X120: 0 | Y120: 0 | Z120: 0 | AA120: 0 | AB120: 0 | AC120: 0 | AD120: 0 | AE120: 0 | AF120: 0 | AG120: 0
A121: =IF(AG121=1,AG121+SUM($AG$10:AG120),0) -> 0 | R121: 0 | S121: 0 | T121: 0 | U121: 0 | V121: 0 | W121: 0 | X121: 0 | Y121: 0 | Z121: 0 | AA121: 0 | AB121: 0 | AC121: 0 | AD121: 0 | AE121: 0 | AF121: 0 | AG121: 0
A122: =IF(AG122=1,AG122+SUM($AG$10:AG121),0) -> 0 | R122: 0 | S122: 0 | T122: 0 | U122: 0 | V122: 0 | W122: 0 | X122: 0 | Y122: 0 | Z122: 0 | AA122: 0 | AB122: 0 | AC122: 0 | AD122: 0 | AE122: 0 | AF122: 0 | AG122: 0
A123: =IF(AG123=1,AG123+SUM($AG$10:AG122),0) -> 0 | R123: 0 | S123: 0 | T123: 0 | U123: 0 | V123: 0 | W123: 0 | X123: 0 | Y123: 0 | Z123: 0 | AA123: 0 | AB123: 0 | AC123: 0 | AD123: 0 | AE123: 0 | AF123: 0 | AG123: 0
A124: =IF(AG124=1,AG124+SUM($AG$10:AG123),0) -> 0 | R124: 0 | S124: 0 | T124: 0 | U124: 0 | V124: 0 | W124: 0 | X124: 0 | Y124: 0 | Z124: 0 | AA124: 0 | AB124: 0 | AC124: 0 | AD124: 0 | AE124: 0 | AF124: 0 | AG124: 0
A125: =IF(AG125=1,AG125+SUM($AG$10:AG124),0) -> 0 | R125: 0 | S125: 0 | T125: 0 | U125: 0 | V125: 0 | W125: 0 | X125: 0 | Y125: 0 | Z125: 0 | AA125: 0 | AB125: 0 | AC125: 0 | AD125: 0 | AE125: 0 | AF125: 0 | AG125: 0
A126: =IF(AG126=1,AG126+SUM($AG$10:AG125),0) -> 0 | R126: 0 | S126: 0 | T126: 0 | U126: 0 | V126: 0 | W126: 0 | X126: 0 | Y126: 0 | Z126: 0 | AA126: 0 | AB126: 0 | AC126: 0 | AD126: 0 | AE126: 0 | AF126: 0 | AG126: 0
A127: =IF(AG127=1,AG127+SUM($AG$10:AG126),0) -> 0 | R127: 0 | S127: 0 | T127: 0 | U127: 0 | V127: 0 | W127: 0 | X127: 0 | Y127: 0 | Z127: 0 | AA127: 0 | AB127: 0 | AC127: 0 | AD127: 0 | AE127: 0 | AF127: 0 | AG127: 0
A128: =IF(AG128=1,AG128+SUM($AG$10:AG127),0) -> 0 | R128: 0 | S128: 0 | T128: 0 | U128: 0 | V128: 0 | W128: 0 | X128: 0 | Y128: 0 | Z128: 0 | AA128: 0 | AB128: 0 | AC128: 0 | AD128: 0 | AE128: 0 | AF128: 0 | AG128: 0
A129: =IF(AG129=1,AG129+SUM($AG$10:AG128),0) -> 0 | R129: 0 | S129: 0 | T129: 0 | U129: 0 | V129: 0 | W129: 0 | X129: 0 | Y129: 0 | Z129: 0 | AA129: 0 | AB129: 0 | AC129: 0 | AD129: 0 | AE129: 0 | AF129: 0 | AG129: 0
A130: =IF(AG130=1,AG130+SUM($AG$10:AG129),0) -> 0 | R130: 0 | S130: 0 | T130: 0 | U130: 0 | V130: 0 | W130: 0 | X130: 0 | Y130: 0 | Z130: 0 | AA130: 0 | AB130: 0 | AC130: 0 | AD130: 0 | AE130: 0 | AF130: 0 | AG130: 0
A131: =IF(AG131=1,AG131+SUM($AG$10:AG130),0) -> 0 | R131: 0 | S131: 0 | T131: 0 | U131: 0 | V131: 0 | W131: 0 | X131: 0 | Y131: 0 | Z131: 0 | AA131: 0 | AB131: 0 | AC131: 0 | AD131: 0 | AE131: 0 | AF131: 0 | AG131: 0
A132: =IF(AG132=1,AG132+SUM($AG$10:AG131),0) -> 0 | R132: 0 | S132: 0 | T132: 0 | U132: 0 | V132: 0 | W132: 0 | X132: 0 | Y132: 0 | Z132: 0 | AA132: 0 | AB132: 0 | AC132: 0 | AD132: 0 | AE132: 0 | AF132: 0 | AG132: 0
A133: =IF(AG133=1,AG133+SUM($AG$10:AG132),0) -> 0 | R133: 0 | S133: 0 | T133: 0 | U133: 0 | V133: 0 | W133: 0 | X133: 0 | Y133: 0 | Z133: 0 | AA133: 0 | AB133: 0 | AC133: 0 | AD133: 0 | AE133: 0 | AF133: 0 | AG133: 0
A134: =IF(AG134=1,AG134+SUM($AG$10:AG133),0) -> 0 | R134: 0 | S134: 0 | T134: 0 | U134: 0 | V134: 0 | W134: 0 | X134: 0 | Y134: 0 | Z134: 0 | AA134: 0 | AB134: 0 | AC134: 0 | AD134: 0 | AE134: 0 | AF134: 0 | AG134: 0
A135: =IF(AG135=1,AG135+SUM($AG$10:AG134),0) -> 0 | R135: 0 | S135: 0 | T135: 0 | U135: 0 | V135: 0 | W135: 0 | X135: 0 | Y135: 0 | Z135: 0 | AA135: 0 | AB135: 0 | AC135: 0 | AD135: 0 | AE135: 0 | AF135: 0 | AG135: 0
A136: =IF(AG136=1,AG136+SUM($AG$10:AG135),0) -> 0 | R136: 0 | S136: 0 | T136: 0 | U136: 0 | V136: 0 | W136: 0 | X136: 0 | Y136: 0 | Z136: 0 | AA136: 0 | AB136: 0 | AC136: 0 | AD136: 0 | AE136: 0 | AF136: 0 | AG136: 0
A137: =IF(AG137=1,AG137+SUM($AG$10:AG136),0) -> 0 | R137: 0 | S137: 0 | T137: 0 | U137: 0 | V137: 0 | W137: 0 | X137: 0 | Y137: 0 | Z137: 0 | AA137: 0 | AB137: 0 | AC137: 0 | AD137: 0 | AE137: 0 | AF137: 0 | AG137: 0
A138: =IF(AG138=1,AG138+SUM($AG$10:AG137),0) -> 0 | R138: 0 | S138: 0 | T138: 0 | U138: 0 | V138: 0 | W138: 0 | X138: 0 | Y138: 0 | Z138: 0 | AA138: 0 | AB138: 0 | AC138: 0 | AD138: 0 | AE138: 0 | AF138: 0 | AG138: 0
A139: =IF(AG139=1,AG139+SUM($AG$10:AG138),0) -> 0 | R139: 0 | S139: 0 | T139: 0 | U139: =ROUND(S139*$K$2,0) -> 0 | V139: =ROUND(S139*$K$3,0) -> 0 | W139: =ROUND(S139*$K$4,0) -> 0 | X139: =+ROUND(M139*$M$162+N139*$N$162+O139*$O$162+P139*$P$162,0) -> 0 | Y139: =ROUND(S139*$K$5,0) -> 0 | Z139: 0 | AA139: 0 | AB139: 0 | AC139: 0 | AD139: 0 | AE139: =ROUND(R139*$K$6,0) -> 0 | AF139: 0 | AG139: =IF(S139<>0,1,0) -> 0
A140: =IF(AG140=1,AG140+SUM($AG$10:AG139),0) -> 0 | R140: =ROUND(+C140+E140+G140+I140+K140,0) -> 0 | S140: =ROUND(D140+F140+H140+J140+L140,2) -> 0 | T140: =ROUND(M140+N140+O140+P140+S140,2) -> 0 | U140: 0 | V140: 0 | W140: 0 | X140: 0 | Y140: 0 | Z140: =ROUND(SUM(U140:Y140)+Q140,0) -> 0 | AA140: =+Z140-Q140 -> 0 | AB140: =ROUND(ROUND(AA140*$AI$22,0),0) -> 0 | AC140: =ROUND(ROUND(AA140*$AI$23,0),0) -> 0 | AD140: =ROUND(Z140-SUM(AB140:AC140),0) -> 0 | AE140: 0 | AF140: =ROUND(AD140+AE140,0) -> 0 | AG140: 0
A141: =IF(AG141=1,AG141+SUM($AG$10:AG140),0) -> 0 | R141: 0 | S141: 0 | T141: 0 | U141: 0 | V141: 0 | W141: 0 | X141: 0 | Y141: 0 | Z141: 0 | AA141: 0 | AB141: 0 | AC141: 0 | AD141: 0 | AE141: 0 | AF141: 0 | AG141: 0
A142: =IF(AG142=1,AG142+SUM($AG$10:AG141),0) -> 0 | R142: 0 | S142: 0 | T142: 0 | U142: 0 | V142: 0 | W142: 0 | X142: 0 | Y142: 0 | Z142: 0 | AA142: 0 | AB142: 0 | AC142: 0 | AD142: 0 | AE142: 0 | AF142: 0 | AG142: 0
A143: =IF(AG143=1,AG143+SUM($AG$10:AG142),0) -> 0 | R143: 0 | S143: 0 | T143: 0 | U143: 0 | V143: 0 | W143: 0 | X143: 0 | Y143: 0 | Z143: 0 | AA143: 0 | AB143: 0 | AC143: 0 | AD143: 0 | AE143: 0 | AF143: 0 | AG143: 0
A144: =IF(AG144=1,AG144+SUM($AG$10:AG143),0) -> 0 | R144: 0 | S144: 0 | T144: 0 | U144: 0 | V144: 0 | W144: 0 | X144: 0 | Y144: 0 | Z144: 0 | AA144: 0 | AB144: 0 | AC144: 0 | AD144: 0 | AE144: 0 | AF144: 0 | AG144: 0
A145: =IF(AG145=1,AG145+SUM($AG$10:AG144),0) -> 0 | R145: 0 | S145: 0 | T145: 0 | U145: 0 | V145: 0 | W145: 0 | X145: 0 | Y145: 0 | Z145: 0 | AA145: 0 | AB145: 0 | AC145: 0 | AD145: 0 | AE145: 0 | AF145: 0 | AG145: 0
A146: =IF(AG146=1,AG146+SUM($AG$10:AG145),0) -> 0 | R146: 0 | S146: 0 | T146: 0 | U146: 0 | V146: 0 | W146: 0 | X146: 0 | Y146: 0 | Z146: 0 | AA146: 0 | AB146: 0 | AC146: 0 | AD146: 0 | AE146: 0 | AF146: 0 | AG146: 0
A147: =IF(AG147=1,AG147+SUM($AG$10:AG146),0) -> 0 | R147: 0 | S147: 0 | T147: 0 | U147: 0 | V147: 0 | W147: 0 | X147: 0 | Y147: 0 | Z147: 0 | AA147: 0 | AB147: 0 | AC147: 0 | AD147: 0 | AE147: 0 | AF147: 0 | AG147: 0
A148: =IF(AG148=1,AG148+SUM($AG$10:AG147),0) -> 0 | R148: 0 | S148: 0 | T148: 0 | U148: 0 | V148: 0 | W148: 0 | X148: 0 | Y148: 0 | Z148: 0 | AA148: 0 | AB148: 0 | AC148: 0 | AD148: 0 | AE148: 0 | AF148: 0 | AG148: 0
A149: =IF(AG149=1,AG149+SUM($AG$10:AG148),0) -> 0 | R149: 0 | S149: 0 | T149: 0 | U149: 0 | V149: 0 | W149: 0 | X149: 0 | Y149: 0 | Z149: 0 | AA149: 0 | AB149: 0 | AC149: 0 | AD149: 0 | AE149: 0 | AF149: 0 | AG149: 0
A150: =IF(AG150=1,AG150+SUM($AG$10:AG149),0) -> 0 | R150: 0 | S150: 0 | T150: 0 | U150: 0 | V150: 0 | W150: 0 | X150: 0 | Y150: 0 | Z150: 0 | AA150: 0 | AB150: 0 | AC150: 0 | AD150: 0 | AE150: 0 | AF150: 0 | AG150: 0
A151: =IF(AG151=1,AG151+SUM($AG$10:AG150),0) -> 0 | R151: 0 | S151: 0 | T151: 0 | U151: 0 | V151: 0 | W151: 0 | X151: 0 | Y151: 0 | Z151: 0 | AA151: 0 | AB151: 0 | AC151: 0 | AD151: 0 | AE151: 0 | AF151: 0 | AG151: 0
A152: =IF(AG152=1,AG152+SUM($AG$10:AG151),0) -> 0 | R152: 0 | S152: 0 | T152: 0 | U152: 0 | V152: 0 | W152: 0 | X152: 0 | Y152: 0 | Z152: 0 | AA152: 0 | AB152: 0 | AC152: 0 | AD152: 0 | AE152: 0 | AF152: 0 | AG152: 0
A153: =IF(AG153=1,AG153+SUM($AG$10:AG152),0) -> 0 | R153: 0 | S153: 0 | T153: 0 | U153: 0 | V153: 0 | W153: 0 | X153: 0 | Y153: 0 | Z153: 0 | AA153: 0 | AB153: 0 | AC153: 0 | AD153: 0 | AE153: 0 | AF153: 0 | AG153: 0
A154: =IF(AG154=1,AG154+SUM($AG$10:AG153),0) -> 0 | R154: 0 | S154: 0 | T154: 0 | U154: 0 | V154: 0 | W154: 0 | X154: 0 | Y154: 0 | Z154: 0 | AA154: 0 | AB154: 0 | AC154: 0 | AD154: 0 | AE154: 0 | AF154: 0 | AG154: 0
A155: =IF(AG155=1,AG155+SUM($AG$10:AG154),0) -> 0 | R155: 0 | S155: 0 | T155: 0 | U155: 0 | V155: 0 | W155: 0 | X155: 0 | Y155: 0 | Z155: 0 | AA155: 0 | AB155: 0 | AC155: 0 | AD155: 0 | AE155: 0 | AF155: 0 | AG155: 0
A156: =IF(AG156=1,AG156+SUM($AG$10:AG155),0) -> 0 | R156: 0 | S156: 0 | T156: 0 | U156: 0 | V156: 0 | W156: 0 | X156: 0 | Y156: 0 | Z156: 0 | AA156: 0 | AB156: 0 | AC156: 0 | AD156: 0 | AE156: 0 | AF156: 0 | AG156: 0
A157: =IF(AG157=1,AG157+SUM($AG$10:AG156),0) -> 0 | R157: 0 | S157: 0 | T157: 0 | U157: 0 | V157: 0 | W157: 0 | X157: 0 | Y157: 0 | Z157: 0 | AA157: 0 | AB157: 0 | AC157: 0 | AD157: 0 | AE157: 0 | AF157: 0 | AG157: 0
A158: =IF(AG158=1,AG158+SUM($AG$10:AG157),0) -> 0 | R158: 0 | S158: 0 | T158: 0 | U158: 0 | V158: 0 | W158: 0 | X158: 0 | Y158: 0 | Z158: 0 | AA158: 0 | AB158: 0 | AC158: 0 | AD158: 0 | AE158: 0 | AF158: 0 | AG158: 0
A159: =IF(AG159=1,AG159+SUM($AG$10:AG158),0) -> 0 | R159: =ROUND(+C159+E159+G159+I159+K159,0) -> 0 | S159: 0 | T159: 0 | U159: 0 | V159: 0 | W159: 0 | X159: 0 | Y159: 0 | Z159: 0 | AA159: 0 | AB159: 0 | AC159: 0 | AD159: 0 | AE159: 0 | AF159: 0 | AG159: 0
A160: =IF(AG160=1,AG160+SUM($AG$10:AG159),0) -> 0 | R160: 0 | S160: 0 | T160: 0 | U160: 0 | V160: 0 | W160: 0 | X160: 0 | Y160: 0 | Z160: =ROUND(SUM(U160:Y160)+Q160,0) -> 0 | AA160: 0 | AB160: 0 | AC160: 0 | AD160: 0 | AE160: 0 | AF160: 0 | AG160: 0
B161: TOTAL | C161: =SUM(C11:C160) -> 10 | D161: 80 | E161: 10 | F161: 80 | G161: 10 | H161: 80 | I161: 10 | J161: 80 | K161: 0 | L161: 0 | M161: 4 | N161: 5 | O161: 0 | P161: 5 | Q161: =SUM(Q11:Q160) -> 1500 | R161: =ROUND(SUM(R11:R160),0) -> 40 | S161: =SUM(S11:S160) -> 320 | T161: =ROUND(SUM(T11:T160),0) -> 334 | U161: 110720 | V161: 9920 | W161: 7040 | X161: 7647 | Y161: 3520 | Z161: =ROUND(SUM(Z11:Z160),0) -> 140347 | AA161: 138847 | AB161: 1666 | AC161: 8747 | AD161: 129934 | AE161: 33320 | AF161: 163254 | AG161: =SUM(AG11:AG160) -> 2
M162: =AI15 -> 398 | N162: =AI16 -> 519 | O162: =AI17 -> 606 | P162: =AI18 -> 692

Sheet Etat Paiement Salaires
A1: ʘ | B1: SALAIRE NET | C1: =Journaliers_occasionnels!C1 -> EviBoni PAIE_16.12+ | E1: =IF(A2<>0,"Le nombre de mode de paiement est différent du nombre de salarié! Regardez la colone du MODE PAIEMENT", "") ->  | S1: ●
A2: =(A103-R103) -> 0 | B2: =Info_Entreprise!K6 -> A REVOIR | C2: Heures | D2: Jours | E2: SALAIRE | F2: PRÊT | G2: AVS-1 | H2: AVS-2 | I2: AVS-3 | J2: AVS-4 | K2: AUTRES | L2: NET A PAYER | M2: ECART | N2: AJOUT SAL. | O2: NET A PAYER | P2: AVS & ACO | Q2: SOLDE | R2: MODE PAIEMENT
A3: =IF(E3>0,1,0) -> 1 | B3: ='Livre de paie des embauchés'!B3 -> EBENEZAH TOUSSAINT | C3: ='Livre de paie des embauchés'!AA3 -> 173.3333333 | D3: =IF(C3<>0,'Livre de paie des embauchés'!AB3,0) -> 30 | E3: =ROUND('Livre de paie des embauchés'!AC3,0) -> 280000 | L3: =ROUND(IF((E3-(G3+F3+H3+K3+I3+J3))>0,(E3-(G3+F3+H3+K3+I3+J3)),0),0) -> 280000 | M3: =IF((E3-(G3+H3+I3+J3+K3+L3))>0,0,-(E3-(G3+H3+I3+J3+K3+L3))) -> 0 | O3: =E3 -> 280000 | P3: =F3+G3+H3+I3+J3+K3 -> 0 | Q3: =O3-P3 -> 280000 | R3: =IF(Q3<>0,'Livre de paie des embauchés'!AU3,0) -> ESPECE | S3: =IF(AND(Q3>0,R3<>0),1,0) -> 1 | T3: =+Info_Salariés!O3 -> CDI
A4: 1 | B4: ='Livre de paie des embauchés'!B4 -> BIAKPA Boni | C4: ='Livre de paie des embauchés'!AA4 -> 173.3333333 | D4: =IF(C4<>0,'Livre de paie des embauchés'!AB4,0) -> 30 | E4: =ROUND('Livre de paie des embauchés'!AC4,0) -> 692465 | L4: =ROUND(IF((E4-(G4+F4+H4+K4+I4+J4))>0,(E4-(G4+F4+H4+K4+I4+J4)),0),0) -> 692465 | M4: =IF((E4-(G4+H4+I4+J4+K4+L4))>0,0,-(E4-(G4+H4+I4+J4+K4+L4))) -> 0 | O4: =E4 -> 692465 | P4: 0 | Q4: =O4-P4 -> 692465 | R4: =IF(Q4<>0,'Livre de paie des embauchés'!AU4,0) -> VIREMENT BANCAIRE | S4: =IF(AND(Q4>0,R4<>0),1,0) -> 1 | T4: =+Info_Salariés!O4 -> CDI
A5: 1 | B5: ='Livre de paie des embauchés'!B5 -> BLEU Lisette | C5: ='Livre de paie des embauchés'!AA5 -> 173.3333333 | D5: =IF(C5<>0,'Livre de paie des embauchés'!AB5,0) -> 30 | E5: =ROUND('Livre de paie des embauchés'!AC5,0) -> 319108 | L5: 319108 | M5: 0 | O5: 319108 | P5: 0 | Q5: 319108 | R5: =IF(Q5<>0,'Livre de paie des embauchés'!AU5,0) -> VIREMENT BANCAIRE | S5: =IF(AND(Q5>0,R5<>0),1,0) -> 1 | T5: =+Info_Salariés!O5 -> CDI
A6: =IF(E6>0,1,0) -> 1 | B6: ='Livre de paie des embauchés'!B6 -> BONI Boni Mathias | C6: ='Livre de paie des embauchés'!AA6 -> 173.3333333 | D6: =IF(C6<>0,'Livre de paie des embauchés'!AB6,0) -> 30 | E6: =ROUND('Livre de paie des embauchés'!AC6,0) -> 305821 | L6: 305821 | M6: 0 | O6: 305821 | P6: 0 | Q6: 305821 | R6: =IF(Q6<>0,'Livre de paie des embauchés'!AU6,0) -> ESPECE | S6: 1 | T6: =+Info_Salariés!O6 -> CDI
A7: 1 | B7: ='Livre de paie des embauchés'!B7 -> DELI Thelo Anne Marie | C7: ='Livre de paie des embauchés'!AA7 -> 173.3333333 | D7: =IF(C7<>0,'Livre de paie des embauchés'!AB7,0) -> 30 | E7: =ROUND('Livre de paie des embauchés'!AC7,0) -> 302377 | L7: 302377 | M7: 0 | O7: 302377 | P7: 0 | Q7: 302377 | R7: =IF(Q7<>0,'Livre de paie des embauchés'!AU7,0) -> VIREMENT BANCAIRE | S7: 1 | T7: =+Info_Salariés!O7 -> CDI
A8: 1 | B8: ='Livre de paie des embauchés'!B8 -> KOUASSI Evi | C8: ='Livre de paie des embauchés'!AA8 -> 173.3333333 | D8: =IF(C8<>0,'Livre de paie des embauchés'!AB8,0) -> 30 | E8: =ROUND('Livre de paie des embauchés'!AC8,0) -> 781161 | L8: 781161 | M8: 0 | O8: 781161 | P8: 0 | Q8: 781161 | R8: =IF(Q8<>0,'Livre de paie des embauchés'!AU8,0) -> ESPECE | S8: 1 | T8: =+Info_Salariés!O8 -> CDI
A9: 0 | B9: ='Livre de paie des embauchés'!B9 -> OUATTARA Gemima | C9: ='Livre de paie des embauchés'!AA9 -> 0 | D9: =IF(C9<>0,'Livre de paie des embauchés'!AB9,0) -> 0 | E9: =ROUND('Livre de paie des embauchés'!AC9,0) -> 0 | L9: 0 | M9: 0 | O9: 0 | P9: 0 | Q9: 0 | R9: =IF(Q9<>0,'Livre de paie des embauchés'!AU9,0) -> 0 | S9: 0 | T9: =+Info_Salariés!O9 -> CDI
A10: 0 | B10: ='Livre de paie des embauchés'!B10 -> 0 | C10: ='Livre de paie des embauchés'!AA10 -> 0 | D10: =IF(C10<>0,'Livre de paie des embauchés'!AB10,0) -> 0 | E10: =ROUND('Livre de paie des embauchés'!AC10,0) -> 0 | L10: 0 | M10: 0 | O10: 0 | P10: 0 | Q10: 0 | R10: =IF(Q10<>0,'Livre de paie des embauchés'!AU10,0) -> 0 | S10: 0 | T10: =+Info_Salariés!O10 -> 0
A11: 0 | B11: ='Livre de paie des embauchés'!B11 -> 0 | C11: ='Livre de paie des embauchés'!AA11 -> 0 | D11: =IF(C11<>0,'Livre de paie des embauchés'!AB11,0) -> 0 | E11: =ROUND('Livre de paie des embauchés'!AC11,0) -> 0 | L11: 0 | M11: 0 | O11: 0 | P11: 0 | Q11: 0 | R11: =IF(Q11<>0,'Livre de paie des embauchés'!AU11,0) -> 0 | S11: 0 | T11: =+Info_Salariés!O11 -> 0
A12: 0 | B12: ='Livre de paie des embauchés'!B12 -> 0 | C12: ='Livre de paie des embauchés'!AA12 -> 0 | D12: =IF(C12<>0,'Livre de paie des embauchés'!AB12,0) -> 0 | E12: =ROUND('Livre de paie des embauchés'!AC12,0) -> 0 | L12: 0 | M12: 0 | O12: 0 | P12: 0 | Q12: 0 | R12: =IF(Q12<>0,'Livre de paie des embauchés'!AU12,0) -> 0 | S12: 0 | T12: =+Info_Salariés!O12 -> 0
A13: 0 | B13: ='Livre de paie des embauchés'!B13 -> 0 | C13: ='Livre de paie des embauchés'!AA13 -> 0 | D13: =IF(C13<>0,'Livre de paie des embauchés'!AB13,0) -> 0 | E13: =ROUND('Livre de paie des embauchés'!AC13,0) -> 0 | L13: 0 | M13: 0 | O13: 0 | P13: 0 | Q13: 0 | R13: =IF(Q13<>0,'Livre de paie des embauchés'!AU13,0) -> 0 | S13: 0 | T13: =+Info_Salariés!O13 -> 0
A14: 0 | B14: ='Livre de paie des embauchés'!B14 -> 0 | C14: ='Livre de paie des embauchés'!AA14 -> 0 | D14: =IF(C14<>0,'Livre de paie des embauchés'!AB14,0) -> 0 | E14: =ROUND('Livre de paie des embauchés'!AC14,0) -> 0 | L14: 0 | M14: 0 | O14: 0 | P14: 0 | Q14: 0 | R14: =IF(Q14<>0,'Livre de paie des embauchés'!AU14,0) -> 0 | S14: 0 | T14: =+Info_Salariés!O14 -> 0
A15: 0 | B15: ='Livre de paie des embauchés'!B15 -> 0 | C15: ='Livre de paie des embauchés'!AA15 -> 0 | D15: =IF(C15<>0,'Livre de paie des embauchés'!AB15,0) -> 0 | E15: =ROUND('Livre de paie des embauchés'!AC15,0) -> 0 | L15: 0 | M15: 0 | O15: 0 | P15: 0 | Q15: 0 | R15: =IF(Q15<>0,'Livre de paie des embauchés'!AU15,0) -> 0 | S15: 0 | T15: =+Info_Salariés!O15 -> 0
A16: 0 | B16: ='Livre de paie des embauchés'!B16 -> 0 | C16: ='Livre de paie des embauchés'!AA16 -> 0 | D16: =IF(C16<>0,'Livre de paie des embauchés'!AB16,0) -> 0 | E16: =ROUND('Livre de paie des embauchés'!AC16,0) -> 0 | L16: 0 | M16: 0 | O16: 0 | P16: 0 | Q16: 0 | R16: =IF(Q16<>0,'Livre de paie des embauchés'!AU16,0) -> 0 | S16: 0 | T16: =+Info_Salariés!O16 -> 0
A17: 0 | B17: ='Livre de paie des embauchés'!B17 -> 0 | C17: ='Livre de paie des embauchés'!AA17 -> 0 | D17: =IF(C17<>0,'Livre de paie des embauchés'!AB17,0) -> 0 | E17: =ROUND('Livre de paie des embauchés'!AC17,0) -> 0 | L17: 0 | M17: 0 | O17: 0 | P17: 0 | Q17: 0 | R17: =IF(Q17<>0,'Livre de paie des embauchés'!AU17,0) -> 0 | S17: 0 | T17: =+Info_Salariés!O17 -> 0
A18: 0 | B18: ='Livre de paie des embauchés'!B18 -> 0 | C18: ='Livre de paie des embauchés'!AA18 -> 0 | D18: =IF(C18<>0,'Livre de paie des embauchés'!AB18,0) -> 0 | E18: =ROUND('Livre de paie des embauchés'!AC18,0) -> 0 | L18: 0 | M18: 0 | O18: 0 | P18: 0 | Q18: 0 | R18: =IF(Q18<>0,'Livre de paie des embauchés'!AU18,0) -> 0 | S18: 0 | T18: =+Info_Salariés!O18 -> 0
A19: 0 | B19: ='Livre de paie des embauchés'!B19 -> 0 | C19: ='Livre de paie des embauchés'!AA19 -> 0 | D19: =IF(C19<>0,'Livre de paie des embauchés'!AB19,0) -> 0 | E19: =ROUND('Livre de paie des embauchés'!AC19,0) -> 0 | L19: 0 | M19: 0 | O19: 0 | P19: 0 | Q19: 0 | R19: =IF(Q19<>0,'Livre de paie des embauchés'!AU19,0) -> 0 | S19: 0 | T19: =+Info_Salariés!O19 -> 0
A20: 0 | B20: ='Livre de paie des embauchés'!B20 -> 0 | C20: ='Livre de paie des embauchés'!AA20 -> 0 | D20: =IF(C20<>0,'Livre de paie des embauchés'!AB20,0) -> 0 | E20: =ROUND('Livre de paie des embauchés'!AC20,0) -> 0 | L20: 0 | M20: 0 | O20: 0 | P20: 0 | Q20: 0 | R20: =IF(Q20<>0,'Livre de paie des embauchés'!AU20,0) -> 0 | S20: 0 | T20: =+Info_Salariés!O20 -> 0
A21: 0 | B21: ='Livre de paie des embauchés'!B21 -> 0 | C21: ='Livre de paie des embauchés'!AA21 -> 0 | D21: =IF(C21<>0,'Livre de paie des embauchés'!AB21,0) -> 0 | E21: =ROUND('Livre de paie des embauchés'!AC21,0) -> 0 | L21: 0 | M21: 0 | O21: 0 | P21: 0 | Q21: 0 | R21: =IF(Q21<>0,'Livre de paie des embauchés'!AU21,0) -> 0 | S21: 0 | T21: =+Info_Salariés!O21 -> 0
A22: 0 | B22: ='Livre de paie des embauchés'!B22 -> 0 | C22: ='Livre de paie des embauchés'!AA22 -> 0 | D22: =IF(C22<>0,'Livre de paie des embauchés'!AB22,0) -> 0 | E22: =ROUND('Livre de paie des embauchés'!AC22,0) -> 0 | L22: 0 | M22: 0 | O22: 0 | P22: 0 | Q22: 0 | R22: =IF(Q22<>0,'Livre de paie des embauchés'!AU22,0) -> 0 | S22: 0 | T22: =+Info_Salariés!O22 -> 0
A23: 0 | B23: ='Livre de paie des embauchés'!B23 -> 0 | C23: ='Livre de paie des embauchés'!AA23 -> 0 | D23: =IF(C23<>0,'Livre de paie des embauchés'!AB23,0) -> 0 | E23: =ROUND('Livre de paie des embauchés'!AC23,0) -> 0 | L23: 0 | M23: 0 | O23: 0 | P23: 0 | Q23: 0 | R23: =IF(Q23<>0,'Livre de paie des embauchés'!AU23,0) -> 0 | S23: 0 | T23: =+Info_Salariés!O23 -> 0
A24: 0 | B24: ='Livre de paie des embauchés'!B24 -> 0 | C24: ='Livre de paie des embauchés'!AA24 -> 0 | D24: =IF(C24<>0,'Livre de paie des embauchés'!AB24,0) -> 0 | E24: =ROUND('Livre de paie des embauchés'!AC24,0) -> 0 | L24: 0 | M24: 0 | O24: 0 | P24: 0 | Q24: 0 | R24: =IF(Q24<>0,'Livre de paie des embauchés'!AU24,0) -> 0 | S24: 0 | T24: =+Info_Salariés!O24 -> 0
A25: 0 | B25: ='Livre de paie des embauchés'!B25 -> 0 | C25: ='Livre de paie des embauchés'!AA25 -> 0 | D25: =IF(C25<>0,'Livre de paie des embauchés'!AB25,0) -> 0 | E25: =ROUND('Livre de paie des embauchés'!AC25,0) -> 0 | L25: 0 | M25: 0 | O25: 0 | P25: 0 | Q25: 0 | R25: =IF(Q25<>0,'Livre de paie des embauchés'!AU25,0) -> 0 | S25: 0 | T25: =+Info_Salariés!O25 -> 0
A26: 0 | B26: ='Livre de paie des embauchés'!B26 -> 0 | C26: ='Livre de paie des embauchés'!AA26 -> 0 | D26: =IF(C26<>0,'Livre de paie des embauchés'!AB26,0) -> 0 | E26: =ROUND('Livre de paie des embauchés'!AC26,0) -> 0 | L26: 0 | M26: 0 | O26: 0 | P26: 0 | Q26: 0 | R26: =IF(Q26<>0,'Livre de paie des embauchés'!AU26,0) -> 0 | S26: 0 | T26: =+Info_Salariés!O26 -> 0
A27: 0 | B27: ='Livre de paie des embauchés'!B27 -> 0 | C27: ='Livre de paie des embauchés'!AA27 -> 0 | D27: =IF(C27<>0,'Livre de paie des embauchés'!AB27,0) -> 0 | E27: =ROUND('Livre de paie des embauchés'!AC27,0) -> 0 | L27: 0 | M27: 0 | O27: 0 | P27: 0 | Q27: 0 | R27: =IF(Q27<>0,'Livre de paie des embauchés'!AU27,0) -> 0 | S27: 0 | T27: =+Info_Salariés!O27 -> 0
A28: 0 | B28: ='Livre de paie des embauchés'!B28 -> 0 | C28: ='Livre de paie des embauchés'!AA28 -> 0 | D28: =IF(C28<>0,'Livre de paie des embauchés'!AB28,0) -> 0 | E28: =ROUND('Livre de paie des embauchés'!AC28,0) -> 0 | L28: 0 | M28: 0 | O28: 0 | P28: 0 | Q28: 0 | R28: =IF(Q28<>0,'Livre de paie des embauchés'!AU28,0) -> 0 | S28: 0 | T28: =+Info_Salariés!O28 -> 0
A29: 0 | B29: ='Livre de paie des embauchés'!B29 -> 0 | C29: ='Livre de paie des embauchés'!AA29 -> 0 | D29: =IF(C29<>0,'Livre de paie des embauchés'!AB29,0) -> 0 | E29: =ROUND('Livre de paie des embauchés'!AC29,0) -> 0 | L29: 0 | M29: 0 | O29: 0 | P29: 0 | Q29: 0 | R29: =IF(Q29<>0,'Livre de paie des embauchés'!AU29,0) -> 0 | S29: 0 | T29: =+Info_Salariés!O29 -> 0
A30: 0 | B30: ='Livre de paie des embauchés'!B30 -> 0 | C30: ='Livre de paie des embauchés'!AA30 -> 0 | D30: =IF(C30<>0,'Livre de paie des embauchés'!AB30,0) -> 0 | E30: =ROUND('Livre de paie des embauchés'!AC30,0) -> 0 | L30: 0 | M30: 0 | O30: 0 | P30: 0 | Q30: 0 | R30: =IF(Q30<>0,'Livre de paie des embauchés'!AU30,0) -> 0 | S30: 0 | T30: =+Info_Salariés!O30 -> 0
A31: 0 | B31: ='Livre de paie des embauchés'!B31 -> 0 | C31: ='Livre de paie des embauchés'!AA31 -> 0 | D31: =IF(C31<>0,'Livre de paie des embauchés'!AB31,0) -> 0 | E31: =ROUND('Livre de paie des embauchés'!AC31,0) -> 0 | L31: 0 | M31: 0 | O31: 0 | P31: 0 | Q31: 0 | R31: =IF(Q31<>0,'Livre de paie des embauchés'!AU31,0) -> 0 | S31: 0 | T31: =+Info_Salariés!O31 -> 0
A32: 0 | B32: ='Livre de paie des embauchés'!B32 -> 0 | C32: ='Livre de paie des embauchés'!AA32 -> 0 | D32: =IF(C32<>0,'Livre de paie des embauchés'!AB32,0) -> 0 | E32: =ROUND('Livre de paie des embauchés'!AC32,0) -> 0 | L32: 0 | M32: 0 | O32: 0 | P32: 0 | Q32: 0 | R32: =IF(Q32<>0,'Livre de paie des embauchés'!AU32,0) -> 0 | S32: 0 | T32: =+Info_Salariés!O32 -> 0
A33: 0 | B33: ='Livre de paie des embauchés'!B33 -> 0 | C33: ='Livre de paie des embauchés'!AA33 -> 0 | D33: =IF(C33<>0,'Livre de paie des embauchés'!AB33,0) -> 0 | E33: =ROUND('Livre de paie des embauchés'!AC33,0) -> 0 | L33: 0 | M33: 0 | O33: 0 | P33: 0 | Q33: 0 | R33: =IF(Q33<>0,'Livre de paie des embauchés'!AU33,0) -> 0 | S33: 0 | T33: =+Info_Salariés!O33 -> 0
A34: 0 | B34: ='Livre de paie des embauchés'!B34 -> 0 | C34: ='Livre de paie des embauchés'!AA34 -> 0 | D34: =IF(C34<>0,'Livre de paie des embauchés'!AB34,0) -> 0 | E34: =ROUND('Livre de paie des embauchés'!AC34,0) -> 0 | L34: 0 | M34: 0 | O34: 0 | P34: 0 | Q34: 0 | R34: =IF(Q34<>0,'Livre de paie des embauchés'!AU34,0) -> 0 | S34: 0 | T34: =+Info_Salariés!O34 -> 0
A35: 0 | B35: ='Livre de paie des embauchés'!B35 -> 0 | C35: ='Livre de paie des embauchés'!AA35 -> 0 | D35: =IF(C35<>0,'Livre de paie des embauchés'!AB35,0) -> 0 | E35: =ROUND('Livre de paie des embauchés'!AC35,0) -> 0 | L35: =ROUND(IF((E35-(G35+F35+H35+K35+I35+J35))>0,(E35-(G35+F35+H35+K35+I35+J35)),0),0) -> 0 | M35: =IF((E35-(G35+H35+I35+J35+K35+L35))>0,0,-(E35-(G35+H35+I35+J35+K35+L35))) -> 0 | O35: 0 | P35: =F35+G35+H35+I35+J35+K35 -> 0 | Q35: 0 | R35: =IF(Q35<>0,'Livre de paie des embauchés'!AU35,0) -> 0 | S35: 0 | T35: =+Info_Salariés!O35 -> 0
A36: 0 | B36: ='Livre de paie des embauchés'!B36 -> 0 | C36: ='Livre de paie des embauchés'!AA36 -> 0 | D36: =IF(C36<>0,'Livre de paie des embauchés'!AB36,0) -> 0 | E36: =ROUND('Livre de paie des embauchés'!AC36,0) -> 0 | L36: 0 | M36: 0 | O36: 0 | P36: 0 | Q36: 0 | R36: =IF(Q36<>0,'Livre de paie des embauchés'!AU36,0) -> 0 | S36: 0 | T36: =+Info_Salariés!O36 -> 0
A37: 0 | B37: ='Livre de paie des embauchés'!B37 -> 0 | C37: ='Livre de paie des embauchés'!AA37 -> 0 | D37: =IF(C37<>0,'Livre de paie des embauchés'!AB37,0) -> 0 | E37: =ROUND('Livre de paie des embauchés'!AC37,0) -> 0 | L37: 0 | M37: 0 | O37: 0 | P37: 0 | Q37: 0 | R37: =IF(Q37<>0,'Livre de paie des embauchés'!AU37,0) -> 0 | S37: 0 | T37: =+Info_Salariés!O37 -> 0
A38: 0 | B38: ='Livre de paie des embauchés'!B38 -> 0 | C38: ='Livre de paie des embauchés'!AA38 -> 0 | D38: =IF(C38<>0,'Livre de paie des embauchés'!AB38,0) -> 0 | E38: =ROUND('Livre de paie des embauchés'!AC38,0) -> 0 | L38: 0 | M38: 0 | O38: 0 | P38: 0 | Q38: 0 | R38: =IF(Q38<>0,'Livre de paie des embauchés'!AU38,0) -> 0 | S38: 0 | T38: =+Info_Salariés!O38 -> 0
A39: 0 | B39: ='Livre de paie des embauchés'!B39 -> 0 | C39: ='Livre de paie des embauchés'!AA39 -> 0 | D39: =IF(C39<>0,'Livre de paie des embauchés'!AB39,0) -> 0 | E39: =ROUND('Livre de paie des embauchés'!AC39,0) -> 0 | L39: 0 | M39: 0 | O39: 0 | P39: 0 | Q39: 0 | R39: =IF(Q39<>0,'Livre de paie des embauchés'!AU39,0) -> 0 | S39: 0 | T39: =+Info_Salariés!O39 -> 0
A40: 0 | B40: ='Livre de paie des embauchés'!B40 -> 0 | C40: ='Livre de paie des embauchés'!AA40 -> 0 | D40: =IF(C40<>0,'Livre de paie des embauchés'!AB40,0) -> 0 | E40: =ROUND('Livre de paie des embauchés'!AC40,0) -> 0 | L40: 0 | M40: 0 | O40: 0 | P40: 0 | Q40: 0 | R40: =IF(Q40<>0,'Livre de paie des embauchés'!AU40,0) -> 0 | S40: 0 | T40: =+Info_Salariés!O40 -> 0
A41: 0 | B41: ='Livre de paie des embauchés'!B41 -> 0 | C41: ='Livre de paie des embauchés'!AA41 -> 0 | D41: =IF(C41<>0,'Livre de paie des embauchés'!AB41,0) -> 0 | E41: =ROUND('Livre de paie des embauchés'!AC41,0) -> 0 | L41: 0 | M41: 0 | O41: 0 | P41: 0 | Q41: 0 | R41: =IF(Q41<>0,'Livre de paie des embauchés'!AU41,0) -> 0 | S41: 0 | T41: =+Info_Salariés!O41 -> 0
A42: 0 | B42: ='Livre de paie des embauchés'!B42 -> 0 | C42: ='Livre de paie des embauchés'!AA42 -> 0 | D42: =IF(C42<>0,'Livre de paie des embauchés'!AB42,0) -> 0 | E42: =ROUND('Livre de paie des embauchés'!AC42,0) -> 0 | L42: 0 | M42: 0 | O42: 0 | P42: 0 | Q42: 0 | R42: =IF(Q42<>0,'Livre de paie des embauchés'!AU42,0) -> 0 | S42: 0 | T42: =+Info_Salariés!O42 -> 0
A43: 0 | B43: ='Livre de paie des embauchés'!B43 -> 0 | C43: ='Livre de paie des embauchés'!AA43 -> 0 | D43: =IF(C43<>0,'Livre de paie des embauchés'!AB43,0) -> 0 | E43: =ROUND('Livre de paie des embauchés'!AC43,0) -> 0 | L43: 0 | M43: 0 | O43: 0 | P43: 0 | Q43: 0 | R43: =IF(Q43<>0,'Livre de paie des embauchés'!AU43,0) -> 0 | S43: 0 | T43: =+Info_Salariés!O43 -> 0
A44: 0 | B44: ='Livre de paie des embauchés'!B44 -> 0 | C44: ='Livre de paie des embauchés'!AA44 -> 0 | D44: =IF(C44<>0,'Livre de paie des embauchés'!AB44,0) -> 0 | E44: =ROUND('Livre de paie des embauchés'!AC44,0) -> 0 | L44: 0 | M44: 0 | O44: 0 | P44: 0 | Q44: 0 | R44: =IF(Q44<>0,'Livre de paie des embauchés'!AU44,0) -> 0 | S44: 0 | T44: =+Info_Salariés!O44 -> 0
A45: 0 | B45: ='Livre de paie des embauchés'!B45 -> 0 | C45: ='Livre de paie des embauchés'!AA45 -> 0 | D45: =IF(C45<>0,'Livre de paie des embauchés'!AB45,0) -> 0 | E45: =ROUND('Livre de paie des embauchés'!AC45,0) -> 0 | L45: 0 | M45: 0 | O45: 0 | P45: 0 | Q45: 0 | R45: =IF(Q45<>0,'Livre de paie des embauchés'!AU45,0) -> 0 | S45: 0 | T45: =+Info_Salariés!O45 -> 0
A46: 0 | B46: ='Livre de paie des embauchés'!B46 -> 0 | C46: ='Livre de paie des embauchés'!AA46 -> 0 | D46: =IF(C46<>0,'Livre de paie des embauchés'!AB46,0) -> 0 | E46: =ROUND('Livre de paie des embauchés'!AC46,0) -> 0 | L46: 0 | M46: 0 | O46: 0 | P46: 0 | Q46: 0 | R46: =IF(Q46<>0,'Livre de paie des embauchés'!AU46,0) -> 0 | S46: 0 | T46: =+Info_Salariés!O46 -> 0
A47: 0 | B47: ='Livre de paie des embauchés'!B47 -> 0 | C47: ='Livre de paie des embauchés'!AA47 -> 0 | D47: =IF(C47<>0,'Livre de paie des embauchés'!AB47,0) -> 0 | E47: =ROUND('Livre de paie des embauchés'!AC47,0) -> 0 | L47: 0 | M47: 0 | O47: 0 | P47: 0 | Q47: 0 | R47: =IF(Q47<>0,'Livre de paie des embauchés'!AU47,0) -> 0 | S47: 0 | T47: =+Info_Salariés!O47 -> 0
A48: 0 | B48: ='Livre de paie des embauchés'!B48 -> 0 | C48: ='Livre de paie des embauchés'!AA48 -> 0 | D48: =IF(C48<>0,'Livre de paie des embauchés'!AB48,0) -> 0 | E48: =ROUND('Livre de paie des embauchés'!AC48,0) -> 0 | L48: 0 | M48: 0 | O48: 0 | P48: 0 | Q48: 0 | R48: =IF(Q48<>0,'Livre de paie des embauchés'!AU48,0) -> 0 | S48: 0 | T48: =+Info_Salariés!O48 -> 0
A49: 0 | B49: ='Livre de paie des embauchés'!B49 -> 0 | C49: ='Livre de paie des embauchés'!AA49 -> 0 | D49: =IF(C49<>0,'Livre de paie des embauchés'!AB49,0) -> 0 | E49: =ROUND('Livre de paie des embauchés'!AC49,0) -> 0 | L49: 0 | M49: 0 | O49: 0 | P49: 0 | Q49: 0 | R49: =IF(Q49<>0,'Livre de paie des embauchés'!AU49,0) -> 0 | S49: 0 | T49: =+Info_Salariés!O49 -> 0
A50: 0 | B50: ='Livre de paie des embauchés'!B50 -> 0 | C50: ='Livre de paie des embauchés'!AA50 -> 0 | D50: =IF(C50<>0,'Livre de paie des embauchés'!AB50,0) -> 0 | E50: =ROUND('Livre de paie des embauchés'!AC50,0) -> 0 | L50: 0 | M50: 0 | O50: 0 | P50: 0 | Q50: 0 | R50: =IF(Q50<>0,'Livre de paie des embauchés'!AU50,0) -> 0 | S50: 0 | T50: =+Info_Salariés!O50 -> 0
A51: 0 | B51: ='Livre de paie des embauchés'!B51 -> 0 | C51: ='Livre de paie des embauchés'!AA51 -> 0 | D51: =IF(C51<>0,'Livre de paie des embauchés'!AB51,0) -> 0 | E51: =ROUND('Livre de paie des embauchés'!AC51,0) -> 0 | L51: 0 | M51: 0 | O51: 0 | P51: 0 | Q51: 0 | R51: =IF(Q51<>0,'Livre de paie des embauchés'!AU51,0) -> 0 | S51: 0 | T51: =+Info_Salariés!O51 -> 0
A52: 0 | B52: ='Livre de paie des embauchés'!B52 -> 0 | C52: ='Livre de paie des embauchés'!AA52 -> 0 | D52: =IF(C52<>0,'Livre de paie des embauchés'!AB52,0) -> 0 | E52: =ROUND('Livre de paie des embauchés'!AC52,0) -> 0 | L52: 0 | M52: 0 | O52: 0 | P52: 0 | Q52: 0 | R52: =IF(Q52<>0,'Livre de paie des embauchés'!AU52,0) -> 0 | S52: 0 | T52: =+Info_Salariés!O52 -> 0
A53: 0 | B53: ='Livre de paie des embauchés'!B53 -> 0 | C53: ='Livre de paie des embauchés'!AA53 -> 0 | D53: =IF(C53<>0,'Livre de paie des embauchés'!AB53,0) -> 0 | E53: =ROUND('Livre de paie des embauchés'!AC53,0) -> 0 | L53: 0 | M53: 0 | O53: 0 | P53: 0 | Q53: 0 | R53: =IF(Q53<>0,'Livre de paie des embauchés'!AU53,0) -> 0 | S53: 0 | T53: =+Info_Salariés!O53 -> 0
A54: 0 | B54: ='Livre de paie des embauchés'!B54 -> 0 | C54: ='Livre de paie des embauchés'!AA54 -> 0 | D54: =IF(C54<>0,'Livre de paie des embauchés'!AB54,0) -> 0 | E54: =ROUND('Livre de paie des embauchés'!AC54,0) -> 0 | L54: 0 | M54: 0 | O54: 0 | P54: 0 | Q54: 0 | R54: =IF(Q54<>0,'Livre de paie des embauchés'!AU54,0) -> 0 | S54: 0 | T54: =+Info_Salariés!O54 -> 0
A55: 0 | B55: ='Livre de paie des embauchés'!B55 -> 0 | C55: ='Livre de paie des embauchés'!AA55 -> 0 | D55: =IF(C55<>0,'Livre de paie des embauchés'!AB55,0) -> 0 | E55: =ROUND('Livre de paie des embauchés'!AC55,0) -> 0 | L55: 0 | M55: 0 | O55: 0 | P55: 0 | Q55: 0 | R55: =IF(Q55<>0,'Livre de paie des embauchés'!AU55,0) -> 0 | S55: 0 | T55: =+Info_Salariés!O55 -> 0
A56: 0 | B56: ='Livre de paie des embauchés'!B56 -> 0 | C56: ='Livre de paie des embauchés'!AA56 -> 0 | D56: =IF(C56<>0,'Livre de paie des embauchés'!AB56,0) -> 0 | E56: =ROUND('Livre de paie des embauchés'!AC56,0) -> 0 | L56: 0 | M56: 0 | O56: 0 | P56: 0 | Q56: 0 | R56: =IF(Q56<>0,'Livre de paie des embauchés'!AU56,0) -> 0 | S56: 0 | T56: =+Info_Salariés!O56 -> 0
A57: 0 | B57: ='Livre de paie des embauchés'!B57 -> 0 | C57: ='Livre de paie des embauchés'!AA57 -> 0 | D57: =IF(C57<>0,'Livre de paie des embauchés'!AB57,0) -> 0 | E57: =ROUND('Livre de paie des embauchés'!AC57,0) -> 0 | L57: 0 | M57: 0 | O57: 0 | P57: 0 | Q57: 0 | R57: =IF(Q57<>0,'Livre de paie des embauchés'!AU57,0) -> 0 | S57: 0 | T57: =+Info_Salariés!O57 -> 0
A58: 0 | B58: ='Livre de paie des embauchés'!B58 -> 0 | C58: ='Livre de paie des embauchés'!AA58 -> 0 | D58: =IF(C58<>0,'Livre de paie des embauchés'!AB58,0) -> 0 | E58: =ROUND('Livre de paie des embauchés'!AC58,0) -> 0 | L58: 0 | M58: 0 | O58: 0 | P58: 0 | Q58: 0 | R58: =IF(Q58<>0,'Livre de paie des embauchés'!AU58,0) -> 0 | S58: 0 | T58: =+Info_Salariés!O58 -> 0
A59: 0 | B59: ='Livre de paie des embauchés'!B59 -> 0 | C59: ='Livre de paie des embauchés'!AA59 -> 0 | D59: =IF(C59<>0,'Livre de paie des embauchés'!AB59,0) -> 0 | E59: =ROUND('Livre de paie des embauchés'!AC59,0) -> 0 | L59: 0 | M59: 0 | O59: 0 | P59: 0 | Q59: 0 | R59: =IF(Q59<>0,'Livre de paie des embauchés'!AU59,0) -> 0 | S59: 0 | T59: =+Info_Salariés!O59 -> 0
A60: 0 | B60: ='Livre de paie des embauchés'!B60 -> 0 | C60: ='Livre de paie des embauchés'!AA60 -> 0 | D60: =IF(C60<>0,'Livre de paie des embauchés'!AB60,0) -> 0 | E60: =ROUND('Livre de paie des embauchés'!AC60,0) -> 0 | L60: 0 | M60: 0 | O60: 0 | P60: 0 | Q60: 0 | R60: =IF(Q60<>0,'Livre de paie des embauchés'!AU60,0) -> 0 | S60: 0 | T60: =+Info_Salariés!O60 -> 0
